Workbook

Sheet INTRO
B2: Formulaire de Rapport Commun v.3.1
B4: Le but de ce formulaire de rapport commun - disponible sous forme de fichier Excel - est de mettre à disposition des autorités sanitaires nationales et des gestionnaires de données un outil standardisé qui réponde aux défis, facilite l'intégration et par conséquent contribue à améliorer la gestion de programme. Ce formulaire tend à standardiser le rapport de résultats des programmes nationaux, améliore la disponibilité et la coordination des données de chimioprévention à travers les Bureaux des Régions de l'Organisation mondiale de la Santé. Les autorités nationales sont priées de compléter ce formulaire et de le soumettre à l'Organisation mondiale de la Santé avant le 15 août de l'année en cours pour rapporter les données des activités de chimioprévention mises en oeuvre l'année précédente.
B6: Structure de l'application (feuilles de travail) :
B8: INTRO | C8: Cette feuille contient des instructions pour compléter le formulaire de rapport commun et des informations sur le statut de la chimioprévention pour les maladies d'endémie du pays.
B9: COUNTRY_INFO | C9: Cette feuille contient des informations sur la structure administrative du pays, la population par groupe d'âge, le statut d'endémicité pour chaque maladie, la population devant être traitée par chimioprévention, les interventions prévues et les interventions mises en oeuvre.
B10: MDA1, MDA2, MDA3, T1, T2 et T3 | C10: Ces feuilles contiennent des informations sur l'endémicité des districts ciblés pour le traitement aux médicaments spécifiques pour la chimioprévention, les plans de traitement, et le nombre de personnes traitées par groupe d'âge.
B11: DISTRICT | C11: Cette feuille contient un résumé sur les personnes traitées, par maladie, au niveau de mise en oeuvre. Si les données par genre (sexe) sont disponibles, merci de les saisir.
B12: SUMMARY | C12: Cette feuille contient un résumé sur les personnes traitées, par maladie et par type d'intervention de chimioprévention. Avant de générer le rapport (exécuter macro), veuillez sélectionner la maladie pour laquelle vous souhaitez un rapport. Veuillez suivre le même processus pour générer les divers rapports. Cette feuille doit être imprimée et soumise comme formulaire de rapport commun (voir les instructions pour la soumission du formulaire sous la feuille SUMMARY).
B14: Instructions pour la saisie des données
B16: La plupart des cellules des feuilles de travail mentionnées ci-dessus contiennent des formules calculées automatiquement en fonction du protocole de traitement recommandé par l'OMS pour chaque maladie. Voir : http://www.who.int/neglected_diseases/preventive_chemotherapy/pct_manual/en/index.html
B18: Veuillez entrer vos données dans les cellules en fonction de leur code de couleur :
C20: Blanc - la cellule n'est pas protégée. Veuillez entrer la valeur de l'indicateur demandé.
C22: Jaune - la cellule est protégée et inclut le nom de l'indicateur. Aucune entrée de données requise.
C24: Orange - la cellule n'est pas protégée et contient un menu déroulant. Veuillez sélectionner la valeur dans le menu déroulant.
C27: Vert - la cellule n'est pas protégée et contient des formules. Veuillez changer la valeur indiquée uniquement si vos données sont différentes de celles calculées automatiquement.
C30: Bleu - la cellule est protégée et contient des formules. Aucune entrée de données requise.
B32: Données pays
B34: PAYS | E34: Burundi
B36: Année de rapport des données | E36: 2021
B38: Le pays est-il endémique à la filariose lymphatique (FL) ? | E38: Non endémique
B40: Le pays est-il endémique à l'onchocercose (ONCHO) ? | E40: Endémique
B42: Le pays est-il endémique aux géohelminthiases (STH) ? | E42: Endémique
B44: Le pays est-il endémique à la schistosomiase (SCH) ? | E44: Endémique
B46: Combien d'unités administratives compte le pays ? | E46: 49
B47: Si les données démographiques par groupe d'âge ne sont pas disponibles au second niveau administratif, veuillez entrer la proportion (%) de population, par groupe d'âge, du pays. Si les données sont disponibles, veuillez laisser les cellules vierges.
B48: 1-4 ans | C48: Enfants d'âge pré-scolaire (EAPréS)
B49: 5-14 ans | C49: Enfants d'âge scolaire (EAS)
B50: 15 ans et plus | C50: Adultes | E50: 0.554

Sheet COUNTRY_INFO
A1: INFORMATIONS PAYS
A2: Structure administrative, population par groupe d'âge, statut d'endémicité, interventions planifiées et interventions mises en oeuvre
A4: TOTAL | D4: =SUM(D$9:D$1000) -> 12574569 | E4: =SUM(E$9:E$1000) -> 1391202 | F4: =SUM(F$9:F$1000) -> 3414134 | G4: =SUM(G$9:G$1000) -> 6896978 | L4: =SUM(L$9:L$1000) -> 0 | M4: =SUM(M$9:M$1000) -> 2071686 | N4: =SUM(N$9:N$1000) -> 967119 | O4: =SUM(O$9:O$1000) -> 627432.08
A6: Structure administrative du pays | D6: Population | H6: Endémicité | L6: Population nécessitant la CP | P6: Nombre de tournées de traitement prévues pour l'année | T6: Mise en oeuvre de la chimioprévention | V6: Cliquer ci-dessous pour voir la stratégie recommandée | AC6: t2 | AD6: t3r1 | AE6: t3r2
A7: Pays | B7: Région/Département | C7: District | D7: Total | E7: EAPréS | F7: EAS | G7: Adultes | H7: FL | I7: Oncho | J7: STH | K7: SCH | L7: FL | M7: Oncho | N7: STH | O7: SCH | P7: FL | Q7: Oncho | R7: STH | S7: SCH | T7: TOURNEE 1 | U7: TOURNEE 2 | Y7: IU_ID | Z7: IU_Name | AA7: Parent_IU_ID | AB7: Parent IU_Name | AC7: x | AD7: x | AE7: x | AF7: x | AG7: x | AH7: x | AI7: x | AJ7: x | AK7: x | AL7: x | AN7: x | AO7: x | AP7: x | AQ7: x | AR7: x | AS7: x | AT7: x | AU7: x | AV7: x | AW7: x | AX7: x | AY7: x | AZ7: x | BA7: x | BB7: x | BC7: x | BD7: x | BE7: x | BF7: x
A9: =IF(INTRO!$E$34<>0,INTRO!$E$34,"") -> Burundi | B9: Bubanza | C9: Bubanza | D9: 259007 | E9: 31788 | F9: 65967 | G9: =IF(INTRO!$E$50="","",ROUND($D9*INTRO!$E$50,0)) -> 143490 | H9: 0 | I9: 1 | J9: 1 | K9: 1 | L9: 0 | M9: 258794 | N9: =IF(INTRO!$E$42="Endémique", IF(AND($J9>1,$J9<5), IF($J9=4, "Inconnu", E9+F9), 0),"Non requis") -> 0 | O9: =IF(INTRO!$E$44="Endémique", IF(AND($K9>0,$K9<5), IF($K9=4,"Inconnu", IF($K9=1, $F9*0.33, IF($K9=2, $F9*0.5+$G9*0.2, SUM(F9:G9)))), 0),"Non requis") -> 21769.11 | P9: 0 | Q9: 0 | R9: 2 | S9: 1 | T9: T3 (ALB/MBD) | U9: T2 (PZQ) | Y9: 6375 | Z9: Bubanza | AC9: ='T2'!M9 -> 76260 | AD9: =T3_R1!N9 -> 120435 | AE9: =T3_R2!N9 -> 122802 | AH9: =D9-E9-F9-G9 -> 17762 | AI9: =AH9/D9*100 -> 6.857729714 | AK9: =_xlfn.XLOOKUP(Y9,[1]Sheet1!$B$6:$B$55,[1]Sheet1!$L$6:$L$55) -> 0.4705882353 | AL9: 1
A10: =IF(INTRO!$E$34<>0,INTRO!$E$34,"") -> Burundi | B10: Bubanza | C10: Mpanda | D10: 268770 | E10: 39779 | F10: 62735 | G10: =IF(INTRO!$E$50="","",ROUND($D10*INTRO!$E$50,0)) -> 148899 | H10: 0 | I10: 1 | J10: 1 | K10: 1 | L10: 0 | M10: 223227 | N10: =IF(INTRO!$E$42="Endémique", IF(AND($J10>1,$J10<5), IF($J10=4, "Inconnu", E10+F10), 0),"Non requis") -> 0 | O10: =IF(INTRO!$E$44="Endémique", IF(AND($K10>0,$K10<5), IF($K10=4,"Inconnu", IF($K10=1, $F10*0.33, IF($K10=2, $F10*0.5+$G10*0.2, SUM(F10:G10)))), 0),"Non requis") -> 20702.55 | P10: 0 | Q10: 0 | R10: 2 | S10: 1 | T10: T3 (ALB/MBD) | U10: T2 (PZQ) | Y10: 6376 | Z10: Mpanda | AC10: ='T2'!M10 -> 80988 | AD10: =T3_R1!N10 -> 149268 | AE10: =T3_R2!N10 -> 127901 | AH10: =D10-E10-F10-G10 -> 17357 | AI10: =AH10/D10*100 -> 6.457938014 | AK10: =_xlfn.XLOOKUP(Y10,[1]Sheet1!$B$6:$B$55,[1]Sheet1!$L$6:$L$55) -> 9.901960784 | AL10: 2
A11: =IF(INTRO!$E$34<>0,INTRO!$E$34,"") -> Burundi | B11: Bujumbura Mairie | C11: Zone Centre | D11: 192696 | E11: 12816 | F11: 35878 | G11: =IF(INTRO!$E$50="","",ROUND($D11*INTRO!$E$50,0)) -> 106754 | H11: 0 | I11: 0 | J11: 0 | K11: 0 | L11: 0 | M11: 0 | N11: =IF(INTRO!$E$42="Endémique", IF(AND($J11>1,$J11<5), IF($J11=4, "Inconnu", E11+F11), 0),"Non requis") -> 0 | O11: =IF(INTRO!$E$44="Endémique", IF(AND($K11>0,$K11<5), IF($K11=4,"Inconnu", IF($K11=1, $F11*0.33, IF($K11=2, $F11*0.5+$G11*0.2, SUM(F11:G11)))), 0),"Non requis") -> 0 | P11: 0 | Q11: 0 | R11: 2 | S11: 0 | T11: T3 (ALB/MBD) | Y11: 6380 | Z11: Zone centre | AC11: ='T2'!M11 -> 0 | AD11: =T3_R1!N11 -> 54675 | AE11: =T3_R2!N11 -> 49738 | AH11: 37248 | AI11: 19.32992901 | AK11: =_xlfn.XLOOKUP(Y11,[1]Sheet1!$B$6:$B$55,[1]Sheet1!$L$6:$L$55) -> 0.2450980392 | AL11: 1
A12: =IF(INTRO!$E$34<>0,INTRO!$E$34,"") -> Burundi | B12: Bujumbura Mairie | C12: Zone Nord | D12: 388647 | E12: 37201 | F12: 81940 | G12: =IF(INTRO!$E$50="","",ROUND($D12*INTRO!$E$50,0)) -> 215310 | H12: 0 | I12: 0 | J12: 1 | K12: 1 | L12: 0 | M12: 0 | N12: =IF(INTRO!$E$42="Endémique", IF(AND($J12>1,$J12<5), IF($J12=4, "Inconnu", E12+F12), 0),"Non requis") -> 0 | O12: =IF(INTRO!$E$44="Endémique", IF(AND($K12>0,$K12<5), IF($K12=4,"Inconnu", IF($K12=1, $F12*0.33, IF($K12=2, $F12*0.5+$G12*0.2, SUM(F12:G12)))), 0),"Non requis") -> 27040.2 | P12: 0 | Q12: 0 | R12: 2 | S12: 1 | T12: T3 (ALB/MBD) | U12: T2 (PZQ) | Y12: 6381 | Z12: Zone Nord | AC12: ='T2'!M12 -> 79655 | AD12: =T3_R1!N12 -> 132078 | AE12: =T3_R2!N12 -> 137941 | AH12: 54196 | AI12: 13.94478794 | AK12: =_xlfn.XLOOKUP(Y12,[1]Sheet1!$B$6:$B$55,[1]Sheet1!$L$6:$L$55) -> 1.470588235 | AL12: 1
A13: =IF(INTRO!$E$34<>0,INTRO!$E$34,"") -> Burundi | B13: Bujumbura Mairie | C13: Zone Sud | D13: 194915 | E13: 16825 | F13: 40689 | G13: =IF(INTRO!$E$50="","",ROUND($D13*INTRO!$E$50,0)) -> 107983 | H13: 0 | I13: 0 | J13: 1 | K13: 0 | L13: 0 | M13: 0 | N13: =IF(INTRO!$E$42="Endémique", IF(AND($J13>1,$J13<5), IF($J13=4, "Inconnu", E13+F13), 0),"Non requis") -> 0 | O13: =IF(INTRO!$E$44="Endémique", IF(AND($K13>0,$K13<5), IF($K13=4,"Inconnu", IF($K13=1, $F13*0.33, IF($K13=2, $F13*0.5+$G13*0.2, SUM(F13:G13)))), 0),"Non requis") -> 0 | P13: 0 | Q13: 0 | R13: 2 | S13: 0 | T13: T3 (ALB/MBD) | Y13: 6382 | Z13: Zone Sud | AC13: ='T2'!M13 -> 0 | AD13: =T3_R1!N13 -> 74195 | AE13: =T3_R2!N13 -> 78734 | AH13: 29418 | AI13: 15.09273273 | AK13: =_xlfn.XLOOKUP(Y13,[1]Sheet1!$B$6:$B$55,[1]Sheet1!$L$6:$L$55) -> 1.470588235 | AL13: 1
A14: =IF(INTRO!$E$34<>0,INTRO!$E$34,"") -> Burundi | B14: Bujumbura Rural | C14: Isare | D14: 296588 | E14: 28663 | F14: 79383 | G14: =IF(INTRO!$E$50="","",ROUND($D14*INTRO!$E$50,0)) -> 164310 | H14: 0 | I14: 0 | J14: 2 | K14: 1 | L14: 0 | M14: 0 | N14: =IF(INTRO!$E$42="Endémique", IF(AND($J14>1,$J14<5), IF($J14=4, "Inconnu", E14+F14), 0),"Non requis") -> 108046 | O14: =IF(INTRO!$E$44="Endémique", IF(AND($K14>0,$K14<5), IF($K14=4,"Inconnu", IF($K14=1, $F14*0.33, IF($K14=2, $F14*0.5+$G14*0.2, SUM(F14:G14)))), 0),"Non requis") -> 26196.39 | P14: 0 | Q14: 0 | R14: 2 | S14: 1 | T14: T3 (ALB/MBD) | U14: T2 (PZQ) | Y14: 6377 | Z14: Isale | AC14: ='T2'!M14 -> 76639 | AD14: =T3_R1!N14 -> 149248 | AE14: =T3_R2!N14 -> 127704 | AH14: 24232 | AI14: 8.170256383 | AK14: =_xlfn.XLOOKUP(Y14,[1]Sheet1!$B$6:$B$55,[1]Sheet1!$L$6:$L$55) -> 3.921568627 | AL14: 1
A15: =IF(INTRO!$E$34<>0,INTRO!$E$34,"") -> Burundi | B15: Bujumbura Rural | C15: Kabezi | D15: 268032 | E15: 33577 | F15: 102354 | G15: 115483 | H15: 0 | I15: 0 | J15: 2 | K15: 1 | L15: 0 | M15: 0 | N15: =IF(INTRO!$E$42="Endémique", IF(AND($J15>1,$J15<5), IF($J15=4, "Inconnu", E15+F15), 0),"Non requis") -> 135931 | O15: =IF(INTRO!$E$44="Endémique", IF(AND($K15>0,$K15<5), IF($K15=4,"Inconnu", IF($K15=1, $F15*0.33, IF($K15=2, $F15*0.5+$G15*0.2, SUM(F15:G15)))), 0),"Non requis") -> 33776.82 | P15: 0 | Q15: 0 | R15: 2 | S15: 1 | T15: T3 (ALB/MBD) | U15: T2 (PZQ) | Y15: 6378 | Z15: Kabezi | AC15: ='T2'!M15 -> 82643 | AD15: =T3_R1!N15 -> 127625 | AE15: =T3_R2!N15 -> 129826 | AH15: 16618 | AI15: 6.200005969 | AK15: =_xlfn.XLOOKUP(Y15,[1]Sheet1!$B$6:$B$55,[1]Sheet1!$L$6:$L$55) -> 0.1278772379 | AL15: 1
A16: =IF(INTRO!$E$34<>0,INTRO!$E$34,"") -> Burundi | B16: Bujumbura Rural | C16: Rwibaga | D16: 161131 | E16: 15587 | F16: 42009 | G16: =IF(INTRO!$E$50="","",ROUND($D16*INTRO!$E$50,0)) -> 89267 | H16: 0 | I16: 0 | J16: 2 | K16: 0 | L16: 0 | M16: 0 | N16: =IF(INTRO!$E$42="Endémique", IF(AND($J16>1,$J16<5), IF($J16=4, "Inconnu", E16+F16), 0),"Non requis") -> 57596 | O16: =IF(INTRO!$E$44="Endémique", IF(AND($K16>0,$K16<5), IF($K16=4,"Inconnu", IF($K16=1, $F16*0.33, IF($K16=2, $F16*0.5+$G16*0.2, SUM(F16:G16)))), 0),"Non requis") -> 0 | P16: 0 | Q16: 0 | R16: 2 | S16: 0 | T16: T3 (ALB/MBD) | Y16: 6379 | Z16: Rwibaga | AC16: ='T2'!M16 -> 0 | AD16: =T3_R1!N16 -> 58945 | AE16: =T3_R2!N16 -> 60779 | AH16: 14268 | AI16: 8.854906877 | AK16: =_xlfn.XLOOKUP(Y16,[1]Sheet1!$B$6:$B$55,[1]Sheet1!$L$6:$L$55) -> 0 | AL16: 0
A17: =IF(INTRO!$E$34<>0,INTRO!$E$34,"") -> Burundi | B17: Bururi | C17: Bururi | D17: 176901 | E17: 17231 | F17: 49797 | G17: =IF(INTRO!$E$50="","",ROUND($D17*INTRO!$E$50,0)) -> 98003 | H17: 0 | I17: 1 | J17: 1 | K17: 0 | L17: 0 | M17: 55864 | N17: =IF(INTRO!$E$42="Endémique", IF(AND($J17>1,$J17<5), IF($J17=4, "Inconnu", E17+F17), 0),"Non requis") -> 0 | O17: =IF(INTRO!$E$44="Endémique", IF(AND($K17>0,$K17<5), IF($K17=4,"Inconnu", IF($K17=1, $F17*0.33, IF($K17=2, $F17*0.5+$G17*0.2, SUM(F17:G17)))), 0),"Non requis") -> 0 | P17: 0 | Q17: 0 | R17: 2 | S17: 0 | T17: T3 (ALB/MBD) | Y17: 6383 | Z17: Bururi | AC17: ='T2'!M17 -> 0 | AD17: =T3_R1!N17 -> 84605 | AE17: =T3_R2!N17 -> 78811 | AH17: 11870 | AI17: 6.709967722 | AK17: =_xlfn.XLOOKUP(Y17,[1]Sheet1!$B$6:$B$55,[1]Sheet1!$L$6:$L$55) -> 0.1176470588 | AL17: 1
A18: =IF(INTRO!$E$34<>0,INTRO!$E$34,"") -> Burundi | B18: Bururi | C18: Matana | D18: 159043 | E18: 15536 | F18: 45426 | G18: =IF(INTRO!$E$50="","",ROUND($D18*INTRO!$E$50,0)) -> 88110 | H18: 0 | I18: 0 | J18: 1 | K18: 0 | L18: 0 | M18: 0 | N18: =IF(INTRO!$E$42="Endémique", IF(AND($J18>1,$J18<5), IF($J18=4, "Inconnu", E18+F18), 0),"Non requis") -> 0 | O18: =IF(INTRO!$E$44="Endémique", IF(AND($K18>0,$K18<5), IF($K18=4,"Inconnu", IF($K18=1, $F18*0.33, IF($K18=2, $F18*0.5+$G18*0.2, SUM(F18:G18)))), 0),"Non requis") -> 0 | P18: 0 | Q18: 0 | R18: 2 | S18: 0 | T18: T3 (ALB/MBD) | Y18: 6384 | Z18: Matana | AC18: ='T2'!M18 -> 0 | AD18: =T3_R1!N18 -> 55991 | AE18: =T3_R2!N18 -> 60252 | AH18: 9971 | AI18: 6.269373691 | AK18: =_xlfn.XLOOKUP(Y18,[1]Sheet1!$B$6:$B$55,[1]Sheet1!$L$6:$L$55) -> 0 | AL18: 0
A19: =IF(INTRO!$E$34<>0,INTRO!$E$34,"") -> Burundi | B19: Bururi | C19: Rutovu | D19: 152923 | E19: 14509 | F19: 45294 | G19: =IF(INTRO!$E$50="","",ROUND($D19*INTRO!$E$50,0)) -> 84719 | H19: 0 | I19: 1 | J19: 1 | K19: 0 | L19: 0 | M19: 23477 | N19: =IF(INTRO!$E$42="Endémique", IF(AND($J19>1,$J19<5), IF($J19=4, "Inconnu", E19+F19), 0),"Non requis") -> 0 | O19: =IF(INTRO!$E$44="Endémique", IF(AND($K19>0,$K19<5), IF($K19=4,"Inconnu", IF($K19=1, $F19*0.33, IF($K19=2, $F19*0.5+$G19*0.2, SUM(F19:G19)))), 0),"Non requis") -> 0 | P19: 0 | Q19: 0 | R19: 2 | S19: 0 | T19: T3 (ALB/MBD) | Y19: 6424 | Z19: Rutovu | AA19: 6384 | AB19: Matana | AC19: ='T2'!M19 -> 0 | AD19: =T3_R1!N19 -> 59833 | AE19: =T3_R2!N19 -> 69786 | AH19: 8401 | AI19: 5.493614433 | AK19: =_xlfn.XLOOKUP(Y19,[1]Sheet1!$B$6:$B$55,[1]Sheet1!$L$6:$L$55) -> 0 | AL19: 0
A20: =IF(INTRO!$E$34<>0,INTRO!$E$34,"") -> Burundi | B20: Cankuzo | C20: Cankuzo | D20: 189242 | E20: 20717 | F20: 52002 | G20: =IF(INTRO!$E$50="","",ROUND($D20*INTRO!$E$50,0)) -> 104840 | H20: 0 | I20: 0 | J20: 1 | K20: 0 | L20: 0 | M20: 0 | N20: =IF(INTRO!$E$42="Endémique", IF(AND($J20>1,$J20<5), IF($J20=4, "Inconnu", E20+F20), 0),"Non requis") -> 0 | O20: =IF(INTRO!$E$44="Endémique", IF(AND($K20>0,$K20<5), IF($K20=4,"Inconnu", IF($K20=1, $F20*0.33, IF($K20=2, $F20*0.5+$G20*0.2, SUM(F20:G20)))), 0),"Non requis") -> 0 | P20: 0 | Q20: 0 | R20: 2 | S20: 0 | T20: T3 (ALB/MBD) | Y20: 6386 | Z20: Cankuzo | AC20: ='T2'!M20 -> 0 | AD20: =T3_R1!N20 -> 105138 | AE20: =T3_R2!N20 -> 89073 | AH20: 11683 | AI20: 6.17357669 | AK20: =_xlfn.XLOOKUP(Y20,[1]Sheet1!$B$6:$B$55,[1]Sheet1!$L$6:$L$55) -> 0.1633986928 | AL20: 1
A21: =IF(INTRO!$E$34<>0,INTRO!$E$34,"") -> Burundi | B21: Cankuzo | C21: Murore | D21: 168112 | E21: 19597 | F21: 48843 | G21: =IF(INTRO!$E$50="","",ROUND($D21*INTRO!$E$50,0)) -> 93134 | H21: 0 | I21: 0 | J21: 1 | K21: 1 | L21: 0 | M21: 0 | N21: =IF(INTRO!$E$42="Endémique", IF(AND($J21>1,$J21<5), IF($J21=4, "Inconnu", E21+F21), 0),"Non requis") -> 0 | O21: =IF(INTRO!$E$44="Endémique", IF(AND($K21>0,$K21<5), IF($K21=4,"Inconnu", IF($K21=1, $F21*0.33, IF($K21=2, $F21*0.5+$G21*0.2, SUM(F21:G21)))), 0),"Non requis") -> 16118.19 | P21: 0 | Q21: 0 | R21: 2 | S21: 1 | T21: T3 (ALB/MBD) | U21: T2 (PZQ) | Y21: 6387 | Z21: Murore | AC21: ='T2'!M21 -> 51685 | AD21: =T3_R1!N21 -> 77852 | AE21: =T3_R2!N21 -> 79366 | AH21: 6538 | AI21: 3.889073951 | AK21: =_xlfn.XLOOKUP(Y21,[1]Sheet1!$B$6:$B$55,[1]Sheet1!$L$6:$L$55) -> 0 | AL21: 0
A22: =IF(INTRO!$E$34<>0,INTRO!$E$34,"") -> Burundi | B22: Cibitoke | C22: Bukinanyana | D22: 246672 | E22: 31111 | F22: 70007 | G22: =IF(INTRO!$E$50="","",ROUND($D22*INTRO!$E$50,0)) -> 136656 | H22: 0 | I22: 1 | J22: 1 | K22: 1 | L22: 0 | M22: 232453 | N22: =IF(INTRO!$E$42="Endémique", IF(AND($J22>1,$J22<5), IF($J22=4, "Inconnu", E22+F22), 0),"Non requis") -> 0 | O22: =IF(INTRO!$E$44="Endémique", IF(AND($K22>0,$K22<5), IF($K22=4,"Inconnu", IF($K22=1, $F22*0.33, IF($K22=2, $F22*0.5+$G22*0.2, SUM(F22:G22)))), 0),"Non requis") -> 23102.31 | P22: 0 | Q22: 0 | R22: 2 | S22: 1 | T22: T3 (ALB/MBD) | U22: T2 (PZQ) | Y22: 6421 | Z22: Bukinanyana | AC22: ='T2'!M22 -> 72594 | AD22: =T3_R1!N22 -> 106554 | AE22: =T3_R2!N22 -> 112252 | AH22: 8898 | AI22: 3.607219303 | AK22: =_xlfn.XLOOKUP(Y22,[1]Sheet1!$B$6:$B$55,[1]Sheet1!$L$6:$L$55) -> 0 | AL22: 0
A23: =IF(INTRO!$E$34<>0,INTRO!$E$34,"") -> Burundi | B23: Cibitoke | C23: Cibitoke | D23: 230507 | E23: 28439 | F23: 58729 | G23: =IF(INTRO!$E$50="","",ROUND($D23*INTRO!$E$50,0)) -> 127701 | H23: 0 | I23: 1 | J23: 1 | K23: 2 | L23: 0 | M23: 257382 | N23: =IF(INTRO!$E$42="Endémique", IF(AND($J23>1,$J23<5), IF($J23=4, "Inconnu", E23+F23), 0),"Non requis") -> 0 | O23: =IF(INTRO!$E$44="Endémique", IF(AND($K23>0,$K23<5), IF($K23=4,"Inconnu", IF($K23=1, $F23*0.33, IF($K23=2, $F23*0.5+$G23*0.2, SUM(F23:G23)))), 0),"Non requis") -> 54904.7 | P23: 0 | Q23: 0 | R23: 2 | S23: 1 | T23: T3 (ALB/MBD) | U23: T2 (PZQ) | Y23: 6422 | Z23: Cibitoke | AC23: ='T2'!M23 -> 83809 | AD23: =T3_R1!N23 -> 112007 | AE23: =T3_R2!N23 -> 107711 | AH23: 15638 | AI23: 6.784175752 | AK23: =_xlfn.XLOOKUP(Y23,[1]Sheet1!$B$6:$B$55,[1]Sheet1!$L$6:$L$55) -> 0.756302521 | AL23: 1
A24: =IF(INTRO!$E$34<>0,INTRO!$E$34,"") -> Burundi | B24: Cibitoke | C24: Mabayi | D24: 241727 | E24: 29899 | F24: 68604 | G24: =IF(INTRO!$E$50="","",ROUND($D24*INTRO!$E$50,0)) -> 133917 | H24: 0 | I24: 1 | J24: 1 | K24: 1 | L24: 0 | M24: 226953 | N24: =IF(INTRO!$E$42="Endémique", IF(AND($J24>1,$J24<5), IF($J24=4, "Inconnu", E24+F24), 0),"Non requis") -> 0 | O24: =IF(INTRO!$E$44="Endémique", IF(AND($K24>0,$K24<5), IF($K24=4,"Inconnu", IF($K24=1, $F24*0.33, IF($K24=2, $F24*0.5+$G24*0.2, SUM(F24:G24)))), 0),"Non requis") -> 22639.32 | P24: 0 | Q24: 0 | R24: 2 | S24: 1 | T24: T3 (ALB/MBD) | U24: T2 (PZQ) | Y24: 6423 | Z24: Mabayi | AC24: ='T2'!M24 -> 71213 | AD24: =T3_R1!N24 -> 114751 | AE24: =T3_R2!N24 -> 103604 | AH24: 9307 | AI24: 3.850211189 | AK24: =_xlfn.XLOOKUP(Y24,[1]Sheet1!$B$6:$B$55,[1]Sheet1!$L$6:$L$55) -> 1.029411765 | AL24: 1
A25: =IF(INTRO!$E$34<>0,INTRO!$E$34,"") -> Burundi | B25: Gitega | C25: Gitega | D25: 356025 | E25: 34285 | F25: 86121 | G25: =IF(INTRO!$E$50="","",ROUND($D25*INTRO!$E$50,0)) -> 197238 | H25: 0 | I25: 0 | J25: 1 | K25: 0 | L25: 0 | M25: 0 | N25: =IF(INTRO!$E$42="Endémique", IF(AND($J25>1,$J25<5), IF($J25=4, "Inconnu", E25+F25), 0),"Non requis") -> 0 | O25: =IF(INTRO!$E$44="Endémique", IF(AND($K25>0,$K25<5), IF($K25=4,"Inconnu", IF($K25=1, $F25*0.33, IF($K25=2, $F25*0.5+$G25*0.2, SUM(F25:G25)))), 0),"Non requis") -> 0 | P25: 0 | Q25: 0 | R25: 2 | S25: 0 | T25: T3 (ALB/MBD) | Y25: 6390 | Z25: Gitega | AC25: ='T2'!M25 -> 0 | AD25: =T3_R1!N25 -> 132020 | AE25: =T3_R2!N25 -> 147851 | AH25: 38381 | AI25: 10.78042272 | AK25: =_xlfn.XLOOKUP(Y25,[1]Sheet1!$B$6:$B$55,[1]Sheet1!$L$6:$L$55) -> 0 | AL25: 0
A26: =IF(INTRO!$E$34<>0,INTRO!$E$34,"") -> Burundi | B26: Gitega | C26: Kibuye | D26: 297900 | E26: 29530 | F26: 78237 | G26: =IF(INTRO!$E$50="","",ROUND($D26*INTRO!$E$50,0)) -> 165037 | H26: 0 | I26: 0 | J26: 1 | K26: 0 | L26: 0 | M26: 0 | N26: =IF(INTRO!$E$42="Endémique", IF(AND($J26>1,$J26<5), IF($J26=4, "Inconnu", E26+F26), 0),"Non requis") -> 0 | O26: =IF(INTRO!$E$44="Endémique", IF(AND($K26>0,$K26<5), IF($K26=4,"Inconnu", IF($K26=1, $F26*0.33, IF($K26=2, $F26*0.5+$G26*0.2, SUM(F26:G26)))), 0),"Non requis") -> 0 | P26: 0 | Q26: 0 | R26: 2 | S26: 0 | T26: T3 (ALB/MBD) | Y26: 6391 | Z26: Kibuye | AC26: ='T2'!M26 -> 0 | AD26: =T3_R1!N26 -> 123065 | AE26: =T3_R2!N26 -> 127185 | AH26: 25096 | AI26: 8.424303458 | AK26: =_xlfn.XLOOKUP(Y26,[1]Sheet1!$B$6:$B$55,[1]Sheet1!$L$6:$L$55) -> 0 | AL26: 0
A27: =IF(INTRO!$E$34<>0,INTRO!$E$34,"") -> Burundi | B27: Gitega | C27: Mutaho | D27: 271273 | E27: 26950 | F27: 68717 | G27: =IF(INTRO!$E$50="","",ROUND($D27*INTRO!$E$50,0)) -> 150285 | H27: 0 | I27: 0 | J27: 1 | K27: 0 | L27: 0 | M27: 0 | N27: =IF(INTRO!$E$42="Endémique", IF(AND($J27>1,$J27<5), IF($J27=4, "Inconnu", E27+F27), 0),"Non requis") -> 0 | O27: =IF(INTRO!$E$44="Endémique", IF(AND($K27>0,$K27<5), IF($K27=4,"Inconnu", IF($K27=1, $F27*0.33, IF($K27=2, $F27*0.5+$G27*0.2, SUM(F27:G27)))), 0),"Non requis") -> 0 | P27: 0 | Q27: 0 | R27: 2 | S27: 0 | T27: T3 (ALB/MBD) | Y27: 6392 | Z27: Mutaho | AC27: ='T2'!M27 -> 0 | AD27: =T3_R1!N27 -> 88400 | AE27: =T3_R2!N27 -> 109612 | AH27: 25321 | AI27: 9.334139409 | AK27: =_xlfn.XLOOKUP(Y27,[1]Sheet1!$B$6:$B$55,[1]Sheet1!$L$6:$L$55) -> 0.1730103806 | AL27: 1
A28: =IF(INTRO!$E$34<>0,INTRO!$E$34,"") -> Burundi | B28: Gitega | C28: Ryansoro | D28: 207140 | E28: 19638 | F28: 56603 | G28: =IF(INTRO!$E$50="","",ROUND($D28*INTRO!$E$50,0)) -> 114756 | H28: 0 | I28: 0 | J28: 1 | K28: 0 | L28: 0 | M28: 0 | N28: =IF(INTRO!$E$42="Endémique", IF(AND($J28>1,$J28<5), IF($J28=4, "Inconnu", E28+F28), 0),"Non requis") -> 0 | O28: =IF(INTRO!$E$44="Endémique", IF(AND($K28>0,$K28<5), IF($K28=4,"Inconnu", IF($K28=1, $F28*0.33, IF($K28=2, $F28*0.5+$G28*0.2, SUM(F28:G28)))), 0),"Non requis") -> 0 | P28: 0 | Q28: 0 | R28: 2 | S28: 0 | T28: T3 (ALB/MBD) | Y28: 6393 | Z28: Ryansoro | AC28: ='T2'!M28 -> 0 | AD28: =T3_R1!N28 -> 82381 | AE28: =T3_R2!N28 -> 80331 | AH28: 16143 | AI28: 7.793279907 | AK28: =_xlfn.XLOOKUP(Y28,[1]Sheet1!$B$6:$B$55,[1]Sheet1!$L$6:$L$55) -> 0 | AL28: 0
A29: =IF(INTRO!$E$34<>0,INTRO!$E$34,"") -> Burundi | B29: Karusi | C29: Buhiga | D29: 361506 | E29: 41164 | F29: 103191 | G29: =IF(INTRO!$E$50="","",ROUND($D29*INTRO!$E$50,0)) -> 200274 | H29: 0 | I29: 0 | J29: 1 | K29: 0 | L29: 0 | M29: 0 | N29: =IF(INTRO!$E$42="Endémique", IF(AND($J29>1,$J29<5), IF($J29=4, "Inconnu", E29+F29), 0),"Non requis") -> 0 | O29: =IF(INTRO!$E$44="Endémique", IF(AND($K29>0,$K29<5), IF($K29=4,"Inconnu", IF($K29=1, $F29*0.33, IF($K29=2, $F29*0.5+$G29*0.2, SUM(F29:G29)))), 0),"Non requis") -> 0 | P29: 0 | Q29: 0 | R29: 2 | S29: 0 | T29: T3 (ALB/MBD) | Y29: 6394 | Z29: Buhiga | AC29: ='T2'!M29 -> 0 | AD29: =T3_R1!N29 -> 159128 | AE29: =T3_R2!N29 -> 178115 | AH29: 16877 | AI29: 4.668525557 | AK29: =_xlfn.XLOOKUP(Y29,[1]Sheet1!$B$6:$B$55,[1]Sheet1!$L$6:$L$55) -> 0 | AL29: 0
A30: =IF(INTRO!$E$34<>0,INTRO!$E$34,"") -> Burundi | B30: Karusi | C30: Nyabikere | D30: 319940 | E30: 36805 | F30: 91053 | G30: =IF(INTRO!$E$50="","",ROUND($D30*INTRO!$E$50,0)) -> 177247 | H30: 0 | I30: 0 | J30: 1 | K30: 0 | L30: 0 | M30: 0 | N30: =IF(INTRO!$E$42="Endémique", IF(AND($J30>1,$J30<5), IF($J30=4, "Inconnu", E30+F30), 0),"Non requis") -> 0 | O30: =IF(INTRO!$E$44="Endémique", IF(AND($K30>0,$K30<5), IF($K30=4,"Inconnu", IF($K30=1, $F30*0.33, IF($K30=2, $F30*0.5+$G30*0.2, SUM(F30:G30)))), 0),"Non requis") -> 0 | P30: 0 | Q30: 0 | R30: 2 | S30: 0 | T30: T3 (ALB/MBD) | Y30: 6395 | Z30: Nyabikere | AC30: ='T2'!M30 -> 0 | AD30: =T3_R1!N30 -> 138784 | AE30: =T3_R2!N30 -> 147439 | AH30: 14835 | AI30: 4.636806901 | AK30: =_xlfn.XLOOKUP(Y30,[1]Sheet1!$B$6:$B$55,[1]Sheet1!$L$6:$L$55) -> 0 | AL30: 0
A31: =IF(INTRO!$E$34<>0,INTRO!$E$34,"") -> Burundi | B31: Kayanza | C31: Gahombo | D31: 262661 | E31: 26182 | F31: 74654 | G31: =IF(INTRO!$E$50="","",ROUND($D31*INTRO!$E$50,0)) -> 145514 | H31: 0 | I31: 0 | J31: 2 | K31: 0 | L31: 0 | M31: 0 | N31: =IF(INTRO!$E$42="Endémique", IF(AND($J31>1,$J31<5), IF($J31=4, "Inconnu", E31+F31), 0),"Non requis") -> 100836 | O31: =IF(INTRO!$E$44="Endémique", IF(AND($K31>0,$K31<5), IF($K31=4,"Inconnu", IF($K31=1, $F31*0.33, IF($K31=2, $F31*0.5+$G31*0.2, SUM(F31:G31)))), 0),"Non requis") -> 0 | P31: 0 | Q31: 0 | R31: 2 | S31: 0 | T31: T3 (ALB/MBD) | Y31: 6396 | Z31: Gahombo | AC31: ='T2'!M31 -> 0 | AD31: =T3_R1!N31 -> 105022 | AE31: =T3_R2!N31 -> 97746 | AH31: 16311 | AI31: 6.209905544 | AK31: =_xlfn.XLOOKUP(Y31,[1]Sheet1!$B$6:$B$55,[1]Sheet1!$L$6:$L$55) -> 5.042016807 | AL31: 1
A32: =IF(INTRO!$E$34<>0,INTRO!$E$34,"") -> Burundi | B32: Kayanza | C32: Kayanza | D32: 339508 | E32: 37990 | F32: 95351 | G32: =IF(INTRO!$E$50="","",ROUND($D32*INTRO!$E$50,0)) -> 188087 | H32: 0 | I32: 0 | J32: 3 | K32: 0 | L32: 0 | M32: 0 | N32: =IF(INTRO!$E$42="Endémique", IF(AND($J32>1,$J32<5), IF($J32=4, "Inconnu", E32+F32), 0),"Non requis") -> 133341 | O32: =IF(INTRO!$E$44="Endémique", IF(AND($K32>0,$K32<5), IF($K32=4,"Inconnu", IF($K32=1, $F32*0.33, IF($K32=2, $F32*0.5+$G32*0.2, SUM(F32:G32)))), 0),"Non requis") -> 0 | P32: 0 | Q32: 0 | R32: 2 | S32: 0 | T32: T3 (ALB/MBD) | Y32: 6397 | Z32: Kayanza | AC32: ='T2'!M32 -> 0 | AD32: =T3_R1!N32 -> 135170 | AE32: =T3_R2!N32 -> 140856 | AH32: 18080 | AI32: 5.325353158 | AK32: =_xlfn.XLOOKUP(Y32,[1]Sheet1!$B$6:$B$55,[1]Sheet1!$L$6:$L$55) -> 0 | AL32: 0
A33: =IF(INTRO!$E$34<>0,INTRO!$E$34,"") -> Burundi | B33: Kayanza | C33: Musema | D33: 311873 | E33: 31877 | F33: 82022 | G33: =IF(INTRO!$E$50="","",ROUND($D33*INTRO!$E$50,0)) -> 172778 | H33: 0 | I33: 0 | J33: 2 | K33: 0 | L33: 0 | M33: 0 | N33: =IF(INTRO!$E$42="Endémique", IF(AND($J33>1,$J33<5), IF($J33=4, "Inconnu", E33+F33), 0),"Non requis") -> 113899 | O33: =IF(INTRO!$E$44="Endémique", IF(AND($K33>0,$K33<5), IF($K33=4,"Inconnu", IF($K33=1, $F33*0.33, IF($K33=2, $F33*0.5+$G33*0.2, SUM(F33:G33)))), 0),"Non requis") -> 0 | P33: 0 | Q33: 0 | R33: 2 | S33: 0 | T33: T3 (ALB/MBD) | Y33: 6398 | Z33: Musema | AC33: ='T2'!M33 -> 0 | AD33: =T3_R1!N33 -> 128862 | AE33: =T3_R2!N33 -> 120350 | AH33: 25196 | AI33: 8.078929564 | AK33: =_xlfn.XLOOKUP(Y33,[1]Sheet1!$B$6:$B$55,[1]Sheet1!$L$6:$L$55) -> 0 | AL33: 0
A34: =IF(INTRO!$E$34<>0,INTRO!$E$34,"") -> Burundi | B34: Kirundo | C34: Busoni | D34: 227060 | E34: 26666 | F34: 64168 | G34: =IF(INTRO!$E$50="","",ROUND($D34*INTRO!$E$50,0)) -> 125791 | H34: 0 | I34: 0 | J34: 1 | K34: 1 | L34: 0 | M34: 0 | N34: =IF(INTRO!$E$42="Endémique", IF(AND($J34>1,$J34<5), IF($J34=4, "Inconnu", E34+F34), 0),"Non requis") -> 0 | O34: =IF(INTRO!$E$44="Endémique", IF(AND($K34>0,$K34<5), IF($K34=4,"Inconnu", IF($K34=1, $F34*0.33, IF($K34=2, $F34*0.5+$G34*0.2, SUM(F34:G34)))), 0),"Non requis") -> 21175.44 | P34: 0 | Q34: 0 | R34: 2 | S34: 1 | T34: T3 (ALB/MBD) | U34: T2 (PZQ) | Y34: 6399 | Z34: Busoni | AC34: ='T2'!M34 -> 59141 | AD34: =T3_R1!N34 -> 91130 | AE34: =T3_R2!N34 -> 94987 | AH34: 10435 | AI34: 4.595701577 | AK34: =_xlfn.XLOOKUP(Y34,[1]Sheet1!$B$6:$B$55,[1]Sheet1!$L$6:$L$55) -> 0 | AL34: 0
A35: =IF(INTRO!$E$34<>0,INTRO!$E$34,"") -> Burundi | B35: Kirundo | C35: Kirundo | D35: 284745 | E35: 32164 | F35: 78712 | G35: =IF(INTRO!$E$50="","",ROUND($D35*INTRO!$E$50,0)) -> 157749 | H35: 0 | I35: 0 | J35: 1 | K35: 1 | L35: 0 | M35: 0 | N35: =IF(INTRO!$E$42="Endémique", IF(AND($J35>1,$J35<5), IF($J35=4, "Inconnu", E35+F35), 0),"Non requis") -> 0 | O35: =IF(INTRO!$E$44="Endémique", IF(AND($K35>0,$K35<5), IF($K35=4,"Inconnu", IF($K35=1, $F35*0.33, IF($K35=2, $F35*0.5+$G35*0.2, SUM(F35:G35)))), 0),"Non requis") -> 25974.96 | P35: 0 | Q35: 0 | R35: 2 | S35: 1 | T35: T3 (ALB/MBD) | U35: T2 (PZQ) | Y35: 6400 | Z35: Kirundo | AC35: ='T2'!M35 -> 69185 | AD35: =T3_R1!N35 -> 114977 | AE35: =T3_R2!N35 -> 108101 | AH35: 16120 | AI35: 5.66120564 | AK35: =_xlfn.XLOOKUP(Y35,[1]Sheet1!$B$6:$B$55,[1]Sheet1!$L$6:$L$55) -> 0 | AL35: 0
A36: =IF(INTRO!$E$34<>0,INTRO!$E$34,"") -> Burundi | B36: Kirundo | C36: Mukenke | D36: 193831 | E36: 23371 | F36: 51160 | G36: =IF(INTRO!$E$50="","",ROUND($D36*INTRO!$E$50,0)) -> 107382 | H36: 0 | I36: 0 | J36: 1 | K36: 1 | L36: 0 | M36: 0 | N36: =IF(INTRO!$E$42="Endémique", IF(AND($J36>1,$J36<5), IF($J36=4, "Inconnu", E36+F36), 0),"Non requis") -> 0 | O36: =IF(INTRO!$E$44="Endémique", IF(AND($K36>0,$K36<5), IF($K36=4,"Inconnu", IF($K36=1, $F36*0.33, IF($K36=2, $F36*0.5+$G36*0.2, SUM(F36:G36)))), 0),"Non requis") -> 16882.8 | P36: 0 | Q36: 0 | R36: 2 | S36: 1 | T36: T3 (ALB/MBD) | U36: T2 (PZQ) | Y36: 6401 | Z36: Mukenke | AC36: ='T2'!M36 -> 44419 | AD36: =T3_R1!N36 -> 81416 | AE36: =T3_R2!N36 -> 68909 | AH36: 11918 | AI36: 6.148655272 | AK36: =_xlfn.XLOOKUP(Y36,[1]Sheet1!$B$6:$B$55,[1]Sheet1!$L$6:$L$55) -> 0 | AL36: 0
A37: =IF(INTRO!$E$34<>0,INTRO!$E$34,"") -> Burundi | B37: Kirundo | C37: Vumbi | D37: 275301 | E37: 31364 | F37: 72552 | G37: =IF(INTRO!$E$50="","",ROUND($D37*INTRO!$E$50,0)) -> 152517 | H37: 0 | I37: 0 | J37: 1 | K37: 1 | L37: 0 | M37: 0 | N37: =IF(INTRO!$E$42="Endémique", IF(AND($J37>1,$J37<5), IF($J37=4, "Inconnu", E37+F37), 0),"Non requis") -> 0 | O37: =IF(INTRO!$E$44="Endémique", IF(AND($K37>0,$K37<5), IF($K37=4,"Inconnu", IF($K37=1, $F37*0.33, IF($K37=2, $F37*0.5+$G37*0.2, SUM(F37:G37)))), 0),"Non requis") -> 23942.16 | P37: 0 | Q37: 0 | R37: 2 | S37: 1 | T37: T3 (ALB/MBD) | U37: T2 (PZQ) | Y37: 6402 | Z37: Vumbi | AC37: ='T2'!M37 -> 76303 | AD37: =T3_R1!N37 -> 113493 | AE37: =T3_R2!N37 -> 120937 | AH37: 18868 | AI37: 6.853589344 | AK37: =_xlfn.XLOOKUP(Y37,[1]Sheet1!$B$6:$B$55,[1]Sheet1!$L$6:$L$55) -> 0 | AL37: 0
A38: =IF(INTRO!$E$34<>0,INTRO!$E$34,"") -> Burundi | B38: Makamba | C38: Makamba | D38: 354567 | E38: 41282 | F38: 102933 | G38: =IF(INTRO!$E$50="","",ROUND($D38*INTRO!$E$50,0)) -> 196430 | H38: 0 | I38: 1 | J38: 1 | K38: 1 | L38: 0 | M38: 64051 | N38: =IF(INTRO!$E$42="Endémique", IF(AND($J38>1,$J38<5), IF($J38=4, "Inconnu", E38+F38), 0),"Non requis") -> 0 | O38: =IF(INTRO!$E$44="Endémique", IF(AND($K38>0,$K38<5), IF($K38=4,"Inconnu", IF($K38=1, $F38*0.33, IF($K38=2, $F38*0.5+$G38*0.2, SUM(F38:G38)))), 0),"Non requis") -> 33967.89 | P38: 0 | Q38: 0 | R38: 2 | S38: 1 | T38: T3 (ALB/MBD) | U38: T2 (PZQ) | Y38: 6403 | Z38: Makamba | AC38: ='T2'!M38 -> 100942 | AD38: =T3_R1!N38 -> 175450 | AE38: =T3_R2!N38 -> 150958 | AH38: 13922 | AI38: 3.92647934 | AK38: =_xlfn.XLOOKUP(Y38,[1]Sheet1!$B$6:$B$55,[1]Sheet1!$L$6:$L$55) -> 0.6191950464 | AL38: 1
A39: =IF(INTRO!$E$34<>0,INTRO!$E$34,"") -> Burundi | B39: Makamba | C39: Nyanza-Lac | D39: 318224 | E39: 37014 | F39: 90776 | G39: =IF(INTRO!$E$50="","",ROUND($D39*INTRO!$E$50,0)) -> 176296 | H39: 0 | I39: 0 | J39: 1 | K39: 2 | L39: 0 | M39: 0 | N39: =IF(INTRO!$E$42="Endémique", IF(AND($J39>1,$J39<5), IF($J39=4, "Inconnu", E39+F39), 0),"Non requis") -> 0 | O39: =IF(INTRO!$E$44="Endémique", IF(AND($K39>0,$K39<5), IF($K39=4,"Inconnu", IF($K39=1, $F39*0.33, IF($K39=2, $F39*0.5+$G39*0.2, SUM(F39:G39)))), 0),"Non requis") -> 80647.2 | P39: 0 | Q39: 0 | R39: 2 | S39: 1 | T39: T3 (ALB/MBD) | U39: T2 (PZQ) | Y39: 6404 | Z39: Nyanza Lac | AC39: ='T2'!M39 -> 103594 | AD39: =T3_R1!N39 -> 170869 | AE39: =T3_R2!N39 -> 159046 | AH39: 14138 | AI39: 4.442782443 | AK39: =_xlfn.XLOOKUP(Y39,[1]Sheet1!$B$6:$B$55,[1]Sheet1!$L$6:$L$55) -> 8.496732026 | AL39: 1
A40: =IF(INTRO!$E$34<>0,INTRO!$E$34,"") -> Burundi | B40: Muramvya | C40: Kiganda | D40: 226775 | E40: 22538 | F40: 60628 | G40: =IF(INTRO!$E$50="","",ROUND($D40*INTRO!$E$50,0)) -> 125633 | H40: 0 | I40: 0 | J40: 2 | K40: 0 | L40: 0 | M40: 0 | N40: =IF(INTRO!$E$42="Endémique", IF(AND($J40>1,$J40<5), IF($J40=4, "Inconnu", E40+F40), 0),"Non requis") -> 83166 | O40: =IF(INTRO!$E$44="Endémique", IF(AND($K40>0,$K40<5), IF($K40=4,"Inconnu", IF($K40=1, $F40*0.33, IF($K40=2, $F40*0.5+$G40*0.2, SUM(F40:G40)))), 0),"Non requis") -> 0 | P40: 0 | Q40: 0 | R40: 2 | S40: 0 | T40: T3 (ALB/MBD) | Y40: 6405 | Z40: Kiganda | AC40: ='T2'!M40 -> 0 | AD40: =T3_R1!N40 -> 95043 | AE40: =T3_R2!N40 -> 82038 | AH40: 17976 | AI40: 7.926799691 | AK40: =_xlfn.XLOOKUP(Y40,[1]Sheet1!$B$6:$B$55,[1]Sheet1!$L$6:$L$55) -> 0.1633986928 | AL40: 1
A41: =IF(INTRO!$E$34<>0,INTRO!$E$34,"") -> Burundi | B41: Muramvya | C41: Muramvya | D41: 230063 | E41: 23661 | F41: 59801 | G41: =IF(INTRO!$E$50="","",ROUND($D41*INTRO!$E$50,0)) -> 127455 | H41: 0 | I41: 0 | J41: 1 | K41: 0 | L41: 0 | M41: 0 | N41: =IF(INTRO!$E$42="Endémique", IF(AND($J41>1,$J41<5), IF($J41=4, "Inconnu", E41+F41), 0),"Non requis") -> 0 | O41: =IF(INTRO!$E$44="Endémique", IF(AND($K41>0,$K41<5), IF($K41=4,"Inconnu", IF($K41=1, $F41*0.33, IF($K41=2, $F41*0.5+$G41*0.2, SUM(F41:G41)))), 0),"Non requis") -> 0 | P41: 0 | Q41: 0 | R41: 2 | S41: 0 | T41: T3 (ALB/MBD) | Y41: 6406 | Z41: Muramvya | AC41: ='T2'!M41 -> 0 | AD41: =T3_R1!N41 -> 101325 | AE41: =T3_R2!N41 -> 108219 | AH41: 19146 | AI41: 8.322068303 | AK41: =_xlfn.XLOOKUP(Y41,[1]Sheet1!$B$6:$B$55,[1]Sheet1!$L$6:$L$55) -> 0 | AL41: 0
A42: =IF(INTRO!$E$34<>0,INTRO!$E$34,"") -> Burundi | B42: Muyinga | C42: Gashoho | D42: 231246 | E42: 26644 | F42: 62991 | G42: =IF(INTRO!$E$50="","",ROUND($D42*INTRO!$E$50,0)) -> 128110 | H42: 0 | I42: 0 | J42: 2 | K42: 0 | L42: 0 | M42: 0 | N42: =IF(INTRO!$E$42="Endémique", IF(AND($J42>1,$J42<5), IF($J42=4, "Inconnu", E42+F42), 0),"Non requis") -> 89635 | O42: =IF(INTRO!$E$44="Endémique", IF(AND($K42>0,$K42<5), IF($K42=4,"Inconnu", IF($K42=1, $F42*0.33, IF($K42=2, $F42*0.5+$G42*0.2, SUM(F42:G42)))), 0),"Non requis") -> 0 | P42: 0 | Q42: 0 | R42: 2 | S42: 0 | T42: T3 (ALB/MBD) | Y42: 6407 | Z42: Gashoho | AC42: ='T2'!M42 -> 0 | AD42: =T3_R1!N42 -> 97233 | AE42: =T3_R2!N42 -> 97887 | AH42: 13501 | AI42: 5.838371258 | AK42: =_xlfn.XLOOKUP(Y42,[1]Sheet1!$B$6:$B$55,[1]Sheet1!$L$6:$L$55) -> 0 | AL42: 0
A43: =IF(INTRO!$E$34<>0,INTRO!$E$34,"") -> Burundi | B43: Muyinga | C43: Giteranyi | D43: 387406 | E43: 47338 | F43: 109204 | G43: =IF(INTRO!$E$50="","",ROUND($D43*INTRO!$E$50,0)) -> 214623 | H43: 0 | I43: 0 | J43: 1 | K43: 0 | L43: 0 | M43: 0 | N43: =IF(INTRO!$E$42="Endémique", IF(AND($J43>1,$J43<5), IF($J43=4, "Inconnu", E43+F43), 0),"Non requis") -> 0 | O43: =IF(INTRO!$E$44="Endémique", IF(AND($K43>0,$K43<5), IF($K43=4,"Inconnu", IF($K43=1, $F43*0.33, IF($K43=2, $F43*0.5+$G43*0.2, SUM(F43:G43)))), 0),"Non requis") -> 0 | P43: 0 | Q43: 0 | R43: 2 | S43: 0 | T43: T3 (ALB/MBD) | Y43: 6408 | Z43: Giteranyi | AC43: ='T2'!M43 -> 0 | AD43: =T3_R1!N43 -> 166038 | AE43: =T3_R2!N43 -> 142171 | AH43: 16241 | AI43: 4.192242763 | AK43: =_xlfn.XLOOKUP(Y43,[1]Sheet1!$B$6:$B$55,[1]Sheet1!$L$6:$L$55) -> 0 | AL43: 0
A44: =IF(INTRO!$E$34<>0,INTRO!$E$34,"") -> Burundi | B44: Muyinga | C44: Muyinga | D44: 368769 | E44: 52366 | F44: 101297 | G44: =IF(INTRO!$E$50="","",ROUND($D44*INTRO!$E$50,0)) -> 204298 | H44: 0 | I44: 0 | J44: 1 | K44: 1 | L44: 0 | M44: 0 | N44: =IF(INTRO!$E$42="Endémique", IF(AND($J44>1,$J44<5), IF($J44=4, "Inconnu", E44+F44), 0),"Non requis") -> 0 | O44: =IF(INTRO!$E$44="Endémique", IF(AND($K44>0,$K44<5), IF($K44=4,"Inconnu", IF($K44=1, $F44*0.33, IF($K44=2, $F44*0.5+$G44*0.2, SUM(F44:G44)))), 0),"Non requis") -> 33428.01 | P44: 0 | Q44: 0 | R44: 2 | S44: 1 | T44: T3 (ALB/MBD) | U44: T2 (PZQ) | Y44: 6409 | Z44: Muyinga | AC44: ='T2'!M44 -> 107717 | AD44: =T3_R1!N44 -> 158059 | AE44: =T3_R2!N44 -> 122287 | AH44: 10808 | AI44: 2.930832038 | AK44: =_xlfn.XLOOKUP(Y44,[1]Sheet1!$B$6:$B$55,[1]Sheet1!$L$6:$L$55) -> 0 | AL44: 0
A45: =IF(INTRO!$E$34<>0,INTRO!$E$34,"") -> Burundi | B45: Mwaro | C45: Fota | D45: 202243 | E45: 18860 | F45: 53915 | G45: =IF(INTRO!$E$50="","",ROUND($D45*INTRO!$E$50,0)) -> 112043 | H45: 0 | I45: 0 | J45: 1 | K45: 0 | L45: 0 | M45: 0 | N45: =IF(INTRO!$E$42="Endémique", IF(AND($J45>1,$J45<5), IF($J45=4, "Inconnu", E45+F45), 0),"Non requis") -> 0 | O45: =IF(INTRO!$E$44="Endémique", IF(AND($K45>0,$K45<5), IF($K45=4,"Inconnu", IF($K45=1, $F45*0.33, IF($K45=2, $F45*0.5+$G45*0.2, SUM(F45:G45)))), 0),"Non requis") -> 0 | P45: 0 | Q45: 0 | R45: 2 | S45: 0 | T45: T3 (ALB/MBD) | Y45: 6410 | Z45: Fota | AC45: ='T2'!M45 -> 0 | AD45: =T3_R1!N45 -> 66597 | AE45: =T3_R2!N45 -> 93929 | AH45: 17425 | AI45: 8.615872984 | AK45: =_xlfn.XLOOKUP(Y45,[1]Sheet1!$B$6:$B$55,[1]Sheet1!$L$6:$L$55) -> 0 | AL45: 0
A46: =IF(INTRO!$E$34<>0,INTRO!$E$34,"") -> Burundi | B46: Mwaro | C46: Kibumbu | D46: 224233 | E46: 20931 | F46: 59341 | G46: =IF(INTRO!$E$50="","",ROUND($D46*INTRO!$E$50,0)) -> 124225 | H46: 0 | I46: 0 | J46: 1 | K46: 0 | L46: 0 | M46: 0 | N46: =IF(INTRO!$E$42="Endémique", IF(AND($J46>1,$J46<5), IF($J46=4, "Inconnu", E46+F46), 0),"Non requis") -> 0 | O46: =IF(INTRO!$E$44="Endémique", IF(AND($K46>0,$K46<5), IF($K46=4,"Inconnu", IF($K46=1, $F46*0.33, IF($K46=2, $F46*0.5+$G46*0.2, SUM(F46:G46)))), 0),"Non requis") -> 0 | P46: 0 | Q46: 0 | R46: 2 | S46: 0 | T46: T3 (ALB/MBD) | Y46: 6411 | Z46: Kibumbu | AC46: ='T2'!M46 -> 0 | AD46: =T3_R1!N46 -> 90927 | AE46: =T3_R2!N46 -> 106283 | AH46: 19736 | AI46: 8.801559093 | AK46: =_xlfn.XLOOKUP(Y46,[1]Sheet1!$B$6:$B$55,[1]Sheet1!$L$6:$L$55) -> 0 | AL46: 0
A47: =IF(INTRO!$E$34<>0,INTRO!$E$34,"") -> Burundi | B47: Ngozi | C47: Buye | D47: 274600 | E47: 31055 | F47: 75713 | G47: =IF(INTRO!$E$50="","",ROUND($D47*INTRO!$E$50,0)) -> 152128 | H47: 0 | I47: 0 | J47: 1 | K47: 0 | L47: 0 | M47: 0 | N47: =IF(INTRO!$E$42="Endémique", IF(AND($J47>1,$J47<5), IF($J47=4, "Inconnu", E47+F47), 0),"Non requis") -> 0 | O47: =IF(INTRO!$E$44="Endémique", IF(AND($K47>0,$K47<5), IF($K47=4,"Inconnu", IF($K47=1, $F47*0.33, IF($K47=2, $F47*0.5+$G47*0.2, SUM(F47:G47)))), 0),"Non requis") -> 0 | P47: 0 | Q47: 0 | R47: 2 | S47: 0 | T47: T3 (ALB/MBD) | Y47: 6412 | Z47: Buye | AC47: ='T2'!M47 -> 0 | AD47: =T3_R1!N47 -> 98919 | AE47: =T3_R2!N47 -> 70376 | AH47: 15704 | AI47: 5.718863802 | AK47: =_xlfn.XLOOKUP(Y47,[1]Sheet1!$B$6:$B$55,[1]Sheet1!$L$6:$L$55) -> 0.1633986928 | AL47: 1
A48: =IF(INTRO!$E$34<>0,INTRO!$E$34,"") -> Burundi | B48: Ngozi | C48: Kiremba | D48: 369745 | E48: 41532 | F48: 100904 | G48: =IF(INTRO!$E$50="","",ROUND($D48*INTRO!$E$50,0)) -> 204839 | H48: 0 | I48: 0 | J48: 1 | K48: 0 | L48: 0 | M48: 0 | N48: =IF(INTRO!$E$42="Endémique", IF(AND($J48>1,$J48<5), IF($J48=4, "Inconnu", E48+F48), 0),"Non requis") -> 0 | O48: =IF(INTRO!$E$44="Endémique", IF(AND($K48>0,$K48<5), IF($K48=4,"Inconnu", IF($K48=1, $F48*0.33, IF($K48=2, $F48*0.5+$G48*0.2, SUM(F48:G48)))), 0),"Non requis") -> 0 | P48: 0 | Q48: 0 | R48: 2 | S48: 0 | T48: T3 (ALB/MBD) | Y48: 6413 | Z48: Kiremba | AC48: ='T2'!M48 -> 0 | AD48: =T3_R1!N48 -> 150467 | AE48: =T3_R2!N48 -> 117403 | AH48: 22470 | AI48: 6.077161287 | AK48: =_xlfn.XLOOKUP(Y48,[1]Sheet1!$B$6:$B$55,[1]Sheet1!$L$6:$L$55) -> 0 | AL48: 0
A49: =IF(INTRO!$E$34<>0,INTRO!$E$34,"") -> Burundi | B49: Ngozi | C49: Ngozi | D49: 387277 | E49: 39990 | F49: 104679 | G49: =IF(INTRO!$E$50="","",ROUND($D49*INTRO!$E$50,0)) -> 214551 | H49: 0 | I49: 0 | J49: 2 | K49: 0 | L49: 0 | M49: 0 | N49: =IF(INTRO!$E$42="Endémique", IF(AND($J49>1,$J49<5), IF($J49=4, "Inconnu", E49+F49), 0),"Non requis") -> 144669 | O49: =IF(INTRO!$E$44="Endémique", IF(AND($K49>0,$K49<5), IF($K49=4,"Inconnu", IF($K49=1, $F49*0.33, IF($K49=2, $F49*0.5+$G49*0.2, SUM(F49:G49)))), 0),"Non requis") -> 0 | P49: 0 | Q49: 0 | R49: 2 | S49: 0 | T49: T3 (ALB/MBD) | Y49: 6414 | Z49: Ngozi | AC49: ='T2'!M49 -> 0 | AD49: =T3_R1!N49 -> 164351 | AE49: =T3_R2!N49 -> 150998 | AH49: 28057 | AI49: 7.244685329 | AK49: =_xlfn.XLOOKUP(Y49,[1]Sheet1!$B$6:$B$55,[1]Sheet1!$L$6:$L$55) -> 0 | AL49: 0
A50: =IF(INTRO!$E$34<>0,INTRO!$E$34,"") -> Burundi | B50: Rumonge | C50: Bugarama | D50: 231523 | E50: 16168 | F50: 40045 | G50: =IF(INTRO!$E$50="","",ROUND($D50*INTRO!$E$50,0)) -> 128264 | H50: 0 | I50: 1 | J50: 1 | K50: 1 | L50: 0 | M50: 83971 | N50: =IF(INTRO!$E$42="Endémique", IF(AND($J50>1,$J50<5), IF($J50=4, "Inconnu", E50+F50), 0),"Non requis") -> 0 | O50: =IF(INTRO!$E$44="Endémique", IF(AND($K50>0,$K50<5), IF($K50=4,"Inconnu", IF($K50=1, $F50*0.33, IF($K50=2, $F50*0.5+$G50*0.2, SUM(F50:G50)))), 0),"Non requis") -> 13214.85 | P50: 0 | Q50: 0 | R50: 2 | S50: 1 | T50: T3 (ALB/MBD) | U50: T2 (PZQ) | Y50: 6420 | Z50: Bugarama | AC50: ='T2'!M50 -> 66623 | AD50: =T3_R1!N50 -> 112003 | AE50: =T3_R2!N50 -> 156886 | AH50: 47046 | AI50: 20.32022736 | AK50: =_xlfn.XLOOKUP(Y50,[1]Sheet1!$B$6:$B$55,[1]Sheet1!$L$6:$L$55) -> 0.4769475358 | AL50: 1
A51: =IF(INTRO!$E$34<>0,INTRO!$E$34,"") -> Burundi | B51: Rumonge | C51: Rumonge | D51: 318118 | E51: 47520 | F51: 110964 | G51: 139911 | H51: 0 | I51: 1 | J51: 1 | K51: 1 | L51: 0 | M51: 329492 | N51: =IF(INTRO!$E$42="Endémique", IF(AND($J51>1,$J51<5), IF($J51=4, "Inconnu", E51+F51), 0),"Non requis") -> 0 | O51: =IF(INTRO!$E$44="Endémique", IF(AND($K51>0,$K51<5), IF($K51=4,"Inconnu", IF($K51=1, $F51*0.33, IF($K51=2, $F51*0.5+$G51*0.2, SUM(F51:G51)))), 0),"Non requis") -> 36618.12 | P51: 0 | Q51: 0 | R51: 2 | S51: 1 | T51: T3 (ALB/MBD) | U51: T2 (PZQ) | Y51: 6385 | Z51: Rumonge | AC51: ='T2'!M51 -> 98458 | AD51: =T3_R1!N51 -> 164765 | AE51: =T3_R2!N51 -> 86299 | AH51: 19723 | AI51: 6.199900666 | AK51: =_xlfn.XLOOKUP(Y51,[1]Sheet1!$B$6:$B$55,[1]Sheet1!$L$6:$L$55) -> 2.257181943 | AL51: 1
A52: =IF(INTRO!$E$34<>0,INTRO!$E$34,"") -> Burundi | B52: Rutana | C52: Gihofi | D52: 269434 | E52: 34867 | F52: 79402 | G52: =IF(INTRO!$E$50="","",ROUND($D52*INTRO!$E$50,0)) -> 149266 | H52: 0 | I52: 1 | J52: 1 | K52: 1 | L52: 0 | M52: 292725 | N52: =IF(INTRO!$E$42="Endémique", IF(AND($J52>1,$J52<5), IF($J52=4, "Inconnu", E52+F52), 0),"Non requis") -> 0 | O52: =IF(INTRO!$E$44="Endémique", IF(AND($K52>0,$K52<5), IF($K52=4,"Inconnu", IF($K52=1, $F52*0.33, IF($K52=2, $F52*0.5+$G52*0.2, SUM(F52:G52)))), 0),"Non requis") -> 26202.66 | P52: 0 | Q52: 0 | R52: 2 | S52: 1 | T52: T3 (ALB/MBD) | U52: T2 (PZQ) | Y52: 6415 | Z52: Gihofi | AC52: ='T2'!M52 -> 81803 | AD52: =T3_R1!N52 -> 140693 | AE52: =T3_R2!N52 -> 108315 | AH52: 5899 | AI52: 2.189404455 | AK52: =_xlfn.XLOOKUP(Y52,[1]Sheet1!$B$6:$B$55,[1]Sheet1!$L$6:$L$55) -> 0.3795066414 | AL52: 1
A53: =IF(INTRO!$E$34<>0,INTRO!$E$34,"") -> Burundi | B53: Rutana | C53: Rutana | D53: 251297 | E53: 25576 | F53: 70911 | G53: =IF(INTRO!$E$50="","",ROUND($D53*INTRO!$E$50,0)) -> 139219 | H53: 0 | I53: 1 | J53: 1 | K53: 1 | L53: 0 | M53: 23297 | N53: =IF(INTRO!$E$42="Endémique", IF(AND($J53>1,$J53<5), IF($J53=4, "Inconnu", E53+F53), 0),"Non requis") -> 0 | O53: =IF(INTRO!$E$44="Endémique", IF(AND($K53>0,$K53<5), IF($K53=4,"Inconnu", IF($K53=1, $F53*0.33, IF($K53=2, $F53*0.5+$G53*0.2, SUM(F53:G53)))), 0),"Non requis") -> 23400.63 | P53: 0 | Q53: 0 | R53: 2 | S53: 1 | T53: T3 (ALB/MBD) | U53: T2 (PZQ) | Y53: 6416 | Z53: Rutana | AC53: ='T2'!M53 -> 65937 | AD53: =T3_R1!N53 -> 101558 | AE53: =T3_R2!N53 -> 95927 | AH53: 15591 | AI53: 6.204212545 | AK53: =_xlfn.XLOOKUP(Y53,[1]Sheet1!$B$6:$B$55,[1]Sheet1!$L$6:$L$55) -> 0 | AL53: 0
A54: =IF(INTRO!$E$34<>0,INTRO!$E$34,"") -> Burundi | B54: Ruyigi | C54: Butezi | D54: 159827 | E54: 18013 | F54: 45449 | G54: =IF(INTRO!$E$50="","",ROUND($D54*INTRO!$E$50,0)) -> 88544 | H54: 0 | I54: 0 | J54: 1 | K54: 1 | L54: 0 | M54: 0 | N54: =IF(INTRO!$E$42="Endémique", IF(AND($J54>1,$J54<5), IF($J54=4, "Inconnu", E54+F54), 0),"Non requis") -> 0 | O54: =IF(INTRO!$E$44="Endémique", IF(AND($K54>0,$K54<5), IF($K54=4,"Inconnu", IF($K54=1, $F54*0.33, IF($K54=2, $F54*0.5+$G54*0.2, SUM(F54:G54)))), 0),"Non requis") -> 14998.17 | P54: 0 | Q54: 0 | R54: 2 | S54: 1 | T54: T3 (ALB/MBD) | U54: T2 (PZQ) | Y54: 6417 | Z54: Butezi | AC54: ='T2'!M54 -> 49204 | AD54: =T3_R1!N54 -> 78889 | AE54: =T3_R2!N54 -> 78342 | AH54: 7821 | AI54: 4.893416006 | AK54: =_xlfn.XLOOKUP(Y54,[1]Sheet1!$B$6:$B$55,[1]Sheet1!$L$6:$L$55) -> 0 | AL54: 0
A55: =IF(INTRO!$E$34<>0,INTRO!$E$34,"") -> Burundi | B55: Gisuru | C55: Gisuru | D55: 155295 | E55: 19052 | F55: 46206 | G55: =IF(INTRO!$E$50="","",ROUND($D55*INTRO!$E$50,0)) -> 86033 | H55: 0 | I55: 0 | J55: 1 | K55: 1 | L55: 0 | M55: 0 | N55: =IF(INTRO!$E$42="Endémique", IF(AND($J55>1,$J55<5), IF($J55=4, "Inconnu", E55+F55), 0),"Non requis") -> 0 | O55: =IF(INTRO!$E$44="Endémique", IF(AND($K55>0,$K55<5), IF($K55=4,"Inconnu", IF($K55=1, $F55*0.33, IF($K55=2, $F55*0.5+$G55*0.2, SUM(F55:G55)))), 0),"Non requis") -> 15247.98 | P55: 0 | Q55: 0 | R55: 2 | S55: 0 | T55: T3 (ALB/MBD) | Y55: 6425 | Z55: Gisuru | AA55: 6418 | AB55: Kinyinya | AC55: ='T2'!M55 -> 0 | AD55: =T3_R1!N55 -> 62206 | AE55: =T3_R2!N55 -> 2523 | AH55: 4004 | AI55: 2.578318684 | AK55: =_xlfn.XLOOKUP(Y55,[1]Sheet1!$B$6:$B$55,[1]Sheet1!$L$6:$L$55) -> 0.4201680672 | AL55: 1
A56: =IF(INTRO!$E$34<>0,INTRO!$E$34,"") -> Burundi | B56: Ruyigi | C56: Kinyinya | D56: 163275 | E56: 19839 | F56: 46914 | G56: =IF(INTRO!$E$50="","",ROUND($D56*INTRO!$E$50,0)) -> 90454 | H56: 0 | I56: 0 | J56: 1 | K56: 1 | L56: 0 | M56: 0 | N56: =IF(INTRO!$E$42="Endémique", IF(AND($J56>1,$J56<5), IF($J56=4, "Inconnu", E56+F56), 0),"Non requis") -> 0 | O56: =IF(INTRO!$E$44="Endémique", IF(AND($K56>0,$K56<5), IF($K56=4,"Inconnu", IF($K56=1, $F56*0.33, IF($K56=2, $F56*0.5+$G56*0.2, SUM(F56:G56)))), 0),"Non requis") -> 15481.62 | P56: 0 | Q56: 0 | R56: 2 | S56: 1 | T56: T3 (ALB/MBD) | U56: T2 (PZQ) | Y56: 6418 | Z56: Kinyinya | AC56: ='T2'!M56 -> 83056 | AD56: =T3_R1!N56 -> 66671 | AE56: =T3_R2!N56 -> 128574 | AH56: 6068 | AI56: 3.716429337 | AK56: =_xlfn.XLOOKUP(Y56,[1]Sheet1!$B$6:$B$55,[1]Sheet1!$L$6:$L$55) -> 0.2100840336 | AL56: 1
A57: =IF(INTRO!$E$34<>0,INTRO!$E$34,"") -> Burundi | B57: Ruyigi | C57: Ruyigi | D57: 146976 | E57: 15695 | F57: 39863 | G57: =IF(INTRO!$E$50="","",ROUND($D57*INTRO!$E$50,0)) -> 81425 | H57: 0 | I57: 0 | J57: 1 | K57: 0 | L57: 0 | M57: 0 | N57: =IF(INTRO!$E$42="Endémique", IF(AND($J57>1,$J57<5), IF($J57=4, "Inconnu", E57+F57), 0),"Non requis") -> 0 | O57: =IF(INTRO!$E$44="Endémique", IF(AND($K57>0,$K57<5), IF($K57=4,"Inconnu", IF($K57=1, $F57*0.33, IF($K57=2, $F57*0.5+$G57*0.2, SUM(F57:G57)))), 0),"Non requis") -> 0 | P57: 0 | Q57: 0 | R57: 2 | S57: 0 | T57: T3 (ALB/MBD) | Y57: 6419 | Z57: Ruyigi | AC57: ='T2'!M57 -> 0 | AD57: =T3_R1!N57 -> 70197 | AE57: =T3_R2!N57 -> 69679 | AH57: 9993 | AI57: 6.799069236 | AK57: =_xlfn.XLOOKUP(Y57,[1]Sheet1!$B$6:$B$55,[1]Sheet1!$L$6:$L$55) -> 0 | AL57: 0

Sheet MDA1 (hidden)
A1: MDA 1 - Ivermectine (IVM) et Albendazole (ALB)
A2: Structure administrative, population nécessitant une chimioprévention par groupe d'âge, population traitée par groupe d'âge et couverture
A4: TOTAL | G4: =SUM(G$9:G$1000) -> 0 | H4: =SUM(H$9:H$1000) -> 0 | I4: =SUM(I$9:I$1000) -> 0 | K4: =SUM(K$9:K$1000) -> 0 | L4: =SUM(L$9:L$1000) -> 0 | M4: =SUM(M$9:M$1000) -> 0 | O4: =IF(G4<>0, IF(K4/G4*100=0, "-", K4/G4*100), " ") ->  | P4: =IF(H4<>0, IF(L4/H4*100=0, "-", L4/H4*100), " ") ->  | Q4: =IF(I4<>0, IF(M4/I4*100=0, "-", M4/I4*100), " ") -> 
A6: Structure administrative du pays | D6: Mise en oeuvre de la CP | E6: Date | F6: Population ciblée pour MDA 1 | J6: Population traitée | N6: Couverture du Programme (%)
A7: Pays | B7: Région/Département | C7: District | F7: EAPréS | G7: EAS | H7: Adultes | I7: Total | J7: EAPréS | K7: EAS | L7: Adultes | M7: Total | N7: EAPréS | O7: EAS | P7: Adultes | Q7: Total
A9: =IF(COUNTRY_INFO!A9=0," ",COUNTRY_INFO!A9) -> Burundi | B9: =IF(COUNTRY_INFO!B9=0," ",COUNTRY_INFO!B9) -> Bubanza | C9: =IF(COUNTRY_INFO!C9=0," ",COUNTRY_INFO!C9) -> Bubanza | D9: =IF(COUNTRY_INFO!$T$9:$T$1000="MDA1 (IVM+ALB)", COUNTRY_INFO!$T$9:$T$1000, " ") ->  | I9: =SUM(F9:H9) -> 0 | M9: =SUM(J9:L9) -> 0 | O9: =IF(G9<>0, IF(K9/G9*100=0, "-", K9/G9*100), " ") ->  | P9: =IF(H9<>0, IF(L9/H9*100=0, "-", L9/H9*100), " ") -> 
A10: =IF(COUNTRY_INFO!A10=0," ",COUNTRY_INFO!A10) -> Burundi | B10: =IF(COUNTRY_INFO!B10=0," ",COUNTRY_INFO!B10) -> Bubanza | C10: =IF(COUNTRY_INFO!C10=0," ",COUNTRY_INFO!C10) -> Mpanda | D10: =IF(COUNTRY_INFO!$T$9:$T$1000="MDA1 (IVM+ALB)", COUNTRY_INFO!$T$9:$T$1000, " ") ->  | I10: =SUM(F10:H10) -> 0 | M10: =SUM(J10:L10) -> 0 | O10: =IF(G10<>0, IF(K10/G10*100=0, "-", K10/G10*100), " ") ->  | P10: =IF(H10<>0, IF(L10/H10*100=0, "-", L10/H10*100), " ") ->  | Q10: =IF(I10<>0, IF(M10/I10*100=0, "-", M10/I10*100), " ") -> 
A11: =IF(COUNTRY_INFO!A11=0," ",COUNTRY_INFO!A11) -> Burundi | B11: =IF(COUNTRY_INFO!B11=0," ",COUNTRY_INFO!B11) -> Bujumbura Mairie | C11: =IF(COUNTRY_INFO!C11=0," ",COUNTRY_INFO!C11) -> Zone Centre | D11: =IF(COUNTRY_INFO!$T$9:$T$1000="MDA1 (IVM+ALB)", COUNTRY_INFO!$T$9:$T$1000, " ") ->  | I11: 0 | M11: 0
A12: =IF(COUNTRY_INFO!A12=0," ",COUNTRY_INFO!A12) -> Burundi | B12: =IF(COUNTRY_INFO!B12=0," ",COUNTRY_INFO!B12) -> Bujumbura Mairie | C12: =IF(COUNTRY_INFO!C12=0," ",COUNTRY_INFO!C12) -> Zone Nord | D12: =IF(COUNTRY_INFO!$T$9:$T$1000="MDA1 (IVM+ALB)", COUNTRY_INFO!$T$9:$T$1000, " ") ->  | I12: 0 | M12: 0
A13: =IF(COUNTRY_INFO!A13=0," ",COUNTRY_INFO!A13) -> Burundi | B13: =IF(COUNTRY_INFO!B13=0," ",COUNTRY_INFO!B13) -> Bujumbura Mairie | C13: =IF(COUNTRY_INFO!C13=0," ",COUNTRY_INFO!C13) -> Zone Sud | D13: =IF(COUNTRY_INFO!$T$9:$T$1000="MDA1 (IVM+ALB)", COUNTRY_INFO!$T$9:$T$1000, " ") ->  | I13: 0 | M13: 0
A14: =IF(COUNTRY_INFO!A14=0," ",COUNTRY_INFO!A14) -> Burundi | B14: =IF(COUNTRY_INFO!B14=0," ",COUNTRY_INFO!B14) -> Bujumbura Rural | C14: =IF(COUNTRY_INFO!C14=0," ",COUNTRY_INFO!C14) -> Isare | D14: =IF(COUNTRY_INFO!$T$9:$T$1000="MDA1 (IVM+ALB)", COUNTRY_INFO!$T$9:$T$1000, " ") ->  | I14: 0 | M14: 0
A15: =IF(COUNTRY_INFO!A15=0," ",COUNTRY_INFO!A15) -> Burundi | B15: =IF(COUNTRY_INFO!B15=0," ",COUNTRY_INFO!B15) -> Bujumbura Rural | C15: =IF(COUNTRY_INFO!C15=0," ",COUNTRY_INFO!C15) -> Kabezi | D15: =IF(COUNTRY_INFO!$T$9:$T$1000="MDA1 (IVM+ALB)", COUNTRY_INFO!$T$9:$T$1000, " ") ->  | I15: 0 | M15: 0
A16: =IF(COUNTRY_INFO!A16=0," ",COUNTRY_INFO!A16) -> Burundi | B16: =IF(COUNTRY_INFO!B16=0," ",COUNTRY_INFO!B16) -> Bujumbura Rural | C16: =IF(COUNTRY_INFO!C16=0," ",COUNTRY_INFO!C16) -> Rwibaga | D16: =IF(COUNTRY_INFO!$T$9:$T$1000="MDA1 (IVM+ALB)", COUNTRY_INFO!$T$9:$T$1000, " ") ->  | I16: 0 | M16: 0
A17: =IF(COUNTRY_INFO!A17=0," ",COUNTRY_INFO!A17) -> Burundi | B17: =IF(COUNTRY_INFO!B17=0," ",COUNTRY_INFO!B17) -> Bururi | C17: =IF(COUNTRY_INFO!C17=0," ",COUNTRY_INFO!C17) -> Bururi | D17: =IF(COUNTRY_INFO!$T$9:$T$1000="MDA1 (IVM+ALB)", COUNTRY_INFO!$T$9:$T$1000, " ") ->  | I17: 0 | M17: 0
A18: =IF(COUNTRY_INFO!A18=0," ",COUNTRY_INFO!A18) -> Burundi | B18: =IF(COUNTRY_INFO!B18=0," ",COUNTRY_INFO!B18) -> Bururi | C18: =IF(COUNTRY_INFO!C18=0," ",COUNTRY_INFO!C18) -> Matana | D18: =IF(COUNTRY_INFO!$T$9:$T$1000="MDA1 (IVM+ALB)", COUNTRY_INFO!$T$9:$T$1000, " ") ->  | I18: 0 | M18: 0
A19: =IF(COUNTRY_INFO!A19=0," ",COUNTRY_INFO!A19) -> Burundi | B19: =IF(COUNTRY_INFO!B19=0," ",COUNTRY_INFO!B19) -> Bururi | C19: =IF(COUNTRY_INFO!C19=0," ",COUNTRY_INFO!C19) -> Rutovu | D19: =IF(COUNTRY_INFO!$T$9:$T$1000="MDA1 (IVM+ALB)", COUNTRY_INFO!$T$9:$T$1000, " ") ->  | I19: 0 | M19: 0
A20: =IF(COUNTRY_INFO!A20=0," ",COUNTRY_INFO!A20) -> Burundi | B20: =IF(COUNTRY_INFO!B20=0," ",COUNTRY_INFO!B20) -> Cankuzo | C20: =IF(COUNTRY_INFO!C20=0," ",COUNTRY_INFO!C20) -> Cankuzo | D20: =IF(COUNTRY_INFO!$T$9:$T$1000="MDA1 (IVM+ALB)", COUNTRY_INFO!$T$9:$T$1000, " ") ->  | I20: 0 | M20: 0
A21: =IF(COUNTRY_INFO!A21=0," ",COUNTRY_INFO!A21) -> Burundi | B21: =IF(COUNTRY_INFO!B21=0," ",COUNTRY_INFO!B21) -> Cankuzo | C21: =IF(COUNTRY_INFO!C21=0," ",COUNTRY_INFO!C21) -> Murore | D21: =IF(COUNTRY_INFO!$T$9:$T$1000="MDA1 (IVM+ALB)", COUNTRY_INFO!$T$9:$T$1000, " ") ->  | I21: 0 | M21: 0
A22: =IF(COUNTRY_INFO!A22=0," ",COUNTRY_INFO!A22) -> Burundi | B22: =IF(COUNTRY_INFO!B22=0," ",COUNTRY_INFO!B22) -> Cibitoke | C22: =IF(COUNTRY_INFO!C22=0," ",COUNTRY_INFO!C22) -> Bukinanyana | D22: =IF(COUNTRY_INFO!$T$9:$T$1000="MDA1 (IVM+ALB)", COUNTRY_INFO!$T$9:$T$1000, " ") ->  | I22: 0 | M22: 0
A23: =IF(COUNTRY_INFO!A23=0," ",COUNTRY_INFO!A23) -> Burundi | B23: =IF(COUNTRY_INFO!B23=0," ",COUNTRY_INFO!B23) -> Cibitoke | C23: =IF(COUNTRY_INFO!C23=0," ",COUNTRY_INFO!C23) -> Cibitoke | D23: =IF(COUNTRY_INFO!$T$9:$T$1000="MDA1 (IVM+ALB)", COUNTRY_INFO!$T$9:$T$1000, " ") ->  | I23: 0 | M23: 0
A24: =IF(COUNTRY_INFO!A24=0," ",COUNTRY_INFO!A24) -> Burundi | B24: =IF(COUNTRY_INFO!B24=0," ",COUNTRY_INFO!B24) -> Cibitoke | C24: =IF(COUNTRY_INFO!C24=0," ",COUNTRY_INFO!C24) -> Mabayi | D24: =IF(COUNTRY_INFO!$T$9:$T$1000="MDA1 (IVM+ALB)", COUNTRY_INFO!$T$9:$T$1000, " ") ->  | I24: 0 | M24: 0
A25: =IF(COUNTRY_INFO!A25=0," ",COUNTRY_INFO!A25) -> Burundi | B25: =IF(COUNTRY_INFO!B25=0," ",COUNTRY_INFO!B25) -> Gitega | C25: =IF(COUNTRY_INFO!C25=0," ",COUNTRY_INFO!C25) -> Gitega | D25: =IF(COUNTRY_INFO!$T$9:$T$1000="MDA1 (IVM+ALB)", COUNTRY_INFO!$T$9:$T$1000, " ") ->  | I25: 0 | M25: 0
A26: =IF(COUNTRY_INFO!A26=0," ",COUNTRY_INFO!A26) -> Burundi | B26: =IF(COUNTRY_INFO!B26=0," ",COUNTRY_INFO!B26) -> Gitega | C26: =IF(COUNTRY_INFO!C26=0," ",COUNTRY_INFO!C26) -> Kibuye | D26: =IF(COUNTRY_INFO!$T$9:$T$1000="MDA1 (IVM+ALB)", COUNTRY_INFO!$T$9:$T$1000, " ") ->  | I26: 0 | M26: 0
A27: =IF(COUNTRY_INFO!A27=0," ",COUNTRY_INFO!A27) -> Burundi | B27: =IF(COUNTRY_INFO!B27=0," ",COUNTRY_INFO!B27) -> Gitega | C27: =IF(COUNTRY_INFO!C27=0," ",COUNTRY_INFO!C27) -> Mutaho | D27: =IF(COUNTRY_INFO!$T$9:$T$1000="MDA1 (IVM+ALB)", COUNTRY_INFO!$T$9:$T$1000, " ") ->  | I27: 0 | M27: 0
A28: =IF(COUNTRY_INFO!A28=0," ",COUNTRY_INFO!A28) -> Burundi | B28: =IF(COUNTRY_INFO!B28=0," ",COUNTRY_INFO!B28) -> Gitega | C28: =IF(COUNTRY_INFO!C28=0," ",COUNTRY_INFO!C28) -> Ryansoro | D28: =IF(COUNTRY_INFO!$T$9:$T$1000="MDA1 (IVM+ALB)", COUNTRY_INFO!$T$9:$T$1000, " ") ->  | I28: 0 | M28: 0
A29: =IF(COUNTRY_INFO!A29=0," ",COUNTRY_INFO!A29) -> Burundi | B29: =IF(COUNTRY_INFO!B29=0," ",COUNTRY_INFO!B29) -> Karusi | C29: =IF(COUNTRY_INFO!C29=0," ",COUNTRY_INFO!C29) -> Buhiga | D29: =IF(COUNTRY_INFO!$T$9:$T$1000="MDA1 (IVM+ALB)", COUNTRY_INFO!$T$9:$T$1000, " ") ->  | I29: 0 | M29: 0
A30: =IF(COUNTRY_INFO!A30=0," ",COUNTRY_INFO!A30) -> Burundi | B30: =IF(COUNTRY_INFO!B30=0," ",COUNTRY_INFO!B30) -> Karusi | C30: =IF(COUNTRY_INFO!C30=0," ",COUNTRY_INFO!C30) -> Nyabikere | D30: =IF(COUNTRY_INFO!$T$9:$T$1000="MDA1 (IVM+ALB)", COUNTRY_INFO!$T$9:$T$1000, " ") ->  | I30: 0 | M30: 0
A31: =IF(COUNTRY_INFO!A31=0," ",COUNTRY_INFO!A31) -> Burundi | B31: =IF(COUNTRY_INFO!B31=0," ",COUNTRY_INFO!B31) -> Kayanza | C31: =IF(COUNTRY_INFO!C31=0," ",COUNTRY_INFO!C31) -> Gahombo | D31: =IF(COUNTRY_INFO!$T$9:$T$1000="MDA1 (IVM+ALB)", COUNTRY_INFO!$T$9:$T$1000, " ") ->  | I31: 0 | M31: 0
A32: =IF(COUNTRY_INFO!A32=0," ",COUNTRY_INFO!A32) -> Burundi | B32: =IF(COUNTRY_INFO!B32=0," ",COUNTRY_INFO!B32) -> Kayanza | C32: =IF(COUNTRY_INFO!C32=0," ",COUNTRY_INFO!C32) -> Kayanza | D32: =IF(COUNTRY_INFO!$T$9:$T$1000="MDA1 (IVM+ALB)", COUNTRY_INFO!$T$9:$T$1000, " ") ->  | I32: 0 | M32: 0
A33: =IF(COUNTRY_INFO!A33=0," ",COUNTRY_INFO!A33) -> Burundi | B33: =IF(COUNTRY_INFO!B33=0," ",COUNTRY_INFO!B33) -> Kayanza | C33: =IF(COUNTRY_INFO!C33=0," ",COUNTRY_INFO!C33) -> Musema | D33: =IF(COUNTRY_INFO!$T$9:$T$1000="MDA1 (IVM+ALB)", COUNTRY_INFO!$T$9:$T$1000, " ") ->  | I33: 0 | M33: 0
A34: =IF(COUNTRY_INFO!A34=0," ",COUNTRY_INFO!A34) -> Burundi | B34: =IF(COUNTRY_INFO!B34=0," ",COUNTRY_INFO!B34) -> Kirundo | C34: =IF(COUNTRY_INFO!C34=0," ",COUNTRY_INFO!C34) -> Busoni | D34: =IF(COUNTRY_INFO!$T$9:$T$1000="MDA1 (IVM+ALB)", COUNTRY_INFO!$T$9:$T$1000, " ") ->  | I34: 0 | M34: 0
A35: =IF(COUNTRY_INFO!A35=0," ",COUNTRY_INFO!A35) -> Burundi | B35: =IF(COUNTRY_INFO!B35=0," ",COUNTRY_INFO!B35) -> Kirundo | C35: =IF(COUNTRY_INFO!C35=0," ",COUNTRY_INFO!C35) -> Kirundo | D35: =IF(COUNTRY_INFO!$T$9:$T$1000="MDA1 (IVM+ALB)", COUNTRY_INFO!$T$9:$T$1000, " ") ->  | I35: 0 | M35: 0
A36: =IF(COUNTRY_INFO!A36=0," ",COUNTRY_INFO!A36) -> Burundi | B36: =IF(COUNTRY_INFO!B36=0," ",COUNTRY_INFO!B36) -> Kirundo | C36: =IF(COUNTRY_INFO!C36=0," ",COUNTRY_INFO!C36) -> Mukenke | D36: =IF(COUNTRY_INFO!$T$9:$T$1000="MDA1 (IVM+ALB)", COUNTRY_INFO!$T$9:$T$1000, " ") ->  | I36: 0 | M36: 0
A37: =IF(COUNTRY_INFO!A37=0," ",COUNTRY_INFO!A37) -> Burundi | B37: =IF(COUNTRY_INFO!B37=0," ",COUNTRY_INFO!B37) -> Kirundo | C37: =IF(COUNTRY_INFO!C37=0," ",COUNTRY_INFO!C37) -> Vumbi | D37: =IF(COUNTRY_INFO!$T$9:$T$1000="MDA1 (IVM+ALB)", COUNTRY_INFO!$T$9:$T$1000, " ") ->  | I37: 0 | M37: 0
A38: =IF(COUNTRY_INFO!A38=0," ",COUNTRY_INFO!A38) -> Burundi | B38: =IF(COUNTRY_INFO!B38=0," ",COUNTRY_INFO!B38) -> Makamba | C38: =IF(COUNTRY_INFO!C38=0," ",COUNTRY_INFO!C38) -> Makamba | D38: =IF(COUNTRY_INFO!$T$9:$T$1000="MDA1 (IVM+ALB)", COUNTRY_INFO!$T$9:$T$1000, " ") ->  | I38: 0 | M38: 0
A39: =IF(COUNTRY_INFO!A39=0," ",COUNTRY_INFO!A39) -> Burundi | B39: =IF(COUNTRY_INFO!B39=0," ",COUNTRY_INFO!B39) -> Makamba | C39: =IF(COUNTRY_INFO!C39=0," ",COUNTRY_INFO!C39) -> Nyanza-Lac | D39: =IF(COUNTRY_INFO!$T$9:$T$1000="MDA1 (IVM+ALB)", COUNTRY_INFO!$T$9:$T$1000, " ") ->  | I39: 0 | M39: 0
A40: =IF(COUNTRY_INFO!A40=0," ",COUNTRY_INFO!A40) -> Burundi | B40: =IF(COUNTRY_INFO!B40=0," ",COUNTRY_INFO!B40) -> Muramvya | C40: =IF(COUNTRY_INFO!C40=0," ",COUNTRY_INFO!C40) -> Kiganda | D40: =IF(COUNTRY_INFO!$T$9:$T$1000="MDA1 (IVM+ALB)", COUNTRY_INFO!$T$9:$T$1000, " ") ->  | I40: 0 | M40: 0
A41: =IF(COUNTRY_INFO!A41=0," ",COUNTRY_INFO!A41) -> Burundi | B41: =IF(COUNTRY_INFO!B41=0," ",COUNTRY_INFO!B41) -> Muramvya | C41: =IF(COUNTRY_INFO!C41=0," ",COUNTRY_INFO!C41) -> Muramvya | D41: =IF(COUNTRY_INFO!$T$9:$T$1000="MDA1 (IVM+ALB)", COUNTRY_INFO!$T$9:$T$1000, " ") ->  | I41: 0 | M41: 0
A42: =IF(COUNTRY_INFO!A42=0," ",COUNTRY_INFO!A42) -> Burundi | B42: =IF(COUNTRY_INFO!B42=0," ",COUNTRY_INFO!B42) -> Muyinga | C42: =IF(COUNTRY_INFO!C42=0," ",COUNTRY_INFO!C42) -> Gashoho | D42: =IF(COUNTRY_INFO!$T$9:$T$1000="MDA1 (IVM+ALB)", COUNTRY_INFO!$T$9:$T$1000, " ") ->  | I42: 0 | M42: 0
A43: =IF(COUNTRY_INFO!A43=0," ",COUNTRY_INFO!A43) -> Burundi | B43: =IF(COUNTRY_INFO!B43=0," ",COUNTRY_INFO!B43) -> Muyinga | C43: =IF(COUNTRY_INFO!C43=0," ",COUNTRY_INFO!C43) -> Giteranyi | D43: =IF(COUNTRY_INFO!$T$9:$T$1000="MDA1 (IVM+ALB)", COUNTRY_INFO!$T$9:$T$1000, " ") ->  | I43: 0 | M43: 0
A44: =IF(COUNTRY_INFO!A44=0," ",COUNTRY_INFO!A44) -> Burundi | B44: =IF(COUNTRY_INFO!B44=0," ",COUNTRY_INFO!B44) -> Muyinga | C44: =IF(COUNTRY_INFO!C44=0," ",COUNTRY_INFO!C44) -> Muyinga | D44: =IF(COUNTRY_INFO!$T$9:$T$1000="MDA1 (IVM+ALB)", COUNTRY_INFO!$T$9:$T$1000, " ") ->  | I44: 0 | M44: 0
A45: =IF(COUNTRY_INFO!A45=0," ",COUNTRY_INFO!A45) -> Burundi | B45: =IF(COUNTRY_INFO!B45=0," ",COUNTRY_INFO!B45) -> Mwaro | C45: =IF(COUNTRY_INFO!C45=0," ",COUNTRY_INFO!C45) -> Fota | D45: =IF(COUNTRY_INFO!$T$9:$T$1000="MDA1 (IVM+ALB)", COUNTRY_INFO!$T$9:$T$1000, " ") ->  | I45: 0 | M45: 0
A46: =IF(COUNTRY_INFO!A46=0," ",COUNTRY_INFO!A46) -> Burundi | B46: =IF(COUNTRY_INFO!B46=0," ",COUNTRY_INFO!B46) -> Mwaro | C46: =IF(COUNTRY_INFO!C46=0," ",COUNTRY_INFO!C46) -> Kibumbu | D46: =IF(COUNTRY_INFO!$T$9:$T$1000="MDA1 (IVM+ALB)", COUNTRY_INFO!$T$9:$T$1000, " ") ->  | I46: 0 | M46: 0
A47: =IF(COUNTRY_INFO!A47=0," ",COUNTRY_INFO!A47) -> Burundi | B47: =IF(COUNTRY_INFO!B47=0," ",COUNTRY_INFO!B47) -> Ngozi | C47: =IF(COUNTRY_INFO!C47=0," ",COUNTRY_INFO!C47) -> Buye | D47: =IF(COUNTRY_INFO!$T$9:$T$1000="MDA1 (IVM+ALB)", COUNTRY_INFO!$T$9:$T$1000, " ") ->  | I47: 0 | M47: 0
A48: =IF(COUNTRY_INFO!A48=0," ",COUNTRY_INFO!A48) -> Burundi | B48: =IF(COUNTRY_INFO!B48=0," ",COUNTRY_INFO!B48) -> Ngozi | C48: =IF(COUNTRY_INFO!C48=0," ",COUNTRY_INFO!C48) -> Kiremba | D48: =IF(COUNTRY_INFO!$T$9:$T$1000="MDA1 (IVM+ALB)", COUNTRY_INFO!$T$9:$T$1000, " ") ->  | I48: 0 | M48: 0
A49: =IF(COUNTRY_INFO!A49=0," ",COUNTRY_INFO!A49) -> Burundi | B49: =IF(COUNTRY_INFO!B49=0," ",COUNTRY_INFO!B49) -> Ngozi | C49: =IF(COUNTRY_INFO!C49=0," ",COUNTRY_INFO!C49) -> Ngozi | D49: =IF(COUNTRY_INFO!$T$9:$T$1000="MDA1 (IVM+ALB)", COUNTRY_INFO!$T$9:$T$1000, " ") ->  | I49: 0 | M49: 0
A50: =IF(COUNTRY_INFO!A50=0," ",COUNTRY_INFO!A50) -> Burundi | B50: =IF(COUNTRY_INFO!B50=0," ",COUNTRY_INFO!B50) -> Rumonge | C50: =IF(COUNTRY_INFO!C50=0," ",COUNTRY_INFO!C50) -> Bugarama | D50: =IF(COUNTRY_INFO!$T$9:$T$1000="MDA1 (IVM+ALB)", COUNTRY_INFO!$T$9:$T$1000, " ") ->  | I50: 0 | M50: 0
A51: =IF(COUNTRY_INFO!A51=0," ",COUNTRY_INFO!A51) -> Burundi | B51: =IF(COUNTRY_INFO!B51=0," ",COUNTRY_INFO!B51) -> Rumonge | C51: =IF(COUNTRY_INFO!C51=0," ",COUNTRY_INFO!C51) -> Rumonge | D51: =IF(COUNTRY_INFO!$T$9:$T$1000="MDA1 (IVM+ALB)", COUNTRY_INFO!$T$9:$T$1000, " ") ->  | I51: 0 | M51: 0
A52: =IF(COUNTRY_INFO!A52=0," ",COUNTRY_INFO!A52) -> Burundi | B52: =IF(COUNTRY_INFO!B52=0," ",COUNTRY_INFO!B52) -> Rutana | C52: =IF(COUNTRY_INFO!C52=0," ",COUNTRY_INFO!C52) -> Gihofi | D52: =IF(COUNTRY_INFO!$T$9:$T$1000="MDA1 (IVM+ALB)", COUNTRY_INFO!$T$9:$T$1000, " ") ->  | I52: 0 | M52: 0
A53: =IF(COUNTRY_INFO!A53=0," ",COUNTRY_INFO!A53) -> Burundi | B53: =IF(COUNTRY_INFO!B53=0," ",COUNTRY_INFO!B53) -> Rutana | C53: =IF(COUNTRY_INFO!C53=0," ",COUNTRY_INFO!C53) -> Rutana | D53: =IF(COUNTRY_INFO!$T$9:$T$1000="MDA1 (IVM+ALB)", COUNTRY_INFO!$T$9:$T$1000, " ") ->  | I53: 0 | M53: 0
A54: =IF(COUNTRY_INFO!A54=0," ",COUNTRY_INFO!A54) -> Burundi | B54: =IF(COUNTRY_INFO!B54=0," ",COUNTRY_INFO!B54) -> Ruyigi | C54: =IF(COUNTRY_INFO!C54=0," ",COUNTRY_INFO!C54) -> Butezi | D54: =IF(COUNTRY_INFO!$T$9:$T$1000="MDA1 (IVM+ALB)", COUNTRY_INFO!$T$9:$T$1000, " ") ->  | I54: 0 | M54: 0
A55: =IF(COUNTRY_INFO!A55=0," ",COUNTRY_INFO!A55) -> Burundi | B55: =IF(COUNTRY_INFO!B55=0," ",COUNTRY_INFO!B55) -> Gisuru | C55: =IF(COUNTRY_INFO!C55=0," ",COUNTRY_INFO!C55) -> Gisuru | D55: =IF(COUNTRY_INFO!$T$9:$T$1000="MDA1 (IVM+ALB)", COUNTRY_INFO!$T$9:$T$1000, " ") ->  | I55: 0 | M55: 0
A56: =IF(COUNTRY_INFO!A56=0," ",COUNTRY_INFO!A56) -> Burundi | B56: =IF(COUNTRY_INFO!B56=0," ",COUNTRY_INFO!B56) -> Ruyigi | C56: =IF(COUNTRY_INFO!C56=0," ",COUNTRY_INFO!C56) -> Kinyinya | D56: =IF(COUNTRY_INFO!$T$9:$T$1000="MDA1 (IVM+ALB)", COUNTRY_INFO!$T$9:$T$1000, " ") ->  | I56: 0 | M56: 0
A57: =IF(COUNTRY_INFO!A57=0," ",COUNTRY_INFO!A57) -> Burundi | B57: =IF(COUNTRY_INFO!B57=0," ",COUNTRY_INFO!B57) -> Ruyigi | C57: =IF(COUNTRY_INFO!C57=0," ",COUNTRY_INFO!C57) -> Ruyigi | D57: =IF(COUNTRY_INFO!$T$9:$T$1000="MDA1 (IVM+ALB)", COUNTRY_INFO!$T$9:$T$1000, " ") ->  | I57: 0 | M57: 0

Sheet MDA2 (hidden)
A1: MDA 2 - Diethylcarbamazine (DEC) + Albendazole (ALB)
A2: Structure administrative, population nécessitant une chimioprévention par groupe d'âge, population traitée par groupe d'âge et couverture
A4: TOTAL | F4: =SUM(F$9:F$1000) -> 0 | G4: =SUM(G$9:G$1000) -> 0 | H4: 0 | I4: 0 | J4: 0 | K4: 0 | L4: 0 | M4: 0 | N4: =IF(F4<>0, IF(J4/F4*100=0, "-", J4/F4*100), " ") ->  | O4: =IF(G4<>0, IF(K4/G4*100=0, "-", K4/G4*100), " ") ->  | P4: =IF(H4<>0, IF(L4/H4*100=0, "-", L4/H4*100), " ") ->  | Q4: =IF(I4<>0, IF(M4/I4*100=0, "-", M4/I4*100), " ") -> 
A6: Structure administrative du pays | D6: Mise en oeuvre de la CP | E6: Date | F6: Population ciblée pour MDA 2 | J6: Population traitée | N6: Couverture du Programme (%)
A7: Pays | B7: Région/Département | C7: District | F7: EAPréS | G7: EAS | H7: Adultes | I7: Total | J7: EAPréS | K7: EAS | L7: Adultes | M7: Total | N7: EAPréS | O7: EAS | P7: Adultes | Q7: Total
A9: =IF(COUNTRY_INFO!A9=0," ",COUNTRY_INFO!A9) -> Burundi | B9: =IF(COUNTRY_INFO!B9=0," ",COUNTRY_INFO!B9) -> Bubanza | C9: =IF(COUNTRY_INFO!C9=0," ",COUNTRY_INFO!C9) -> Bubanza | D9: =IF(COUNTRY_INFO!$T$9:$T$1000="MDA2 (DEC+ALB)", COUNTRY_INFO!$T$9:$T$1000, " ") ->  | I9: =SUM(F9:H9) -> 0 | M9: =SUM(J9:L9) -> 0 | N9: =IF(F9<>0, IF(J9/F9*100=0, "-", J9/F9*100), " ") -> 
A10: =IF(COUNTRY_INFO!A10=0," ",COUNTRY_INFO!A10) -> Burundi | B10: =IF(COUNTRY_INFO!B10=0," ",COUNTRY_INFO!B10) -> Bubanza | C10: =IF(COUNTRY_INFO!C10=0," ",COUNTRY_INFO!C10) -> Mpanda | D10: =IF(COUNTRY_INFO!$T$9:$T$1000="MDA2 (DEC+ALB)", COUNTRY_INFO!$T$9:$T$1000, " ") ->  | I10: =SUM(F10:H10) -> 0 | M10: =SUM(J10:L10) -> 0 | N10: =IF(F10<>0, IF(J10/F10*100=0, "-", J10/F10*100), " ") ->  | O10: =IF(G10<>0, IF(K10/G10*100=0, "-", K10/G10*100), " ") ->  | P10: =IF(H10<>0, IF(L10/H10*100=0, "-", L10/H10*100), " ") ->  | Q10: =IF(I10<>0, IF(M10/I10*100=0, "-", M10/I10*100), " ") -> 
A11: =IF(COUNTRY_INFO!A11=0," ",COUNTRY_INFO!A11) -> Burundi | B11: =IF(COUNTRY_INFO!B11=0," ",COUNTRY_INFO!B11) -> Bujumbura Mairie | C11: =IF(COUNTRY_INFO!C11=0," ",COUNTRY_INFO!C11) -> Zone Centre | D11: =IF(COUNTRY_INFO!$T$9:$T$1000="MDA2 (DEC+ALB)", COUNTRY_INFO!$T$9:$T$1000, " ") ->  | I11: 0 | M11: 0
A12: =IF(COUNTRY_INFO!A12=0," ",COUNTRY_INFO!A12) -> Burundi | B12: =IF(COUNTRY_INFO!B12=0," ",COUNTRY_INFO!B12) -> Bujumbura Mairie | C12: =IF(COUNTRY_INFO!C12=0," ",COUNTRY_INFO!C12) -> Zone Nord | D12: =IF(COUNTRY_INFO!$T$9:$T$1000="MDA2 (DEC+ALB)", COUNTRY_INFO!$T$9:$T$1000, " ") ->  | I12: 0 | M12: 0
A13: =IF(COUNTRY_INFO!A13=0," ",COUNTRY_INFO!A13) -> Burundi | B13: =IF(COUNTRY_INFO!B13=0," ",COUNTRY_INFO!B13) -> Bujumbura Mairie | C13: =IF(COUNTRY_INFO!C13=0," ",COUNTRY_INFO!C13) -> Zone Sud | D13: =IF(COUNTRY_INFO!$T$9:$T$1000="MDA2 (DEC+ALB)", COUNTRY_INFO!$T$9:$T$1000, " ") ->  | I13: 0 | M13: 0
A14: =IF(COUNTRY_INFO!A14=0," ",COUNTRY_INFO!A14) -> Burundi | B14: =IF(COUNTRY_INFO!B14=0," ",COUNTRY_INFO!B14) -> Bujumbura Rural | C14: =IF(COUNTRY_INFO!C14=0," ",COUNTRY_INFO!C14) -> Isare | D14: =IF(COUNTRY_INFO!$T$9:$T$1000="MDA2 (DEC+ALB)", COUNTRY_INFO!$T$9:$T$1000, " ") ->  | I14: 0 | M14: 0
A15: =IF(COUNTRY_INFO!A15=0," ",COUNTRY_INFO!A15) -> Burundi | B15: =IF(COUNTRY_INFO!B15=0," ",COUNTRY_INFO!B15) -> Bujumbura Rural | C15: =IF(COUNTRY_INFO!C15=0," ",COUNTRY_INFO!C15) -> Kabezi | D15: =IF(COUNTRY_INFO!$T$9:$T$1000="MDA2 (DEC+ALB)", COUNTRY_INFO!$T$9:$T$1000, " ") ->  | I15: 0 | M15: 0
A16: =IF(COUNTRY_INFO!A16=0," ",COUNTRY_INFO!A16) -> Burundi | B16: =IF(COUNTRY_INFO!B16=0," ",COUNTRY_INFO!B16) -> Bujumbura Rural | C16: =IF(COUNTRY_INFO!C16=0," ",COUNTRY_INFO!C16) -> Rwibaga | D16: =IF(COUNTRY_INFO!$T$9:$T$1000="MDA2 (DEC+ALB)", COUNTRY_INFO!$T$9:$T$1000, " ") ->  | I16: 0 | M16: 0
A17: =IF(COUNTRY_INFO!A17=0," ",COUNTRY_INFO!A17) -> Burundi | B17: =IF(COUNTRY_INFO!B17=0," ",COUNTRY_INFO!B17) -> Bururi | C17: =IF(COUNTRY_INFO!C17=0," ",COUNTRY_INFO!C17) -> Bururi | D17: =IF(COUNTRY_INFO!$T$9:$T$1000="MDA2 (DEC+ALB)", COUNTRY_INFO!$T$9:$T$1000, " ") ->  | I17: 0 | M17: 0
A18: =IF(COUNTRY_INFO!A18=0," ",COUNTRY_INFO!A18) -> Burundi | B18: =IF(COUNTRY_INFO!B18=0," ",COUNTRY_INFO!B18) -> Bururi | C18: =IF(COUNTRY_INFO!C18=0," ",COUNTRY_INFO!C18) -> Matana | D18: =IF(COUNTRY_INFO!$T$9:$T$1000="MDA2 (DEC+ALB)", COUNTRY_INFO!$T$9:$T$1000, " ") ->  | I18: 0 | M18: 0
A19: =IF(COUNTRY_INFO!A19=0," ",COUNTRY_INFO!A19) -> Burundi | B19: =IF(COUNTRY_INFO!B19=0," ",COUNTRY_INFO!B19) -> Bururi | C19: =IF(COUNTRY_INFO!C19=0," ",COUNTRY_INFO!C19) -> Rutovu | D19: =IF(COUNTRY_INFO!$T$9:$T$1000="MDA2 (DEC+ALB)", COUNTRY_INFO!$T$9:$T$1000, " ") ->  | I19: 0 | M19: 0
A20: =IF(COUNTRY_INFO!A20=0," ",COUNTRY_INFO!A20) -> Burundi | B20: =IF(COUNTRY_INFO!B20=0," ",COUNTRY_INFO!B20) -> Cankuzo | C20: =IF(COUNTRY_INFO!C20=0," ",COUNTRY_INFO!C20) -> Cankuzo | D20: =IF(COUNTRY_INFO!$T$9:$T$1000="MDA2 (DEC+ALB)", COUNTRY_INFO!$T$9:$T$1000, " ") ->  | I20: 0 | M20: 0
A21: =IF(COUNTRY_INFO!A21=0," ",COUNTRY_INFO!A21) -> Burundi | B21: =IF(COUNTRY_INFO!B21=0," ",COUNTRY_INFO!B21) -> Cankuzo | C21: =IF(COUNTRY_INFO!C21=0," ",COUNTRY_INFO!C21) -> Murore | D21: =IF(COUNTRY_INFO!$T$9:$T$1000="MDA2 (DEC+ALB)", COUNTRY_INFO!$T$9:$T$1000, " ") ->  | I21: 0 | M21: 0
A22: =IF(COUNTRY_INFO!A22=0," ",COUNTRY_INFO!A22) -> Burundi | B22: =IF(COUNTRY_INFO!B22=0," ",COUNTRY_INFO!B22) -> Cibitoke | C22: =IF(COUNTRY_INFO!C22=0," ",COUNTRY_INFO!C22) -> Bukinanyana | D22: =IF(COUNTRY_INFO!$T$9:$T$1000="MDA2 (DEC+ALB)", COUNTRY_INFO!$T$9:$T$1000, " ") ->  | I22: 0 | M22: 0
A23: =IF(COUNTRY_INFO!A23=0," ",COUNTRY_INFO!A23) -> Burundi | B23: =IF(COUNTRY_INFO!B23=0," ",COUNTRY_INFO!B23) -> Cibitoke | C23: =IF(COUNTRY_INFO!C23=0," ",COUNTRY_INFO!C23) -> Cibitoke | D23: =IF(COUNTRY_INFO!$T$9:$T$1000="MDA2 (DEC+ALB)", COUNTRY_INFO!$T$9:$T$1000, " ") ->  | I23: 0 | M23: 0
A24: =IF(COUNTRY_INFO!A24=0," ",COUNTRY_INFO!A24) -> Burundi | B24: =IF(COUNTRY_INFO!B24=0," ",COUNTRY_INFO!B24) -> Cibitoke | C24: =IF(COUNTRY_INFO!C24=0," ",COUNTRY_INFO!C24) -> Mabayi | D24: =IF(COUNTRY_INFO!$T$9:$T$1000="MDA2 (DEC+ALB)", COUNTRY_INFO!$T$9:$T$1000, " ") ->  | I24: 0 | M24: 0
A25: =IF(COUNTRY_INFO!A25=0," ",COUNTRY_INFO!A25) -> Burundi | B25: =IF(COUNTRY_INFO!B25=0," ",COUNTRY_INFO!B25) -> Gitega | C25: =IF(COUNTRY_INFO!C25=0," ",COUNTRY_INFO!C25) -> Gitega | D25: =IF(COUNTRY_INFO!$T$9:$T$1000="MDA2 (DEC+ALB)", COUNTRY_INFO!$T$9:$T$1000, " ") ->  | I25: 0 | M25: 0
A26: =IF(COUNTRY_INFO!A26=0," ",COUNTRY_INFO!A26) -> Burundi | B26: =IF(COUNTRY_INFO!B26=0," ",COUNTRY_INFO!B26) -> Gitega | C26: =IF(COUNTRY_INFO!C26=0," ",COUNTRY_INFO!C26) -> Kibuye | D26: =IF(COUNTRY_INFO!$T$9:$T$1000="MDA2 (DEC+ALB)", COUNTRY_INFO!$T$9:$T$1000, " ") ->  | I26: 0 | M26: 0
A27: =IF(COUNTRY_INFO!A27=0," ",COUNTRY_INFO!A27) -> Burundi | B27: =IF(COUNTRY_INFO!B27=0," ",COUNTRY_INFO!B27) -> Gitega | C27: =IF(COUNTRY_INFO!C27=0," ",COUNTRY_INFO!C27) -> Mutaho | D27: =IF(COUNTRY_INFO!$T$9:$T$1000="MDA2 (DEC+ALB)", COUNTRY_INFO!$T$9:$T$1000, " ") ->  | I27: 0 | M27: 0
A28: =IF(COUNTRY_INFO!A28=0," ",COUNTRY_INFO!A28) -> Burundi | B28: =IF(COUNTRY_INFO!B28=0," ",COUNTRY_INFO!B28) -> Gitega | C28: =IF(COUNTRY_INFO!C28=0," ",COUNTRY_INFO!C28) -> Ryansoro | D28: =IF(COUNTRY_INFO!$T$9:$T$1000="MDA2 (DEC+ALB)", COUNTRY_INFO!$T$9:$T$1000, " ") ->  | I28: 0 | M28: 0
A29: =IF(COUNTRY_INFO!A29=0," ",COUNTRY_INFO!A29) -> Burundi | B29: =IF(COUNTRY_INFO!B29=0," ",COUNTRY_INFO!B29) -> Karusi | C29: =IF(COUNTRY_INFO!C29=0," ",COUNTRY_INFO!C29) -> Buhiga | D29: =IF(COUNTRY_INFO!$T$9:$T$1000="MDA2 (DEC+ALB)", COUNTRY_INFO!$T$9:$T$1000, " ") ->  | I29: 0 | M29: 0
A30: =IF(COUNTRY_INFO!A30=0," ",COUNTRY_INFO!A30) -> Burundi | B30: =IF(COUNTRY_INFO!B30=0," ",COUNTRY_INFO!B30) -> Karusi | C30: =IF(COUNTRY_INFO!C30=0," ",COUNTRY_INFO!C30) -> Nyabikere | D30: =IF(COUNTRY_INFO!$T$9:$T$1000="MDA2 (DEC+ALB)", COUNTRY_INFO!$T$9:$T$1000, " ") ->  | I30: 0 | M30: 0
A31: =IF(COUNTRY_INFO!A31=0," ",COUNTRY_INFO!A31) -> Burundi | B31: =IF(COUNTRY_INFO!B31=0," ",COUNTRY_INFO!B31) -> Kayanza | C31: =IF(COUNTRY_INFO!C31=0," ",COUNTRY_INFO!C31) -> Gahombo | D31: =IF(COUNTRY_INFO!$T$9:$T$1000="MDA2 (DEC+ALB)", COUNTRY_INFO!$T$9:$T$1000, " ") ->  | I31: 0 | M31: 0
A32: =IF(COUNTRY_INFO!A32=0," ",COUNTRY_INFO!A32) -> Burundi | B32: =IF(COUNTRY_INFO!B32=0," ",COUNTRY_INFO!B32) -> Kayanza | C32: =IF(COUNTRY_INFO!C32=0," ",COUNTRY_INFO!C32) -> Kayanza | D32: =IF(COUNTRY_INFO!$T$9:$T$1000="MDA2 (DEC+ALB)", COUNTRY_INFO!$T$9:$T$1000, " ") ->  | I32: 0 | M32: 0
A33: =IF(COUNTRY_INFO!A33=0," ",COUNTRY_INFO!A33) -> Burundi | B33: =IF(COUNTRY_INFO!B33=0," ",COUNTRY_INFO!B33) -> Kayanza | C33: =IF(COUNTRY_INFO!C33=0," ",COUNTRY_INFO!C33) -> Musema | D33: =IF(COUNTRY_INFO!$T$9:$T$1000="MDA2 (DEC+ALB)", COUNTRY_INFO!$T$9:$T$1000, " ") ->  | I33: 0 | M33: 0
A34: =IF(COUNTRY_INFO!A34=0," ",COUNTRY_INFO!A34) -> Burundi | B34: =IF(COUNTRY_INFO!B34=0," ",COUNTRY_INFO!B34) -> Kirundo | C34: =IF(COUNTRY_INFO!C34=0," ",COUNTRY_INFO!C34) -> Busoni | D34: =IF(COUNTRY_INFO!$T$9:$T$1000="MDA2 (DEC+ALB)", COUNTRY_INFO!$T$9:$T$1000, " ") ->  | I34: 0 | M34: 0
A35: =IF(COUNTRY_INFO!A35=0," ",COUNTRY_INFO!A35) -> Burundi | B35: =IF(COUNTRY_INFO!B35=0," ",COUNTRY_INFO!B35) -> Kirundo | C35: =IF(COUNTRY_INFO!C35=0," ",COUNTRY_INFO!C35) -> Kirundo | D35: =IF(COUNTRY_INFO!$T$9:$T$1000="MDA2 (DEC+ALB)", COUNTRY_INFO!$T$9:$T$1000, " ") ->  | I35: 0 | M35: 0
A36: =IF(COUNTRY_INFO!A36=0," ",COUNTRY_INFO!A36) -> Burundi | B36: =IF(COUNTRY_INFO!B36=0," ",COUNTRY_INFO!B36) -> Kirundo | C36: =IF(COUNTRY_INFO!C36=0," ",COUNTRY_INFO!C36) -> Mukenke | D36: =IF(COUNTRY_INFO!$T$9:$T$1000="MDA2 (DEC+ALB)", COUNTRY_INFO!$T$9:$T$1000, " ") ->  | I36: 0 | M36: 0
A37: =IF(COUNTRY_INFO!A37=0," ",COUNTRY_INFO!A37) -> Burundi | B37: =IF(COUNTRY_INFO!B37=0," ",COUNTRY_INFO!B37) -> Kirundo | C37: =IF(COUNTRY_INFO!C37=0," ",COUNTRY_INFO!C37) -> Vumbi | D37: =IF(COUNTRY_INFO!$T$9:$T$1000="MDA2 (DEC+ALB)", COUNTRY_INFO!$T$9:$T$1000, " ") ->  | I37: 0 | M37: 0
A38: =IF(COUNTRY_INFO!A38=0," ",COUNTRY_INFO!A38) -> Burundi | B38: =IF(COUNTRY_INFO!B38=0," ",COUNTRY_INFO!B38) -> Makamba | C38: =IF(COUNTRY_INFO!C38=0," ",COUNTRY_INFO!C38) -> Makamba | D38: =IF(COUNTRY_INFO!$T$9:$T$1000="MDA2 (DEC+ALB)", COUNTRY_INFO!$T$9:$T$1000, " ") ->  | I38: 0 | M38: 0
A39: =IF(COUNTRY_INFO!A39=0," ",COUNTRY_INFO!A39) -> Burundi | B39: =IF(COUNTRY_INFO!B39=0," ",COUNTRY_INFO!B39) -> Makamba | C39: =IF(COUNTRY_INFO!C39=0," ",COUNTRY_INFO!C39) -> Nyanza-Lac | D39: =IF(COUNTRY_INFO!$T$9:$T$1000="MDA2 (DEC+ALB)", COUNTRY_INFO!$T$9:$T$1000, " ") ->  | I39: 0 | M39: 0
A40: =IF(COUNTRY_INFO!A40=0," ",COUNTRY_INFO!A40) -> Burundi | B40: =IF(COUNTRY_INFO!B40=0," ",COUNTRY_INFO!B40) -> Muramvya | C40: =IF(COUNTRY_INFO!C40=0," ",COUNTRY_INFO!C40) -> Kiganda | D40: =IF(COUNTRY_INFO!$T$9:$T$1000="MDA2 (DEC+ALB)", COUNTRY_INFO!$T$9:$T$1000, " ") ->  | I40: 0 | M40: 0
A41: =IF(COUNTRY_INFO!A41=0," ",COUNTRY_INFO!A41) -> Burundi | B41: =IF(COUNTRY_INFO!B41=0," ",COUNTRY_INFO!B41) -> Muramvya | C41: =IF(COUNTRY_INFO!C41=0," ",COUNTRY_INFO!C41) -> Muramvya | D41: =IF(COUNTRY_INFO!$T$9:$T$1000="MDA2 (DEC+ALB)", COUNTRY_INFO!$T$9:$T$1000, " ") ->  | I41: 0 | M41: 0
A42: =IF(COUNTRY_INFO!A42=0," ",COUNTRY_INFO!A42) -> Burundi | B42: =IF(COUNTRY_INFO!B42=0," ",COUNTRY_INFO!B42) -> Muyinga | C42: =IF(COUNTRY_INFO!C42=0," ",COUNTRY_INFO!C42) -> Gashoho | D42: =IF(COUNTRY_INFO!$T$9:$T$1000="MDA2 (DEC+ALB)", COUNTRY_INFO!$T$9:$T$1000, " ") ->  | I42: 0 | M42: 0
A43: =IF(COUNTRY_INFO!A43=0," ",COUNTRY_INFO!A43) -> Burundi | B43: =IF(COUNTRY_INFO!B43=0," ",COUNTRY_INFO!B43) -> Muyinga | C43: =IF(COUNTRY_INFO!C43=0," ",COUNTRY_INFO!C43) -> Giteranyi | D43: =IF(COUNTRY_INFO!$T$9:$T$1000="MDA2 (DEC+ALB)", COUNTRY_INFO!$T$9:$T$1000, " ") ->  | I43: 0 | M43: 0
A44: =IF(COUNTRY_INFO!A44=0," ",COUNTRY_INFO!A44) -> Burundi | B44: =IF(COUNTRY_INFO!B44=0," ",COUNTRY_INFO!B44) -> Muyinga | C44: =IF(COUNTRY_INFO!C44=0," ",COUNTRY_INFO!C44) -> Muyinga | D44: =IF(COUNTRY_INFO!$T$9:$T$1000="MDA2 (DEC+ALB)", COUNTRY_INFO!$T$9:$T$1000, " ") ->  | I44: 0 | M44: 0
A45: =IF(COUNTRY_INFO!A45=0," ",COUNTRY_INFO!A45) -> Burundi | B45: =IF(COUNTRY_INFO!B45=0," ",COUNTRY_INFO!B45) -> Mwaro | C45: =IF(COUNTRY_INFO!C45=0," ",COUNTRY_INFO!C45) -> Fota | D45: =IF(COUNTRY_INFO!$T$9:$T$1000="MDA2 (DEC+ALB)", COUNTRY_INFO!$T$9:$T$1000, " ") ->  | I45: 0 | M45: 0
A46: =IF(COUNTRY_INFO!A46=0," ",COUNTRY_INFO!A46) -> Burundi | B46: =IF(COUNTRY_INFO!B46=0," ",COUNTRY_INFO!B46) -> Mwaro | C46: =IF(COUNTRY_INFO!C46=0," ",COUNTRY_INFO!C46) -> Kibumbu | D46: =IF(COUNTRY_INFO!$T$9:$T$1000="MDA2 (DEC+ALB)", COUNTRY_INFO!$T$9:$T$1000, " ") ->  | I46: 0 | M46: 0
A47: =IF(COUNTRY_INFO!A47=0," ",COUNTRY_INFO!A47) -> Burundi | B47: =IF(COUNTRY_INFO!B47=0," ",COUNTRY_INFO!B47) -> Ngozi | C47: =IF(COUNTRY_INFO!C47=0," ",COUNTRY_INFO!C47) -> Buye | D47: =IF(COUNTRY_INFO!$T$9:$T$1000="MDA2 (DEC+ALB)", COUNTRY_INFO!$T$9:$T$1000, " ") ->  | I47: 0 | M47: 0
A48: =IF(COUNTRY_INFO!A48=0," ",COUNTRY_INFO!A48) -> Burundi | B48: =IF(COUNTRY_INFO!B48=0," ",COUNTRY_INFO!B48) -> Ngozi | C48: =IF(COUNTRY_INFO!C48=0," ",COUNTRY_INFO!C48) -> Kiremba | D48: =IF(COUNTRY_INFO!$T$9:$T$1000="MDA2 (DEC+ALB)", COUNTRY_INFO!$T$9:$T$1000, " ") ->  | I48: 0 | M48: 0
A49: =IF(COUNTRY_INFO!A49=0," ",COUNTRY_INFO!A49) -> Burundi | B49: =IF(COUNTRY_INFO!B49=0," ",COUNTRY_INFO!B49) -> Ngozi | C49: =IF(COUNTRY_INFO!C49=0," ",COUNTRY_INFO!C49) -> Ngozi | D49: =IF(COUNTRY_INFO!$T$9:$T$1000="MDA2 (DEC+ALB)", COUNTRY_INFO!$T$9:$T$1000, " ") ->  | I49: 0 | M49: 0
A50: =IF(COUNTRY_INFO!A50=0," ",COUNTRY_INFO!A50) -> Burundi | B50: =IF(COUNTRY_INFO!B50=0," ",COUNTRY_INFO!B50) -> Rumonge | C50: =IF(COUNTRY_INFO!C50=0," ",COUNTRY_INFO!C50) -> Bugarama | D50: =IF(COUNTRY_INFO!$T$9:$T$1000="MDA2 (DEC+ALB)", COUNTRY_INFO!$T$9:$T$1000, " ") ->  | I50: 0 | M50: 0
A51: =IF(COUNTRY_INFO!A51=0," ",COUNTRY_INFO!A51) -> Burundi | B51: =IF(COUNTRY_INFO!B51=0," ",COUNTRY_INFO!B51) -> Rumonge | C51: =IF(COUNTRY_INFO!C51=0," ",COUNTRY_INFO!C51) -> Rumonge | D51: =IF(COUNTRY_INFO!$T$9:$T$1000="MDA2 (DEC+ALB)", COUNTRY_INFO!$T$9:$T$1000, " ") ->  | I51: 0 | M51: 0
A52: =IF(COUNTRY_INFO!A52=0," ",COUNTRY_INFO!A52) -> Burundi | B52: =IF(COUNTRY_INFO!B52=0," ",COUNTRY_INFO!B52) -> Rutana | C52: =IF(COUNTRY_INFO!C52=0," ",COUNTRY_INFO!C52) -> Gihofi | D52: =IF(COUNTRY_INFO!$T$9:$T$1000="MDA2 (DEC+ALB)", COUNTRY_INFO!$T$9:$T$1000, " ") ->  | I52: 0 | M52: 0
A53: =IF(COUNTRY_INFO!A53=0," ",COUNTRY_INFO!A53) -> Burundi | B53: =IF(COUNTRY_INFO!B53=0," ",COUNTRY_INFO!B53) -> Rutana | C53: =IF(COUNTRY_INFO!C53=0," ",COUNTRY_INFO!C53) -> Rutana | D53: =IF(COUNTRY_INFO!$T$9:$T$1000="MDA2 (DEC+ALB)", COUNTRY_INFO!$T$9:$T$1000, " ") ->  | I53: 0 | M53: 0
A54: =IF(COUNTRY_INFO!A54=0," ",COUNTRY_INFO!A54) -> Burundi | B54: =IF(COUNTRY_INFO!B54=0," ",COUNTRY_INFO!B54) -> Ruyigi | C54: =IF(COUNTRY_INFO!C54=0," ",COUNTRY_INFO!C54) -> Butezi | D54: =IF(COUNTRY_INFO!$T$9:$T$1000="MDA2 (DEC+ALB)", COUNTRY_INFO!$T$9:$T$1000, " ") ->  | I54: 0 | M54: 0
A55: =IF(COUNTRY_INFO!A55=0," ",COUNTRY_INFO!A55) -> Burundi | B55: =IF(COUNTRY_INFO!B55=0," ",COUNTRY_INFO!B55) -> Gisuru | C55: =IF(COUNTRY_INFO!C55=0," ",COUNTRY_INFO!C55) -> Gisuru | D55: =IF(COUNTRY_INFO!$T$9:$T$1000="MDA2 (DEC+ALB)", COUNTRY_INFO!$T$9:$T$1000, " ") ->  | I55: 0 | M55: 0
A56: =IF(COUNTRY_INFO!A56=0," ",COUNTRY_INFO!A56) -> Burundi | B56: =IF(COUNTRY_INFO!B56=0," ",COUNTRY_INFO!B56) -> Ruyigi | C56: =IF(COUNTRY_INFO!C56=0," ",COUNTRY_INFO!C56) -> Kinyinya | D56: =IF(COUNTRY_INFO!$T$9:$T$1000="MDA2 (DEC+ALB)", COUNTRY_INFO!$T$9:$T$1000, " ") ->  | I56: 0 | M56: 0
A57: =IF(COUNTRY_INFO!A57=0," ",COUNTRY_INFO!A57) -> Burundi | B57: =IF(COUNTRY_INFO!B57=0," ",COUNTRY_INFO!B57) -> Ruyigi | C57: =IF(COUNTRY_INFO!C57=0," ",COUNTRY_INFO!C57) -> Ruyigi | D57: =IF(COUNTRY_INFO!$T$9:$T$1000="MDA2 (DEC+ALB)", COUNTRY_INFO!$T$9:$T$1000, " ") ->  | I57: 0 | M57: 0

Sheet MDA3
A1: MDA 3 - Ivermectine (IVM)
A2: Structure administrative, population nécessitant une chimioprévention par groupe d'âge, population traitée par groupe d'âge et couverture
A4: TOTAL | F4: =SUM(F$9:F$1000) -> 0 | G4: 0 | H4: 0 | I4: 0 | J4: 0 | K4: 0 | L4: 0 | M4: 0 | N4: 0 | O4: 0 | P4: 0 | Q4: 0 | R4: =IF(F4<>0, IF(O4/F4*100=0, "-", O4/F4*100), " ") ->  | S4: =IF(G4<>0, IF(P4/G4*100=0, "-", P4/G4*100), " ") ->  | T4: =IF(H4<>0, IF(Q4/H4*100=0, "-", Q4/H4*100), " ") -> 
A6: Structure administrative du pays | D6: Mise en oeuvre de la CP | E6: Date | F6: Population ciblée pour MDA 3 | I6: Population traitée - tournée 1 | L6: Population traitée - tournée 2 | O6: Population traitée | R6: Couverture du Programme (%)
A7: Pays | B7: Région/Département | C7: District | F7: EAS | G7: Adultes | H7: Total | I7: EAS | J7: Adultes | K7: Total | L7: EAS | M7: Adultes | N7: Total | O7: EAS | P7: Adultes | Q7: Total | R7: EAS | S7: Adultes | T7: Total
A9: =IF(COUNTRY_INFO!A9=0," ",COUNTRY_INFO!A9) -> Burundi | B9: =IF(COUNTRY_INFO!B9=0," ",COUNTRY_INFO!B9) -> Bubanza | C9: =IF(COUNTRY_INFO!C9=0," ",COUNTRY_INFO!C9) -> Bubanza | D9: =IF(COUNTRY_INFO!$T$9:$T$1000="MDA3 (IVM)", COUNTRY_INFO!$T$9:$T$1000, " ") ->  | H9: =SUM(F9:G9) -> 0 | K9: =SUM(I9:J9) -> 0 | N9: =SUM(L9:M9) -> 0 | O9: =MAX(I9,L9) -> 0 | P9: 0 | Q9: =SUM(O9:P9) -> 0 | R9: =IF(F9<>0, IF(MAX(I9,L9)/F9*100=0, "-", MAX(I9,L9)/F9*100), " ") ->  | T9: =IF(H9<>0, IF((MAX(I9,L9)+MAX(J9,M9))/H9*100=0, "-",(MAX(I9,L9)+MAX(J9,M9))/H9*100), " ") -> 
A10: =IF(COUNTRY_INFO!A10=0," ",COUNTRY_INFO!A10) -> Burundi | B10: =IF(COUNTRY_INFO!B10=0," ",COUNTRY_INFO!B10) -> Bubanza | C10: =IF(COUNTRY_INFO!C10=0," ",COUNTRY_INFO!C10) -> Mpanda | D10: =IF(COUNTRY_INFO!$T$9:$T$1000="MDA3 (IVM)", COUNTRY_INFO!$T$9:$T$1000, " ") ->  | H10: =SUM(F10:G10) -> 0 | K10: =SUM(I10:J10) -> 0 | N10: =SUM(L10:M10) -> 0 | O10: =MAX(I10,L10) -> 0 | P10: =MAX(J10,M10) -> 0 | Q10: =SUM(O10:P10) -> 0 | R10: =IF(F10<>0, IF(MAX(I10,L10)/F10*100=0, "-", MAX(I10,L10)/F10*100), " ") ->  | S10: =IF(G10<>0, IF(MAX(J10,M10)/G10*100=0, "-", MAX(J10,M10)/G10*100), " ") ->  | T10: =IF(H10<>0, IF((MAX(I10,L10)+MAX(J10,M10))/H10*100=0, "-",(MAX(I10,L10)+MAX(J10,M10))/H10*100), " ") -> 
A11: =IF(COUNTRY_INFO!A11=0," ",COUNTRY_INFO!A11) -> Burundi | B11: =IF(COUNTRY_INFO!B11=0," ",COUNTRY_INFO!B11) -> Bujumbura Mairie | C11: =IF(COUNTRY_INFO!C11=0," ",COUNTRY_INFO!C11) -> Zone Centre | D11: =IF(COUNTRY_INFO!$T$9:$T$1000="MDA3 (IVM)", COUNTRY_INFO!$T$9:$T$1000, " ") ->  | H11: 0 | K11: 0 | N11: 0 | O11: 0 | P11: 0 | Q11: 0
A12: =IF(COUNTRY_INFO!A12=0," ",COUNTRY_INFO!A12) -> Burundi | B12: =IF(COUNTRY_INFO!B12=0," ",COUNTRY_INFO!B12) -> Bujumbura Mairie | C12: =IF(COUNTRY_INFO!C12=0," ",COUNTRY_INFO!C12) -> Zone Nord | D12: =IF(COUNTRY_INFO!$T$9:$T$1000="MDA3 (IVM)", COUNTRY_INFO!$T$9:$T$1000, " ") ->  | H12: 0 | K12: 0 | N12: 0 | O12: 0 | P12: 0 | Q12: 0
A13: =IF(COUNTRY_INFO!A13=0," ",COUNTRY_INFO!A13) -> Burundi | B13: =IF(COUNTRY_INFO!B13=0," ",COUNTRY_INFO!B13) -> Bujumbura Mairie | C13: =IF(COUNTRY_INFO!C13=0," ",COUNTRY_INFO!C13) -> Zone Sud | D13: =IF(COUNTRY_INFO!$T$9:$T$1000="MDA3 (IVM)", COUNTRY_INFO!$T$9:$T$1000, " ") ->  | H13: 0 | K13: 0 | N13: 0 | O13: 0 | P13: 0 | Q13: 0
A14: =IF(COUNTRY_INFO!A14=0," ",COUNTRY_INFO!A14) -> Burundi | B14: =IF(COUNTRY_INFO!B14=0," ",COUNTRY_INFO!B14) -> Bujumbura Rural | C14: =IF(COUNTRY_INFO!C14=0," ",COUNTRY_INFO!C14) -> Isare | D14: =IF(COUNTRY_INFO!$T$9:$T$1000="MDA3 (IVM)", COUNTRY_INFO!$T$9:$T$1000, " ") ->  | H14: 0 | K14: 0 | N14: 0 | O14: 0 | P14: 0 | Q14: 0
A15: =IF(COUNTRY_INFO!A15=0," ",COUNTRY_INFO!A15) -> Burundi | B15: =IF(COUNTRY_INFO!B15=0," ",COUNTRY_INFO!B15) -> Bujumbura Rural | C15: =IF(COUNTRY_INFO!C15=0," ",COUNTRY_INFO!C15) -> Kabezi | D15: =IF(COUNTRY_INFO!$T$9:$T$1000="MDA3 (IVM)", COUNTRY_INFO!$T$9:$T$1000, " ") ->  | H15: 0 | K15: 0 | N15: 0 | O15: 0 | P15: 0 | Q15: 0
A16: =IF(COUNTRY_INFO!A16=0," ",COUNTRY_INFO!A16) -> Burundi | B16: =IF(COUNTRY_INFO!B16=0," ",COUNTRY_INFO!B16) -> Bujumbura Rural | C16: =IF(COUNTRY_INFO!C16=0," ",COUNTRY_INFO!C16) -> Rwibaga | D16: =IF(COUNTRY_INFO!$T$9:$T$1000="MDA3 (IVM)", COUNTRY_INFO!$T$9:$T$1000, " ") ->  | H16: 0 | K16: 0 | N16: 0 | O16: 0 | P16: 0 | Q16: 0
A17: =IF(COUNTRY_INFO!A17=0," ",COUNTRY_INFO!A17) -> Burundi | B17: =IF(COUNTRY_INFO!B17=0," ",COUNTRY_INFO!B17) -> Bururi | C17: =IF(COUNTRY_INFO!C17=0," ",COUNTRY_INFO!C17) -> Bururi | D17: =IF(COUNTRY_INFO!$T$9:$T$1000="MDA3 (IVM)", COUNTRY_INFO!$T$9:$T$1000, " ") ->  | H17: 0 | K17: 0 | N17: 0 | O17: 0 | P17: 0 | Q17: 0
A18: =IF(COUNTRY_INFO!A18=0," ",COUNTRY_INFO!A18) -> Burundi | B18: =IF(COUNTRY_INFO!B18=0," ",COUNTRY_INFO!B18) -> Bururi | C18: =IF(COUNTRY_INFO!C18=0," ",COUNTRY_INFO!C18) -> Matana | D18: =IF(COUNTRY_INFO!$T$9:$T$1000="MDA3 (IVM)", COUNTRY_INFO!$T$9:$T$1000, " ") ->  | H18: 0 | K18: 0 | N18: 0 | O18: 0 | P18: 0 | Q18: 0
A19: =IF(COUNTRY_INFO!A19=0," ",COUNTRY_INFO!A19) -> Burundi | B19: =IF(COUNTRY_INFO!B19=0," ",COUNTRY_INFO!B19) -> Bururi | C19: =IF(COUNTRY_INFO!C19=0," ",COUNTRY_INFO!C19) -> Rutovu | D19: =IF(COUNTRY_INFO!$T$9:$T$1000="MDA3 (IVM)", COUNTRY_INFO!$T$9:$T$1000, " ") ->  | H19: 0 | K19: 0 | N19: 0 | O19: 0 | P19: 0 | Q19: 0
A20: =IF(COUNTRY_INFO!A20=0," ",COUNTRY_INFO!A20) -> Burundi | B20: =IF(COUNTRY_INFO!B20=0," ",COUNTRY_INFO!B20) -> Cankuzo | C20: =IF(COUNTRY_INFO!C20=0," ",COUNTRY_INFO!C20) -> Cankuzo | D20: =IF(COUNTRY_INFO!$T$9:$T$1000="MDA3 (IVM)", COUNTRY_INFO!$T$9:$T$1000, " ") ->  | H20: 0 | K20: 0 | N20: 0 | O20: 0 | P20: 0 | Q20: 0
A21: =IF(COUNTRY_INFO!A21=0," ",COUNTRY_INFO!A21) -> Burundi | B21: =IF(COUNTRY_INFO!B21=0," ",COUNTRY_INFO!B21) -> Cankuzo | C21: =IF(COUNTRY_INFO!C21=0," ",COUNTRY_INFO!C21) -> Murore | D21: =IF(COUNTRY_INFO!$T$9:$T$1000="MDA3 (IVM)", COUNTRY_INFO!$T$9:$T$1000, " ") ->  | H21: 0 | K21: 0 | N21: 0 | O21: 0 | P21: 0 | Q21: 0
A22: =IF(COUNTRY_INFO!A22=0," ",COUNTRY_INFO!A22) -> Burundi | B22: =IF(COUNTRY_INFO!B22=0," ",COUNTRY_INFO!B22) -> Cibitoke | C22: =IF(COUNTRY_INFO!C22=0," ",COUNTRY_INFO!C22) -> Bukinanyana | D22: =IF(COUNTRY_INFO!$T$9:$T$1000="MDA3 (IVM)", COUNTRY_INFO!$T$9:$T$1000, " ") ->  | H22: 0 | K22: 0 | N22: 0 | O22: 0 | P22: 0 | Q22: 0
A23: =IF(COUNTRY_INFO!A23=0," ",COUNTRY_INFO!A23) -> Burundi | B23: =IF(COUNTRY_INFO!B23=0," ",COUNTRY_INFO!B23) -> Cibitoke | C23: =IF(COUNTRY_INFO!C23=0," ",COUNTRY_INFO!C23) -> Cibitoke | D23: =IF(COUNTRY_INFO!$T$9:$T$1000="MDA3 (IVM)", COUNTRY_INFO!$T$9:$T$1000, " ") ->  | H23: 0 | K23: 0 | N23: 0 | O23: 0 | P23: 0 | Q23: 0
A24: =IF(COUNTRY_INFO!A24=0," ",COUNTRY_INFO!A24) -> Burundi | B24: =IF(COUNTRY_INFO!B24=0," ",COUNTRY_INFO!B24) -> Cibitoke | C24: =IF(COUNTRY_INFO!C24=0," ",COUNTRY_INFO!C24) -> Mabayi | D24: =IF(COUNTRY_INFO!$T$9:$T$1000="MDA3 (IVM)", COUNTRY_INFO!$T$9:$T$1000, " ") ->  | H24: 0 | K24: 0 | N24: 0 | O24: 0 | P24: 0 | Q24: 0
A25: =IF(COUNTRY_INFO!A25=0," ",COUNTRY_INFO!A25) -> Burundi | B25: =IF(COUNTRY_INFO!B25=0," ",COUNTRY_INFO!B25) -> Gitega | C25: =IF(COUNTRY_INFO!C25=0," ",COUNTRY_INFO!C25) -> Gitega | D25: =IF(COUNTRY_INFO!$T$9:$T$1000="MDA3 (IVM)", COUNTRY_INFO!$T$9:$T$1000, " ") ->  | H25: 0 | K25: 0 | N25: 0 | O25: 0 | P25: 0 | Q25: 0
A26: =IF(COUNTRY_INFO!A26=0," ",COUNTRY_INFO!A26) -> Burundi | B26: =IF(COUNTRY_INFO!B26=0," ",COUNTRY_INFO!B26) -> Gitega | C26: =IF(COUNTRY_INFO!C26=0," ",COUNTRY_INFO!C26) -> Kibuye | D26: =IF(COUNTRY_INFO!$T$9:$T$1000="MDA3 (IVM)", COUNTRY_INFO!$T$9:$T$1000, " ") ->  | H26: 0 | K26: 0 | N26: 0 | O26: 0 | P26: 0 | Q26: 0
A27: =IF(COUNTRY_INFO!A27=0," ",COUNTRY_INFO!A27) -> Burundi | B27: =IF(COUNTRY_INFO!B27=0," ",COUNTRY_INFO!B27) -> Gitega | C27: =IF(COUNTRY_INFO!C27=0," ",COUNTRY_INFO!C27) -> Mutaho | D27: =IF(COUNTRY_INFO!$T$9:$T$1000="MDA3 (IVM)", COUNTRY_INFO!$T$9:$T$1000, " ") ->  | H27: 0 | K27: 0 | N27: 0 | O27: 0 | P27: 0 | Q27: 0
A28: =IF(COUNTRY_INFO!A28=0," ",COUNTRY_INFO!A28) -> Burundi | B28: =IF(COUNTRY_INFO!B28=0," ",COUNTRY_INFO!B28) -> Gitega | C28: =IF(COUNTRY_INFO!C28=0," ",COUNTRY_INFO!C28) -> Ryansoro | D28: =IF(COUNTRY_INFO!$T$9:$T$1000="MDA3 (IVM)", COUNTRY_INFO!$T$9:$T$1000, " ") ->  | H28: 0 | K28: 0 | N28: 0 | O28: 0 | P28: 0 | Q28: 0
A29: =IF(COUNTRY_INFO!A29=0," ",COUNTRY_INFO!A29) -> Burundi | B29: =IF(COUNTRY_INFO!B29=0," ",COUNTRY_INFO!B29) -> Karusi | C29: =IF(COUNTRY_INFO!C29=0," ",COUNTRY_INFO!C29) -> Buhiga | D29: =IF(COUNTRY_INFO!$T$9:$T$1000="MDA3 (IVM)", COUNTRY_INFO!$T$9:$T$1000, " ") ->  | H29: 0 | K29: 0 | N29: 0 | O29: 0 | P29: 0 | Q29: 0
A30: =IF(COUNTRY_INFO!A30=0," ",COUNTRY_INFO!A30) -> Burundi | B30: =IF(COUNTRY_INFO!B30=0," ",COUNTRY_INFO!B30) -> Karusi | C30: =IF(COUNTRY_INFO!C30=0," ",COUNTRY_INFO!C30) -> Nyabikere | D30: =IF(COUNTRY_INFO!$T$9:$T$1000="MDA3 (IVM)", COUNTRY_INFO!$T$9:$T$1000, " ") ->  | H30: 0 | K30: 0 | N30: 0 | O30: 0 | P30: 0 | Q30: 0
A31: =IF(COUNTRY_INFO!A31=0," ",COUNTRY_INFO!A31) -> Burundi | B31: =IF(COUNTRY_INFO!B31=0," ",COUNTRY_INFO!B31) -> Kayanza | C31: =IF(COUNTRY_INFO!C31=0," ",COUNTRY_INFO!C31) -> Gahombo | D31: =IF(COUNTRY_INFO!$T$9:$T$1000="MDA3 (IVM)", COUNTRY_INFO!$T$9:$T$1000, " ") ->  | H31: 0 | K31: 0 | N31: 0 | O31: 0 | P31: 0 | Q31: 0
A32: =IF(COUNTRY_INFO!A32=0," ",COUNTRY_INFO!A32) -> Burundi | B32: =IF(COUNTRY_INFO!B32=0," ",COUNTRY_INFO!B32) -> Kayanza | C32: =IF(COUNTRY_INFO!C32=0," ",COUNTRY_INFO!C32) -> Kayanza | D32: =IF(COUNTRY_INFO!$T$9:$T$1000="MDA3 (IVM)", COUNTRY_INFO!$T$9:$T$1000, " ") ->  | H32: 0 | K32: 0 | N32: 0 | O32: 0 | P32: 0 | Q32: 0
A33: =IF(COUNTRY_INFO!A33=0," ",COUNTRY_INFO!A33) -> Burundi | B33: =IF(COUNTRY_INFO!B33=0," ",COUNTRY_INFO!B33) -> Kayanza | C33: =IF(COUNTRY_INFO!C33=0," ",COUNTRY_INFO!C33) -> Musema | D33: =IF(COUNTRY_INFO!$T$9:$T$1000="MDA3 (IVM)", COUNTRY_INFO!$T$9:$T$1000, " ") ->  | H33: 0 | K33: 0 | N33: 0 | O33: 0 | P33: 0 | Q33: 0
A34: =IF(COUNTRY_INFO!A34=0," ",COUNTRY_INFO!A34) -> Burundi | B34: =IF(COUNTRY_INFO!B34=0," ",COUNTRY_INFO!B34) -> Kirundo | C34: =IF(COUNTRY_INFO!C34=0," ",COUNTRY_INFO!C34) -> Busoni | D34: =IF(COUNTRY_INFO!$T$9:$T$1000="MDA3 (IVM)", COUNTRY_INFO!$T$9:$T$1000, " ") ->  | H34: 0 | K34: 0 | N34: 0 | O34: 0 | P34: 0 | Q34: 0
A35: =IF(COUNTRY_INFO!A35=0," ",COUNTRY_INFO!A35) -> Burundi | B35: =IF(COUNTRY_INFO!B35=0," ",COUNTRY_INFO!B35) -> Kirundo | C35: =IF(COUNTRY_INFO!C35=0," ",COUNTRY_INFO!C35) -> Kirundo | D35: =IF(COUNTRY_INFO!$T$9:$T$1000="MDA3 (IVM)", COUNTRY_INFO!$T$9:$T$1000, " ") ->  | H35: 0 | K35: 0 | N35: 0 | O35: 0 | P35: 0 | Q35: 0
A36: =IF(COUNTRY_INFO!A36=0," ",COUNTRY_INFO!A36) -> Burundi | B36: =IF(COUNTRY_INFO!B36=0," ",COUNTRY_INFO!B36) -> Kirundo | C36: =IF(COUNTRY_INFO!C36=0," ",COUNTRY_INFO!C36) -> Mukenke | D36: =IF(COUNTRY_INFO!$T$9:$T$1000="MDA3 (IVM)", COUNTRY_INFO!$T$9:$T$1000, " ") ->  | H36: 0 | K36: 0 | N36: 0 | O36: 0 | P36: 0 | Q36: 0
A37: =IF(COUNTRY_INFO!A37=0," ",COUNTRY_INFO!A37) -> Burundi | B37: =IF(COUNTRY_INFO!B37=0," ",COUNTRY_INFO!B37) -> Kirundo | C37: =IF(COUNTRY_INFO!C37=0," ",COUNTRY_INFO!C37) -> Vumbi | D37: =IF(COUNTRY_INFO!$T$9:$T$1000="MDA3 (IVM)", COUNTRY_INFO!$T$9:$T$1000, " ") ->  | H37: 0 | K37: 0 | N37: 0 | O37: 0 | P37: 0 | Q37: 0
A38: =IF(COUNTRY_INFO!A38=0," ",COUNTRY_INFO!A38) -> Burundi | B38: =IF(COUNTRY_INFO!B38=0," ",COUNTRY_INFO!B38) -> Makamba | C38: =IF(COUNTRY_INFO!C38=0," ",COUNTRY_INFO!C38) -> Makamba | D38: =IF(COUNTRY_INFO!$T$9:$T$1000="MDA3 (IVM)", COUNTRY_INFO!$T$9:$T$1000, " ") ->  | H38: 0 | K38: 0 | N38: 0 | O38: 0 | P38: 0 | Q38: 0
A39: =IF(COUNTRY_INFO!A39=0," ",COUNTRY_INFO!A39) -> Burundi | B39: =IF(COUNTRY_INFO!B39=0," ",COUNTRY_INFO!B39) -> Makamba | C39: =IF(COUNTRY_INFO!C39=0," ",COUNTRY_INFO!C39) -> Nyanza-Lac | D39: =IF(COUNTRY_INFO!$T$9:$T$1000="MDA3 (IVM)", COUNTRY_INFO!$T$9:$T$1000, " ") ->  | H39: 0 | K39: 0 | N39: 0 | O39: 0 | P39: 0 | Q39: 0
A40: =IF(COUNTRY_INFO!A40=0," ",COUNTRY_INFO!A40) -> Burundi | B40: =IF(COUNTRY_INFO!B40=0," ",COUNTRY_INFO!B40) -> Muramvya | C40: =IF(COUNTRY_INFO!C40=0," ",COUNTRY_INFO!C40) -> Kiganda | D40: =IF(COUNTRY_INFO!$T$9:$T$1000="MDA3 (IVM)", COUNTRY_INFO!$T$9:$T$1000, " ") ->  | H40: 0 | K40: 0 | N40: 0 | O40: 0 | P40: 0 | Q40: 0
A41: =IF(COUNTRY_INFO!A41=0," ",COUNTRY_INFO!A41) -> Burundi | B41: =IF(COUNTRY_INFO!B41=0," ",COUNTRY_INFO!B41) -> Muramvya | C41: =IF(COUNTRY_INFO!C41=0," ",COUNTRY_INFO!C41) -> Muramvya | D41: =IF(COUNTRY_INFO!$T$9:$T$1000="MDA3 (IVM)", COUNTRY_INFO!$T$9:$T$1000, " ") ->  | H41: 0 | K41: 0 | N41: 0 | O41: 0 | P41: 0 | Q41: 0
A42: =IF(COUNTRY_INFO!A42=0," ",COUNTRY_INFO!A42) -> Burundi | B42: =IF(COUNTRY_INFO!B42=0," ",COUNTRY_INFO!B42) -> Muyinga | C42: =IF(COUNTRY_INFO!C42=0," ",COUNTRY_INFO!C42) -> Gashoho | D42: =IF(COUNTRY_INFO!$T$9:$T$1000="MDA3 (IVM)", COUNTRY_INFO!$T$9:$T$1000, " ") ->  | H42: 0 | K42: 0 | N42: 0 | O42: 0 | P42: 0 | Q42: 0
A43: =IF(COUNTRY_INFO!A43=0," ",COUNTRY_INFO!A43) -> Burundi | B43: =IF(COUNTRY_INFO!B43=0," ",COUNTRY_INFO!B43) -> Muyinga | C43: =IF(COUNTRY_INFO!C43=0," ",COUNTRY_INFO!C43) -> Giteranyi | D43: =IF(COUNTRY_INFO!$T$9:$T$1000="MDA3 (IVM)", COUNTRY_INFO!$T$9:$T$1000, " ") ->  | H43: 0 | K43: 0 | N43: 0 | O43: 0 | P43: 0 | Q43: 0
A44: =IF(COUNTRY_INFO!A44=0," ",COUNTRY_INFO!A44) -> Burundi | B44: =IF(COUNTRY_INFO!B44=0," ",COUNTRY_INFO!B44) -> Muyinga | C44: =IF(COUNTRY_INFO!C44=0," ",COUNTRY_INFO!C44) -> Muyinga | D44: =IF(COUNTRY_INFO!$T$9:$T$1000="MDA3 (IVM)", COUNTRY_INFO!$T$9:$T$1000, " ") ->  | H44: 0 | K44: 0 | N44: 0 | O44: 0 | P44: 0 | Q44: 0
A45: =IF(COUNTRY_INFO!A45=0," ",COUNTRY_INFO!A45) -> Burundi | B45: =IF(COUNTRY_INFO!B45=0," ",COUNTRY_INFO!B45) -> Mwaro | C45: =IF(COUNTRY_INFO!C45=0," ",COUNTRY_INFO!C45) -> Fota | D45: =IF(COUNTRY_INFO!$T$9:$T$1000="MDA3 (IVM)", COUNTRY_INFO!$T$9:$T$1000, " ") ->  | H45: 0 | K45: 0 | N45: 0 | O45: 0 | P45: 0 | Q45: 0
A46: =IF(COUNTRY_INFO!A46=0," ",COUNTRY_INFO!A46) -> Burundi | B46: =IF(COUNTRY_INFO!B46=0," ",COUNTRY_INFO!B46) -> Mwaro | C46: =IF(COUNTRY_INFO!C46=0," ",COUNTRY_INFO!C46) -> Kibumbu | D46: =IF(COUNTRY_INFO!$T$9:$T$1000="MDA3 (IVM)", COUNTRY_INFO!$T$9:$T$1000, " ") ->  | H46: 0 | K46: 0 | N46: 0 | O46: 0 | P46: 0 | Q46: 0
A47: =IF(COUNTRY_INFO!A47=0," ",COUNTRY_INFO!A47) -> Burundi | B47: =IF(COUNTRY_INFO!B47=0," ",COUNTRY_INFO!B47) -> Ngozi | C47: =IF(COUNTRY_INFO!C47=0," ",COUNTRY_INFO!C47) -> Buye | D47: =IF(COUNTRY_INFO!$T$9:$T$1000="MDA3 (IVM)", COUNTRY_INFO!$T$9:$T$1000, " ") ->  | H47: 0 | K47: 0 | N47: 0 | O47: 0 | P47: 0 | Q47: 0
A48: =IF(COUNTRY_INFO!A48=0," ",COUNTRY_INFO!A48) -> Burundi | B48: =IF(COUNTRY_INFO!B48=0," ",COUNTRY_INFO!B48) -> Ngozi | C48: =IF(COUNTRY_INFO!C48=0," ",COUNTRY_INFO!C48) -> Kiremba | D48: =IF(COUNTRY_INFO!$T$9:$T$1000="MDA3 (IVM)", COUNTRY_INFO!$T$9:$T$1000, " ") ->  | H48: 0 | K48: 0 | N48: 0 | O48: 0 | P48: 0 | Q48: 0
A49: =IF(COUNTRY_INFO!A49=0," ",COUNTRY_INFO!A49) -> Burundi | B49: =IF(COUNTRY_INFO!B49=0," ",COUNTRY_INFO!B49) -> Ngozi | C49: =IF(COUNTRY_INFO!C49=0," ",COUNTRY_INFO!C49) -> Ngozi | D49: =IF(COUNTRY_INFO!$T$9:$T$1000="MDA3 (IVM)", COUNTRY_INFO!$T$9:$T$1000, " ") ->  | H49: 0 | K49: 0 | N49: 0 | O49: 0 | P49: 0 | Q49: 0
A50: =IF(COUNTRY_INFO!A50=0," ",COUNTRY_INFO!A50) -> Burundi | B50: =IF(COUNTRY_INFO!B50=0," ",COUNTRY_INFO!B50) -> Rumonge | C50: =IF(COUNTRY_INFO!C50=0," ",COUNTRY_INFO!C50) -> Bugarama | D50: =IF(COUNTRY_INFO!$T$9:$T$1000="MDA3 (IVM)", COUNTRY_INFO!$T$9:$T$1000, " ") ->  | H50: 0 | K50: 0 | N50: 0 | O50: 0 | P50: 0 | Q50: 0
A51: =IF(COUNTRY_INFO!A51=0," ",COUNTRY_INFO!A51) -> Burundi | B51: =IF(COUNTRY_INFO!B51=0," ",COUNTRY_INFO!B51) -> Rumonge | C51: =IF(COUNTRY_INFO!C51=0," ",COUNTRY_INFO!C51) -> Rumonge | D51: =IF(COUNTRY_INFO!$T$9:$T$1000="MDA3 (IVM)", COUNTRY_INFO!$T$9:$T$1000, " ") ->  | H51: 0 | K51: 0 | N51: 0 | O51: 0 | P51: 0 | Q51: 0
A52: =IF(COUNTRY_INFO!A52=0," ",COUNTRY_INFO!A52) -> Burundi | B52: =IF(COUNTRY_INFO!B52=0," ",COUNTRY_INFO!B52) -> Rutana | C52: =IF(COUNTRY_INFO!C52=0," ",COUNTRY_INFO!C52) -> Gihofi | D52: =IF(COUNTRY_INFO!$T$9:$T$1000="MDA3 (IVM)", COUNTRY_INFO!$T$9:$T$1000, " ") ->  | H52: 0 | K52: 0 | N52: 0 | O52: 0 | P52: 0 | Q52: 0
A53: =IF(COUNTRY_INFO!A53=0," ",COUNTRY_INFO!A53) -> Burundi | B53: =IF(COUNTRY_INFO!B53=0," ",COUNTRY_INFO!B53) -> Rutana | C53: =IF(COUNTRY_INFO!C53=0," ",COUNTRY_INFO!C53) -> Rutana | D53: =IF(COUNTRY_INFO!$T$9:$T$1000="MDA3 (IVM)", COUNTRY_INFO!$T$9:$T$1000, " ") ->  | H53: 0 | K53: 0 | N53: 0 | O53: 0 | P53: 0 | Q53: 0
A54: =IF(COUNTRY_INFO!A54=0," ",COUNTRY_INFO!A54) -> Burundi | B54: =IF(COUNTRY_INFO!B54=0," ",COUNTRY_INFO!B54) -> Ruyigi | C54: =IF(COUNTRY_INFO!C54=0," ",COUNTRY_INFO!C54) -> Butezi | D54: =IF(COUNTRY_INFO!$T$9:$T$1000="MDA3 (IVM)", COUNTRY_INFO!$T$9:$T$1000, " ") ->  | H54: 0 | K54: 0 | N54: 0 | O54: 0 | P54: 0 | Q54: 0
A55: =IF(COUNTRY_INFO!A55=0," ",COUNTRY_INFO!A55) -> Burundi | B55: =IF(COUNTRY_INFO!B55=0," ",COUNTRY_INFO!B55) -> Gisuru | C55: =IF(COUNTRY_INFO!C55=0," ",COUNTRY_INFO!C55) -> Gisuru | D55: =IF(COUNTRY_INFO!$T$9:$T$1000="MDA3 (IVM)", COUNTRY_INFO!$T$9:$T$1000, " ") ->  | H55: 0 | K55: 0 | N55: 0 | O55: 0 | P55: 0 | Q55: 0
A56: =IF(COUNTRY_INFO!A56=0," ",COUNTRY_INFO!A56) -> Burundi | B56: =IF(COUNTRY_INFO!B56=0," ",COUNTRY_INFO!B56) -> Ruyigi | C56: =IF(COUNTRY_INFO!C56=0," ",COUNTRY_INFO!C56) -> Kinyinya | D56: =IF(COUNTRY_INFO!$T$9:$T$1000="MDA3 (IVM)", COUNTRY_INFO!$T$9:$T$1000, " ") ->  | H56: 0 | K56: 0 | N56: 0 | O56: 0 | P56: 0 | Q56: 0
A57: =IF(COUNTRY_INFO!A57=0," ",COUNTRY_INFO!A57) -> Burundi | B57: =IF(COUNTRY_INFO!B57=0," ",COUNTRY_INFO!B57) -> Ruyigi | C57: =IF(COUNTRY_INFO!C57=0," ",COUNTRY_INFO!C57) -> Ruyigi | D57: =IF(COUNTRY_INFO!$T$9:$T$1000="MDA3 (IVM)", COUNTRY_INFO!$T$9:$T$1000, " ") ->  | H57: 0 | K57: 0 | N57: 0 | O57: 0 | P57: 0 | Q57: 0

Sheet T1
A1: T 1 - Praziquantel (PZQ) et Albendazole (ALB) ou Mebendazole (MBD)
A2: Structure administrative, population nécessitant une chimioprévention par groupe d'âge, population traitée par groupe d'âge et couverture
A4: TOTAL | G4: =SUM(G$9:G$1000) -> 0 | H4: 0 | I4: 0 | J4: 0 | K4: =SUM(K$9:K$1000) -> 0 | L4: 0 | M4: 0 | N4: 0 | O4: 0 | P4: =IF(G4<>0, IF(L4/G4*100=0, "-", L4/G4*100), " ") ->  | Q4: =IF(OR(I4<>0,H4<>0), IF(M4/MAX(H4,I4)*100=0, "-", M4/MAX(H4,I4)*100), " ") ->  | R4: =IF(J4<>0, IF(N4/J4*100=0, "-", N4/J4*100), " ") ->  | S4: =IF(K4<>0, IF(O4/K4*100=0, "-", O4/K4*100), " ") -> 
A6: Structure administrative du pays | D6: Mise en oeuvre de la CP | E6: Médica-ment | F6: Date | G6: Population ciblée pour T1 | L6: Population traitée | P6: Couverture du Programme (%)
A7: Pays | B7: Région/Département | C7: District | G7: EAPréS (ALB) | H7: EAS (ALB) | I7: EAS (PZQ) | J7: Adultes (PZQ) | K7: Total | L7: EAPréS | M7: EAS | N7: Adultes | O7: Total | P7: EAPréS | Q7: EAS | R7: Adultes | S7: Total
A9: =IF(COUNTRY_INFO!A9=0," ",COUNTRY_INFO!A9) -> Burundi | B9: =IF(COUNTRY_INFO!B9=0," ",COUNTRY_INFO!B9) -> Bubanza | C9: =IF(COUNTRY_INFO!C9=0," ",COUNTRY_INFO!C9) -> Bubanza | D9: =IF(OR(COUNTRY_INFO!$T$9:$T$1000="T1 (PZQ+ALB/MBD)",COUNTRY_INFO!$U$9:$U$1000="T1 (PZQ+ALB/MBD)"), "T1 (PZQ+ALB/MBD)", " ") ->  | K9: =MAX(H9:I9)+G9+J9 -> 0 | O9: =SUM(L9:N9) -> 0 | P9: =IF(G9<>0, IF(L9/G9*100=0, "-", L9/G9*100), " ") ->  | Q9: =IF(OR(I9<>0,H9<>0), IF(M9/MAX(H9,I9)*100=0, "-", M9/MAX(H9,I9)*100), " ") ->  | R9: =IF(J9<>0, IF(N9/J9*100=0, "-", N9/J9*100), " ") -> 
A10: =IF(COUNTRY_INFO!A10=0," ",COUNTRY_INFO!A10) -> Burundi | B10: =IF(COUNTRY_INFO!B10=0," ",COUNTRY_INFO!B10) -> Bubanza | C10: =IF(COUNTRY_INFO!C10=0," ",COUNTRY_INFO!C10) -> Mpanda | D10: =IF(OR(COUNTRY_INFO!$T$9:$T$1000="T1 (PZQ+ALB/MBD)",COUNTRY_INFO!$U$9:$U$1000="T1 (PZQ+ALB/MBD)"), "T1 (PZQ+ALB/MBD)", " ") ->  | K10: =MAX(H10:I10)+G10+J10 -> 0 | O10: =SUM(L10:N10) -> 0 | P10: =IF(G10<>0, IF(L10/G10*100=0, "-", L10/G10*100), " ") ->  | Q10: =IF(OR(I10<>0,H10<>0), IF(M10/MAX(H10,I10)*100=0, "-", M10/MAX(H10,I10)*100), " ") ->  | R10: =IF(J10<>0, IF(N10/J10*100=0, "-", N10/J10*100), " ") ->  | S10: =IF(K10<>0, IF(O10/K10*100=0, "-", O10/K10*100), " ") -> 
A11: =IF(COUNTRY_INFO!A11=0," ",COUNTRY_INFO!A11) -> Burundi | B11: =IF(COUNTRY_INFO!B11=0," ",COUNTRY_INFO!B11) -> Bujumbura Mairie | C11: =IF(COUNTRY_INFO!C11=0," ",COUNTRY_INFO!C11) -> Zone Centre | D11: =IF(OR(COUNTRY_INFO!$T$9:$T$1000="T1 (PZQ+ALB/MBD)",COUNTRY_INFO!$U$9:$U$1000="T1 (PZQ+ALB/MBD)"), "T1 (PZQ+ALB/MBD)", " ") ->  | K11: 0 | O11: 0
A12: =IF(COUNTRY_INFO!A12=0," ",COUNTRY_INFO!A12) -> Burundi | B12: =IF(COUNTRY_INFO!B12=0," ",COUNTRY_INFO!B12) -> Bujumbura Mairie | C12: =IF(COUNTRY_INFO!C12=0," ",COUNTRY_INFO!C12) -> Zone Nord | D12: =IF(OR(COUNTRY_INFO!$T$9:$T$1000="T1 (PZQ+ALB/MBD)",COUNTRY_INFO!$U$9:$U$1000="T1 (PZQ+ALB/MBD)"), "T1 (PZQ+ALB/MBD)", " ") ->  | K12: 0 | O12: 0
A13: =IF(COUNTRY_INFO!A13=0," ",COUNTRY_INFO!A13) -> Burundi | B13: =IF(COUNTRY_INFO!B13=0," ",COUNTRY_INFO!B13) -> Bujumbura Mairie | C13: =IF(COUNTRY_INFO!C13=0," ",COUNTRY_INFO!C13) -> Zone Sud | D13: =IF(OR(COUNTRY_INFO!$T$9:$T$1000="T1 (PZQ+ALB/MBD)",COUNTRY_INFO!$U$9:$U$1000="T1 (PZQ+ALB/MBD)"), "T1 (PZQ+ALB/MBD)", " ") ->  | K13: 0 | O13: 0
A14: =IF(COUNTRY_INFO!A14=0," ",COUNTRY_INFO!A14) -> Burundi | B14: =IF(COUNTRY_INFO!B14=0," ",COUNTRY_INFO!B14) -> Bujumbura Rural | C14: =IF(COUNTRY_INFO!C14=0," ",COUNTRY_INFO!C14) -> Isare | D14: =IF(OR(COUNTRY_INFO!$T$9:$T$1000="T1 (PZQ+ALB/MBD)",COUNTRY_INFO!$U$9:$U$1000="T1 (PZQ+ALB/MBD)"), "T1 (PZQ+ALB/MBD)", " ") ->  | K14: 0 | O14: 0 | U14: =COUNTRY_INFO!F14 -> 79383
A15: =IF(COUNTRY_INFO!A15=0," ",COUNTRY_INFO!A15) -> Burundi | B15: =IF(COUNTRY_INFO!B15=0," ",COUNTRY_INFO!B15) -> Bujumbura Rural | C15: =IF(COUNTRY_INFO!C15=0," ",COUNTRY_INFO!C15) -> Kabezi | D15: =IF(OR(COUNTRY_INFO!$T$9:$T$1000="T1 (PZQ+ALB/MBD)",COUNTRY_INFO!$U$9:$U$1000="T1 (PZQ+ALB/MBD)"), "T1 (PZQ+ALB/MBD)", " ") ->  | K15: 0 | O15: 0 | U15: =COUNTRY_INFO!F15 -> 102354
A16: =IF(COUNTRY_INFO!A16=0," ",COUNTRY_INFO!A16) -> Burundi | B16: =IF(COUNTRY_INFO!B16=0," ",COUNTRY_INFO!B16) -> Bujumbura Rural | C16: =IF(COUNTRY_INFO!C16=0," ",COUNTRY_INFO!C16) -> Rwibaga | D16: =IF(OR(COUNTRY_INFO!$T$9:$T$1000="T1 (PZQ+ALB/MBD)",COUNTRY_INFO!$U$9:$U$1000="T1 (PZQ+ALB/MBD)"), "T1 (PZQ+ALB/MBD)", " ") ->  | K16: 0 | O16: 0
A17: =IF(COUNTRY_INFO!A17=0," ",COUNTRY_INFO!A17) -> Burundi | B17: =IF(COUNTRY_INFO!B17=0," ",COUNTRY_INFO!B17) -> Bururi | C17: =IF(COUNTRY_INFO!C17=0," ",COUNTRY_INFO!C17) -> Bururi | D17: =IF(OR(COUNTRY_INFO!$T$9:$T$1000="T1 (PZQ+ALB/MBD)",COUNTRY_INFO!$U$9:$U$1000="T1 (PZQ+ALB/MBD)"), "T1 (PZQ+ALB/MBD)", " ") ->  | K17: 0 | O17: 0
A18: =IF(COUNTRY_INFO!A18=0," ",COUNTRY_INFO!A18) -> Burundi | B18: =IF(COUNTRY_INFO!B18=0," ",COUNTRY_INFO!B18) -> Bururi | C18: =IF(COUNTRY_INFO!C18=0," ",COUNTRY_INFO!C18) -> Matana | D18: =IF(OR(COUNTRY_INFO!$T$9:$T$1000="T1 (PZQ+ALB/MBD)",COUNTRY_INFO!$U$9:$U$1000="T1 (PZQ+ALB/MBD)"), "T1 (PZQ+ALB/MBD)", " ") ->  | K18: 0 | O18: 0
A19: =IF(COUNTRY_INFO!A19=0," ",COUNTRY_INFO!A19) -> Burundi | B19: =IF(COUNTRY_INFO!B19=0," ",COUNTRY_INFO!B19) -> Bururi | C19: =IF(COUNTRY_INFO!C19=0," ",COUNTRY_INFO!C19) -> Rutovu | D19: =IF(OR(COUNTRY_INFO!$T$9:$T$1000="T1 (PZQ+ALB/MBD)",COUNTRY_INFO!$U$9:$U$1000="T1 (PZQ+ALB/MBD)"), "T1 (PZQ+ALB/MBD)", " ") ->  | K19: 0 | O19: 0
A20: =IF(COUNTRY_INFO!A20=0," ",COUNTRY_INFO!A20) -> Burundi | B20: =IF(COUNTRY_INFO!B20=0," ",COUNTRY_INFO!B20) -> Cankuzo | C20: =IF(COUNTRY_INFO!C20=0," ",COUNTRY_INFO!C20) -> Cankuzo | D20: =IF(OR(COUNTRY_INFO!$T$9:$T$1000="T1 (PZQ+ALB/MBD)",COUNTRY_INFO!$U$9:$U$1000="T1 (PZQ+ALB/MBD)"), "T1 (PZQ+ALB/MBD)", " ") ->  | K20: 0 | O20: 0
A21: =IF(COUNTRY_INFO!A21=0," ",COUNTRY_INFO!A21) -> Burundi | B21: =IF(COUNTRY_INFO!B21=0," ",COUNTRY_INFO!B21) -> Cankuzo | C21: =IF(COUNTRY_INFO!C21=0," ",COUNTRY_INFO!C21) -> Murore | D21: =IF(OR(COUNTRY_INFO!$T$9:$T$1000="T1 (PZQ+ALB/MBD)",COUNTRY_INFO!$U$9:$U$1000="T1 (PZQ+ALB/MBD)"), "T1 (PZQ+ALB/MBD)", " ") ->  | K21: 0 | O21: 0 | U21: =COUNTRY_INFO!F21 -> 48843
A22: =IF(COUNTRY_INFO!A22=0," ",COUNTRY_INFO!A22) -> Burundi | B22: =IF(COUNTRY_INFO!B22=0," ",COUNTRY_INFO!B22) -> Cibitoke | C22: =IF(COUNTRY_INFO!C22=0," ",COUNTRY_INFO!C22) -> Bukinanyana | D22: =IF(OR(COUNTRY_INFO!$T$9:$T$1000="T1 (PZQ+ALB/MBD)",COUNTRY_INFO!$U$9:$U$1000="T1 (PZQ+ALB/MBD)"), "T1 (PZQ+ALB/MBD)", " ") ->  | K22: 0 | O22: 0 | U22: =COUNTRY_INFO!F22 -> 70007
A23: =IF(COUNTRY_INFO!A23=0," ",COUNTRY_INFO!A23) -> Burundi | B23: =IF(COUNTRY_INFO!B23=0," ",COUNTRY_INFO!B23) -> Cibitoke | C23: =IF(COUNTRY_INFO!C23=0," ",COUNTRY_INFO!C23) -> Cibitoke | D23: =IF(OR(COUNTRY_INFO!$T$9:$T$1000="T1 (PZQ+ALB/MBD)",COUNTRY_INFO!$U$9:$U$1000="T1 (PZQ+ALB/MBD)"), "T1 (PZQ+ALB/MBD)", " ") ->  | K23: 0 | O23: 0 | U23: =COUNTRY_INFO!F23 -> 58729
A24: =IF(COUNTRY_INFO!A24=0," ",COUNTRY_INFO!A24) -> Burundi | B24: =IF(COUNTRY_INFO!B24=0," ",COUNTRY_INFO!B24) -> Cibitoke | C24: =IF(COUNTRY_INFO!C24=0," ",COUNTRY_INFO!C24) -> Mabayi | D24: =IF(OR(COUNTRY_INFO!$T$9:$T$1000="T1 (PZQ+ALB/MBD)",COUNTRY_INFO!$U$9:$U$1000="T1 (PZQ+ALB/MBD)"), "T1 (PZQ+ALB/MBD)", " ") ->  | K24: 0 | O24: 0 | U24: =COUNTRY_INFO!F24 -> 68604
A25: =IF(COUNTRY_INFO!A25=0," ",COUNTRY_INFO!A25) -> Burundi | B25: =IF(COUNTRY_INFO!B25=0," ",COUNTRY_INFO!B25) -> Gitega | C25: =IF(COUNTRY_INFO!C25=0," ",COUNTRY_INFO!C25) -> Gitega | D25: =IF(OR(COUNTRY_INFO!$T$9:$T$1000="T1 (PZQ+ALB/MBD)",COUNTRY_INFO!$U$9:$U$1000="T1 (PZQ+ALB/MBD)"), "T1 (PZQ+ALB/MBD)", " ") ->  | K25: 0 | O25: 0
A26: =IF(COUNTRY_INFO!A26=0," ",COUNTRY_INFO!A26) -> Burundi | B26: =IF(COUNTRY_INFO!B26=0," ",COUNTRY_INFO!B26) -> Gitega | C26: =IF(COUNTRY_INFO!C26=0," ",COUNTRY_INFO!C26) -> Kibuye | D26: =IF(OR(COUNTRY_INFO!$T$9:$T$1000="T1 (PZQ+ALB/MBD)",COUNTRY_INFO!$U$9:$U$1000="T1 (PZQ+ALB/MBD)"), "T1 (PZQ+ALB/MBD)", " ") ->  | K26: 0 | O26: 0
A27: =IF(COUNTRY_INFO!A27=0," ",COUNTRY_INFO!A27) -> Burundi | B27: =IF(COUNTRY_INFO!B27=0," ",COUNTRY_INFO!B27) -> Gitega | C27: =IF(COUNTRY_INFO!C27=0," ",COUNTRY_INFO!C27) -> Mutaho | D27: =IF(OR(COUNTRY_INFO!$T$9:$T$1000="T1 (PZQ+ALB/MBD)",COUNTRY_INFO!$U$9:$U$1000="T1 (PZQ+ALB/MBD)"), "T1 (PZQ+ALB/MBD)", " ") ->  | K27: 0 | O27: 0
A28: =IF(COUNTRY_INFO!A28=0," ",COUNTRY_INFO!A28) -> Burundi | B28: =IF(COUNTRY_INFO!B28=0," ",COUNTRY_INFO!B28) -> Gitega | C28: =IF(COUNTRY_INFO!C28=0," ",COUNTRY_INFO!C28) -> Ryansoro | D28: =IF(OR(COUNTRY_INFO!$T$9:$T$1000="T1 (PZQ+ALB/MBD)",COUNTRY_INFO!$U$9:$U$1000="T1 (PZQ+ALB/MBD)"), "T1 (PZQ+ALB/MBD)", " ") ->  | K28: 0 | O28: 0
A29: =IF(COUNTRY_INFO!A29=0," ",COUNTRY_INFO!A29) -> Burundi | B29: =IF(COUNTRY_INFO!B29=0," ",COUNTRY_INFO!B29) -> Karusi | C29: =IF(COUNTRY_INFO!C29=0," ",COUNTRY_INFO!C29) -> Buhiga | D29: =IF(OR(COUNTRY_INFO!$T$9:$T$1000="T1 (PZQ+ALB/MBD)",COUNTRY_INFO!$U$9:$U$1000="T1 (PZQ+ALB/MBD)"), "T1 (PZQ+ALB/MBD)", " ") ->  | K29: 0 | O29: 0
A30: =IF(COUNTRY_INFO!A30=0," ",COUNTRY_INFO!A30) -> Burundi | B30: =IF(COUNTRY_INFO!B30=0," ",COUNTRY_INFO!B30) -> Karusi | C30: =IF(COUNTRY_INFO!C30=0," ",COUNTRY_INFO!C30) -> Nyabikere | D30: =IF(OR(COUNTRY_INFO!$T$9:$T$1000="T1 (PZQ+ALB/MBD)",COUNTRY_INFO!$U$9:$U$1000="T1 (PZQ+ALB/MBD)"), "T1 (PZQ+ALB/MBD)", " ") ->  | K30: 0 | O30: 0
A31: =IF(COUNTRY_INFO!A31=0," ",COUNTRY_INFO!A31) -> Burundi | B31: =IF(COUNTRY_INFO!B31=0," ",COUNTRY_INFO!B31) -> Kayanza | C31: =IF(COUNTRY_INFO!C31=0," ",COUNTRY_INFO!C31) -> Gahombo | D31: =IF(OR(COUNTRY_INFO!$T$9:$T$1000="T1 (PZQ+ALB/MBD)",COUNTRY_INFO!$U$9:$U$1000="T1 (PZQ+ALB/MBD)"), "T1 (PZQ+ALB/MBD)", " ") ->  | K31: 0 | O31: 0
A32: =IF(COUNTRY_INFO!A32=0," ",COUNTRY_INFO!A32) -> Burundi | B32: =IF(COUNTRY_INFO!B32=0," ",COUNTRY_INFO!B32) -> Kayanza | C32: =IF(COUNTRY_INFO!C32=0," ",COUNTRY_INFO!C32) -> Kayanza | D32: =IF(OR(COUNTRY_INFO!$T$9:$T$1000="T1 (PZQ+ALB/MBD)",COUNTRY_INFO!$U$9:$U$1000="T1 (PZQ+ALB/MBD)"), "T1 (PZQ+ALB/MBD)", " ") ->  | K32: 0 | O32: 0
A33: =IF(COUNTRY_INFO!A33=0," ",COUNTRY_INFO!A33) -> Burundi | B33: =IF(COUNTRY_INFO!B33=0," ",COUNTRY_INFO!B33) -> Kayanza | C33: =IF(COUNTRY_INFO!C33=0," ",COUNTRY_INFO!C33) -> Musema | D33: =IF(OR(COUNTRY_INFO!$T$9:$T$1000="T1 (PZQ+ALB/MBD)",COUNTRY_INFO!$U$9:$U$1000="T1 (PZQ+ALB/MBD)"), "T1 (PZQ+ALB/MBD)", " ") ->  | K33: 0 | O33: 0
A34: =IF(COUNTRY_INFO!A34=0," ",COUNTRY_INFO!A34) -> Burundi | B34: =IF(COUNTRY_INFO!B34=0," ",COUNTRY_INFO!B34) -> Kirundo | C34: =IF(COUNTRY_INFO!C34=0," ",COUNTRY_INFO!C34) -> Busoni | D34: =IF(OR(COUNTRY_INFO!$T$9:$T$1000="T1 (PZQ+ALB/MBD)",COUNTRY_INFO!$U$9:$U$1000="T1 (PZQ+ALB/MBD)"), "T1 (PZQ+ALB/MBD)", " ") ->  | K34: 0 | O34: 0 | U34: =COUNTRY_INFO!F34 -> 64168
A35: =IF(COUNTRY_INFO!A35=0," ",COUNTRY_INFO!A35) -> Burundi | B35: =IF(COUNTRY_INFO!B35=0," ",COUNTRY_INFO!B35) -> Kirundo | C35: =IF(COUNTRY_INFO!C35=0," ",COUNTRY_INFO!C35) -> Kirundo | D35: =IF(OR(COUNTRY_INFO!$T$9:$T$1000="T1 (PZQ+ALB/MBD)",COUNTRY_INFO!$U$9:$U$1000="T1 (PZQ+ALB/MBD)"), "T1 (PZQ+ALB/MBD)", " ") ->  | K35: 0 | O35: 0 | U35: =COUNTRY_INFO!F35 -> 78712
A36: =IF(COUNTRY_INFO!A36=0," ",COUNTRY_INFO!A36) -> Burundi | B36: =IF(COUNTRY_INFO!B36=0," ",COUNTRY_INFO!B36) -> Kirundo | C36: =IF(COUNTRY_INFO!C36=0," ",COUNTRY_INFO!C36) -> Mukenke | D36: =IF(OR(COUNTRY_INFO!$T$9:$T$1000="T1 (PZQ+ALB/MBD)",COUNTRY_INFO!$U$9:$U$1000="T1 (PZQ+ALB/MBD)"), "T1 (PZQ+ALB/MBD)", " ") ->  | K36: 0 | O36: 0 | U36: =COUNTRY_INFO!F36 -> 51160
A37: =IF(COUNTRY_INFO!A37=0," ",COUNTRY_INFO!A37) -> Burundi | B37: =IF(COUNTRY_INFO!B37=0," ",COUNTRY_INFO!B37) -> Kirundo | C37: =IF(COUNTRY_INFO!C37=0," ",COUNTRY_INFO!C37) -> Vumbi | D37: =IF(OR(COUNTRY_INFO!$T$9:$T$1000="T1 (PZQ+ALB/MBD)",COUNTRY_INFO!$U$9:$U$1000="T1 (PZQ+ALB/MBD)"), "T1 (PZQ+ALB/MBD)", " ") ->  | K37: 0 | O37: 0 | U37: =COUNTRY_INFO!F37 -> 72552
A38: =IF(COUNTRY_INFO!A38=0," ",COUNTRY_INFO!A38) -> Burundi | B38: =IF(COUNTRY_INFO!B38=0," ",COUNTRY_INFO!B38) -> Makamba | C38: =IF(COUNTRY_INFO!C38=0," ",COUNTRY_INFO!C38) -> Makamba | D38: =IF(OR(COUNTRY_INFO!$T$9:$T$1000="T1 (PZQ+ALB/MBD)",COUNTRY_INFO!$U$9:$U$1000="T1 (PZQ+ALB/MBD)"), "T1 (PZQ+ALB/MBD)", " ") ->  | K38: 0 | O38: 0 | U38: =COUNTRY_INFO!F38 -> 102933
A39: =IF(COUNTRY_INFO!A39=0," ",COUNTRY_INFO!A39) -> Burundi | B39: =IF(COUNTRY_INFO!B39=0," ",COUNTRY_INFO!B39) -> Makamba | C39: =IF(COUNTRY_INFO!C39=0," ",COUNTRY_INFO!C39) -> Nyanza-Lac | D39: =IF(OR(COUNTRY_INFO!$T$9:$T$1000="T1 (PZQ+ALB/MBD)",COUNTRY_INFO!$U$9:$U$1000="T1 (PZQ+ALB/MBD)"), "T1 (PZQ+ALB/MBD)", " ") ->  | K39: 0 | O39: 0 | U39: =COUNTRY_INFO!F39 -> 90776
A40: =IF(COUNTRY_INFO!A40=0," ",COUNTRY_INFO!A40) -> Burundi | B40: =IF(COUNTRY_INFO!B40=0," ",COUNTRY_INFO!B40) -> Muramvya | C40: =IF(COUNTRY_INFO!C40=0," ",COUNTRY_INFO!C40) -> Kiganda | D40: =IF(OR(COUNTRY_INFO!$T$9:$T$1000="T1 (PZQ+ALB/MBD)",COUNTRY_INFO!$U$9:$U$1000="T1 (PZQ+ALB/MBD)"), "T1 (PZQ+ALB/MBD)", " ") ->  | K40: 0 | O40: 0
A41: =IF(COUNTRY_INFO!A41=0," ",COUNTRY_INFO!A41) -> Burundi | B41: =IF(COUNTRY_INFO!B41=0," ",COUNTRY_INFO!B41) -> Muramvya | C41: =IF(COUNTRY_INFO!C41=0," ",COUNTRY_INFO!C41) -> Muramvya | D41: =IF(OR(COUNTRY_INFO!$T$9:$T$1000="T1 (PZQ+ALB/MBD)",COUNTRY_INFO!$U$9:$U$1000="T1 (PZQ+ALB/MBD)"), "T1 (PZQ+ALB/MBD)", " ") ->  | K41: 0 | O41: 0
A42: =IF(COUNTRY_INFO!A42=0," ",COUNTRY_INFO!A42) -> Burundi | B42: =IF(COUNTRY_INFO!B42=0," ",COUNTRY_INFO!B42) -> Muyinga | C42: =IF(COUNTRY_INFO!C42=0," ",COUNTRY_INFO!C42) -> Gashoho | D42: =IF(OR(COUNTRY_INFO!$T$9:$T$1000="T1 (PZQ+ALB/MBD)",COUNTRY_INFO!$U$9:$U$1000="T1 (PZQ+ALB/MBD)"), "T1 (PZQ+ALB/MBD)", " ") ->  | K42: 0 | O42: 0
A43: =IF(COUNTRY_INFO!A43=0," ",COUNTRY_INFO!A43) -> Burundi | B43: =IF(COUNTRY_INFO!B43=0," ",COUNTRY_INFO!B43) -> Muyinga | C43: =IF(COUNTRY_INFO!C43=0," ",COUNTRY_INFO!C43) -> Giteranyi | D43: =IF(OR(COUNTRY_INFO!$T$9:$T$1000="T1 (PZQ+ALB/MBD)",COUNTRY_INFO!$U$9:$U$1000="T1 (PZQ+ALB/MBD)"), "T1 (PZQ+ALB/MBD)", " ") ->  | K43: 0 | O43: 0
A44: =IF(COUNTRY_INFO!A44=0," ",COUNTRY_INFO!A44) -> Burundi | B44: =IF(COUNTRY_INFO!B44=0," ",COUNTRY_INFO!B44) -> Muyinga | C44: =IF(COUNTRY_INFO!C44=0," ",COUNTRY_INFO!C44) -> Muyinga | D44: =IF(OR(COUNTRY_INFO!$T$9:$T$1000="T1 (PZQ+ALB/MBD)",COUNTRY_INFO!$U$9:$U$1000="T1 (PZQ+ALB/MBD)"), "T1 (PZQ+ALB/MBD)", " ") ->  | K44: 0 | O44: 0 | U44: =COUNTRY_INFO!F44 -> 101297
A45: =IF(COUNTRY_INFO!A45=0," ",COUNTRY_INFO!A45) -> Burundi | B45: =IF(COUNTRY_INFO!B45=0," ",COUNTRY_INFO!B45) -> Mwaro | C45: =IF(COUNTRY_INFO!C45=0," ",COUNTRY_INFO!C45) -> Fota | D45: =IF(OR(COUNTRY_INFO!$T$9:$T$1000="T1 (PZQ+ALB/MBD)",COUNTRY_INFO!$U$9:$U$1000="T1 (PZQ+ALB/MBD)"), "T1 (PZQ+ALB/MBD)", " ") ->  | K45: 0 | O45: 0
A46: =IF(COUNTRY_INFO!A46=0," ",COUNTRY_INFO!A46) -> Burundi | B46: =IF(COUNTRY_INFO!B46=0," ",COUNTRY_INFO!B46) -> Mwaro | C46: =IF(COUNTRY_INFO!C46=0," ",COUNTRY_INFO!C46) -> Kibumbu | D46: =IF(OR(COUNTRY_INFO!$T$9:$T$1000="T1 (PZQ+ALB/MBD)",COUNTRY_INFO!$U$9:$U$1000="T1 (PZQ+ALB/MBD)"), "T1 (PZQ+ALB/MBD)", " ") ->  | K46: 0 | O46: 0
A47: =IF(COUNTRY_INFO!A47=0," ",COUNTRY_INFO!A47) -> Burundi | B47: =IF(COUNTRY_INFO!B47=0," ",COUNTRY_INFO!B47) -> Ngozi | C47: =IF(COUNTRY_INFO!C47=0," ",COUNTRY_INFO!C47) -> Buye | D47: =IF(OR(COUNTRY_INFO!$T$9:$T$1000="T1 (PZQ+ALB/MBD)",COUNTRY_INFO!$U$9:$U$1000="T1 (PZQ+ALB/MBD)"), "T1 (PZQ+ALB/MBD)", " ") ->  | K47: 0 | O47: 0
A48: =IF(COUNTRY_INFO!A48=0," ",COUNTRY_INFO!A48) -> Burundi | B48: =IF(COUNTRY_INFO!B48=0," ",COUNTRY_INFO!B48) -> Ngozi | C48: =IF(COUNTRY_INFO!C48=0," ",COUNTRY_INFO!C48) -> Kiremba | D48: =IF(OR(COUNTRY_INFO!$T$9:$T$1000="T1 (PZQ+ALB/MBD)",COUNTRY_INFO!$U$9:$U$1000="T1 (PZQ+ALB/MBD)"), "T1 (PZQ+ALB/MBD)", " ") ->  | K48: 0 | O48: 0
A49: =IF(COUNTRY_INFO!A49=0," ",COUNTRY_INFO!A49) -> Burundi | B49: =IF(COUNTRY_INFO!B49=0," ",COUNTRY_INFO!B49) -> Ngozi | C49: =IF(COUNTRY_INFO!C49=0," ",COUNTRY_INFO!C49) -> Ngozi | D49: =IF(OR(COUNTRY_INFO!$T$9:$T$1000="T1 (PZQ+ALB/MBD)",COUNTRY_INFO!$U$9:$U$1000="T1 (PZQ+ALB/MBD)"), "T1 (PZQ+ALB/MBD)", " ") ->  | K49: 0 | O49: 0
A50: =IF(COUNTRY_INFO!A50=0," ",COUNTRY_INFO!A50) -> Burundi | B50: =IF(COUNTRY_INFO!B50=0," ",COUNTRY_INFO!B50) -> Rumonge | C50: =IF(COUNTRY_INFO!C50=0," ",COUNTRY_INFO!C50) -> Bugarama | D50: =IF(OR(COUNTRY_INFO!$T$9:$T$1000="T1 (PZQ+ALB/MBD)",COUNTRY_INFO!$U$9:$U$1000="T1 (PZQ+ALB/MBD)"), "T1 (PZQ+ALB/MBD)", " ") ->  | K50: 0 | O50: 0 | U50: =COUNTRY_INFO!F50 -> 40045
A51: =IF(COUNTRY_INFO!A51=0," ",COUNTRY_INFO!A51) -> Burundi | B51: =IF(COUNTRY_INFO!B51=0," ",COUNTRY_INFO!B51) -> Rumonge | C51: =IF(COUNTRY_INFO!C51=0," ",COUNTRY_INFO!C51) -> Rumonge | D51: =IF(OR(COUNTRY_INFO!$T$9:$T$1000="T1 (PZQ+ALB/MBD)",COUNTRY_INFO!$U$9:$U$1000="T1 (PZQ+ALB/MBD)"), "T1 (PZQ+ALB/MBD)", " ") ->  | K51: 0 | O51: 0 | U51: =COUNTRY_INFO!F51 -> 110964
A52: =IF(COUNTRY_INFO!A52=0," ",COUNTRY_INFO!A52) -> Burundi | B52: =IF(COUNTRY_INFO!B52=0," ",COUNTRY_INFO!B52) -> Rutana | C52: =IF(COUNTRY_INFO!C52=0," ",COUNTRY_INFO!C52) -> Gihofi | D52: =IF(OR(COUNTRY_INFO!$T$9:$T$1000="T1 (PZQ+ALB/MBD)",COUNTRY_INFO!$U$9:$U$1000="T1 (PZQ+ALB/MBD)"), "T1 (PZQ+ALB/MBD)", " ") ->  | K52: 0 | O52: 0 | U52: =COUNTRY_INFO!F52 -> 79402
A53: =IF(COUNTRY_INFO!A53=0," ",COUNTRY_INFO!A53) -> Burundi | B53: =IF(COUNTRY_INFO!B53=0," ",COUNTRY_INFO!B53) -> Rutana | C53: =IF(COUNTRY_INFO!C53=0," ",COUNTRY_INFO!C53) -> Rutana | D53: =IF(OR(COUNTRY_INFO!$T$9:$T$1000="T1 (PZQ+ALB/MBD)",COUNTRY_INFO!$U$9:$U$1000="T1 (PZQ+ALB/MBD)"), "T1 (PZQ+ALB/MBD)", " ") ->  | K53: 0 | O53: 0 | U53: =COUNTRY_INFO!F53 -> 70911
A54: =IF(COUNTRY_INFO!A54=0," ",COUNTRY_INFO!A54) -> Burundi | B54: =IF(COUNTRY_INFO!B54=0," ",COUNTRY_INFO!B54) -> Ruyigi | C54: =IF(COUNTRY_INFO!C54=0," ",COUNTRY_INFO!C54) -> Butezi | D54: =IF(OR(COUNTRY_INFO!$T$9:$T$1000="T1 (PZQ+ALB/MBD)",COUNTRY_INFO!$U$9:$U$1000="T1 (PZQ+ALB/MBD)"), "T1 (PZQ+ALB/MBD)", " ") ->  | K54: 0 | O54: 0 | U54: =COUNTRY_INFO!F54 -> 45449
A55: =IF(COUNTRY_INFO!A55=0," ",COUNTRY_INFO!A55) -> Burundi | B55: =IF(COUNTRY_INFO!B55=0," ",COUNTRY_INFO!B55) -> Gisuru | C55: =IF(COUNTRY_INFO!C55=0," ",COUNTRY_INFO!C55) -> Gisuru | D55: =IF(OR(COUNTRY_INFO!$T$9:$T$1000="T1 (PZQ+ALB/MBD)",COUNTRY_INFO!$U$9:$U$1000="T1 (PZQ+ALB/MBD)"), "T1 (PZQ+ALB/MBD)", " ") ->  | K55: 0 | O55: 0 | U55: =COUNTRY_INFO!F55 -> 46206
A56: =IF(COUNTRY_INFO!A56=0," ",COUNTRY_INFO!A56) -> Burundi | B56: =IF(COUNTRY_INFO!B56=0," ",COUNTRY_INFO!B56) -> Ruyigi | C56: =IF(COUNTRY_INFO!C56=0," ",COUNTRY_INFO!C56) -> Kinyinya | D56: =IF(OR(COUNTRY_INFO!$T$9:$T$1000="T1 (PZQ+ALB/MBD)",COUNTRY_INFO!$U$9:$U$1000="T1 (PZQ+ALB/MBD)"), "T1 (PZQ+ALB/MBD)", " ") ->  | K56: 0 | O56: 0 | U56: =COUNTRY_INFO!F56 -> 46914
A57: =IF(COUNTRY_INFO!A57=0," ",COUNTRY_INFO!A57) -> Burundi | B57: =IF(COUNTRY_INFO!B57=0," ",COUNTRY_INFO!B57) -> Ruyigi | C57: =IF(COUNTRY_INFO!C57=0," ",COUNTRY_INFO!C57) -> Ruyigi | D57: =IF(OR(COUNTRY_INFO!$T$9:$T$1000="T1 (PZQ+ALB/MBD)",COUNTRY_INFO!$U$9:$U$1000="T1 (PZQ+ALB/MBD)"), "T1 (PZQ+ALB/MBD)", " ") ->  | K57: 0 | O57: 0

Sheet T2
A1: T 2 - Praziquantel (PZQ)
A2: Structure administrative, population nécessitant une chimioprévention par groupe d'âge, population traitée par groupe d'âge et couverture
A4: TOTAL | F4: =SUM(F$9:F$1000) -> 0 | G4: 1593845 | H4: 0 | I4: 1593845 | J4: 0 | K4: 1681868 | L4: 0 | M4: 1681868 | N4: =IF(F4<>0, IF(J4/F4*100=0, "-", J4/F4*100), " ") ->  | O4: =IF(G4<>0, IF(K4/G4*100=0, "-", K4/G4*100), " ") -> 105.5226826 | P4: =IF(H4<>0, IF(L4/H4*100=0, "-", L4/H4*100), " ") ->  | Q4: =IF(I4<>0, IF(M4/I4*100=0, "-", M4/I4*100), " ") -> 105.5226826
A6: Structure administrative du pays | D6: Mise en oeuvre de la CP | E6: Date | F6: Population ciblée pour T2 | J6: Population traitée | N6: Couverture du Programme (%)
A7: Pays | B7: Région/Département | C7: District | F7: EAPréS | G7: EAS | H7: Adultes | I7: Total | J7: EAPréS | K7: EAS | L7: Adultes | M7: Total | N7: EAPréS | O7: EAS | P7: Adultes | Q7: Total
A9: =IF(COUNTRY_INFO!A9=0," ",COUNTRY_INFO!A9) -> Burundi | B9: =IF(COUNTRY_INFO!B9=0," ",COUNTRY_INFO!B9) -> Bubanza | C9: =IF(COUNTRY_INFO!C9=0," ",COUNTRY_INFO!C9) -> Bubanza | D9: =IF(OR(COUNTRY_INFO!$T$9:$T$1000="T2 (PZQ)",COUNTRY_INFO!$U$9:$U$1000="T2 (PZQ)"), "T2 (PZQ)", " ") -> T2 (PZQ) | E9: 2022-01-22 | G9: 65967 | I9: =SUM(F9:H9) -> 65967 | K9: 76260 | M9: =SUM(J9:L9) -> 76260 | N9: =IF(F9<>0, IF(J9/F9*100=0, "-", J9/F9*100), " ") ->  | O9: 115.6032562 | Q9: 115.6032562
A10: =IF(COUNTRY_INFO!A10=0," ",COUNTRY_INFO!A10) -> Burundi | B10: =IF(COUNTRY_INFO!B10=0," ",COUNTRY_INFO!B10) -> Bubanza | C10: =IF(COUNTRY_INFO!C10=0," ",COUNTRY_INFO!C10) -> Mpanda | D10: =IF(OR(COUNTRY_INFO!$T$9:$T$1000="T2 (PZQ)",COUNTRY_INFO!$U$9:$U$1000="T2 (PZQ)"), "T2 (PZQ)", " ") -> T2 (PZQ) | E10: 2022-01-22 | G10: 62735 | I10: =SUM(F10:H10) -> 62735 | K10: 80988 | M10: =SUM(J10:L10) -> 80988 | N10: =IF(F10<>0, IF(J10/F10*100=0, "-", J10/F10*100), " ") ->  | O10: =IF(G10<>0, IF(K10/G10*100=0, "-", K10/G10*100), " ") -> 129.0954013 | P10: =IF(H10<>0, IF(L10/H10*100=0, "-", L10/H10*100), " ") ->  | Q10: =IF(I10<>0, IF(M10/I10*100=0, "-", M10/I10*100), " ") -> 129.0954013
A11: =IF(COUNTRY_INFO!A11=0," ",COUNTRY_INFO!A11) -> Burundi | B11: =IF(COUNTRY_INFO!B11=0," ",COUNTRY_INFO!B11) -> Bujumbura Mairie | C11: =IF(COUNTRY_INFO!C11=0," ",COUNTRY_INFO!C11) -> Zone Centre | D11: =IF(OR(COUNTRY_INFO!$T$9:$T$1000="T2 (PZQ)",COUNTRY_INFO!$U$9:$U$1000="T2 (PZQ)"), "T2 (PZQ)", " ") ->  | I11: 0 | M11: 0
A12: =IF(COUNTRY_INFO!A12=0," ",COUNTRY_INFO!A12) -> Burundi | B12: =IF(COUNTRY_INFO!B12=0," ",COUNTRY_INFO!B12) -> Bujumbura Mairie | C12: =IF(COUNTRY_INFO!C12=0," ",COUNTRY_INFO!C12) -> Zone Nord | D12: =IF(OR(COUNTRY_INFO!$T$9:$T$1000="T2 (PZQ)",COUNTRY_INFO!$U$9:$U$1000="T2 (PZQ)"), "T2 (PZQ)", " ") -> T2 (PZQ) | E12: 2022-01-22 | G12: 81940 | I12: 81940 | K12: 79655 | M12: 79655 | O12: 97.21137418 | Q12: 97.21137418
A13: =IF(COUNTRY_INFO!A13=0," ",COUNTRY_INFO!A13) -> Burundi | B13: =IF(COUNTRY_INFO!B13=0," ",COUNTRY_INFO!B13) -> Bujumbura Mairie | C13: =IF(COUNTRY_INFO!C13=0," ",COUNTRY_INFO!C13) -> Zone Sud | D13: =IF(OR(COUNTRY_INFO!$T$9:$T$1000="T2 (PZQ)",COUNTRY_INFO!$U$9:$U$1000="T2 (PZQ)"), "T2 (PZQ)", " ") ->  | I13: 0 | M13: 0
A14: =IF(COUNTRY_INFO!A14=0," ",COUNTRY_INFO!A14) -> Burundi | B14: =IF(COUNTRY_INFO!B14=0," ",COUNTRY_INFO!B14) -> Bujumbura Rural | C14: =IF(COUNTRY_INFO!C14=0," ",COUNTRY_INFO!C14) -> Isare | D14: =IF(OR(COUNTRY_INFO!$T$9:$T$1000="T2 (PZQ)",COUNTRY_INFO!$U$9:$U$1000="T2 (PZQ)"), "T2 (PZQ)", " ") -> T2 (PZQ) | E14: 2022-01-22 | G14: 79383 | I14: 79383 | K14: 76639 | M14: 76639 | O14: 96.54334051 | Q14: 96.54334051
A15: =IF(COUNTRY_INFO!A15=0," ",COUNTRY_INFO!A15) -> Burundi | B15: =IF(COUNTRY_INFO!B15=0," ",COUNTRY_INFO!B15) -> Bujumbura Rural | C15: =IF(COUNTRY_INFO!C15=0," ",COUNTRY_INFO!C15) -> Kabezi | D15: =IF(OR(COUNTRY_INFO!$T$9:$T$1000="T2 (PZQ)",COUNTRY_INFO!$U$9:$U$1000="T2 (PZQ)"), "T2 (PZQ)", " ") -> T2 (PZQ) | E15: 2022-01-22 | G15: 102354 | I15: 102354 | K15: 82643 | M15: 82643 | O15: 80.74232565 | Q15: 80.74232565
A16: =IF(COUNTRY_INFO!A16=0," ",COUNTRY_INFO!A16) -> Burundi | B16: =IF(COUNTRY_INFO!B16=0," ",COUNTRY_INFO!B16) -> Bujumbura Rural | C16: =IF(COUNTRY_INFO!C16=0," ",COUNTRY_INFO!C16) -> Rwibaga | D16: =IF(OR(COUNTRY_INFO!$T$9:$T$1000="T2 (PZQ)",COUNTRY_INFO!$U$9:$U$1000="T2 (PZQ)"), "T2 (PZQ)", " ") ->  | I16: 0 | M16: 0
A17: =IF(COUNTRY_INFO!A17=0," ",COUNTRY_INFO!A17) -> Burundi | B17: =IF(COUNTRY_INFO!B17=0," ",COUNTRY_INFO!B17) -> Bururi | C17: =IF(COUNTRY_INFO!C17=0," ",COUNTRY_INFO!C17) -> Bururi | D17: =IF(OR(COUNTRY_INFO!$T$9:$T$1000="T2 (PZQ)",COUNTRY_INFO!$U$9:$U$1000="T2 (PZQ)"), "T2 (PZQ)", " ") ->  | I17: 0 | M17: 0
A18: =IF(COUNTRY_INFO!A18=0," ",COUNTRY_INFO!A18) -> Burundi | B18: =IF(COUNTRY_INFO!B18=0," ",COUNTRY_INFO!B18) -> Bururi | C18: =IF(COUNTRY_INFO!C18=0," ",COUNTRY_INFO!C18) -> Matana | D18: =IF(OR(COUNTRY_INFO!$T$9:$T$1000="T2 (PZQ)",COUNTRY_INFO!$U$9:$U$1000="T2 (PZQ)"), "T2 (PZQ)", " ") ->  | I18: 0 | M18: 0
A19: =IF(COUNTRY_INFO!A19=0," ",COUNTRY_INFO!A19) -> Burundi | B19: =IF(COUNTRY_INFO!B19=0," ",COUNTRY_INFO!B19) -> Bururi | C19: =IF(COUNTRY_INFO!C19=0," ",COUNTRY_INFO!C19) -> Rutovu | D19: =IF(OR(COUNTRY_INFO!$T$9:$T$1000="T2 (PZQ)",COUNTRY_INFO!$U$9:$U$1000="T2 (PZQ)"), "T2 (PZQ)", " ") ->  | I19: 0 | M19: 0
A20: =IF(COUNTRY_INFO!A20=0," ",COUNTRY_INFO!A20) -> Burundi | B20: =IF(COUNTRY_INFO!B20=0," ",COUNTRY_INFO!B20) -> Cankuzo | C20: =IF(COUNTRY_INFO!C20=0," ",COUNTRY_INFO!C20) -> Cankuzo | D20: =IF(OR(COUNTRY_INFO!$T$9:$T$1000="T2 (PZQ)",COUNTRY_INFO!$U$9:$U$1000="T2 (PZQ)"), "T2 (PZQ)", " ") ->  | I20: 0 | M20: 0
A21: =IF(COUNTRY_INFO!A21=0," ",COUNTRY_INFO!A21) -> Burundi | B21: =IF(COUNTRY_INFO!B21=0," ",COUNTRY_INFO!B21) -> Cankuzo | C21: =IF(COUNTRY_INFO!C21=0," ",COUNTRY_INFO!C21) -> Murore | D21: =IF(OR(COUNTRY_INFO!$T$9:$T$1000="T2 (PZQ)",COUNTRY_INFO!$U$9:$U$1000="T2 (PZQ)"), "T2 (PZQ)", " ") -> T2 (PZQ) | E21: 2022-01-22 | G21: 48843 | I21: 48843 | K21: 51685 | M21: 51685 | O21: 105.8186434 | Q21: 105.8186434
A22: =IF(COUNTRY_INFO!A22=0," ",COUNTRY_INFO!A22) -> Burundi | B22: =IF(COUNTRY_INFO!B22=0," ",COUNTRY_INFO!B22) -> Cibitoke | C22: =IF(COUNTRY_INFO!C22=0," ",COUNTRY_INFO!C22) -> Bukinanyana | D22: =IF(OR(COUNTRY_INFO!$T$9:$T$1000="T2 (PZQ)",COUNTRY_INFO!$U$9:$U$1000="T2 (PZQ)"), "T2 (PZQ)", " ") -> T2 (PZQ) | E22: 2022-01-22 | G22: 70007 | I22: 70007 | K22: 72594 | M22: 72594 | O22: 103.6953448 | Q22: 103.6953448
A23: =IF(COUNTRY_INFO!A23=0," ",COUNTRY_INFO!A23) -> Burundi | B23: =IF(COUNTRY_INFO!B23=0," ",COUNTRY_INFO!B23) -> Cibitoke | C23: =IF(COUNTRY_INFO!C23=0," ",COUNTRY_INFO!C23) -> Cibitoke | D23: =IF(OR(COUNTRY_INFO!$T$9:$T$1000="T2 (PZQ)",COUNTRY_INFO!$U$9:$U$1000="T2 (PZQ)"), "T2 (PZQ)", " ") -> T2 (PZQ) | E23: 2022-01-22 | G23: 58729 | I23: 58729 | K23: 83809 | M23: 83809 | O23: 142.7046263 | Q23: 142.7046263
A24: =IF(COUNTRY_INFO!A24=0," ",COUNTRY_INFO!A24) -> Burundi | B24: =IF(COUNTRY_INFO!B24=0," ",COUNTRY_INFO!B24) -> Cibitoke | C24: =IF(COUNTRY_INFO!C24=0," ",COUNTRY_INFO!C24) -> Mabayi | D24: =IF(OR(COUNTRY_INFO!$T$9:$T$1000="T2 (PZQ)",COUNTRY_INFO!$U$9:$U$1000="T2 (PZQ)"), "T2 (PZQ)", " ") -> T2 (PZQ) | E24: 2022-01-22 | G24: 68604 | I24: 68604 | K24: 71213 | M24: 71213 | O24: 103.8029852 | Q24: 103.8029852
A25: =IF(COUNTRY_INFO!A25=0," ",COUNTRY_INFO!A25) -> Burundi | B25: =IF(COUNTRY_INFO!B25=0," ",COUNTRY_INFO!B25) -> Gitega | C25: =IF(COUNTRY_INFO!C25=0," ",COUNTRY_INFO!C25) -> Gitega | D25: =IF(OR(COUNTRY_INFO!$T$9:$T$1000="T2 (PZQ)",COUNTRY_INFO!$U$9:$U$1000="T2 (PZQ)"), "T2 (PZQ)", " ") ->  | I25: 0 | M25: 0
A26: =IF(COUNTRY_INFO!A26=0," ",COUNTRY_INFO!A26) -> Burundi | B26: =IF(COUNTRY_INFO!B26=0," ",COUNTRY_INFO!B26) -> Gitega | C26: =IF(COUNTRY_INFO!C26=0," ",COUNTRY_INFO!C26) -> Kibuye | D26: =IF(OR(COUNTRY_INFO!$T$9:$T$1000="T2 (PZQ)",COUNTRY_INFO!$U$9:$U$1000="T2 (PZQ)"), "T2 (PZQ)", " ") ->  | I26: 0 | M26: 0
A27: =IF(COUNTRY_INFO!A27=0," ",COUNTRY_INFO!A27) -> Burundi | B27: =IF(COUNTRY_INFO!B27=0," ",COUNTRY_INFO!B27) -> Gitega | C27: =IF(COUNTRY_INFO!C27=0," ",COUNTRY_INFO!C27) -> Mutaho | D27: =IF(OR(COUNTRY_INFO!$T$9:$T$1000="T2 (PZQ)",COUNTRY_INFO!$U$9:$U$1000="T2 (PZQ)"), "T2 (PZQ)", " ") ->  | I27: 0 | M27: 0
A28: =IF(COUNTRY_INFO!A28=0," ",COUNTRY_INFO!A28) -> Burundi | B28: =IF(COUNTRY_INFO!B28=0," ",COUNTRY_INFO!B28) -> Gitega | C28: =IF(COUNTRY_INFO!C28=0," ",COUNTRY_INFO!C28) -> Ryansoro | D28: =IF(OR(COUNTRY_INFO!$T$9:$T$1000="T2 (PZQ)",COUNTRY_INFO!$U$9:$U$1000="T2 (PZQ)"), "T2 (PZQ)", " ") ->  | I28: 0 | M28: 0
A29: =IF(COUNTRY_INFO!A29=0," ",COUNTRY_INFO!A29) -> Burundi | B29: =IF(COUNTRY_INFO!B29=0," ",COUNTRY_INFO!B29) -> Karusi | C29: =IF(COUNTRY_INFO!C29=0," ",COUNTRY_INFO!C29) -> Buhiga | D29: =IF(OR(COUNTRY_INFO!$T$9:$T$1000="T2 (PZQ)",COUNTRY_INFO!$U$9:$U$1000="T2 (PZQ)"), "T2 (PZQ)", " ") ->  | I29: 0 | M29: 0
A30: =IF(COUNTRY_INFO!A30=0," ",COUNTRY_INFO!A30) -> Burundi | B30: =IF(COUNTRY_INFO!B30=0," ",COUNTRY_INFO!B30) -> Karusi | C30: =IF(COUNTRY_INFO!C30=0," ",COUNTRY_INFO!C30) -> Nyabikere | D30: =IF(OR(COUNTRY_INFO!$T$9:$T$1000="T2 (PZQ)",COUNTRY_INFO!$U$9:$U$1000="T2 (PZQ)"), "T2 (PZQ)", " ") ->  | I30: 0 | M30: 0
A31: =IF(COUNTRY_INFO!A31=0," ",COUNTRY_INFO!A31) -> Burundi | B31: =IF(COUNTRY_INFO!B31=0," ",COUNTRY_INFO!B31) -> Kayanza | C31: =IF(COUNTRY_INFO!C31=0," ",COUNTRY_INFO!C31) -> Gahombo | D31: =IF(OR(COUNTRY_INFO!$T$9:$T$1000="T2 (PZQ)",COUNTRY_INFO!$U$9:$U$1000="T2 (PZQ)"), "T2 (PZQ)", " ") ->  | I31: 0 | M31: 0
A32: =IF(COUNTRY_INFO!A32=0," ",COUNTRY_INFO!A32) -> Burundi | B32: =IF(COUNTRY_INFO!B32=0," ",COUNTRY_INFO!B32) -> Kayanza | C32: =IF(COUNTRY_INFO!C32=0," ",COUNTRY_INFO!C32) -> Kayanza | D32: =IF(OR(COUNTRY_INFO!$T$9:$T$1000="T2 (PZQ)",COUNTRY_INFO!$U$9:$U$1000="T2 (PZQ)"), "T2 (PZQ)", " ") ->  | I32: 0 | M32: 0
A33: =IF(COUNTRY_INFO!A33=0," ",COUNTRY_INFO!A33) -> Burundi | B33: =IF(COUNTRY_INFO!B33=0," ",COUNTRY_INFO!B33) -> Kayanza | C33: =IF(COUNTRY_INFO!C33=0," ",COUNTRY_INFO!C33) -> Musema | D33: =IF(OR(COUNTRY_INFO!$T$9:$T$1000="T2 (PZQ)",COUNTRY_INFO!$U$9:$U$1000="T2 (PZQ)"), "T2 (PZQ)", " ") ->  | I33: 0 | M33: 0
A34: =IF(COUNTRY_INFO!A34=0," ",COUNTRY_INFO!A34) -> Burundi | B34: =IF(COUNTRY_INFO!B34=0," ",COUNTRY_INFO!B34) -> Kirundo | C34: =IF(COUNTRY_INFO!C34=0," ",COUNTRY_INFO!C34) -> Busoni | D34: =IF(OR(COUNTRY_INFO!$T$9:$T$1000="T2 (PZQ)",COUNTRY_INFO!$U$9:$U$1000="T2 (PZQ)"), "T2 (PZQ)", " ") -> T2 (PZQ) | E34: 2022-01-22 | G34: 64168 | I34: 64168 | K34: 59141 | M34: 59141 | O34: 92.16587707 | Q34: 92.16587707
A35: =IF(COUNTRY_INFO!A35=0," ",COUNTRY_INFO!A35) -> Burundi | B35: =IF(COUNTRY_INFO!B35=0," ",COUNTRY_INFO!B35) -> Kirundo | C35: =IF(COUNTRY_INFO!C35=0," ",COUNTRY_INFO!C35) -> Kirundo | D35: =IF(OR(COUNTRY_INFO!$T$9:$T$1000="T2 (PZQ)",COUNTRY_INFO!$U$9:$U$1000="T2 (PZQ)"), "T2 (PZQ)", " ") -> T2 (PZQ) | E35: 2022-01-22 | G35: 78712 | I35: 78712 | K35: 69185 | M35: 69185 | O35: 87.89638175 | Q35: 87.89638175
A36: =IF(COUNTRY_INFO!A36=0," ",COUNTRY_INFO!A36) -> Burundi | B36: =IF(COUNTRY_INFO!B36=0," ",COUNTRY_INFO!B36) -> Kirundo | C36: =IF(COUNTRY_INFO!C36=0," ",COUNTRY_INFO!C36) -> Mukenke | D36: =IF(OR(COUNTRY_INFO!$T$9:$T$1000="T2 (PZQ)",COUNTRY_INFO!$U$9:$U$1000="T2 (PZQ)"), "T2 (PZQ)", " ") -> T2 (PZQ) | E36: 2022-01-22 | G36: 51160 | I36: 51160 | K36: 44419 | M36: 44419 | O36: 86.82369038 | Q36: 86.82369038
A37: =IF(COUNTRY_INFO!A37=0," ",COUNTRY_INFO!A37) -> Burundi | B37: =IF(COUNTRY_INFO!B37=0," ",COUNTRY_INFO!B37) -> Kirundo | C37: =IF(COUNTRY_INFO!C37=0," ",COUNTRY_INFO!C37) -> Vumbi | D37: =IF(OR(COUNTRY_INFO!$T$9:$T$1000="T2 (PZQ)",COUNTRY_INFO!$U$9:$U$1000="T2 (PZQ)"), "T2 (PZQ)", " ") -> T2 (PZQ) | E37: 2022-01-22 | G37: 72552 | I37: 72552 | K37: 76303 | M37: 76303 | O37: 105.1700849 | Q37: 105.1700849
A38: =IF(COUNTRY_INFO!A38=0," ",COUNTRY_INFO!A38) -> Burundi | B38: =IF(COUNTRY_INFO!B38=0," ",COUNTRY_INFO!B38) -> Makamba | C38: =IF(COUNTRY_INFO!C38=0," ",COUNTRY_INFO!C38) -> Makamba | D38: =IF(OR(COUNTRY_INFO!$T$9:$T$1000="T2 (PZQ)",COUNTRY_INFO!$U$9:$U$1000="T2 (PZQ)"), "T2 (PZQ)", " ") -> T2 (PZQ) | E38: 2022-01-22 | G38: 102933 | I38: 102933 | K38: 100942 | M38: 100942 | O38: 98.06573208 | Q38: 98.06573208
A39: =IF(COUNTRY_INFO!A39=0," ",COUNTRY_INFO!A39) -> Burundi | B39: =IF(COUNTRY_INFO!B39=0," ",COUNTRY_INFO!B39) -> Makamba | C39: =IF(COUNTRY_INFO!C39=0," ",COUNTRY_INFO!C39) -> Nyanza-Lac | D39: =IF(OR(COUNTRY_INFO!$T$9:$T$1000="T2 (PZQ)",COUNTRY_INFO!$U$9:$U$1000="T2 (PZQ)"), "T2 (PZQ)", " ") -> T2 (PZQ) | E39: 2022-01-22 | G39: 90776 | I39: 90776 | K39: 103594 | M39: 103594 | O39: 114.1204724 | Q39: 114.1204724
A40: =IF(COUNTRY_INFO!A40=0," ",COUNTRY_INFO!A40) -> Burundi | B40: =IF(COUNTRY_INFO!B40=0," ",COUNTRY_INFO!B40) -> Muramvya | C40: =IF(COUNTRY_INFO!C40=0," ",COUNTRY_INFO!C40) -> Kiganda | D40: =IF(OR(COUNTRY_INFO!$T$9:$T$1000="T2 (PZQ)",COUNTRY_INFO!$U$9:$U$1000="T2 (PZQ)"), "T2 (PZQ)", " ") ->  | I40: 0 | M40: 0
A41: =IF(COUNTRY_INFO!A41=0," ",COUNTRY_INFO!A41) -> Burundi | B41: =IF(COUNTRY_INFO!B41=0," ",COUNTRY_INFO!B41) -> Muramvya | C41: =IF(COUNTRY_INFO!C41=0," ",COUNTRY_INFO!C41) -> Muramvya | D41: =IF(OR(COUNTRY_INFO!$T$9:$T$1000="T2 (PZQ)",COUNTRY_INFO!$U$9:$U$1000="T2 (PZQ)"), "T2 (PZQ)", " ") ->  | I41: 0 | M41: 0
A42: =IF(COUNTRY_INFO!A42=0," ",COUNTRY_INFO!A42) -> Burundi | B42: =IF(COUNTRY_INFO!B42=0," ",COUNTRY_INFO!B42) -> Muyinga | C42: =IF(COUNTRY_INFO!C42=0," ",COUNTRY_INFO!C42) -> Gashoho | D42: =IF(OR(COUNTRY_INFO!$T$9:$T$1000="T2 (PZQ)",COUNTRY_INFO!$U$9:$U$1000="T2 (PZQ)"), "T2 (PZQ)", " ") ->  | I42: 0 | M42: 0
A43: =IF(COUNTRY_INFO!A43=0," ",COUNTRY_INFO!A43) -> Burundi | B43: =IF(COUNTRY_INFO!B43=0," ",COUNTRY_INFO!B43) -> Muyinga | C43: =IF(COUNTRY_INFO!C43=0," ",COUNTRY_INFO!C43) -> Giteranyi | D43: =IF(OR(COUNTRY_INFO!$T$9:$T$1000="T2 (PZQ)",COUNTRY_INFO!$U$9:$U$1000="T2 (PZQ)"), "T2 (PZQ)", " ") ->  | I43: 0 | M43: 0
A44: =IF(COUNTRY_INFO!A44=0," ",COUNTRY_INFO!A44) -> Burundi | B44: =IF(COUNTRY_INFO!B44=0," ",COUNTRY_INFO!B44) -> Muyinga | C44: =IF(COUNTRY_INFO!C44=0," ",COUNTRY_INFO!C44) -> Muyinga | D44: =IF(OR(COUNTRY_INFO!$T$9:$T$1000="T2 (PZQ)",COUNTRY_INFO!$U$9:$U$1000="T2 (PZQ)"), "T2 (PZQ)", " ") -> T2 (PZQ) | E44: 2022-01-22 | G44: 101297 | I44: 101297 | K44: 107717 | M44: 107717 | O44: 106.3377988 | Q44: 106.3377988
A45: =IF(COUNTRY_INFO!A45=0," ",COUNTRY_INFO!A45) -> Burundi | B45: =IF(COUNTRY_INFO!B45=0," ",COUNTRY_INFO!B45) -> Mwaro | C45: =IF(COUNTRY_INFO!C45=0," ",COUNTRY_INFO!C45) -> Fota | D45: =IF(OR(COUNTRY_INFO!$T$9:$T$1000="T2 (PZQ)",COUNTRY_INFO!$U$9:$U$1000="T2 (PZQ)"), "T2 (PZQ)", " ") ->  | I45: 0 | M45: 0
A46: =IF(COUNTRY_INFO!A46=0," ",COUNTRY_INFO!A46) -> Burundi | B46: =IF(COUNTRY_INFO!B46=0," ",COUNTRY_INFO!B46) -> Mwaro | C46: =IF(COUNTRY_INFO!C46=0," ",COUNTRY_INFO!C46) -> Kibumbu | D46: =IF(OR(COUNTRY_INFO!$T$9:$T$1000="T2 (PZQ)",COUNTRY_INFO!$U$9:$U$1000="T2 (PZQ)"), "T2 (PZQ)", " ") ->  | I46: 0 | M46: 0
A47: =IF(COUNTRY_INFO!A47=0," ",COUNTRY_INFO!A47) -> Burundi | B47: =IF(COUNTRY_INFO!B47=0," ",COUNTRY_INFO!B47) -> Ngozi | C47: =IF(COUNTRY_INFO!C47=0," ",COUNTRY_INFO!C47) -> Buye | D47: =IF(OR(COUNTRY_INFO!$T$9:$T$1000="T2 (PZQ)",COUNTRY_INFO!$U$9:$U$1000="T2 (PZQ)"), "T2 (PZQ)", " ") ->  | I47: 0 | M47: 0
A48: =IF(COUNTRY_INFO!A48=0," ",COUNTRY_INFO!A48) -> Burundi | B48: =IF(COUNTRY_INFO!B48=0," ",COUNTRY_INFO!B48) -> Ngozi | C48: =IF(COUNTRY_INFO!C48=0," ",COUNTRY_INFO!C48) -> Kiremba | D48: =IF(OR(COUNTRY_INFO!$T$9:$T$1000="T2 (PZQ)",COUNTRY_INFO!$U$9:$U$1000="T2 (PZQ)"), "T2 (PZQ)", " ") ->  | I48: 0 | M48: 0
A49: =IF(COUNTRY_INFO!A49=0," ",COUNTRY_INFO!A49) -> Burundi | B49: =IF(COUNTRY_INFO!B49=0," ",COUNTRY_INFO!B49) -> Ngozi | C49: =IF(COUNTRY_INFO!C49=0," ",COUNTRY_INFO!C49) -> Ngozi | D49: =IF(OR(COUNTRY_INFO!$T$9:$T$1000="T2 (PZQ)",COUNTRY_INFO!$U$9:$U$1000="T2 (PZQ)"), "T2 (PZQ)", " ") ->  | I49: 0 | M49: 0
A50: =IF(COUNTRY_INFO!A50=0," ",COUNTRY_INFO!A50) -> Burundi | B50: =IF(COUNTRY_INFO!B50=0," ",COUNTRY_INFO!B50) -> Rumonge | C50: =IF(COUNTRY_INFO!C50=0," ",COUNTRY_INFO!C50) -> Bugarama | D50: =IF(OR(COUNTRY_INFO!$T$9:$T$1000="T2 (PZQ)",COUNTRY_INFO!$U$9:$U$1000="T2 (PZQ)"), "T2 (PZQ)", " ") -> T2 (PZQ) | E50: 2022-01-22 | G50: 40045 | I50: 40045 | K50: 66623 | M50: 66623 | O50: 166.3703334 | Q50: 166.3703334
A51: =IF(COUNTRY_INFO!A51=0," ",COUNTRY_INFO!A51) -> Burundi | B51: =IF(COUNTRY_INFO!B51=0," ",COUNTRY_INFO!B51) -> Rumonge | C51: =IF(COUNTRY_INFO!C51=0," ",COUNTRY_INFO!C51) -> Rumonge | D51: =IF(OR(COUNTRY_INFO!$T$9:$T$1000="T2 (PZQ)",COUNTRY_INFO!$U$9:$U$1000="T2 (PZQ)"), "T2 (PZQ)", " ") -> T2 (PZQ) | E51: 2022-01-22 | G51: 110964 | I51: 110964 | K51: 98458 | M51: 98458 | O51: 88.72967809 | Q51: 88.72967809
A52: =IF(COUNTRY_INFO!A52=0," ",COUNTRY_INFO!A52) -> Burundi | B52: =IF(COUNTRY_INFO!B52=0," ",COUNTRY_INFO!B52) -> Rutana | C52: =IF(COUNTRY_INFO!C52=0," ",COUNTRY_INFO!C52) -> Gihofi | D52: =IF(OR(COUNTRY_INFO!$T$9:$T$1000="T2 (PZQ)",COUNTRY_INFO!$U$9:$U$1000="T2 (PZQ)"), "T2 (PZQ)", " ") -> T2 (PZQ) | E52: 2022-01-22 | G52: 79402 | I52: 79402 | K52: 81803 | M52: 81803 | O52: 103.0238533 | Q52: 103.0238533
A53: =IF(COUNTRY_INFO!A53=0," ",COUNTRY_INFO!A53) -> Burundi | B53: =IF(COUNTRY_INFO!B53=0," ",COUNTRY_INFO!B53) -> Rutana | C53: =IF(COUNTRY_INFO!C53=0," ",COUNTRY_INFO!C53) -> Rutana | D53: =IF(OR(COUNTRY_INFO!$T$9:$T$1000="T2 (PZQ)",COUNTRY_INFO!$U$9:$U$1000="T2 (PZQ)"), "T2 (PZQ)", " ") -> T2 (PZQ) | E53: 2022-01-22 | G53: 70911 | I53: 70911 | K53: 65937 | M53: 65937 | O53: 92.98557347 | Q53: 92.98557347
A54: =IF(COUNTRY_INFO!A54=0," ",COUNTRY_INFO!A54) -> Burundi | B54: =IF(COUNTRY_INFO!B54=0," ",COUNTRY_INFO!B54) -> Ruyigi | C54: =IF(COUNTRY_INFO!C54=0," ",COUNTRY_INFO!C54) -> Butezi | D54: =IF(OR(COUNTRY_INFO!$T$9:$T$1000="T2 (PZQ)",COUNTRY_INFO!$U$9:$U$1000="T2 (PZQ)"), "T2 (PZQ)", " ") -> T2 (PZQ) | E54: 2022-01-22 | G54: 45449 | I54: 45449 | K54: 49204 | M54: 49204 | O54: 108.262008 | Q54: 108.262008
A55: =IF(COUNTRY_INFO!A55=0," ",COUNTRY_INFO!A55) -> Burundi | B55: =IF(COUNTRY_INFO!B55=0," ",COUNTRY_INFO!B55) -> Gisuru | C55: =IF(COUNTRY_INFO!C55=0," ",COUNTRY_INFO!C55) -> Gisuru | D55: =IF(OR(COUNTRY_INFO!$T$9:$T$1000="T2 (PZQ)",COUNTRY_INFO!$U$9:$U$1000="T2 (PZQ)"), "T2 (PZQ)", " ") ->  | I55: 0 | M55: 0
A56: =IF(COUNTRY_INFO!A56=0," ",COUNTRY_INFO!A56) -> Burundi | B56: =IF(COUNTRY_INFO!B56=0," ",COUNTRY_INFO!B56) -> Ruyigi | C56: =IF(COUNTRY_INFO!C56=0," ",COUNTRY_INFO!C56) -> Kinyinya | D56: =IF(OR(COUNTRY_INFO!$T$9:$T$1000="T2 (PZQ)",COUNTRY_INFO!$U$9:$U$1000="T2 (PZQ)"), "T2 (PZQ)", " ") -> T2 (PZQ) | E56: 2022-01-22 | G56: 46914 | I56: 46914 | K56: 83056 | M56: 83056 | O56: 177.038837 | Q56: 177.038837 | R56: =COUNTRY_INFO!F56 -> 46914
A57: =IF(COUNTRY_INFO!A57=0," ",COUNTRY_INFO!A57) -> Burundi | B57: =IF(COUNTRY_INFO!B57=0," ",COUNTRY_INFO!B57) -> Ruyigi | C57: =IF(COUNTRY_INFO!C57=0," ",COUNTRY_INFO!C57) -> Ruyigi | D57: =IF(OR(COUNTRY_INFO!$T$9:$T$1000="T2 (PZQ)",COUNTRY_INFO!$U$9:$U$1000="T2 (PZQ)"), "T2 (PZQ)", " ") ->  | I57: 0 | M57: 0

Sheet T3_R1
A1: T 3 - Albendazole (ALB) ou Mebendazole (MBD) - Tournée 1
A2: Structure administrative, population nécessitant une chimioprévention par groupe d'âge, population traitée par groupe d'âge et couverture
A4: TOTAL | G4: =SUM(G$9:G$1000) -> 1391202 | H4: 3414134 | I4: 314364.225 | J4: 5119700.225 | K4: 1453682 | L4: 3660847 | M4: 294779 | N4: 5409308 | O4: =IF(G4<>0, IF(K4/G4*100=0, "-", K4/G4*100), " ") -> 104.4910804 | P4: =IF(H4<>0, IF(L4/H4*100=0, "-", L4/H4*100), " ") -> 107.2262249 | Q4: =IF(I4<>0, IF(M4/I4*100=0, "-", M4/I4*100), " ") -> 93.76989382 | R4: =IF(J4<>0, IF(N4/J4*100=0, "-", N4/J4*100), " ") -> 105.6567331
A6: Structure administrative du pays | D6: Mise en oeuvre de la CP | E6: Médica-ment | F6: Date | G6: Population ciblée pour T3 | K6: Population traitée | O6: Couverture du Programme (%)
A7: Pays | B7: Région/Département | C7: District | G7: EAPréS | H7: EAS | I7: Adultes | J7: Total | K7: EAPréS | L7: EAS | M7: Adultes | N7: Total | O7: EAPréS | P7: EAS | Q7: Adultes | R7: Total
A9: =IF(COUNTRY_INFO!A9=0," ",COUNTRY_INFO!A9) -> Burundi | B9: =IF(COUNTRY_INFO!B9=0," ",COUNTRY_INFO!B9) -> Bubanza | C9: =IF(COUNTRY_INFO!C9=0," ",COUNTRY_INFO!C9) -> Bubanza | D9: =IF(OR(COUNTRY_INFO!$T$9:$T$1000="T3 (ALB/MBD)",COUNTRY_INFO!$U$9:$U$1000="T3 (ALB/MBD)"), "T3 (ALB/MBD)", " ") -> T3 (ALB/MBD) | E9: ALB | F9: 2021-06-01 | G9: 31788 | H9: 65967 | I9: 6475.175 | J9: =SUM(G9:I9) -> 104230.175 | K9: 30391 | L9: 83992 | M9: 6052 | N9: =SUM(K9:M9) -> 120435 | O9: =IF(G9<>0, IF(K9/G9*100=0, "-", K9/G9*100), " ") -> 95.60525985 | P9: 127.3242682 | Q9: 93.4646554 | R9: 115.5471532
A10: =IF(COUNTRY_INFO!A10=0," ",COUNTRY_INFO!A10) -> Burundi | B10: =IF(COUNTRY_INFO!B10=0," ",COUNTRY_INFO!B10) -> Bubanza | C10: =IF(COUNTRY_INFO!C10=0," ",COUNTRY_INFO!C10) -> Mpanda | D10: =IF(OR(COUNTRY_INFO!$T$9:$T$1000="T3 (ALB/MBD)",COUNTRY_INFO!$U$9:$U$1000="T3 (ALB/MBD)"), "T3 (ALB/MBD)", " ") -> T3 (ALB/MBD) | E10: ALB | F10: 2021-06-01 | G10: 39779 | H10: 62735 | I10: 6719.25 | J10: =SUM(G10:I10) -> 109233.25 | K10: 39902 | L10: 101851 | M10: 7515 | N10: =SUM(K10:M10) -> 149268 | O10: =IF(G10<>0, IF(K10/G10*100=0, "-", K10/G10*100), " ") -> 100.3092084 | P10: =IF(H10<>0, IF(L10/H10*100=0, "-", L10/H10*100), " ") -> 162.3511596 | Q10: =IF(I10<>0, IF(M10/I10*100=0, "-", M10/I10*100), " ") -> 111.8428396 | R10: =IF(J10<>0, IF(N10/J10*100=0, "-", N10/J10*100), " ") -> 136.6506993 | S10: =COUNTRY_INFO!E10 -> 39779 | T10: =COUNTRY_INFO!F10 -> 62735 | U10: =COUNTRY_INFO!G10 -> 148899
A11: =IF(COUNTRY_INFO!A11=0," ",COUNTRY_INFO!A11) -> Burundi | B11: =IF(COUNTRY_INFO!B11=0," ",COUNTRY_INFO!B11) -> Bujumbura Mairie | C11: =IF(COUNTRY_INFO!C11=0," ",COUNTRY_INFO!C11) -> Zone Centre | D11: =IF(OR(COUNTRY_INFO!$T$9:$T$1000="T3 (ALB/MBD)",COUNTRY_INFO!$U$9:$U$1000="T3 (ALB/MBD)"), "T3 (ALB/MBD)", " ") -> T3 (ALB/MBD) | E11: ALB | F11: 2021-06-01 | G11: 12816 | H11: 35878 | I11: 4817.4 | J11: 53511.4 | K11: 12230 | L11: 39240 | M11: 3205 | N11: 54675 | O11: 95.42759051 | P11: 109.370645 | Q11: 66.5296633 | R11: 102.1744899
A12: =IF(COUNTRY_INFO!A12=0," ",COUNTRY_INFO!A12) -> Burundi | B12: =IF(COUNTRY_INFO!B12=0," ",COUNTRY_INFO!B12) -> Bujumbura Mairie | C12: =IF(COUNTRY_INFO!C12=0," ",COUNTRY_INFO!C12) -> Zone Nord | D12: =IF(OR(COUNTRY_INFO!$T$9:$T$1000="T3 (ALB/MBD)",COUNTRY_INFO!$U$9:$U$1000="T3 (ALB/MBD)"), "T3 (ALB/MBD)", " ") -> T3 (ALB/MBD) | E12: ALB | F12: 2021-06-01 | G12: 37201 | H12: 81940 | I12: 9716.175 | J12: 128857.175 | K12: 25133 | L12: 99334 | M12: 7611 | N12: 132078 | O12: 67.56001183 | P12: 121.2277276 | Q12: 78.33329474 | R12: 102.499531
A13: =IF(COUNTRY_INFO!A13=0," ",COUNTRY_INFO!A13) -> Burundi | B13: =IF(COUNTRY_INFO!B13=0," ",COUNTRY_INFO!B13) -> Bujumbura Mairie | C13: =IF(COUNTRY_INFO!C13=0," ",COUNTRY_INFO!C13) -> Zone Sud | D13: =IF(OR(COUNTRY_INFO!$T$9:$T$1000="T3 (ALB/MBD)",COUNTRY_INFO!$U$9:$U$1000="T3 (ALB/MBD)"), "T3 (ALB/MBD)", " ") -> T3 (ALB/MBD) | E13: ALB | F13: 2021-06-01 | G13: 16825 | H13: 40689 | I13: 4872.875 | J13: 62386.875 | K13: 14483 | L13: 56086 | M13: 3626 | N13: 74195 | O13: 86.08023774 | P13: 137.840694 | Q13: 74.41192315 | R13: 118.9272583 | S13: =COUNTRY_INFO!E13 -> 16825 | T13: =COUNTRY_INFO!F13 -> 40689 | U13: =COUNTRY_INFO!G13 -> 107983
A14: =IF(COUNTRY_INFO!A14=0," ",COUNTRY_INFO!A14) -> Burundi | B14: =IF(COUNTRY_INFO!B14=0," ",COUNTRY_INFO!B14) -> Bujumbura Rural | C14: =IF(COUNTRY_INFO!C14=0," ",COUNTRY_INFO!C14) -> Isare | D14: =IF(OR(COUNTRY_INFO!$T$9:$T$1000="T3 (ALB/MBD)",COUNTRY_INFO!$U$9:$U$1000="T3 (ALB/MBD)"), "T3 (ALB/MBD)", " ") -> T3 (ALB/MBD) | E14: ALB | F14: 2021-06-01 | G14: 28663 | H14: 79383 | I14: 7414.7 | J14: 115460.7 | K14: 37672 | L14: 103273 | M14: 8303 | N14: 149248 | O14: 131.4307644 | P14: 130.0946046 | Q14: 111.9802554 | R14: 129.2630306 | S14: =COUNTRY_INFO!E14 -> 28663 | T14: =COUNTRY_INFO!F14 -> 79383 | U14: =COUNTRY_INFO!G14 -> 164310
A15: =IF(COUNTRY_INFO!A15=0," ",COUNTRY_INFO!A15) -> Burundi | B15: =IF(COUNTRY_INFO!B15=0," ",COUNTRY_INFO!B15) -> Bujumbura Rural | C15: =IF(COUNTRY_INFO!C15=0," ",COUNTRY_INFO!C15) -> Kabezi | D15: =IF(OR(COUNTRY_INFO!$T$9:$T$1000="T3 (ALB/MBD)",COUNTRY_INFO!$U$9:$U$1000="T3 (ALB/MBD)"), "T3 (ALB/MBD)", " ") -> T3 (ALB/MBD) | E15: ALB | F15: 2021-06-01 | G15: 33577 | H15: 102354 | I15: 6700.8 | J15: 142631.8 | K15: 35185 | L15: 86163 | M15: 6277 | N15: 127625 | O15: 104.7889925 | P15: 84.18137054 | Q15: 93.67538204 | R15: 89.47864361
A16: =IF(COUNTRY_INFO!A16=0," ",COUNTRY_INFO!A16) -> Burundi | B16: =IF(COUNTRY_INFO!B16=0," ",COUNTRY_INFO!B16) -> Bujumbura Rural | C16: =IF(COUNTRY_INFO!C16=0," ",COUNTRY_INFO!C16) -> Rwibaga | D16: =IF(OR(COUNTRY_INFO!$T$9:$T$1000="T3 (ALB/MBD)",COUNTRY_INFO!$U$9:$U$1000="T3 (ALB/MBD)"), "T3 (ALB/MBD)", " ") -> T3 (ALB/MBD) | E16: ALB | F16: 2021-06-01 | G16: 15587 | H16: 42009 | I16: 4028.275 | J16: 61624.275 | K16: 14314 | L16: 41122 | M16: 3509 | N16: 58945 | O16: 91.8329377 | P16: 97.88854769 | Q16: 87.10924651 | R16: 95.65224094
A17: =IF(COUNTRY_INFO!A17=0," ",COUNTRY_INFO!A17) -> Burundi | B17: =IF(COUNTRY_INFO!B17=0," ",COUNTRY_INFO!B17) -> Bururi | C17: =IF(COUNTRY_INFO!C17=0," ",COUNTRY_INFO!C17) -> Bururi | D17: =IF(OR(COUNTRY_INFO!$T$9:$T$1000="T3 (ALB/MBD)",COUNTRY_INFO!$U$9:$U$1000="T3 (ALB/MBD)"), "T3 (ALB/MBD)", " ") -> T3 (ALB/MBD) | E17: ALB | F17: 2021-06-01 | G17: 17231 | H17: 49797 | I17: 4422.525 | J17: 71450.525 | K17: 29528 | L17: 50868 | M17: 4209 | N17: 84605 | O17: 171.3655621 | P17: 102.150732 | Q17: 95.17187579 | R17: 118.4106065 | S17: =COUNTRY_INFO!E17 -> 17231 | T17: =COUNTRY_INFO!F17 -> 49797 | U17: =COUNTRY_INFO!G17 -> 98003
A18: =IF(COUNTRY_INFO!A18=0," ",COUNTRY_INFO!A18) -> Burundi | B18: =IF(COUNTRY_INFO!B18=0," ",COUNTRY_INFO!B18) -> Bururi | C18: =IF(COUNTRY_INFO!C18=0," ",COUNTRY_INFO!C18) -> Matana | D18: =IF(OR(COUNTRY_INFO!$T$9:$T$1000="T3 (ALB/MBD)",COUNTRY_INFO!$U$9:$U$1000="T3 (ALB/MBD)"), "T3 (ALB/MBD)", " ") -> T3 (ALB/MBD) | E18: ALB | F18: 2021-06-01 | G18: 15536 | H18: 45426 | I18: 3976.075 | J18: 64938.075 | K18: 16272 | L18: 35800 | M18: 3919 | N18: 55991 | O18: 104.7373841 | P18: 78.80949236 | Q18: 98.56453915 | R18: 86.22214317
A19: =IF(COUNTRY_INFO!A19=0," ",COUNTRY_INFO!A19) -> Burundi | B19: =IF(COUNTRY_INFO!B19=0," ",COUNTRY_INFO!B19) -> Bururi | C19: =IF(COUNTRY_INFO!C19=0," ",COUNTRY_INFO!C19) -> Rutovu | D19: =IF(OR(COUNTRY_INFO!$T$9:$T$1000="T3 (ALB/MBD)",COUNTRY_INFO!$U$9:$U$1000="T3 (ALB/MBD)"), "T3 (ALB/MBD)", " ") -> T3 (ALB/MBD) | E19: ALB | F19: 2021-06-01 | G19: 14509 | H19: 45294 | I19: 3823.075 | J19: 63626.075 | K19: 16550 | L19: 39649 | M19: 3634 | N19: 59833 | O19: 114.0671307 | P19: 87.53698062 | Q19: 95.05437377 | R19: 94.03848972
A20: =IF(COUNTRY_INFO!A20=0," ",COUNTRY_INFO!A20) -> Burundi | B20: =IF(COUNTRY_INFO!B20=0," ",COUNTRY_INFO!B20) -> Cankuzo | C20: =IF(COUNTRY_INFO!C20=0," ",COUNTRY_INFO!C20) -> Cankuzo | D20: =IF(OR(COUNTRY_INFO!$T$9:$T$1000="T3 (ALB/MBD)",COUNTRY_INFO!$U$9:$U$1000="T3 (ALB/MBD)"), "T3 (ALB/MBD)", " ") -> T3 (ALB/MBD) | E20: ALB | F20: 2021-06-01 | G20: 20717 | H20: 52002 | I20: 4731.05 | J20: 77450.05 | K20: 29771 | L20: 69678 | M20: 5689 | N20: 105138 | O20: 143.7032389 | P20: 133.9910003 | Q20: 120.2481479 | R20: 135.7494282 | S20: =COUNTRY_INFO!E20 -> 20717 | T20: =COUNTRY_INFO!F20 -> 52002 | U20: =COUNTRY_INFO!G20 -> 104840
A21: =IF(COUNTRY_INFO!A21=0," ",COUNTRY_INFO!A21) -> Burundi | B21: =IF(COUNTRY_INFO!B21=0," ",COUNTRY_INFO!B21) -> Cankuzo | C21: =IF(COUNTRY_INFO!C21=0," ",COUNTRY_INFO!C21) -> Murore | D21: =IF(OR(COUNTRY_INFO!$T$9:$T$1000="T3 (ALB/MBD)",COUNTRY_INFO!$U$9:$U$1000="T3 (ALB/MBD)"), "T3 (ALB/MBD)", " ") -> T3 (ALB/MBD) | E21: ALB | F21: 2021-06-01 | G21: 19597 | H21: 48843 | I21: 4202.8 | J21: 72642.8 | K21: 22605 | L21: 49291 | M21: 5956 | N21: 77852 | O21: 115.3492882 | P21: 100.9172246 | Q21: 141.7150471 | R21: 107.1709791 | S21: =COUNTRY_INFO!E21 -> 19597 | T21: =COUNTRY_INFO!F21 -> 48843 | U21: =COUNTRY_INFO!G21 -> 93134
A22: =IF(COUNTRY_INFO!A22=0," ",COUNTRY_INFO!A22) -> Burundi | B22: =IF(COUNTRY_INFO!B22=0," ",COUNTRY_INFO!B22) -> Cibitoke | C22: =IF(COUNTRY_INFO!C22=0," ",COUNTRY_INFO!C22) -> Bukinanyana | D22: =IF(OR(COUNTRY_INFO!$T$9:$T$1000="T3 (ALB/MBD)",COUNTRY_INFO!$U$9:$U$1000="T3 (ALB/MBD)"), "T3 (ALB/MBD)", " ") -> T3 (ALB/MBD) | E22: ALB | F22: 2021-06-01 | G22: 31111 | H22: 70007 | I22: 6166.8 | J22: 107284.8 | K22: 29184 | L22: 72049 | M22: 5321 | N22: 106554 | O22: 93.80604931 | P22: 102.9168512 | Q22: 86.28462087 | R22: 99.31882242
A23: =IF(COUNTRY_INFO!A23=0," ",COUNTRY_INFO!A23) -> Burundi | B23: =IF(COUNTRY_INFO!B23=0," ",COUNTRY_INFO!B23) -> Cibitoke | C23: =IF(COUNTRY_INFO!C23=0," ",COUNTRY_INFO!C23) -> Cibitoke | D23: =IF(OR(COUNTRY_INFO!$T$9:$T$1000="T3 (ALB/MBD)",COUNTRY_INFO!$U$9:$U$1000="T3 (ALB/MBD)"), "T3 (ALB/MBD)", " ") -> T3 (ALB/MBD) | E23: ALB | F23: 2021-06-01 | G23: 28439 | H23: 58729 | I23: 5762.675 | J23: 92930.675 | K23: 28566 | L23: 76938 | M23: 6503 | N23: 112007 | O23: 100.4465699 | P23: 131.0051252 | Q23: 112.8468984 | R23: 120.5274792 | S23: =COUNTRY_INFO!E23 -> 28439 | T23: =COUNTRY_INFO!F23 -> 58729 | U23: =COUNTRY_INFO!G23 -> 127701
A24: =IF(COUNTRY_INFO!A24=0," ",COUNTRY_INFO!A24) -> Burundi | B24: =IF(COUNTRY_INFO!B24=0," ",COUNTRY_INFO!B24) -> Cibitoke | C24: =IF(COUNTRY_INFO!C24=0," ",COUNTRY_INFO!C24) -> Mabayi | D24: =IF(OR(COUNTRY_INFO!$T$9:$T$1000="T3 (ALB/MBD)",COUNTRY_INFO!$U$9:$U$1000="T3 (ALB/MBD)"), "T3 (ALB/MBD)", " ") -> T3 (ALB/MBD) | E24: ALB | F24: 2021-06-01 | G24: 29899 | H24: 68604 | I24: 6043.175 | J24: 104546.175 | K24: 30757 | L24: 77661 | M24: 6333 | N24: 114751 | O24: 102.8696612 | P24: 113.2018541 | Q24: 104.7959061 | R24: 109.7610697
A25: =IF(COUNTRY_INFO!A25=0," ",COUNTRY_INFO!A25) -> Burundi | B25: =IF(COUNTRY_INFO!B25=0," ",COUNTRY_INFO!B25) -> Gitega | C25: =IF(COUNTRY_INFO!C25=0," ",COUNTRY_INFO!C25) -> Gitega | D25: =IF(OR(COUNTRY_INFO!$T$9:$T$1000="T3 (ALB/MBD)",COUNTRY_INFO!$U$9:$U$1000="T3 (ALB/MBD)"), "T3 (ALB/MBD)", " ") -> T3 (ALB/MBD) | E25: ALB | F25: 2021-06-01 | G25: 34285 | H25: 86121 | I25: 8900.625 | J25: 129306.625 | K25: 36102 | L25: 91024 | M25: 4894 | N25: 132020 | O25: 105.2996937 | P25: 105.6931527 | Q25: 54.98490275 | R25: 102.0984037
A26: =IF(COUNTRY_INFO!A26=0," ",COUNTRY_INFO!A26) -> Burundi | B26: =IF(COUNTRY_INFO!B26=0," ",COUNTRY_INFO!B26) -> Gitega | C26: =IF(COUNTRY_INFO!C26=0," ",COUNTRY_INFO!C26) -> Kibuye | D26: =IF(OR(COUNTRY_INFO!$T$9:$T$1000="T3 (ALB/MBD)",COUNTRY_INFO!$U$9:$U$1000="T3 (ALB/MBD)"), "T3 (ALB/MBD)", " ") -> T3 (ALB/MBD) | E26: ALB | F26: 2021-06-01 | G26: 29530 | H26: 78237 | I26: 7447.5 | J26: 115214.5 | K26: 33650 | L26: 82134 | M26: 7281 | N26: 123065 | O26: 113.9519133 | P26: 104.9810192 | Q26: 97.76435045 | R26: 106.8138125
A27: =IF(COUNTRY_INFO!A27=0," ",COUNTRY_INFO!A27) -> Burundi | B27: =IF(COUNTRY_INFO!B27=0," ",COUNTRY_INFO!B27) -> Gitega | C27: =IF(COUNTRY_INFO!C27=0," ",COUNTRY_INFO!C27) -> Mutaho | D27: =IF(OR(COUNTRY_INFO!$T$9:$T$1000="T3 (ALB/MBD)",COUNTRY_INFO!$U$9:$U$1000="T3 (ALB/MBD)"), "T3 (ALB/MBD)", " ") -> T3 (ALB/MBD) | E27: ALB | F27: 2021-06-01 | G27: 26950 | H27: 68717 | I27: 6781.825 | J27: 102448.825 | K27: 26309 | L27: 57256 | M27: 4835 | N27: 88400 | O27: 97.62152134 | P27: 83.32144884 | Q27: 71.29349401 | R27: 86.28698279
A28: =IF(COUNTRY_INFO!A28=0," ",COUNTRY_INFO!A28) -> Burundi | B28: =IF(COUNTRY_INFO!B28=0," ",COUNTRY_INFO!B28) -> Gitega | C28: =IF(COUNTRY_INFO!C28=0," ",COUNTRY_INFO!C28) -> Ryansoro | D28: =IF(OR(COUNTRY_INFO!$T$9:$T$1000="T3 (ALB/MBD)",COUNTRY_INFO!$U$9:$U$1000="T3 (ALB/MBD)"), "T3 (ALB/MBD)", " ") -> T3 (ALB/MBD) | E28: ALB | F28: 2021-06-01 | G28: 19638 | H28: 56603 | I28: 5178.5 | J28: 81419.5 | K28: 24046 | L28: 52626 | M28: 5709 | N28: 82381 | O28: 122.4462776 | P28: 92.97387064 | Q28: 110.2442792 | R28: 101.180921
A29: =IF(COUNTRY_INFO!A29=0," ",COUNTRY_INFO!A29) -> Burundi | B29: =IF(COUNTRY_INFO!B29=0," ",COUNTRY_INFO!B29) -> Karusi | C29: =IF(COUNTRY_INFO!C29=0," ",COUNTRY_INFO!C29) -> Buhiga | D29: =IF(OR(COUNTRY_INFO!$T$9:$T$1000="T3 (ALB/MBD)",COUNTRY_INFO!$U$9:$U$1000="T3 (ALB/MBD)"), "T3 (ALB/MBD)", " ") -> T3 (ALB/MBD) | E29: ALB | F29: 2021-06-01 | G29: 41164 | H29: 103191 | I29: 9037.65 | J29: 153392.65 | K29: 40367 | L29: 113378 | M29: 5383 | N29: 159128 | O29: 98.06384219 | P29: 109.871985 | Q29: 59.56194365 | R29: 103.7389992
A30: =IF(COUNTRY_INFO!A30=0," ",COUNTRY_INFO!A30) -> Burundi | B30: =IF(COUNTRY_INFO!B30=0," ",COUNTRY_INFO!B30) -> Karusi | C30: =IF(COUNTRY_INFO!C30=0," ",COUNTRY_INFO!C30) -> Nyabikere | D30: =IF(OR(COUNTRY_INFO!$T$9:$T$1000="T3 (ALB/MBD)",COUNTRY_INFO!$U$9:$U$1000="T3 (ALB/MBD)"), "T3 (ALB/MBD)", " ") -> T3 (ALB/MBD) | E30: ALB | F30: 2021-06-01 | G30: 36805 | H30: 91053 | I30: 7998.5 | J30: 135856.5 | K30: 38997 | L30: 90352 | M30: 9435 | N30: 138784 | O30: 105.9557125 | P30: 99.23011872 | Q30: 117.9596174 | R30: 102.1548472
A31: =IF(COUNTRY_INFO!A31=0," ",COUNTRY_INFO!A31) -> Burundi | B31: =IF(COUNTRY_INFO!B31=0," ",COUNTRY_INFO!B31) -> Kayanza | C31: =IF(COUNTRY_INFO!C31=0," ",COUNTRY_INFO!C31) -> Gahombo | D31: =IF(OR(COUNTRY_INFO!$T$9:$T$1000="T3 (ALB/MBD)",COUNTRY_INFO!$U$9:$U$1000="T3 (ALB/MBD)"), "T3 (ALB/MBD)", " ") -> T3 (ALB/MBD) | E31: ALB | F31: 2021-06-01 | G31: 26182 | H31: 74654 | I31: 6566.525 | J31: 107402.525 | K31: 26376 | L31: 69410 | M31: 9236 | N31: 105022 | O31: 100.7409671 | P31: 92.97559407 | Q31: 140.6527806 | R31: 97.78354838 | S31: =COUNTRY_INFO!E31 -> 26182 | T31: =COUNTRY_INFO!F31 -> 74654 | U31: =COUNTRY_INFO!G31 -> 145514
A32: =IF(COUNTRY_INFO!A32=0," ",COUNTRY_INFO!A32) -> Burundi | B32: =IF(COUNTRY_INFO!B32=0," ",COUNTRY_INFO!B32) -> Kayanza | C32: =IF(COUNTRY_INFO!C32=0," ",COUNTRY_INFO!C32) -> Kayanza | D32: =IF(OR(COUNTRY_INFO!$T$9:$T$1000="T3 (ALB/MBD)",COUNTRY_INFO!$U$9:$U$1000="T3 (ALB/MBD)"), "T3 (ALB/MBD)", " ") -> T3 (ALB/MBD) | E32: ALB | F32: 2021-06-01 | G32: 37990 | H32: 95351 | I32: 8487.7 | J32: 141828.7 | K32: 34558 | L32: 97307 | M32: 3305 | N32: 135170 | O32: 90.9660437 | P32: 102.0513681 | Q32: 38.93869953 | R32: 95.30511102
A33: =IF(COUNTRY_INFO!A33=0," ",COUNTRY_INFO!A33) -> Burundi | B33: =IF(COUNTRY_INFO!B33=0," ",COUNTRY_INFO!B33) -> Kayanza | C33: =IF(COUNTRY_INFO!C33=0," ",COUNTRY_INFO!C33) -> Musema | D33: =IF(OR(COUNTRY_INFO!$T$9:$T$1000="T3 (ALB/MBD)",COUNTRY_INFO!$U$9:$U$1000="T3 (ALB/MBD)"), "T3 (ALB/MBD)", " ") -> T3 (ALB/MBD) | E33: ALB | F33: 2021-06-01 | G33: 31877 | H33: 82022 | I33: 7796.825 | J33: 121695.825 | K33: 33200 | L33: 90246 | M33: 5416 | N33: 128862 | O33: 104.1503278 | P33: 110.0265782 | Q33: 69.46417292 | R33: 105.8885956
A34: =IF(COUNTRY_INFO!A34=0," ",COUNTRY_INFO!A34) -> Burundi | B34: =IF(COUNTRY_INFO!B34=0," ",COUNTRY_INFO!B34) -> Kirundo | C34: =IF(COUNTRY_INFO!C34=0," ",COUNTRY_INFO!C34) -> Busoni | D34: =IF(OR(COUNTRY_INFO!$T$9:$T$1000="T3 (ALB/MBD)",COUNTRY_INFO!$U$9:$U$1000="T3 (ALB/MBD)"), "T3 (ALB/MBD)", " ") -> T3 (ALB/MBD) | E34: ALB | F34: 2021-06-01 | G34: 26666 | H34: 64168 | I34: 5676.5 | J34: 96510.5 | K34: 23001 | L34: 61281 | M34: 6848 | N34: 91130 | O34: 86.2559064 | P34: 95.50087271 | Q34: 120.6377169 | R34: 94.42495894
A35: =IF(COUNTRY_INFO!A35=0," ",COUNTRY_INFO!A35) -> Burundi | B35: =IF(COUNTRY_INFO!B35=0," ",COUNTRY_INFO!B35) -> Kirundo | C35: =IF(COUNTRY_INFO!C35=0," ",COUNTRY_INFO!C35) -> Kirundo | D35: =IF(OR(COUNTRY_INFO!$T$9:$T$1000="T3 (ALB/MBD)",COUNTRY_INFO!$U$9:$U$1000="T3 (ALB/MBD)"), "T3 (ALB/MBD)", " ") -> T3 (ALB/MBD) | E35: ALB | F35: 2021-06-01 | G35: 32164 | H35: 78712 | I35: 7118.625 | J35: 117994.625 | K35: 34791 | L35: 72604 | M35: 7582 | N35: 114977 | O35: 108.1675165 | P35: 92.24006505 | Q35: 106.5093329 | R35: 97.44257419
A36: =IF(COUNTRY_INFO!A36=0," ",COUNTRY_INFO!A36) -> Burundi | B36: =IF(COUNTRY_INFO!B36=0," ",COUNTRY_INFO!B36) -> Kirundo | C36: =IF(COUNTRY_INFO!C36=0," ",COUNTRY_INFO!C36) -> Mukenke | D36: =IF(OR(COUNTRY_INFO!$T$9:$T$1000="T3 (ALB/MBD)",COUNTRY_INFO!$U$9:$U$1000="T3 (ALB/MBD)"), "T3 (ALB/MBD)", " ") -> T3 (ALB/MBD) | E36: ALB | F36: 2021-06-01 | G36: 23371 | H36: 51160 | I36: 4845.775 | J36: 79376.775 | K36: 22237 | L36: 49504 | M36: 9675 | N36: 81416 | O36: 95.14783278 | P36: 96.76309617 | Q36: 199.6584654 | R36: 102.5690449 | S36: =COUNTRY_INFO!E36 -> 23371 | T36: =COUNTRY_INFO!F36 -> 51160 | U36: =COUNTRY_INFO!G36 -> 107382
A37: =IF(COUNTRY_INFO!A37=0," ",COUNTRY_INFO!A37) -> Burundi | B37: =IF(COUNTRY_INFO!B37=0," ",COUNTRY_INFO!B37) -> Kirundo | C37: =IF(COUNTRY_INFO!C37=0," ",COUNTRY_INFO!C37) -> Vumbi | D37: =IF(OR(COUNTRY_INFO!$T$9:$T$1000="T3 (ALB/MBD)",COUNTRY_INFO!$U$9:$U$1000="T3 (ALB/MBD)"), "T3 (ALB/MBD)", " ") -> T3 (ALB/MBD) | E37: ALB | F37: 2021-06-01 | G37: 31364 | H37: 72552 | I37: 6882.525 | J37: 110798.525 | K37: 29431 | L37: 74752 | M37: 9310 | N37: 113493 | O37: 93.83688305 | P37: 103.0323079 | Q37: 135.2701225 | R37: 102.431869 | S37: =COUNTRY_INFO!E37 -> 31364 | T37: =COUNTRY_INFO!F37 -> 72552 | U37: =COUNTRY_INFO!G37 -> 152517
A38: =IF(COUNTRY_INFO!A38=0," ",COUNTRY_INFO!A38) -> Burundi | B38: =IF(COUNTRY_INFO!B38=0," ",COUNTRY_INFO!B38) -> Makamba | C38: =IF(COUNTRY_INFO!C38=0," ",COUNTRY_INFO!C38) -> Makamba | D38: =IF(OR(COUNTRY_INFO!$T$9:$T$1000="T3 (ALB/MBD)",COUNTRY_INFO!$U$9:$U$1000="T3 (ALB/MBD)"), "T3 (ALB/MBD)", " ") -> T3 (ALB/MBD) | E38: ALB | F38: 2021-06-01 | G38: 41282 | H38: 102933 | I38: 8864.175 | J38: 153079.175 | K38: 49362 | L38: 117201 | M38: 8887 | N38: 175450 | O38: 119.5726951 | P38: 113.8614439 | Q38: 100.2574972 | R38: 114.6138918
A39: =IF(COUNTRY_INFO!A39=0," ",COUNTRY_INFO!A39) -> Burundi | B39: =IF(COUNTRY_INFO!B39=0," ",COUNTRY_INFO!B39) -> Makamba | C39: =IF(COUNTRY_INFO!C39=0," ",COUNTRY_INFO!C39) -> Nyanza-Lac | D39: =IF(OR(COUNTRY_INFO!$T$9:$T$1000="T3 (ALB/MBD)",COUNTRY_INFO!$U$9:$U$1000="T3 (ALB/MBD)"), "T3 (ALB/MBD)", " ") -> T3 (ALB/MBD) | E39: ALB | F39: 2021-06-01 | G39: 37014 | H39: 90776 | I39: 7955.6 | J39: 135745.6 | K39: 45523 | L39: 121493 | M39: 3853 | N39: 170869 | O39: 122.9885989 | P39: 133.8382392 | Q39: 48.43129368 | R39: 125.8744298 | S39: =COUNTRY_INFO!E39 -> 37014 | T39: =COUNTRY_INFO!F39 -> 90776 | U39: =COUNTRY_INFO!G39 -> 176296
A40: =IF(COUNTRY_INFO!A40=0," ",COUNTRY_INFO!A40) -> Burundi | B40: =IF(COUNTRY_INFO!B40=0," ",COUNTRY_INFO!B40) -> Muramvya | C40: =IF(COUNTRY_INFO!C40=0," ",COUNTRY_INFO!C40) -> Kiganda | D40: =IF(OR(COUNTRY_INFO!$T$9:$T$1000="T3 (ALB/MBD)",COUNTRY_INFO!$U$9:$U$1000="T3 (ALB/MBD)"), "T3 (ALB/MBD)", " ") -> T3 (ALB/MBD) | E40: ALB | F40: 2021-06-01 | G40: 22538 | H40: 60628 | I40: 5669.375 | J40: 88835.375 | K40: 25721 | L40: 63890 | M40: 5432 | N40: 95043 | O40: 114.1228148 | P40: 105.3803523 | Q40: 95.81303054 | R40: 106.987785
A41: =IF(COUNTRY_INFO!A41=0," ",COUNTRY_INFO!A41) -> Burundi | B41: =IF(COUNTRY_INFO!B41=0," ",COUNTRY_INFO!B41) -> Muramvya | C41: =IF(COUNTRY_INFO!C41=0," ",COUNTRY_INFO!C41) -> Muramvya | D41: =IF(OR(COUNTRY_INFO!$T$9:$T$1000="T3 (ALB/MBD)",COUNTRY_INFO!$U$9:$U$1000="T3 (ALB/MBD)"), "T3 (ALB/MBD)", " ") -> T3 (ALB/MBD) | E41: ALB | F41: 2021-06-01 | G41: 23661 | H41: 59801 | I41: 5751.575 | J41: 89213.575 | K41: 27311 | L41: 69320 | M41: 4694 | N41: 101325 | O41: 115.4262288 | P41: 115.917794 | Q41: 81.6124279 | R41: 113.5757647
A42: =IF(COUNTRY_INFO!A42=0," ",COUNTRY_INFO!A42) -> Burundi | B42: =IF(COUNTRY_INFO!B42=0," ",COUNTRY_INFO!B42) -> Muyinga | C42: =IF(COUNTRY_INFO!C42=0," ",COUNTRY_INFO!C42) -> Gashoho | D42: =IF(OR(COUNTRY_INFO!$T$9:$T$1000="T3 (ALB/MBD)",COUNTRY_INFO!$U$9:$U$1000="T3 (ALB/MBD)"), "T3 (ALB/MBD)", " ") -> T3 (ALB/MBD) | E42: ALB | F42: 2021-06-01 | G42: 26644 | H42: 62991 | I42: 5781.15 | J42: 95416.15 | K42: 26513 | L42: 64000 | M42: 6720 | N42: 97233 | O42: 99.50833208 | P42: 101.6018161 | Q42: 116.2398485 | R42: 101.9041326
A43: =IF(COUNTRY_INFO!A43=0," ",COUNTRY_INFO!A43) -> Burundi | B43: =IF(COUNTRY_INFO!B43=0," ",COUNTRY_INFO!B43) -> Muyinga | C43: =IF(COUNTRY_INFO!C43=0," ",COUNTRY_INFO!C43) -> Giteranyi | D43: =IF(OR(COUNTRY_INFO!$T$9:$T$1000="T3 (ALB/MBD)",COUNTRY_INFO!$U$9:$U$1000="T3 (ALB/MBD)"), "T3 (ALB/MBD)", " ") -> T3 (ALB/MBD) | E43: ALB | F43: 2021-06-01 | G43: 47338 | H43: 109204 | I43: 9685.15 | J43: 166227.15 | K43: 40182 | L43: 119691 | M43: 6165 | N43: 166038 | O43: 84.88318053 | P43: 109.6031281 | Q43: 63.65415094 | R43: 99.88620992
A44: =IF(COUNTRY_INFO!A44=0," ",COUNTRY_INFO!A44) -> Burundi | B44: =IF(COUNTRY_INFO!B44=0," ",COUNTRY_INFO!B44) -> Muyinga | C44: =IF(COUNTRY_INFO!C44=0," ",COUNTRY_INFO!C44) -> Muyinga | D44: =IF(OR(COUNTRY_INFO!$T$9:$T$1000="T3 (ALB/MBD)",COUNTRY_INFO!$U$9:$U$1000="T3 (ALB/MBD)"), "T3 (ALB/MBD)", " ") -> T3 (ALB/MBD) | E44: ALB | F44: 2021-06-01 | G44: 52366 | H44: 101297 | I44: 9219.225 | J44: 162882.225 | K44: 44499 | L44: 107419 | M44: 6141 | N44: 158059 | O44: 84.9768934 | P44: 106.0436143 | Q44: 66.61080514 | R44: 97.03882667
A45: =IF(COUNTRY_INFO!A45=0," ",COUNTRY_INFO!A45) -> Burundi | B45: =IF(COUNTRY_INFO!B45=0," ",COUNTRY_INFO!B45) -> Mwaro | C45: =IF(COUNTRY_INFO!C45=0," ",COUNTRY_INFO!C45) -> Fota | D45: =IF(OR(COUNTRY_INFO!$T$9:$T$1000="T3 (ALB/MBD)",COUNTRY_INFO!$U$9:$U$1000="T3 (ALB/MBD)"), "T3 (ALB/MBD)", " ") -> T3 (ALB/MBD) | E45: ALB | F45: 2021-06-01 | G45: 18860 | H45: 53915 | I45: 5056.075 | J45: 77831.075 | K45: 17084 | L45: 43839 | M45: 5674 | N45: 66597 | O45: 90.58324496 | P45: 81.31132338 | Q45: 112.2214366 | R45: 85.56608013
A46: =IF(COUNTRY_INFO!A46=0," ",COUNTRY_INFO!A46) -> Burundi | B46: =IF(COUNTRY_INFO!B46=0," ",COUNTRY_INFO!B46) -> Mwaro | C46: =IF(COUNTRY_INFO!C46=0," ",COUNTRY_INFO!C46) -> Kibumbu | D46: =IF(OR(COUNTRY_INFO!$T$9:$T$1000="T3 (ALB/MBD)",COUNTRY_INFO!$U$9:$U$1000="T3 (ALB/MBD)"), "T3 (ALB/MBD)", " ") -> T3 (ALB/MBD) | E46: ALB | F46: 2021-06-01 | G46: 20931 | H46: 59341 | I46: 5605.825 | J46: 85877.825 | K46: 26013 | L46: 60301 | M46: 4613 | N46: 90927 | O46: 124.2797764 | P46: 101.6177685 | Q46: 82.28940432 | R46: 105.8794864
A47: =IF(COUNTRY_INFO!A47=0," ",COUNTRY_INFO!A47) -> Burundi | B47: =IF(COUNTRY_INFO!B47=0," ",COUNTRY_INFO!B47) -> Ngozi | C47: =IF(COUNTRY_INFO!C47=0," ",COUNTRY_INFO!C47) -> Buye | D47: =IF(OR(COUNTRY_INFO!$T$9:$T$1000="T3 (ALB/MBD)",COUNTRY_INFO!$U$9:$U$1000="T3 (ALB/MBD)"), "T3 (ALB/MBD)", " ") -> T3 (ALB/MBD) | E47: ALB | F47: 2021-06-01 | G47: 31055 | H47: 75713 | I47: 6865 | J47: 113633 | K47: 23658 | L47: 70042 | M47: 5219 | N47: 98919 | O47: 76.18096925 | P47: 92.50987281 | Q47: 76.02330663 | R47: 87.05129672
A48: =IF(COUNTRY_INFO!A48=0," ",COUNTRY_INFO!A48) -> Burundi | B48: =IF(COUNTRY_INFO!B48=0," ",COUNTRY_INFO!B48) -> Ngozi | C48: =IF(COUNTRY_INFO!C48=0," ",COUNTRY_INFO!C48) -> Kiremba | D48: =IF(OR(COUNTRY_INFO!$T$9:$T$1000="T3 (ALB/MBD)",COUNTRY_INFO!$U$9:$U$1000="T3 (ALB/MBD)"), "T3 (ALB/MBD)", " ") -> T3 (ALB/MBD) | E48: ALB | F48: 2021-06-01 | G48: 41532 | H48: 100904 | I48: 9243.625 | J48: 151679.625 | K48: 41588 | L48: 98891 | M48: 9988 | N48: 150467 | O48: 100.1348358 | P48: 98.00503449 | Q48: 108.0528472 | R48: 99.20053534
A49: =IF(COUNTRY_INFO!A49=0," ",COUNTRY_INFO!A49) -> Burundi | B49: =IF(COUNTRY_INFO!B49=0," ",COUNTRY_INFO!B49) -> Ngozi | C49: =IF(COUNTRY_INFO!C49=0," ",COUNTRY_INFO!C49) -> Ngozi | D49: =IF(OR(COUNTRY_INFO!$T$9:$T$1000="T3 (ALB/MBD)",COUNTRY_INFO!$U$9:$U$1000="T3 (ALB/MBD)"), "T3 (ALB/MBD)", " ") -> T3 (ALB/MBD) | E49: ALB | F49: 2021-06-01 | G49: 39990 | H49: 104679 | I49: 9681.925 | J49: 154350.925 | K49: 48046 | L49: 108463 | M49: 7842 | N49: 164351 | O49: 120.1450363 | P49: 103.6148607 | Q49: 80.99628948 | R49: 106.4787918
A50: =IF(COUNTRY_INFO!A50=0," ",COUNTRY_INFO!A50) -> Burundi | B50: =IF(COUNTRY_INFO!B50=0," ",COUNTRY_INFO!B50) -> Rumonge | C50: =IF(COUNTRY_INFO!C50=0," ",COUNTRY_INFO!C50) -> Bugarama | D50: =IF(OR(COUNTRY_INFO!$T$9:$T$1000="T3 (ALB/MBD)",COUNTRY_INFO!$U$9:$U$1000="T3 (ALB/MBD)"), "T3 (ALB/MBD)", " ") -> T3 (ALB/MBD) | E50: ALB | F50: 2021-06-01 | G50: 16168 | H50: 40045 | I50: 3556.6 | J50: 59769.6 | K50: 26305 | L50: 80725 | M50: 4973 | N50: 112003 | O50: 162.6979218 | P50: 201.5857161 | Q50: 139.8245515 | R50: 187.3912491 | S50: =COUNTRY_INFO!E50 -> 16168 | T50: =COUNTRY_INFO!F50 -> 40045 | U50: =COUNTRY_INFO!G50 -> 128264
A51: =IF(COUNTRY_INFO!A51=0," ",COUNTRY_INFO!A51) -> Burundi | B51: =IF(COUNTRY_INFO!B51=0," ",COUNTRY_INFO!B51) -> Rumonge | C51: =IF(COUNTRY_INFO!C51=0," ",COUNTRY_INFO!C51) -> Rumonge | D51: =IF(OR(COUNTRY_INFO!$T$9:$T$1000="T3 (ALB/MBD)",COUNTRY_INFO!$U$9:$U$1000="T3 (ALB/MBD)"), "T3 (ALB/MBD)", " ") -> T3 (ALB/MBD) | E51: ALB | F51: 2021-06-01 | G51: 47520 | H51: 110964 | I51: 10184.425 | J51: 168668.425 | K51: 47324 | L51: 107615 | M51: 9826 | N51: 164765 | O51: 99.58754209 | P51: 96.98190404 | Q51: 96.48065551 | R51: 97.68574053
A52: =IF(COUNTRY_INFO!A52=0," ",COUNTRY_INFO!A52) -> Burundi | B52: =IF(COUNTRY_INFO!B52=0," ",COUNTRY_INFO!B52) -> Rutana | C52: =IF(COUNTRY_INFO!C52=0," ",COUNTRY_INFO!C52) -> Gihofi | D52: =IF(OR(COUNTRY_INFO!$T$9:$T$1000="T3 (ALB/MBD)",COUNTRY_INFO!$U$9:$U$1000="T3 (ALB/MBD)"), "T3 (ALB/MBD)", " ") -> T3 (ALB/MBD) | E52: ALB | F52: 2021-06-01 | G52: 34867 | H52: 79402 | I52: 6735.85 | J52: 121004.85 | K52: 40760 | L52: 92186 | M52: 7747 | N52: 140693 | O52: 116.9013681 | P52: 116.1003501 | Q52: 115.0114685 | R52: 116.2705462
A53: =IF(COUNTRY_INFO!A53=0," ",COUNTRY_INFO!A53) -> Burundi | B53: =IF(COUNTRY_INFO!B53=0," ",COUNTRY_INFO!B53) -> Rutana | C53: =IF(COUNTRY_INFO!C53=0," ",COUNTRY_INFO!C53) -> Rutana | D53: =IF(OR(COUNTRY_INFO!$T$9:$T$1000="T3 (ALB/MBD)",COUNTRY_INFO!$U$9:$U$1000="T3 (ALB/MBD)"), "T3 (ALB/MBD)", " ") -> T3 (ALB/MBD) | E53: ALB | F53: 2021-06-01 | G53: 25576 | H53: 70911 | I53: 6282.425 | J53: 102769.425 | K53: 26419 | L53: 69530 | M53: 5609 | N53: 101558 | O53: 103.2960588 | P53: 98.05248833 | Q53: 89.28081115 | R53: 98.82122042
A54: =IF(COUNTRY_INFO!A54=0," ",COUNTRY_INFO!A54) -> Burundi | B54: =IF(COUNTRY_INFO!B54=0," ",COUNTRY_INFO!B54) -> Ruyigi | C54: =IF(COUNTRY_INFO!C54=0," ",COUNTRY_INFO!C54) -> Butezi | D54: =IF(OR(COUNTRY_INFO!$T$9:$T$1000="T3 (ALB/MBD)",COUNTRY_INFO!$U$9:$U$1000="T3 (ALB/MBD)"), "T3 (ALB/MBD)", " ") -> T3 (ALB/MBD) | E54: ALB | F54: 2021-06-01 | G54: 18013 | H54: 45449 | I54: 3995.675 | J54: 67457.675 | K54: 22826 | L54: 51865 | M54: 4198 | N54: 78889 | O54: 126.7195914 | P54: 114.1169223 | Q54: 105.0636 | R54: 116.945922
A55: =IF(COUNTRY_INFO!A55=0," ",COUNTRY_INFO!A55) -> Burundi | B55: =IF(COUNTRY_INFO!B55=0," ",COUNTRY_INFO!B55) -> Gisuru | C55: =IF(COUNTRY_INFO!C55=0," ",COUNTRY_INFO!C55) -> Gisuru | D55: =IF(OR(COUNTRY_INFO!$T$9:$T$1000="T3 (ALB/MBD)",COUNTRY_INFO!$U$9:$U$1000="T3 (ALB/MBD)"), "T3 (ALB/MBD)", " ") -> T3 (ALB/MBD) | E55: ALB | F55: 2021-07-01 | G55: 19052 | H55: 46206 | I55: 3882.375 | J55: 69140.375 | K55: 17307 | L55: 41685 | M55: 3214 | N55: 62206 | O55: 90.8408566 | P55: 90.21555642 | Q55: 82.78437812 | R55: 89.9705852
A56: =IF(COUNTRY_INFO!A56=0," ",COUNTRY_INFO!A56) -> Burundi | B56: =IF(COUNTRY_INFO!B56=0," ",COUNTRY_INFO!B56) -> Ruyigi | C56: =IF(COUNTRY_INFO!C56=0," ",COUNTRY_INFO!C56) -> Kinyinya | D56: =IF(OR(COUNTRY_INFO!$T$9:$T$1000="T3 (ALB/MBD)",COUNTRY_INFO!$U$9:$U$1000="T3 (ALB/MBD)"), "T3 (ALB/MBD)", " ") -> T3 (ALB/MBD) | E56: ALB | F56: 2021-06-01 | G56: 19839 | H56: 46914 | I56: 4081.875 | J56: 70834.875 | K56: 19828 | L56: 43218 | M56: 3625 | N56: 66671 | O56: 99.94455366 | P56: 92.1217547 | Q56: 88.80722707 | R56: 94.12171617
A57: =IF(COUNTRY_INFO!A57=0," ",COUNTRY_INFO!A57) -> Burundi | B57: =IF(COUNTRY_INFO!B57=0," ",COUNTRY_INFO!B57) -> Ruyigi | C57: =IF(COUNTRY_INFO!C57=0," ",COUNTRY_INFO!C57) -> Ruyigi | F57: 2021-07-01 | G57: 15695 | H57: 39863 | I57: 3674.4 | J57: 59232.4 | K57: 21805 | L57: 44604 | M57: 3788 | N57: 70197 | O57: 138.9295954 | P57: 111.8932343 | Q57: 103.0916612 | R57: 118.5111527 | S57: =COUNTRY_INFO!E57 -> 15695 | T57: =COUNTRY_INFO!F57 -> 39863 | U57: =COUNTRY_INFO!G57 -> 81425

Sheet T3_R2
A1: T 3 - Albendazole (ALB) ou Mebendazole (MBD) - Tournée 2
A2: Structure administrative, population nécessitant une chimioprévention par groupe d'âge, population traitée par groupe d'âge et couverture
A4: TOTAL | G4: =SUM(G$9:G$1000) -> 1391202 | H4: 3414134 | I4: 314364.225 | J4: 5119700.225 | K4: 1458525 | L4: 3502535 | M4: 245779 | N4: 5206839 | O4: =IF(G4<>0, IF(K4/G4*100=0, "-", K4/G4*100), " ") -> 104.8391966 | P4: =IF(H4<>0, IF(L4/H4*100=0, "-", L4/H4*100), " ") -> 102.5892657 | Q4: =IF(I4<>0, IF(M4/I4*100=0, "-", M4/I4*100), " ") -> 78.18287847 | R4: =IF(J4<>0, IF(N4/J4*100=0, "-", N4/J4*100), " ") -> 101.7020289
A6: Structure administrative du pays | D6: Mise en oeuvre de la CP | E6: Médica-ment | F6: Date | G6: Population ciblée pour T3 | K6: Population traitée | O6: Couverture du Programme (%)
A7: Pays | B7: Région/Département | C7: District | G7: EAPréS | H7: EAS | I7: Adultes | J7: Total | K7: EAPréS | L7: EAS | M7: Adultes | N7: Total | O7: EAPréS | P7: EAS | Q7: Adultes | R7: Total
A9: =IF(COUNTRY_INFO!A9=0," ",COUNTRY_INFO!A9) -> Burundi | B9: =IF(COUNTRY_INFO!B9=0," ",COUNTRY_INFO!B9) -> Bubanza | C9: =IF(COUNTRY_INFO!C9=0," ",COUNTRY_INFO!C9) -> Bubanza | D9: T3 (ALB/MBD) | E9: ALB | F9: 2022-01-22 | G9: 31788 | H9: 65967 | I9: 6475.175 | J9: =SUM(G9:I9) -> 104230.175 | K9: 30077 | L9: 85948 | M9: 6777 | N9: =SUM(K9:M9) -> 122802 | O9: =IF(G9<>0, IF(K9/G9*100=0, "-", K9/G9*100), " ") -> 94.61746571 | P9: 130.2893871 | Q9: 104.661264 | R9: 117.8180887 | S9: =COUNTRY_INFO!E9 -> 31788 | T9: =COUNTRY_INFO!F9 -> 65967 | U9: =COUNTRY_INFO!G9 -> 143490 | Z9: 31788 | AA9: 65967 | AB9: 6475.175
A10: =IF(COUNTRY_INFO!A10=0," ",COUNTRY_INFO!A10) -> Burundi | B10: =IF(COUNTRY_INFO!B10=0," ",COUNTRY_INFO!B10) -> Bubanza | C10: =IF(COUNTRY_INFO!C10=0," ",COUNTRY_INFO!C10) -> Mpanda | D10: T3 (ALB/MBD) | E10: ALB | F10: 2022-01-22 | G10: 39779 | H10: 62735 | I10: 6719.25 | J10: =SUM(G10:I10) -> 109233.25 | K10: 39267 | L10: 82338 | M10: 6296 | N10: =SUM(K10:M10) -> 127901 | O10: =IF(G10<>0, IF(K10/G10*100=0, "-", K10/G10*100), " ") -> 98.71288871 | P10: =IF(H10<>0, IF(L10/H10*100=0, "-", L10/H10*100), " ") -> 131.2473101 | Q10: =IF(I10<>0, IF(M10/I10*100=0, "-", M10/I10*100), " ") -> 93.70093388 | R10: =IF(J10<>0, IF(N10/J10*100=0, "-", N10/J10*100), " ") -> 117.0898055 | S10: =COUNTRY_INFO!E10 -> 39779 | T10: =COUNTRY_INFO!F10 -> 62735 | U10: =COUNTRY_INFO!G10 -> 148899 | Z10: 39779 | AA10: 62735 | AB10: 6719.25
A11: =IF(COUNTRY_INFO!A11=0," ",COUNTRY_INFO!A11) -> Burundi | B11: =IF(COUNTRY_INFO!B11=0," ",COUNTRY_INFO!B11) -> Bujumbura Mairie | C11: =IF(COUNTRY_INFO!C11=0," ",COUNTRY_INFO!C11) -> Zone Centre | D11: T3 (ALB/MBD) | E11: ALB | F11: 2022-01-22 | G11: 12816 | H11: 35878 | I11: 4817.4 | J11: 53511.4 | K11: 12085 | L11: 36449 | M11: 1204 | N11: 49738 | O11: 94.29619226 | P11: 101.5915045 | Q11: 24.99273467 | R11: 92.94841847 | S11: =COUNTRY_INFO!E11 -> 12816 | T11: =COUNTRY_INFO!F11 -> 35878 | U11: =COUNTRY_INFO!G11 -> 106754 | Z11: 12816 | AA11: 35878 | AB11: 4817.4
A12: =IF(COUNTRY_INFO!A12=0," ",COUNTRY_INFO!A12) -> Burundi | B12: =IF(COUNTRY_INFO!B12=0," ",COUNTRY_INFO!B12) -> Bujumbura Mairie | C12: =IF(COUNTRY_INFO!C12=0," ",COUNTRY_INFO!C12) -> Zone Nord | D12: T3 (ALB/MBD) | E12: ALB | F12: 2022-01-22 | G12: 37201 | H12: 81940 | I12: 9716.175 | J12: 128857.175 | K12: 34626 | L12: 95764 | M12: 7551 | N12: 137941 | O12: 93.07814306 | P12: 116.8708811 | Q12: 77.71576778 | R12: 107.0495298 | S12: =COUNTRY_INFO!E12 -> 37201 | T12: =COUNTRY_INFO!F12 -> 81940 | U12: =COUNTRY_INFO!G12 -> 215310 | Z12: 37201 | AA12: 81940 | AB12: 9716.175
A13: =IF(COUNTRY_INFO!A13=0," ",COUNTRY_INFO!A13) -> Burundi | B13: =IF(COUNTRY_INFO!B13=0," ",COUNTRY_INFO!B13) -> Bujumbura Mairie | C13: =IF(COUNTRY_INFO!C13=0," ",COUNTRY_INFO!C13) -> Zone Sud | D13: T3 (ALB/MBD) | E13: ALB | F13: 2022-01-22 | G13: 16825 | H13: 40689 | I13: 4872.875 | J13: 62386.875 | K13: 18433 | L13: 58256 | M13: 2045 | N13: 78734 | O13: 109.5572065 | P13: 143.1738308 | Q13: 41.96701126 | R13: 126.2028271 | S13: =COUNTRY_INFO!E13 -> 16825 | T13: =COUNTRY_INFO!F13 -> 40689 | U13: =COUNTRY_INFO!G13 -> 107983 | Z13: 16825 | AA13: 40689 | AB13: 4872.875
A14: =IF(COUNTRY_INFO!A14=0," ",COUNTRY_INFO!A14) -> Burundi | B14: =IF(COUNTRY_INFO!B14=0," ",COUNTRY_INFO!B14) -> Bujumbura Rural | C14: =IF(COUNTRY_INFO!C14=0," ",COUNTRY_INFO!C14) -> Isare | D14: T3 (ALB/MBD) | E14: ALB | F14: 2022-01-22 | G14: 28663 | H14: 79383 | I14: 7414.7 | J14: 115460.7 | K14: 32843 | L14: 89772 | M14: 5089 | N14: 127704 | O14: 114.5832606 | P14: 113.0871849 | Q14: 68.6339299 | R14: 110.6038678 | S14: =COUNTRY_INFO!E14 -> 28663 | T14: =COUNTRY_INFO!F14 -> 79383 | U14: =COUNTRY_INFO!G14 -> 164310 | Z14: 28663 | AA14: 79383 | AB14: 7414.7
A15: =IF(COUNTRY_INFO!A15=0," ",COUNTRY_INFO!A15) -> Burundi | B15: =IF(COUNTRY_INFO!B15=0," ",COUNTRY_INFO!B15) -> Bujumbura Rural | C15: =IF(COUNTRY_INFO!C15=0," ",COUNTRY_INFO!C15) -> Kabezi | D15: T3 (ALB/MBD) | E15: ALB | F15: 2022-01-22 | G15: 33577 | H15: 102354 | I15: 6700.8 | J15: 142631.8 | K15: 31405 | L15: 85998 | M15: 12423 | N15: 129826 | O15: 93.5312863 | P15: 84.02016531 | Q15: 185.3957736 | R15: 91.02177775 | S15: =COUNTRY_INFO!E15 -> 33577 | T15: =COUNTRY_INFO!F15 -> 102354 | U15: =COUNTRY_INFO!G15 -> 115483 | Z15: 33577 | AA15: 102354 | AB15: 6700.8
A16: =IF(COUNTRY_INFO!A16=0," ",COUNTRY_INFO!A16) -> Burundi | B16: =IF(COUNTRY_INFO!B16=0," ",COUNTRY_INFO!B16) -> Bujumbura Rural | C16: =IF(COUNTRY_INFO!C16=0," ",COUNTRY_INFO!C16) -> Rwibaga | D16: T3 (ALB/MBD) | E16: ALB | F16: 2022-01-22 | G16: 15587 | H16: 42009 | I16: 4028.275 | J16: 61624.275 | K16: 15801 | L16: 42743 | M16: 2235 | N16: 60779 | O16: 101.372939 | P16: 101.7472446 | Q16: 55.48280592 | R16: 98.62834086 | S16: =COUNTRY_INFO!E16 -> 15587 | T16: =COUNTRY_INFO!F16 -> 42009 | U16: =COUNTRY_INFO!G16 -> 89267 | Z16: 15587 | AA16: 42009 | AB16: 4028.275
A17: =IF(COUNTRY_INFO!A17=0," ",COUNTRY_INFO!A17) -> Burundi | B17: =IF(COUNTRY_INFO!B17=0," ",COUNTRY_INFO!B17) -> Bururi | C17: =IF(COUNTRY_INFO!C17=0," ",COUNTRY_INFO!C17) -> Bururi | D17: T3 (ALB/MBD) | E17: ALB | F17: 2022-01-22 | G17: 17231 | H17: 49797 | I17: 4422.525 | J17: 71450.525 | K17: 24087 | L17: 50565 | M17: 4159 | N17: 78811 | O17: 139.7887528 | P17: 101.5422616 | Q17: 94.04129994 | R17: 110.3014988 | S17: =COUNTRY_INFO!E17 -> 17231 | T17: =COUNTRY_INFO!F17 -> 49797 | U17: =COUNTRY_INFO!G17 -> 98003 | Z17: 17231 | AA17: 49797 | AB17: 4422.525
A18: =IF(COUNTRY_INFO!A18=0," ",COUNTRY_INFO!A18) -> Burundi | B18: =IF(COUNTRY_INFO!B18=0," ",COUNTRY_INFO!B18) -> Bururi | C18: =IF(COUNTRY_INFO!C18=0," ",COUNTRY_INFO!C18) -> Matana | D18: T3 (ALB/MBD) | E18: ALB | F18: 2022-01-22 | G18: 15536 | H18: 45426 | I18: 3976.075 | J18: 64938.075 | K18: 17385 | L18: 40203 | M18: 2664 | N18: 60252 | O18: 111.9013903 | P18: 88.50217937 | Q18: 67.00074823 | R18: 92.78377901 | S18: =COUNTRY_INFO!E18 -> 15536 | T18: =COUNTRY_INFO!F18 -> 45426 | U18: =COUNTRY_INFO!G18 -> 88110 | Z18: 15536 | AA18: 45426 | AB18: 3976.075
A19: =IF(COUNTRY_INFO!A19=0," ",COUNTRY_INFO!A19) -> Burundi | B19: =IF(COUNTRY_INFO!B19=0," ",COUNTRY_INFO!B19) -> Bururi | C19: =IF(COUNTRY_INFO!C19=0," ",COUNTRY_INFO!C19) -> Rutovu | D19: T3 (ALB/MBD) | E19: ALB | F19: 2022-01-22 | G19: 14509 | H19: 45294 | I19: 3823.075 | J19: 63626.075 | K19: 24090 | L19: 42153 | M19: 3543 | N19: 69786 | O19: 166.0348749 | P19: 93.06530666 | Q19: 92.67409088 | R19: 109.6814474 | S19: =COUNTRY_INFO!E19 -> 14509 | T19: =COUNTRY_INFO!F19 -> 45294 | U19: =COUNTRY_INFO!G19 -> 84719 | Z19: 14509 | AA19: 45294 | AB19: 3823.075
A20: =IF(COUNTRY_INFO!A20=0," ",COUNTRY_INFO!A20) -> Burundi | B20: =IF(COUNTRY_INFO!B20=0," ",COUNTRY_INFO!B20) -> Cankuzo | C20: =IF(COUNTRY_INFO!C20=0," ",COUNTRY_INFO!C20) -> Cankuzo | D20: T3 (ALB/MBD) | E20: ALB | F20: 2022-01-22 | G20: 20717 | H20: 52002 | I20: 4731.05 | J20: 77450.05 | K20: 26521 | L20: 59382 | M20: 3170 | N20: 89073 | O20: 128.0156393 | P20: 114.1917619 | Q20: 67.00415341 | R20: 115.0070271 | S20: =COUNTRY_INFO!E20 -> 20717 | T20: =COUNTRY_INFO!F20 -> 52002 | U20: =COUNTRY_INFO!G20 -> 104840 | Z20: 20717 | AA20: 52002 | AB20: 4731.05
A21: =IF(COUNTRY_INFO!A21=0," ",COUNTRY_INFO!A21) -> Burundi | B21: =IF(COUNTRY_INFO!B21=0," ",COUNTRY_INFO!B21) -> Cankuzo | C21: =IF(COUNTRY_INFO!C21=0," ",COUNTRY_INFO!C21) -> Murore | D21: T3 (ALB/MBD) | E21: ALB | F21: 2022-01-22 | G21: 19597 | H21: 48843 | I21: 4202.8 | J21: 72642.8 | K21: 25079 | L21: 51183 | M21: 3104 | N21: 79366 | O21: 127.9736694 | P21: 104.7908605 | Q21: 73.85552489 | R21: 109.2551499 | S21: =COUNTRY_INFO!E21 -> 19597 | T21: =COUNTRY_INFO!F21 -> 48843 | U21: =COUNTRY_INFO!G21 -> 93134 | Z21: 19597 | AA21: 48843 | AB21: 4202.8
A22: =IF(COUNTRY_INFO!A22=0," ",COUNTRY_INFO!A22) -> Burundi | B22: =IF(COUNTRY_INFO!B22=0," ",COUNTRY_INFO!B22) -> Cibitoke | C22: =IF(COUNTRY_INFO!C22=0," ",COUNTRY_INFO!C22) -> Bukinanyana | D22: T3 (ALB/MBD) | E22: ALB | F22: 2022-01-22 | G22: 31111 | H22: 70007 | I22: 6166.8 | J22: 107284.8 | K22: 28055 | L22: 79169 | M22: 5028 | N22: 112252 | O22: 90.17710778 | P22: 113.0872627 | Q22: 81.53337225 | R22: 104.6299196 | S22: =COUNTRY_INFO!E22 -> 31111 | T22: =COUNTRY_INFO!F22 -> 70007 | U22: =COUNTRY_INFO!G22 -> 136656 | Z22: 31111 | AA22: 70007 | AB22: 6166.8
A23: =IF(COUNTRY_INFO!A23=0," ",COUNTRY_INFO!A23) -> Burundi | B23: =IF(COUNTRY_INFO!B23=0," ",COUNTRY_INFO!B23) -> Cibitoke | C23: =IF(COUNTRY_INFO!C23=0," ",COUNTRY_INFO!C23) -> Cibitoke | D23: T3 (ALB/MBD) | E23: ALB | F23: 2022-01-22 | G23: 28439 | H23: 58729 | I23: 5762.675 | J23: 92930.675 | K23: 27255 | L23: 77180 | M23: 3276 | N23: 107711 | O23: 95.83670312 | P23: 131.4171874 | Q23: 56.84859896 | R23: 115.9046784 | S23: =COUNTRY_INFO!E23 -> 28439 | T23: =COUNTRY_INFO!F23 -> 58729 | U23: =COUNTRY_INFO!G23 -> 127701 | Z23: 28439 | AA23: 58729 | AB23: 5762.675
A24: =IF(COUNTRY_INFO!A24=0," ",COUNTRY_INFO!A24) -> Burundi | B24: =IF(COUNTRY_INFO!B24=0," ",COUNTRY_INFO!B24) -> Cibitoke | C24: =IF(COUNTRY_INFO!C24=0," ",COUNTRY_INFO!C24) -> Mabayi | D24: T3 (ALB/MBD) | E24: ALB | F24: 2022-01-22 | G24: 29899 | H24: 68604 | I24: 6043.175 | J24: 104546.175 | K24: 29000 | L24: 70647 | M24: 3957 | N24: 103604 | O24: 96.99321048 | P24: 102.9779605 | Q24: 65.47882529 | R24: 99.09879534 | S24: =COUNTRY_INFO!E24 -> 29899 | T24: =COUNTRY_INFO!F24 -> 68604 | U24: =COUNTRY_INFO!G24 -> 133917 | Z24: 29899 | AA24: 68604 | AB24: 6043.175
A25: =IF(COUNTRY_INFO!A25=0," ",COUNTRY_INFO!A25) -> Burundi | B25: =IF(COUNTRY_INFO!B25=0," ",COUNTRY_INFO!B25) -> Gitega | C25: =IF(COUNTRY_INFO!C25=0," ",COUNTRY_INFO!C25) -> Gitega | D25: T3 (ALB/MBD) | E25: ALB | F25: 2022-01-22 | G25: 34285 | H25: 86121 | I25: 8900.625 | J25: 129306.625 | K25: 44372 | L25: 99042 | M25: 4437 | N25: 147851 | O25: 129.4210296 | P25: 115.0033093 | Q25: 49.85043185 | R25: 114.3413959 | S25: =COUNTRY_INFO!E25 -> 34285 | T25: =COUNTRY_INFO!F25 -> 86121 | U25: =COUNTRY_INFO!G25 -> 197238 | Z25: 34285 | AA25: 86121 | AB25: 8900.625
A26: =IF(COUNTRY_INFO!A26=0," ",COUNTRY_INFO!A26) -> Burundi | B26: =IF(COUNTRY_INFO!B26=0," ",COUNTRY_INFO!B26) -> Gitega | C26: =IF(COUNTRY_INFO!C26=0," ",COUNTRY_INFO!C26) -> Kibuye | D26: T3 (ALB/MBD) | E26: ALB | F26: 2022-01-22 | G26: 29530 | H26: 78237 | I26: 7447.5 | J26: 115214.5 | K26: 35625 | L26: 86094 | M26: 5466 | N26: 127185 | O26: 120.6400271 | P26: 110.042563 | Q26: 73.39375629 | R26: 110.3897513 | S26: =COUNTRY_INFO!E26 -> 29530 | T26: =COUNTRY_INFO!F26 -> 78237 | U26: =COUNTRY_INFO!G26 -> 165037 | Z26: 29530 | AA26: 78237 | AB26: 7447.5
A27: =IF(COUNTRY_INFO!A27=0," ",COUNTRY_INFO!A27) -> Burundi | B27: =IF(COUNTRY_INFO!B27=0," ",COUNTRY_INFO!B27) -> Gitega | C27: =IF(COUNTRY_INFO!C27=0," ",COUNTRY_INFO!C27) -> Mutaho | D27: T3 (ALB/MBD) | E27: ALB | F27: 2022-01-22 | G27: 26950 | H27: 68717 | I27: 6781.825 | J27: 102448.825 | K27: 31331 | L27: 73559 | M27: 4722 | N27: 109612 | O27: 116.2560297 | P27: 107.0462913 | Q27: 69.62727584 | R27: 106.9919543 | S27: =COUNTRY_INFO!E27 -> 26950 | T27: =COUNTRY_INFO!F27 -> 68717 | U27: =COUNTRY_INFO!G27 -> 150285 | Z27: 26950 | AA27: 68717 | AB27: 6781.825
A28: =IF(COUNTRY_INFO!A28=0," ",COUNTRY_INFO!A28) -> Burundi | B28: =IF(COUNTRY_INFO!B28=0," ",COUNTRY_INFO!B28) -> Gitega | C28: =IF(COUNTRY_INFO!C28=0," ",COUNTRY_INFO!C28) -> Ryansoro | D28: T3 (ALB/MBD) | E28: ALB | F28: 2022-01-22 | G28: 19638 | H28: 56603 | I28: 5178.5 | J28: 81419.5 | K28: 22959 | L28: 53076 | M28: 4296 | N28: 80331 | O28: 116.9110907 | P28: 93.76888151 | Q28: 82.95838563 | R28: 98.66309668 | S28: =COUNTRY_INFO!E28 -> 19638 | T28: =COUNTRY_INFO!F28 -> 56603 | U28: =COUNTRY_INFO!G28 -> 114756 | Z28: 19638 | AA28: 56603 | AB28: 5178.5
A29: =IF(COUNTRY_INFO!A29=0," ",COUNTRY_INFO!A29) -> Burundi | B29: =IF(COUNTRY_INFO!B29=0," ",COUNTRY_INFO!B29) -> Karusi | C29: =IF(COUNTRY_INFO!C29=0," ",COUNTRY_INFO!C29) -> Buhiga | D29: T3 (ALB/MBD) | E29: ALB | F29: 2022-01-22 | G29: 41164 | H29: 103191 | I29: 9037.65 | J29: 153392.65 | K29: 43754 | L29: 125870 | M29: 8491 | N29: 178115 | O29: 106.2919055 | P29: 121.9776919 | Q29: 93.95141436 | R29: 116.1170369 | S29: =COUNTRY_INFO!E29 -> 41164 | T29: =COUNTRY_INFO!F29 -> 103191 | U29: =COUNTRY_INFO!G29 -> 200274 | Z29: 41164 | AA29: 103191 | AB29: 9037.65
A30: =IF(COUNTRY_INFO!A30=0," ",COUNTRY_INFO!A30) -> Burundi | B30: =IF(COUNTRY_INFO!B30=0," ",COUNTRY_INFO!B30) -> Karusi | C30: =IF(COUNTRY_INFO!C30=0," ",COUNTRY_INFO!C30) -> Nyabikere | D30: T3 (ALB/MBD) | E30: ALB | F30: 2022-01-22 | G30: 36805 | H30: 91053 | I30: 7998.5 | J30: 135856.5 | K30: 40490 | L30: 99541 | M30: 7408 | N30: 147439 | O30: 110.0122266 | P30: 109.3220432 | Q30: 92.61736576 | R30: 108.5255398 | S30: =COUNTRY_INFO!E30 -> 36805 | T30: =COUNTRY_INFO!F30 -> 91053 | U30: =COUNTRY_INFO!G30 -> 177247 | Z30: 36805 | AA30: 91053 | AB30: 7998.5
A31: =IF(COUNTRY_INFO!A31=0," ",COUNTRY_INFO!A31) -> Burundi | B31: =IF(COUNTRY_INFO!B31=0," ",COUNTRY_INFO!B31) -> Kayanza | C31: =IF(COUNTRY_INFO!C31=0," ",COUNTRY_INFO!C31) -> Gahombo | D31: T3 (ALB/MBD) | E31: ALB | F31: 2022-01-22 | G31: 26182 | H31: 74654 | I31: 6566.525 | J31: 107402.525 | K31: 26236 | L31: 67142 | M31: 4368 | N31: 97746 | O31: 100.2062486 | P31: 89.9375787 | Q31: 66.51920156 | R31: 91.00903354 | S31: =COUNTRY_INFO!E31 -> 26182 | T31: =COUNTRY_INFO!F31 -> 74654 | U31: =COUNTRY_INFO!G31 -> 145514 | Z31: 26182 | AA31: 74654 | AB31: 6566.525
A32: =IF(COUNTRY_INFO!A32=0," ",COUNTRY_INFO!A32) -> Burundi | B32: =IF(COUNTRY_INFO!B32=0," ",COUNTRY_INFO!B32) -> Kayanza | C32: =IF(COUNTRY_INFO!C32=0," ",COUNTRY_INFO!C32) -> Kayanza | D32: T3 (ALB/MBD) | E32: ALB | F32: 2022-01-22 | G32: 37990 | H32: 95351 | I32: 8487.7 | J32: 141828.7 | K32: 38979 | L32: 96038 | M32: 5839 | N32: 140856 | O32: 102.6033167 | P32: 100.7204959 | Q32: 68.79366613 | R32: 99.31417266 | S32: =COUNTRY_INFO!E32 -> 37990 | T32: =COUNTRY_INFO!F32 -> 95351 | U32: =COUNTRY_INFO!G32 -> 188087 | Z32: 37990 | AA32: 95351 | AB32: 8487.7
A33: =IF(COUNTRY_INFO!A33=0," ",COUNTRY_INFO!A33) -> Burundi | B33: =IF(COUNTRY_INFO!B33=0," ",COUNTRY_INFO!B33) -> Kayanza | C33: =IF(COUNTRY_INFO!C33=0," ",COUNTRY_INFO!C33) -> Musema | D33: T3 (ALB/MBD) | E33: ALB | F33: 2022-01-22 | G33: 31877 | H33: 82022 | I33: 7796.825 | J33: 121695.825 | K33: 27103 | L33: 88027 | M33: 5220 | N33: 120350 | O33: 85.02368479 | P33: 107.3212065 | Q33: 66.95032914 | R33: 98.8941075 | S33: =COUNTRY_INFO!E33 -> 31877 | T33: =COUNTRY_INFO!F33 -> 82022 | U33: =COUNTRY_INFO!G33 -> 172778 | Z33: 31877 | AA33: 82022 | AB33: 7796.825
A34: =IF(COUNTRY_INFO!A34=0," ",COUNTRY_INFO!A34) -> Burundi | B34: =IF(COUNTRY_INFO!B34=0," ",COUNTRY_INFO!B34) -> Kirundo | C34: =IF(COUNTRY_INFO!C34=0," ",COUNTRY_INFO!C34) -> Busoni | D34: T3 (ALB/MBD) | E34: ALB | F34: 2022-01-22 | G34: 26666 | H34: 64168 | I34: 5676.5 | J34: 96510.5 | K34: 25802 | L34: 65688 | M34: 3497 | N34: 94987 | O34: 96.759919 | P34: 102.3687819 | Q34: 61.60486215 | R34: 98.42141529 | S34: =COUNTRY_INFO!E34 -> 26666 | T34: =COUNTRY_INFO!F34 -> 64168 | U34: =COUNTRY_INFO!G34 -> 125791 | Z34: 26666 | AA34: 64168 | AB34: 5676.5
A35: =IF(COUNTRY_INFO!A35=0," ",COUNTRY_INFO!A35) -> Burundi | B35: =IF(COUNTRY_INFO!B35=0," ",COUNTRY_INFO!B35) -> Kirundo | C35: =IF(COUNTRY_INFO!C35=0," ",COUNTRY_INFO!C35) -> Kirundo | D35: T3 (ALB/MBD) | E35: ALB | F35: 2022-01-22 | G35: 32164 | H35: 78712 | I35: 7118.625 | J35: 117994.625 | K35: 30636 | L35: 72638 | M35: 4827 | N35: 108101 | O35: 95.2493471 | P35: 92.28326049 | Q35: 67.80803877 | R35: 91.6151901 | S35: =COUNTRY_INFO!E35 -> 32164 | T35: =COUNTRY_INFO!F35 -> 78712 | U35: =COUNTRY_INFO!G35 -> 157749 | Z35: 32164 | AA35: 78712 | AB35: 7118.625
A36: =IF(COUNTRY_INFO!A36=0," ",COUNTRY_INFO!A36) -> Burundi | B36: =IF(COUNTRY_INFO!B36=0," ",COUNTRY_INFO!B36) -> Kirundo | C36: =IF(COUNTRY_INFO!C36=0," ",COUNTRY_INFO!C36) -> Mukenke | D36: T3 (ALB/MBD) | E36: ALB | F36: 2022-01-22 | G36: 23371 | H36: 51160 | I36: 4845.775 | J36: 79376.775 | K36: 20228 | L36: 45955 | M36: 2726 | N36: 68909 | O36: 86.55170938 | P36: 89.82603597 | Q36: 56.25519138 | R36: 86.81254687 | S36: =COUNTRY_INFO!E36 -> 23371 | T36: =COUNTRY_INFO!F36 -> 51160 | U36: =COUNTRY_INFO!G36 -> 107382 | Z36: 23371 | AA36: 51160 | AB36: 4845.775
A37: =IF(COUNTRY_INFO!A37=0," ",COUNTRY_INFO!A37) -> Burundi | B37: =IF(COUNTRY_INFO!B37=0," ",COUNTRY_INFO!B37) -> Kirundo | C37: =IF(COUNTRY_INFO!C37=0," ",COUNTRY_INFO!C37) -> Vumbi | D37: T3 (ALB/MBD) | E37: ALB | F37: 2022-01-22 | G37: 31364 | H37: 72552 | I37: 6882.525 | J37: 110798.525 | K37: 32746 | L37: 78367 | M37: 9824 | N37: 120937 | O37: 104.4063257 | P37: 108.014941 | Q37: 142.7383119 | R37: 109.15037 | S37: =COUNTRY_INFO!E37 -> 31364 | T37: =COUNTRY_INFO!F37 -> 72552 | U37: =COUNTRY_INFO!G37 -> 152517 | Z37: 31364 | AA37: 72552 | AB37: 6882.525
A38: =IF(COUNTRY_INFO!A38=0," ",COUNTRY_INFO!A38) -> Burundi | B38: =IF(COUNTRY_INFO!B38=0," ",COUNTRY_INFO!B38) -> Makamba | C38: =IF(COUNTRY_INFO!C38=0," ",COUNTRY_INFO!C38) -> Makamba | D38: T3 (ALB/MBD) | E38: ALB | F38: 2022-01-22 | G38: 41282 | H38: 102933 | I38: 8864.175 | J38: 153079.175 | K38: 47488 | L38: 95470 | M38: 8000 | N38: 150958 | O38: 115.0331864 | P38: 92.74965269 | Q38: 90.25092578 | R38: 98.61432817 | S38: =COUNTRY_INFO!E38 -> 41282 | T38: =COUNTRY_INFO!F38 -> 102933 | U38: =COUNTRY_INFO!G38 -> 196430 | Z38: 41282 | AA38: 102933 | AB38: 8864.175
A39: =IF(COUNTRY_INFO!A39=0," ",COUNTRY_INFO!A39) -> Burundi | B39: =IF(COUNTRY_INFO!B39=0," ",COUNTRY_INFO!B39) -> Makamba | C39: =IF(COUNTRY_INFO!C39=0," ",COUNTRY_INFO!C39) -> Nyanza-Lac | D39: T3 (ALB/MBD) | E39: ALB | F39: 2022-01-22 | G39: 37014 | H39: 90776 | I39: 7955.6 | J39: 135745.6 | K39: 45599 | L39: 106671 | M39: 6776 | N39: 159046 | O39: 123.1939266 | P39: 117.5101348 | Q39: 85.17270853 | R39: 117.1647552 | S39: =COUNTRY_INFO!E39 -> 37014 | T39: =COUNTRY_INFO!F39 -> 90776 | U39: =COUNTRY_INFO!G39 -> 176296 | Z39: 37014 | AA39: 90776 | AB39: 7955.6
A40: =IF(COUNTRY_INFO!A40=0," ",COUNTRY_INFO!A40) -> Burundi | B40: =IF(COUNTRY_INFO!B40=0," ",COUNTRY_INFO!B40) -> Muramvya | C40: =IF(COUNTRY_INFO!C40=0," ",COUNTRY_INFO!C40) -> Kiganda | D40: T3 (ALB/MBD) | E40: ALB | F40: 2022-01-22 | G40: 22538 | H40: 60628 | I40: 5669.375 | J40: 88835.375 | K40: 29415 | L40: 47453 | M40: 5170 | N40: 82038 | O40: 130.5129115 | P40: 78.26911658 | Q40: 91.19170984 | R40: 92.34834659 | S40: =COUNTRY_INFO!E40 -> 22538 | T40: =COUNTRY_INFO!F40 -> 60628 | U40: =COUNTRY_INFO!G40 -> 125633 | Z40: 22538 | AA40: 60628 | AB40: 5669.375
A41: =IF(COUNTRY_INFO!A41=0," ",COUNTRY_INFO!A41) -> Burundi | B41: =IF(COUNTRY_INFO!B41=0," ",COUNTRY_INFO!B41) -> Muramvya | C41: =IF(COUNTRY_INFO!C41=0," ",COUNTRY_INFO!C41) -> Muramvya | D41: T3 (ALB/MBD) | E41: ALB | F41: 2022-01-22 | G41: 23661 | H41: 59801 | I41: 5751.575 | J41: 89213.575 | K41: 30128 | L41: 73190 | M41: 4901 | N41: 108219 | O41: 127.3318964 | P41: 122.3892577 | Q41: 85.21144208 | R41: 121.3032882 | S41: =COUNTRY_INFO!E41 -> 23661 | T41: =COUNTRY_INFO!F41 -> 59801 | U41: =COUNTRY_INFO!G41 -> 127455 | Z41: 23661 | AA41: 59801 | AB41: 5751.575
A42: =IF(COUNTRY_INFO!A42=0," ",COUNTRY_INFO!A42) -> Burundi | B42: =IF(COUNTRY_INFO!B42=0," ",COUNTRY_INFO!B42) -> Muyinga | C42: =IF(COUNTRY_INFO!C42=0," ",COUNTRY_INFO!C42) -> Gashoho | D42: T3 (ALB/MBD) | E42: ALB | F42: 2022-01-22 | G42: 26644 | H42: 62991 | I42: 5781.15 | J42: 95416.15 | K42: 26236 | L42: 67142 | M42: 4509 | N42: 97887 | O42: 98.46869839 | P42: 106.5898303 | Q42: 77.99486261 | R42: 102.5895511 | S42: =COUNTRY_INFO!E42 -> 26644 | T42: =COUNTRY_INFO!F42 -> 62991 | U42: =COUNTRY_INFO!G42 -> 128110 | Z42: 26644 | AA42: 62991 | AB42: 5781.15
A43: =IF(COUNTRY_INFO!A43=0," ",COUNTRY_INFO!A43) -> Burundi | B43: =IF(COUNTRY_INFO!B43=0," ",COUNTRY_INFO!B43) -> Muyinga | C43: =IF(COUNTRY_INFO!C43=0," ",COUNTRY_INFO!C43) -> Giteranyi | D43: T3 (ALB/MBD) | E43: ALB | F43: 2022-01-22 | G43: 47338 | H43: 109204 | I43: 9685.15 | J43: 166227.15 | K43: 38979 | L43: 96038 | M43: 7154 | N43: 142171 | O43: 82.34188179 | P43: 87.94366507 | Q43: 73.86566032 | R43: 85.52814627 | S43: =COUNTRY_INFO!E43 -> 47338 | T43: =COUNTRY_INFO!F43 -> 109204 | U43: =COUNTRY_INFO!G43 -> 214623 | Z43: 47338 | AA43: 109204 | AB43: 9685.15
A44: =IF(COUNTRY_INFO!A44=0," ",COUNTRY_INFO!A44) -> Burundi | B44: =IF(COUNTRY_INFO!B44=0," ",COUNTRY_INFO!B44) -> Muyinga | C44: =IF(COUNTRY_INFO!C44=0," ",COUNTRY_INFO!C44) -> Muyinga | D44: T3 (ALB/MBD) | E44: ALB | F44: 2022-01-22 | G44: 52366 | H44: 101297 | I44: 9219.225 | J44: 162882.225 | K44: 27103 | L44: 88027 | M44: 7157 | N44: 122287 | O44: 51.75686514 | P44: 86.89990819 | Q44: 77.63125425 | R44: 75.07694593 | S44: =COUNTRY_INFO!E44 -> 52366 | T44: =COUNTRY_INFO!F44 -> 101297 | U44: =COUNTRY_INFO!G44 -> 204298 | Z44: 52366 | AA44: 101297 | AB44: 9219.225
A45: =IF(COUNTRY_INFO!A45=0," ",COUNTRY_INFO!A45) -> Burundi | B45: =IF(COUNTRY_INFO!B45=0," ",COUNTRY_INFO!B45) -> Mwaro | C45: =IF(COUNTRY_INFO!C45=0," ",COUNTRY_INFO!C45) -> Fota | D45: T3 (ALB/MBD) | E45: ALB | F45: 2022-01-22 | G45: 18860 | H45: 53915 | I45: 5056.075 | J45: 77831.075 | K45: 25802 | L45: 65688 | M45: 2439 | N45: 93929 | O45: 136.8080594 | P45: 121.8362237 | Q45: 48.23899962 | R45: 120.683159 | S45: =COUNTRY_INFO!E45 -> 18860 | T45: =COUNTRY_INFO!F45 -> 53915 | U45: =COUNTRY_INFO!G45 -> 112043 | Z45: 18860 | AA45: 53915 | AB45: 5056.075
A46: =IF(COUNTRY_INFO!A46=0," ",COUNTRY_INFO!A46) -> Burundi | B46: =IF(COUNTRY_INFO!B46=0," ",COUNTRY_INFO!B46) -> Mwaro | C46: =IF(COUNTRY_INFO!C46=0," ",COUNTRY_INFO!C46) -> Kibumbu | D46: T3 (ALB/MBD) | E46: ALB | F46: 2022-01-22 | G46: 20931 | H46: 59341 | I46: 5605.825 | J46: 85877.825 | K46: 30636 | L46: 72638 | M46: 3009 | N46: 106283 | O46: 146.3666332 | P46: 122.4077788 | Q46: 53.67630991 | R46: 123.7607031 | S46: =COUNTRY_INFO!E46 -> 20931 | T46: =COUNTRY_INFO!F46 -> 59341 | U46: =COUNTRY_INFO!G46 -> 124225 | Z46: 20931 | AA46: 59341 | AB46: 5605.825
A47: =IF(COUNTRY_INFO!A47=0," ",COUNTRY_INFO!A47) -> Burundi | B47: =IF(COUNTRY_INFO!B47=0," ",COUNTRY_INFO!B47) -> Ngozi | C47: =IF(COUNTRY_INFO!C47=0," ",COUNTRY_INFO!C47) -> Buye | D47: T3 (ALB/MBD) | E47: ALB | F47: 2022-01-22 | G47: 31055 | H47: 75713 | I47: 6865 | J47: 113633 | K47: 20228 | L47: 45955 | M47: 4193 | N47: 70376 | O47: 65.13604895 | P47: 60.69631371 | Q47: 61.07793154 | R47: 61.93271321 | S47: =COUNTRY_INFO!E47 -> 31055 | T47: =COUNTRY_INFO!F47 -> 75713 | U47: =COUNTRY_INFO!G47 -> 152128 | Z47: 31055 | AA47: 75713 | AB47: 6865
A48: =IF(COUNTRY_INFO!A48=0," ",COUNTRY_INFO!A48) -> Burundi | B48: =IF(COUNTRY_INFO!B48=0," ",COUNTRY_INFO!B48) -> Ngozi | C48: =IF(COUNTRY_INFO!C48=0," ",COUNTRY_INFO!C48) -> Kiremba | D48: T3 (ALB/MBD) | E48: ALB | F48: 2022-01-22 | G48: 41532 | H48: 100904 | I48: 9243.625 | J48: 151679.625 | K48: 32746 | L48: 78367 | M48: 6290 | N48: 117403 | O48: 78.84522778 | P48: 77.66490922 | Q48: 68.04689719 | R48: 77.40195824 | S48: =COUNTRY_INFO!E48 -> 41532 | T48: =COUNTRY_INFO!F48 -> 100904 | U48: =COUNTRY_INFO!G48 -> 204839 | Z48: 41532 | AA48: 100904 | AB48: 9243.625
A49: =IF(COUNTRY_INFO!A49=0," ",COUNTRY_INFO!A49) -> Burundi | B49: =IF(COUNTRY_INFO!B49=0," ",COUNTRY_INFO!B49) -> Ngozi | C49: =IF(COUNTRY_INFO!C49=0," ",COUNTRY_INFO!C49) -> Ngozi | D49: T3 (ALB/MBD) | E49: ALB | F49: 2022-01-22 | G49: 39990 | H49: 104679 | I49: 9681.925 | J49: 154350.925 | K49: 47488 | L49: 95470 | M49: 8040 | N49: 150998 | O49: 118.7496874 | P49: 91.20262899 | Q49: 83.04133734 | R49: 97.82772601 | S49: =COUNTRY_INFO!E49 -> 39990 | T49: =COUNTRY_INFO!F49 -> 104679 | U49: =COUNTRY_INFO!G49 -> 214551 | Z49: 39990 | AA49: 104679 | AB49: 9681.925
A50: =IF(COUNTRY_INFO!A50=0," ",COUNTRY_INFO!A50) -> Burundi | B50: =IF(COUNTRY_INFO!B50=0," ",COUNTRY_INFO!B50) -> Rumonge | C50: =IF(COUNTRY_INFO!C50=0," ",COUNTRY_INFO!C50) -> Bugarama | D50: T3 (ALB/MBD) | E50: ALB | F50: 2022-01-22 | G50: 16168 | H50: 40045 | I50: 3556.6 | J50: 59769.6 | K50: 45599 | L50: 106671 | M50: 4616 | N50: 156886 | O50: 282.0324097 | P50: 266.3778249 | Q50: 129.7868751 | R50: 262.4846076 | S50: =COUNTRY_INFO!E50 -> 16168 | T50: =COUNTRY_INFO!F50 -> 40045 | U50: =COUNTRY_INFO!G50 -> 128264 | Z50: 16168 | AA50: 40045 | AB50: 3556.6
A51: =IF(COUNTRY_INFO!A51=0," ",COUNTRY_INFO!A51) -> Burundi | B51: =IF(COUNTRY_INFO!B51=0," ",COUNTRY_INFO!B51) -> Rumonge | C51: =IF(COUNTRY_INFO!C51=0," ",COUNTRY_INFO!C51) -> Rumonge | D51: T3 (ALB/MBD) | E51: ALB | F51: 2022-01-22 | G51: 47520 | H51: 110964 | I51: 10184.425 | J51: 168668.425 | K51: 29415 | L51: 47453 | M51: 9431 | N51: 86299 | O51: 61.90025253 | P51: 42.76431996 | Q51: 92.60218422 | R51: 51.16488163 | S51: =COUNTRY_INFO!E51 -> 47520 | T51: =COUNTRY_INFO!F51 -> 110964 | U51: =COUNTRY_INFO!G51 -> 139911 | Z51: 47520 | AA51: 110964 | AB51: 10184.425
A52: =IF(COUNTRY_INFO!A52=0," ",COUNTRY_INFO!A52) -> Burundi | B52: =IF(COUNTRY_INFO!B52=0," ",COUNTRY_INFO!B52) -> Rutana | C52: =IF(COUNTRY_INFO!C52=0," ",COUNTRY_INFO!C52) -> Gihofi | D52: T3 (ALB/MBD) | E52: ALB | F52: 2022-01-22 | G52: 34867 | H52: 79402 | I52: 6735.85 | J52: 121004.85 | K52: 30128 | L52: 73190 | M52: 4997 | N52: 108315 | O52: 86.40835174 | P52: 92.17651948 | Q52: 74.18514367 | R52: 89.51294101 | S52: =COUNTRY_INFO!E52 -> 34867 | T52: =COUNTRY_INFO!F52 -> 79402 | U52: =COUNTRY_INFO!G52 -> 149266 | Z52: 34867 | AA52: 79402 | AB52: 6735.85
A53: =IF(COUNTRY_INFO!A53=0," ",COUNTRY_INFO!A53) -> Burundi | B53: =IF(COUNTRY_INFO!B53=0," ",COUNTRY_INFO!B53) -> Rutana | C53: =IF(COUNTRY_INFO!C53=0," ",COUNTRY_INFO!C53) -> Rutana | D53: T3 (ALB/MBD) | E53: ALB | F53: 2022-01-22 | G53: 25576 | H53: 70911 | I53: 6282.425 | J53: 102769.425 | K53: 25398 | L53: 66894 | M53: 3635 | N53: 95927 | O53: 99.30403503 | P53: 94.33515252 | Q53: 57.85982324 | R53: 93.34196431 | S53: =COUNTRY_INFO!E53 -> 25576 | T53: =COUNTRY_INFO!F53 -> 70911 | U53: =COUNTRY_INFO!G53 -> 139219 | Z53: 25576 | AA53: 70911 | AB53: 6282.425
A54: =IF(COUNTRY_INFO!A54=0," ",COUNTRY_INFO!A54) -> Burundi | B54: =IF(COUNTRY_INFO!B54=0," ",COUNTRY_INFO!B54) -> Ruyigi | C54: =IF(COUNTRY_INFO!C54=0," ",COUNTRY_INFO!C54) -> Butezi | D54: T3 (ALB/MBD) | E54: ALB | F54: 2022-01-22 | G54: 18013 | H54: 45449 | I54: 3995.675 | J54: 67457.675 | K54: 25161 | L54: 49538 | M54: 3643 | N54: 78342 | O54: 139.6824516 | P54: 108.9968976 | Q54: 91.17358143 | R54: 116.1350432 | S54: =COUNTRY_INFO!E54 -> 18013 | T54: =COUNTRY_INFO!F54 -> 45449 | U54: =COUNTRY_INFO!G54 -> 88544 | Z54: 18013 | AA54: 45449 | AB54: 3995.675
A55: =IF(COUNTRY_INFO!A55=0," ",COUNTRY_INFO!A55) -> Burundi | B55: =IF(COUNTRY_INFO!B55=0," ",COUNTRY_INFO!B55) -> Gisuru | C55: =IF(COUNTRY_INFO!C55=0," ",COUNTRY_INFO!C55) -> Gisuru | D55: T3 (ALB/MBD) | E55: ALB | F55: 2022-01-22 | G55: 19052 | H55: 46206 | I55: 3882.375 | J55: 69140.375 | M55: 2523 | N55: 2523 | O55: - | P55: - | Q55: 64.9859944 | R55: 3.64909794 | S55: =COUNTRY_INFO!E55 -> 19052 | T55: =COUNTRY_INFO!F55 -> 46206 | U55: =COUNTRY_INFO!G55 -> 86033 | AB55: 3882.375
A56: =IF(COUNTRY_INFO!A56=0," ",COUNTRY_INFO!A56) -> Burundi | B56: =IF(COUNTRY_INFO!B56=0," ",COUNTRY_INFO!B56) -> Ruyigi | C56: =IF(COUNTRY_INFO!C56=0," ",COUNTRY_INFO!C56) -> Kinyinya | D56: T3 (ALB/MBD) | E56: ALB | F56: 2022-01-22 | G56: 19839 | H56: 46914 | I56: 4081.875 | J56: 70834.875 | K56: 43041 | L56: 82773 | M56: 2760 | N56: 128574 | O56: 216.9514592 | P56: 176.4356056 | Q56: 67.6159853 | R56: 181.5122847 | S56: =COUNTRY_INFO!E56 -> 19839 | T56: =COUNTRY_INFO!F56 -> 46914 | U56: =COUNTRY_INFO!G56 -> 90454 | Z56: 19839 | AA56: 46914 | AB56: 4081.875
A57: =IF(COUNTRY_INFO!A57=0," ",COUNTRY_INFO!A57) -> Burundi | B57: =IF(COUNTRY_INFO!B57=0," ",COUNTRY_INFO!B57) -> Ruyigi | C57: =IF(COUNTRY_INFO!C57=0," ",COUNTRY_INFO!C57) -> Ruyigi | D57: T3 (ALB/MBD) | E57: ALB | F57: 2022-01-22 | G57: 15695 | H57: 39863 | I57: 3674.4 | J57: 59232.4 | K57: 21665 | L57: 45120 | M57: 2894 | N57: 69679 | O57: 138.0375916 | P57: 113.1876678 | Q57: 78.76115828 | R57: 117.6366313 | S57: =COUNTRY_INFO!E57 -> 15695 | T57: =COUNTRY_INFO!F57 -> 39863 | U57: =COUNTRY_INFO!G57 -> 81425 | Z57: 15695 | AA57: 39863 | AB57: 3674.4

Sheet DISTRICT
A1: Nombre d'individus traités
A2: Structure administrative, population traitée par groupe d'âge et sexe
A4: TOTAL | D4: =SUM(D$9:D$1000) -> 0 | E4: =SUM(E$9:E$1000) -> 0 | F4: =SUM(F$9:F$1000) -> 0 | G4: =SUM(G$9:G$1000) -> 0 | H4: =SUM(H$9:H$1000) -> 0 | I4: =IF(D4>0, IF(H4/D4*100<>0, H4/D4*100, "-"),0) -> 0 | J4: =SUM(J$9:J$1000) -> 2071686 | K4: =SUM(K$9:K$1000) -> 0 | L4: =SUM(L$9:L$1000) -> 0 | M4: =SUM(M$9:M$1000) -> 0 | N4: =SUM(N$9:N$1000) -> 0 | O4: =IF(J4>0, IF(N4/J4*100<>0, N4/J4*100, "-"),0) -> - | P4: =SUM(P$9:P$1000) -> 967119 | Q4: =SUM(Q$9:Q$1000) -> 0 | R4: =SUM(R$9:R$1000) -> 0 | S4: =SUM(S$9:S$1000) -> 5736770 | T4: =SUM(T$9:T$1000) -> 262917 | V4: 682636 | X4: =SUM(X$9:X$1000) -> 945553 | Y4: =IF(P4>0, IF(X4/P4*100<>0, X4/P4*100, "-"),0) -> 97.77007793 | Z4: =SUM(Z$9:Z$1000) -> 627432.08 | AA4: 800917 | AB4: 883845 | AC4: 1681868 | AD4: 551384.7 | AF4: 0 | AH4: 551384.7 | AI4: =IF(Z4>0, IF(AH4/Z4*100<>0, AH4/Z4*100, "-"),0) -> 87.87958372
A6: Structure administrative du pays | D6: Population nécessitant la CP pour FL | E6: Population traitée pour la filariose lymphatique | J6: Population nécessitant la CP pour ONCHO | K6: Population traitée pour l'onchocercose | P6: Population nécessitant la CP pour STH | Q6: Population traitée pour les géohelminthiases | Z6: Population nécessitant la CP pour SCH | AA6: Population traitée pour la schistosomiase | AP6: =SUM(AP9:AP1000) -> 143705.7979 | AQ6: 504144.2992 | AR6: 1526545.257 | AS6: 1171550.453 | AT6: =SUM(AT9:AT1000) -> 3345945.807 | AU6: =COUNTIF(AU9:AU1000,"Y") -> 19 | AV6: =SUM(AV9:AV1000) -> 1575193 | AW6: 3856150 | AX6: 313139 | AY6: =SUM(AY9:AY1000) -> 5744482 | AZ6: 262917 | BA6: 1174047.49 | BB6: 0 | BC6: 1414919.189 | BD6: =IF(AT6<>0,BC6/AT6,0) -> 0.4228757041
A7: Pays | B7: Région/Département | C7: District | E7: Masculine | F7: Féminine | G7: Total traité | H7: Total traité ayant besoin de CP | I7: (%) | K7: Masculine | L7: Féminine | M7: Total traité | N7: Total traité ayant besoin de CP | O7: (%) | Q7: Masculine | R7: Féminine | S7: Total traité | T7: EAPréS traité ayant besoin de CP | U7: EAPréS (%) | V7: EAS traité ayant besoin de CP | W7: EAS (%) | X7: Total traité ayant besoin de CP | Y7: (%) | AA7: Masculine | AB7: Féminine | AC7: Total traité | AD7: EAS traité ayant besoin de CP | AE7: EAS (%) | AF7: Adultes traité ayant besoin de CP | AG7: Adultes (%) | AH7: Total traité ayant besoin de CP | AI7: (%) | AK7: LF | AL7: ONCHO | AM7: STH | AN7: SCH-SAC | AO7: SCH_Adults | AP7: <1 | AQ7: PreSAC | AR7: SAC | AS7: Adults | AT7: Total | AU7: Dis | AV7: PreSAC | AW7: SAC | AX7: Adults | AY7: Total | AZ7: PreSAC | BA7: SAC | BB7: Adults | BC7: Total | BD7: Coverage
A9: =IF(COUNTRY_INFO!A9=0," ",COUNTRY_INFO!A9) -> Burundi | B9: =IF(COUNTRY_INFO!B9=0," ",COUNTRY_INFO!B9) -> Bubanza | C9: =IF(COUNTRY_INFO!C9=0," ",COUNTRY_INFO!C9) -> Bubanza | D9: =COUNTRY_INFO!L9 -> 0 | G9: =MAX('MDA1'!M9,'MDA2'!M9) -> 0 | H9: =IF(AND(COUNTRY_INFO!H9>0,COUNTRY_INFO!H9<4),IF(D9>MAX('MDA1'!M9,'MDA2'!M9),MAX('MDA1'!M9,'MDA2'!M9),D9),0) -> 0 | I9: =IF(AND(COUNTRY_INFO!H9>0,COUNTRY_INFO!H9<4), IF(G9/D9*100<>0, IF(G9/D9*100>100,100,G9/D9*100), "-"),0) -> 0 | J9: =COUNTRY_INFO!M9 -> 258794 | M9: =MAX('MDA1'!M9,MAX('MDA3'!I9,'MDA3'!L9)+MAX('MDA3'!J9,'MDA3'!M9)) -> 0 | N9: =IF(AND(COUNTRY_INFO!I9>0,COUNTRY_INFO!I9<4),IF(J9>MAX('MDA1'!M9,MAX('MDA3'!I9,'MDA3'!L9)+MAX('MDA3'!J9,'MDA3'!M9)),MAX('MDA1'!M9,MAX('MDA3'!I9,'MDA3'!L9)+MAX('MDA3'!J9,'MDA3'!M9)),J9),0) -> 0 | O9: =IF(AND(COUNTRY_INFO!I9>0,COUNTRY_INFO!I9<4), IF(M9/J9*100<>0, IF(M9/J9*100>100,100,M9/J9*100), "-"),0) -> - | P9: =COUNTRY_INFO!N9 -> 0 | S9: =SUM(MAX('MDA2'!J9, 'T1'!L9, MAX(T3_R1!K9, T3_R2!K9)), MAX('MDA1'!K9, 'MDA2'!K9, 'T1'!M9, MAX(T3_R1!L9, T3_R2!L9)), MAX('MDA1'!L9, 'MDA2'!L9, 'T1'!N9, MAX(T3_R1!M9, T3_R2!M9))) -> 123116 | T9: =IF(AND(COUNTRY_INFO!J9>1,COUNTRY_INFO!J9<4),IF(COUNTRY_INFO!E9>MAX('MDA2'!J9,'T1'!L9,MAX(T3_R1!K9,T3_R2!K9)),MAX('MDA2'!J9,'T1'!L9,MAX(T3_R1!K9,T3_R2!K9)),COUNTRY_INFO!E9),0) -> 0 | U9: =IF(AND(COUNTRY_INFO!J9>1,COUNTRY_INFO!J9<4), IF(T9/COUNTRY_INFO!E9*100<>0, IF(T9/COUNTRY_INFO!E9*100>100,100,T9/COUNTRY_INFO!E9*100), "-"),0) -> 0 | V9: =IF(AND(COUNTRY_INFO!J9>1,COUNTRY_INFO!J9<4),IF(COUNTRY_INFO!F9>MAX('MDA1'!K9,'MDA2'!K9,'T1'!M9,MAX(T3_R1!L9,T3_R2!L9)),MAX('MDA1'!K9,'MDA2'!K9,'T1'!M9,MAX(T3_R1!L9,T3_R2!L9)),COUNTRY_INFO!F9),0) -> 0 | W9: =IF(AND(COUNTRY_INFO!J9>1,COUNTRY_INFO!J9<4), IF(V9/COUNTRY_INFO!F9*100<>0, IF(V9/COUNTRY_INFO!F9*100>100,100,V9/COUNTRY_INFO!F9*100), "-"),0) -> 0 | X9: =SUM(T9,V9) -> 0 | Y9: =IF(AND(COUNTRY_INFO!J9>1,COUNTRY_INFO!J9<4), IF(S9/P9*100<>0, IF(X9/P9*100>100,100,X9/P9*100), "-"),0) -> 0 | Z9: =COUNTRY_INFO!O9 -> 21769.11 | AA9: 36630 | AB9: 39630 | AC9: =MAX('T1'!L9,'T2'!J9)+MAX('T1'!M9,'T2'!K9)+MAX('T1'!N9,'T2'!L9) -> 76260 | AD9: =IF(COUNTRY_INFO!K9=1,IF(COUNTRY_INFO!F9*0.33>MAX('T1'!M9,'T2'!K9),MAX('T1'!M9,'T2'!K9),COUNTRY_INFO!F9*0.33),IF(COUNTRY_INFO!K9=2,IF(COUNTRY_INFO!F9*0.5>MAX('T1'!M9,'T2'!K9),MAX('T1'!M9,'T2'!K9),COUNTRY_INFO!F9*0.5),IF(COUNTRY_INFO!K9=3,IF(COUNTRY_INFO!F9>MAX('T1'!M9,'T2'!K9),MAX('T1'!M9,'T2'!K9),COUNTRY_INFO!F9),0))) -> 21769.11 | AE9: =IF(AND(COUNTRY_INFO!K9>0,COUNTRY_INFO!K9<4),IF(Z9>0,IF(COUNTRY_INFO!K9=1, AD9/(COUNTRY_INFO!F9*0.33)*100, IF(COUNTRY_INFO!K9=2, AD9/(COUNTRY_INFO!F9*0.5)*100, IF(COUNTRY_INFO!K9=3, AD9/COUNTRY_INFO!F9*100))),"-"),0) -> 100 | AF9: =IF(COUNTRY_INFO!K9=2,IF(COUNTRY_INFO!G9*0.2>MAX('T1'!N9,'T2'!L9),MAX('T1'!N9,'T2'!L9),COUNTRY_INFO!G9*0.2),IF(COUNTRY_INFO!K9=3,IF(COUNTRY_INFO!G9>MAX('T1'!N9,'T2'!L9),MAX('T1'!N9,'T2'!L9),COUNTRY_INFO!G9),0)) -> 0 | AG9: =IF(AND(COUNTRY_INFO!K9>0,COUNTRY_INFO!K9<4),IF(Z9>0,IF(COUNTRY_INFO!K9=1, 0, IF(COUNTRY_INFO!K9=2, AF9/(COUNTRY_INFO!G9*0.2)*100, IF(COUNTRY_INFO!K9=3, AF9/COUNTRY_INFO!G9*100))),"-"),0) -> 0 | AH9: =SUM(AD9,AF9) -> 21769.11 | AI9: =IF(AND(COUNTRY_INFO!K9>0,COUNTRY_INFO!K9<4), IF(AC9/Z9*100<>0, IF(AH9/Z9*100>100,100,AH9/Z9*100), "-"),0) -> 100 | AK9: =IF(AND(D9<>0, D9<>"Inconnu",D9<>"Interrompu",D9<>"Non requis"),D9/COUNTRY_INFO!D9, 0) -> 0 | AL9: =IF(AND(J9<>0,J9<>"Inconnu",J9<>"Interrompu",J9<>"Non requis"),J9/COUNTRY_INFO!D9, 0) -> 0.9991776284 | AM9: =IF(AND(P9<>0,P9<>"Inconnu",P9<>"Non requis"),P9/(COUNTRY_INFO!E9+COUNTRY_INFO!F9), 0) -> 0 | AN9: =IF(AND(Z9<>0,Z9<>"Inconnu",Z9<>"Non requis"),IF(COUNTRY_INFO!K9=1,1,IF(COUNTRY_INFO!K9=2,0.5*COUNTRY_INFO!F9/(0.5*COUNTRY_INFO!F9+0.2*COUNTRY_INFO!G9),IF(COUNTRY_INFO!K9=3,COUNTRY_INFO!F9/(COUNTRY_INFO!F9+COUNTRY_INFO!G9)))),0) -> 1 | AO9: =IF(AND(Z9<>0,Z9<>"Inconnu",Z9<>"Non requis"),IF(COUNTRY_INFO!K9=1,0,IF(COUNTRY_INFO!K9=2,0.2*COUNTRY_INFO!G9/(0.5*COUNTRY_INFO!F9+0.2*COUNTRY_INFO!G9),IF(COUNTRY_INFO!K9=3,COUNTRY_INFO!G9/(COUNTRY_INFO!F9+COUNTRY_INFO!G9)))),0) -> 0 | AP9: =MAX(COUNTRY_INFO!D9*AK9*PROFILE!$G$7,COUNTRY_INFO!D9*AL9*PROFILE!$G$7) -> 17951.65786 | AQ9: =MAX(COUNTRY_INFO!D9*AK9*PROFILE!$G$8,COUNTRY_INFO!D9*AL9*PROFILE!$G$8,COUNTRY_INFO!D9*AM9*PROFILE!$G$8) -> 28631.97382 | AR9: =MAX(COUNTRY_INFO!D9*AK9*PROFILE!$G$9,COUNTRY_INFO!D9*AL9*PROFILE!$G$9,COUNTRY_INFO!D9*AM9*PROFILE!$G$9,IF(AND(DISTRICT!Z9<>"Inconnu",Z9<>"Non requis"),COUNTRY_INFO!O9*DISTRICT!AN9,0)) -> 70265.42177 | AS9: =MAX(COUNTRY_INFO!D9*AK9*PROFILE!$G$10,COUNTRY_INFO!D9*AL9*PROFILE!$G$10,IF(AND(DISTRICT!Z9<>"Inconnu",Z9<>"Non requis"),COUNTRY_INFO!O9*DISTRICT!AO9,0)) -> 141944.9465 | AT9: =SUM(AP9:AS9) -> 258794 | AU9: =IF(COUNTIFS(AK9:AN9,">0")=0,0, IF(COUNTIFS(AK9:AN9,">0")<=IF(AND(OR(D9>=0,D9="Non requis",D9="Inconnu",D9="Interrompu"),D9>0,H9>0),1,0)+IF(AND(OR(J9>=0,J9="Non requis",J9="Inconnu",J9="Interrompu"),J9>0,N9>0),1,0)+IF(AND(OR(P9>=0,P9="Non requis",P9="Inconnu"),P9>0,X9>0),1,0)+IF(AND(OR(Z9>=0,Z9="Non requis",Z9="Inconnu"),Z9>0,AH9>0),1,0),"Y",0)) -> 0 | AV9: =MAX('MDA2'!J9,'T1'!L9,'T2'!J9,T3_R1!K9,T3_R2!K9) -> 30391 | AW9: =MAX('MDA1'!K9,'MDA2'!K9,'MDA3'!I9,'MDA3'!L9,'T1'!M9,'T2'!K9,T3_R1!L9,T3_R2!L9) -> 85948 | AX9: =MAX('MDA1'!L9,'MDA2'!L9,'MDA3'!J9,'MDA3'!M9,'T1'!N9,'T2'!L9,T3_R1!M9,T3_R2!M9) -> 6777 | AY9: =SUM(AV9:AX9) -> 123116 | AZ9: =MAX('MDA2'!J9,T9) -> 0 | BA9: =MAX('MDA1'!K9,'MDA2'!K9,'MDA3'!I9,'MDA3'!L9,V9,AD9) -> 21769.11 | BB9: =MAX('MDA1'!L9,'MDA2'!L9,'MDA3'!J9,'MDA3'!M9,AF9) -> 0 | BC9: =IF(AT9<SUM(AZ9:BB9), AT9,SUM(AZ9:BB9)) -> 21769.11 | BD9: =IF(AT9<>0,BC9/AT9*100,0) -> 8.411752204 | BE9: =AC9-AA9-AB9 -> 0
A10: =IF(COUNTRY_INFO!A10=0," ",COUNTRY_INFO!A10) -> Burundi | B10: =IF(COUNTRY_INFO!B10=0," ",COUNTRY_INFO!B10) -> Bubanza | C10: =IF(COUNTRY_INFO!C10=0," ",COUNTRY_INFO!C10) -> Mpanda | D10: =COUNTRY_INFO!L10 -> 0 | G10: =MAX('MDA1'!M10,'MDA2'!M10) -> 0 | H10: =IF(AND(COUNTRY_INFO!H10>0,COUNTRY_INFO!H10<4),IF(D10>MAX('MDA1'!M10,'MDA2'!M10),MAX('MDA1'!M10,'MDA2'!M10),D10),0) -> 0 | I10: =IF(AND(COUNTRY_INFO!H10>0,COUNTRY_INFO!H10<4), IF(G10/D10*100<>0, IF(G10/D10*100>100,100,G10/D10*100), "-"),0) -> 0 | J10: =COUNTRY_INFO!M10 -> 223227 | M10: =MAX('MDA1'!M10,MAX('MDA3'!I10,'MDA3'!L10)+MAX('MDA3'!J10,'MDA3'!M10)) -> 0 | N10: =IF(AND(COUNTRY_INFO!I10>0,COUNTRY_INFO!I10<4),IF(J10>MAX('MDA1'!M10,MAX('MDA3'!I10,'MDA3'!L10)+MAX('MDA3'!J10,'MDA3'!M10)),MAX('MDA1'!M10,MAX('MDA3'!I10,'MDA3'!L10)+MAX('MDA3'!J10,'MDA3'!M10)),J10),0) -> 0 | O10: =IF(AND(COUNTRY_INFO!I10>0,COUNTRY_INFO!I10<4), IF(M10/J10*100<>0, IF(M10/J10*100>100,100,M10/J10*100), "-"),0) -> - | P10: =COUNTRY_INFO!N10 -> 0 | S10: =SUM(MAX('MDA2'!J10, 'T1'!L10, MAX(T3_R1!K10, T3_R2!K10)), MAX('MDA1'!K10, 'MDA2'!K10, 'T1'!M10, MAX(T3_R1!L10, T3_R2!L10)), MAX('MDA1'!L10, 'MDA2'!L10, 'T1'!N10, MAX(T3_R1!M10, T3_R2!M10))) -> 149268 | T10: =IF(AND(COUNTRY_INFO!J10>1,COUNTRY_INFO!J10<4),IF(COUNTRY_INFO!E10>MAX('MDA2'!J10,'T1'!L10,MAX(T3_R1!K10,T3_R2!K10)),MAX('MDA2'!J10,'T1'!L10,MAX(T3_R1!K10,T3_R2!K10)),COUNTRY_INFO!E10),0) -> 0 | U10: =IF(AND(COUNTRY_INFO!J10>1,COUNTRY_INFO!J10<4), IF(T10/COUNTRY_INFO!E10*100<>0, IF(T10/COUNTRY_INFO!E10*100>100,100,T10/COUNTRY_INFO!E10*100), "-"),0) -> 0 | V10: =IF(AND(COUNTRY_INFO!J10>1,COUNTRY_INFO!J10<4),IF(COUNTRY_INFO!F10>MAX('MDA1'!K10,'MDA2'!K10,'T1'!M10,MAX(T3_R1!L10,T3_R2!L10)),MAX('MDA1'!K10,'MDA2'!K10,'T1'!M10,MAX(T3_R1!L10,T3_R2!L10)),COUNTRY_INFO!F10),0) -> 0 | W10: =IF(AND(COUNTRY_INFO!J10>1,COUNTRY_INFO!J10<4), IF(V10/COUNTRY_INFO!F10*100<>0, IF(V10/COUNTRY_INFO!F10*100>100,100,V10/COUNTRY_INFO!F10*100), "-"),0) -> 0 | X10: =SUM(T10,V10) -> 0 | Y10: =IF(AND(COUNTRY_INFO!J10>1,COUNTRY_INFO!J10<4), IF(S10/P10*100<>0, IF(X10/P10*100>100,100,X10/P10*100), "-"),0) -> 0 | Z10: =COUNTRY_INFO!O10 -> 20702.55 | AA10: 38859 | AB10: 42937 | AC10: =MAX('T1'!L10,'T2'!J10)+MAX('T1'!M10,'T2'!K10)+MAX('T1'!N10,'T2'!L10) -> 80988 | AD10: =IF(COUNTRY_INFO!K10=1,IF(COUNTRY_INFO!F10*0.33>MAX('T1'!M10,'T2'!K10),MAX('T1'!M10,'T2'!K10),COUNTRY_INFO!F10*0.33),IF(COUNTRY_INFO!K10=2,IF(COUNTRY_INFO!F10*0.5>MAX('T1'!M10,'T2'!K10),MAX('T1'!M10,'T2'!K10),COUNTRY_INFO!F10*0.5),IF(COUNTRY_INFO!K10=3,IF(COUNTRY_INFO!F10>MAX('T1'!M10,'T2'!K10),MAX('T1'!M10,'T2'!K10),COUNTRY_INFO!F10),0))) -> 20702.55 | AE10: =IF(AND(COUNTRY_INFO!K10>0,COUNTRY_INFO!K10<4),IF(Z10>0,IF(COUNTRY_INFO!K10=1, AD10/(COUNTRY_INFO!F10*0.33)*100, IF(COUNTRY_INFO!K10=2, AD10/(COUNTRY_INFO!F10*0.5)*100, IF(COUNTRY_INFO!K10=3, AD10/COUNTRY_INFO!F10*100))),"-"),0) -> 100 | AF10: =IF(COUNTRY_INFO!K10=2,IF(COUNTRY_INFO!G10*0.2>MAX('T1'!N10,'T2'!L10),MAX('T1'!N10,'T2'!L10),COUNTRY_INFO!G10*0.2),IF(COUNTRY_INFO!K10=3,IF(COUNTRY_INFO!G10>MAX('T1'!N10,'T2'!L10),MAX('T1'!N10,'T2'!L10),COUNTRY_INFO!G10),0)) -> 0 | AG10: =IF(AND(COUNTRY_INFO!K10>0,COUNTRY_INFO!K10<4),IF(Z10>0,IF(COUNTRY_INFO!K10=1, 0, IF(COUNTRY_INFO!K10=2, AF10/(COUNTRY_INFO!G10*0.2)*100, IF(COUNTRY_INFO!K10=3, AF10/COUNTRY_INFO!G10*100))),"-"),0) -> 0 | AH10: =SUM(AD10,AF10) -> 20702.55 | AI10: =IF(AND(COUNTRY_INFO!K10>0,COUNTRY_INFO!K10<4), IF(AC10/Z10*100<>0, IF(AH10/Z10*100>100,100,AH10/Z10*100), "-"),0) -> 100 | AK10: =IF(AND(D10<>0, D10<>"Inconnu",D10<>"Interrompu",D10<>"Non requis"),D10/COUNTRY_INFO!D10, 0) -> 0 | AL10: =IF(AND(J10<>0,J10<>"Inconnu",J10<>"Interrompu",J10<>"Non requis"),J10/COUNTRY_INFO!D10, 0) -> 0.8305502846 | AM10: =IF(AND(P10<>0,P10<>"Inconnu",P10<>"Non requis"),P10/(COUNTRY_INFO!E10+COUNTRY_INFO!F10), 0) -> 0 | AN10: =IF(AND(Z10<>0,Z10<>"Inconnu",Z10<>"Non requis"),IF(COUNTRY_INFO!K10=1,1,IF(COUNTRY_INFO!K10=2,0.5*COUNTRY_INFO!F10/(0.5*COUNTRY_INFO!F10+0.2*COUNTRY_INFO!G10),IF(COUNTRY_INFO!K10=3,COUNTRY_INFO!F10/(COUNTRY_INFO!F10+COUNTRY_INFO!G10)))),0) -> 1 | AO10: =IF(AND(Z10<>0,Z10<>"Inconnu",Z10<>"Non requis"),IF(COUNTRY_INFO!K10=1,0,IF(COUNTRY_INFO!K10=2,0.2*COUNTRY_INFO!G10/(0.5*COUNTRY_INFO!F10+0.2*COUNTRY_INFO!G10),IF(COUNTRY_INFO!K10=3,COUNTRY_INFO!G10/(COUNTRY_INFO!F10+COUNTRY_INFO!G10)))),0) -> 0 | AP10: =MAX(COUNTRY_INFO!D10*AK10*PROFILE!$G$7,COUNTRY_INFO!D10*AL10*PROFILE!$G$7) -> 15484.49628 | AQ10: =MAX(COUNTRY_INFO!D10*AK10*PROFILE!$G$8,COUNTRY_INFO!D10*AL10*PROFILE!$G$8,COUNTRY_INFO!D10*AM10*PROFILE!$G$8) -> 24696.97759 | AR10: =MAX(COUNTRY_INFO!D10*AK10*PROFILE!$G$9,COUNTRY_INFO!D10*AL10*PROFILE!$G$9,COUNTRY_INFO!D10*AM10*PROFILE!$G$9,IF(AND(DISTRICT!Z10<>"Inconnu",Z10<>"Non requis"),COUNTRY_INFO!O10*DISTRICT!AN10,0)) -> 60608.58948 | AS10: =MAX(COUNTRY_INFO!D10*AK10*PROFILE!$G$10,COUNTRY_INFO!D10*AL10*PROFILE!$G$10,IF(AND(DISTRICT!Z10<>"Inconnu",Z10<>"Non requis"),COUNTRY_INFO!O10*DISTRICT!AO10,0)) -> 122436.9366 | AT10: =SUM(AP10:AS10) -> 223227 | AU10: 0 | AV10: =MAX('MDA2'!J10,'T1'!L10,'T2'!J10,T3_R1!K10,T3_R2!K10) -> 39902 | AW10: =MAX('MDA1'!K10,'MDA2'!K10,'MDA3'!I10,'MDA3'!L10,'T1'!M10,'T2'!K10,T3_R1!L10,T3_R2!L10) -> 101851 | AX10: =MAX('MDA1'!L10,'MDA2'!L10,'MDA3'!J10,'MDA3'!M10,'T1'!N10,'T2'!L10,T3_R1!M10,T3_R2!M10) -> 7515 | AY10: =SUM(AV10:AX10) -> 149268 | AZ10: =MAX('MDA2'!J10,T10) -> 0 | BA10: =MAX('MDA1'!K10,'MDA2'!K10,'MDA3'!I10,'MDA3'!L10,V10,AD10) -> 20702.55 | BB10: =MAX('MDA1'!L10,'MDA2'!L10,'MDA3'!J10,'MDA3'!M10,AF10) -> 0 | BC10: 20702.55 | BD10: 9.274214141 | BE10: =AC10-AA10-AB10 -> -808
A11: =IF(COUNTRY_INFO!A11=0," ",COUNTRY_INFO!A11) -> Burundi | B11: =IF(COUNTRY_INFO!B11=0," ",COUNTRY_INFO!B11) -> Bujumbura Mairie | C11: =IF(COUNTRY_INFO!C11=0," ",COUNTRY_INFO!C11) -> Zone Centre | D11: =COUNTRY_INFO!L11 -> 0 | G11: =MAX('MDA1'!M11,'MDA2'!M11) -> 0 | H11: =IF(AND(COUNTRY_INFO!H11>0,COUNTRY_INFO!H11<4),IF(D11>MAX('MDA1'!M11,'MDA2'!M11),MAX('MDA1'!M11,'MDA2'!M11),D11),0) -> 0 | I11: =IF(AND(COUNTRY_INFO!H11>0,COUNTRY_INFO!H11<4), IF(G11/D11*100<>0, IF(G11/D11*100>100,100,G11/D11*100), "-"),0) -> 0 | J11: =COUNTRY_INFO!M11 -> 0 | M11: =MAX('MDA1'!M11,MAX('MDA3'!I11,'MDA3'!L11)+MAX('MDA3'!J11,'MDA3'!M11)) -> 0 | N11: =IF(AND(COUNTRY_INFO!I11>0,COUNTRY_INFO!I11<4),IF(J11>MAX('MDA1'!M11,MAX('MDA3'!I11,'MDA3'!L11)+MAX('MDA3'!J11,'MDA3'!M11)),MAX('MDA1'!M11,MAX('MDA3'!I11,'MDA3'!L11)+MAX('MDA3'!J11,'MDA3'!M11)),J11),0) -> 0 | O11: =IF(AND(COUNTRY_INFO!I11>0,COUNTRY_INFO!I11<4), IF(M11/J11*100<>0, IF(M11/J11*100>100,100,M11/J11*100), "-"),0) -> 0 | P11: =COUNTRY_INFO!N11 -> 0 | S11: =SUM(MAX('MDA2'!J11, 'T1'!L11, MAX(T3_R1!K11, T3_R2!K11)), MAX('MDA1'!K11, 'MDA2'!K11, 'T1'!M11, MAX(T3_R1!L11, T3_R2!L11)), MAX('MDA1'!L11, 'MDA2'!L11, 'T1'!N11, MAX(T3_R1!M11, T3_R2!M11))) -> 54675 | T11: =IF(AND(COUNTRY_INFO!J11>1,COUNTRY_INFO!J11<4),IF(COUNTRY_INFO!E11>MAX('MDA2'!J11,'T1'!L11,MAX(T3_R1!K11,T3_R2!K11)),MAX('MDA2'!J11,'T1'!L11,MAX(T3_R1!K11,T3_R2!K11)),COUNTRY_INFO!E11),0) -> 0 | U11: =IF(AND(COUNTRY_INFO!J11>1,COUNTRY_INFO!J11<4), IF(T11/COUNTRY_INFO!E11*100<>0, IF(T11/COUNTRY_INFO!E11*100>100,100,T11/COUNTRY_INFO!E11*100), "-"),0) -> 0 | V11: =IF(AND(COUNTRY_INFO!J11>1,COUNTRY_INFO!J11<4),IF(COUNTRY_INFO!F11>MAX('MDA1'!K11,'MDA2'!K11,'T1'!M11,MAX(T3_R1!L11,T3_R2!L11)),MAX('MDA1'!K11,'MDA2'!K11,'T1'!M11,MAX(T3_R1!L11,T3_R2!L11)),COUNTRY_INFO!F11),0) -> 0 | W11: =IF(AND(COUNTRY_INFO!J11>1,COUNTRY_INFO!J11<4), IF(V11/COUNTRY_INFO!F11*100<>0, IF(V11/COUNTRY_INFO!F11*100>100,100,V11/COUNTRY_INFO!F11*100), "-"),0) -> 0 | X11: 0 | Y11: =IF(AND(COUNTRY_INFO!J11>1,COUNTRY_INFO!J11<4), IF(S11/P11*100<>0, IF(X11/P11*100>100,100,X11/P11*100), "-"),0) -> 0 | Z11: =COUNTRY_INFO!O11 -> 0 | AC11: =MAX('T1'!L11,'T2'!J11)+MAX('T1'!M11,'T2'!K11)+MAX('T1'!N11,'T2'!L11) -> 0 | AD11: =IF(COUNTRY_INFO!K11=1,IF(COUNTRY_INFO!F11*0.33>MAX('T1'!M11,'T2'!K11),MAX('T1'!M11,'T2'!K11),COUNTRY_INFO!F11*0.33),IF(COUNTRY_INFO!K11=2,IF(COUNTRY_INFO!F11*0.5>MAX('T1'!M11,'T2'!K11),MAX('T1'!M11,'T2'!K11),COUNTRY_INFO!F11*0.5),IF(COUNTRY_INFO!K11=3,IF(COUNTRY_INFO!F11>MAX('T1'!M11,'T2'!K11),MAX('T1'!M11,'T2'!K11),COUNTRY_INFO!F11),0))) -> 0 | AE11: =IF(AND(COUNTRY_INFO!K11>0,COUNTRY_INFO!K11<4),IF(Z11>0,IF(COUNTRY_INFO!K11=1, AD11/(COUNTRY_INFO!F11*0.33)*100, IF(COUNTRY_INFO!K11=2, AD11/(COUNTRY_INFO!F11*0.5)*100, IF(COUNTRY_INFO!K11=3, AD11/COUNTRY_INFO!F11*100))),"-"),0) -> 0 | AF11: =IF(COUNTRY_INFO!K11=2,IF(COUNTRY_INFO!G11*0.2>MAX('T1'!N11,'T2'!L11),MAX('T1'!N11,'T2'!L11),COUNTRY_INFO!G11*0.2),IF(COUNTRY_INFO!K11=3,IF(COUNTRY_INFO!G11>MAX('T1'!N11,'T2'!L11),MAX('T1'!N11,'T2'!L11),COUNTRY_INFO!G11),0)) -> 0 | AG11: =IF(AND(COUNTRY_INFO!K11>0,COUNTRY_INFO!K11<4),IF(Z11>0,IF(COUNTRY_INFO!K11=1, 0, IF(COUNTRY_INFO!K11=2, AF11/(COUNTRY_INFO!G11*0.2)*100, IF(COUNTRY_INFO!K11=3, AF11/COUNTRY_INFO!G11*100))),"-"),0) -> 0 | AH11: 0 | AI11: =IF(AND(COUNTRY_INFO!K11>0,COUNTRY_INFO!K11<4), IF(AC11/Z11*100<>0, IF(AH11/Z11*100>100,100,AH11/Z11*100), "-"),0) -> 0 | AK11: =IF(AND(D11<>0, D11<>"Inconnu",D11<>"Interrompu",D11<>"Non requis"),D11/COUNTRY_INFO!D11, 0) -> 0 | AL11: =IF(AND(J11<>0,J11<>"Inconnu",J11<>"Interrompu",J11<>"Non requis"),J11/COUNTRY_INFO!D11, 0) -> 0 | AM11: =IF(AND(P11<>0,P11<>"Inconnu",P11<>"Non requis"),P11/(COUNTRY_INFO!E11+COUNTRY_INFO!F11), 0) -> 0 | AN11: =IF(AND(Z11<>0,Z11<>"Inconnu",Z11<>"Non requis"),IF(COUNTRY_INFO!K11=1,1,IF(COUNTRY_INFO!K11=2,0.5*COUNTRY_INFO!F11/(0.5*COUNTRY_INFO!F11+0.2*COUNTRY_INFO!G11),IF(COUNTRY_INFO!K11=3,COUNTRY_INFO!F11/(COUNTRY_INFO!F11+COUNTRY_INFO!G11)))),0) -> 0 | AO11: =IF(AND(Z11<>0,Z11<>"Inconnu",Z11<>"Non requis"),IF(COUNTRY_INFO!K11=1,0,IF(COUNTRY_INFO!K11=2,0.2*COUNTRY_INFO!G11/(0.5*COUNTRY_INFO!F11+0.2*COUNTRY_INFO!G11),IF(COUNTRY_INFO!K11=3,COUNTRY_INFO!G11/(COUNTRY_INFO!F11+COUNTRY_INFO!G11)))),0) -> 0 | AP11: =MAX(COUNTRY_INFO!D11*AK11*PROFILE!$G$7,COUNTRY_INFO!D11*AL11*PROFILE!$G$7) -> 0 | AQ11: =MAX(COUNTRY_INFO!D11*AK11*PROFILE!$G$8,COUNTRY_INFO!D11*AL11*PROFILE!$G$8,COUNTRY_INFO!D11*AM11*PROFILE!$G$8) -> 0 | AR11: =MAX(COUNTRY_INFO!D11*AK11*PROFILE!$G$9,COUNTRY_INFO!D11*AL11*PROFILE!$G$9,COUNTRY_INFO!D11*AM11*PROFILE!$G$9,IF(AND(DISTRICT!Z11<>"Inconnu",Z11<>"Non requis"),COUNTRY_INFO!O11*DISTRICT!AN11,0)) -> 0 | AS11: =MAX(COUNTRY_INFO!D11*AK11*PROFILE!$G$10,COUNTRY_INFO!D11*AL11*PROFILE!$G$10,IF(AND(DISTRICT!Z11<>"Inconnu",Z11<>"Non requis"),COUNTRY_INFO!O11*DISTRICT!AO11,0)) -> 0 | AT11: 0 | AU11: 0 | AV11: =MAX('MDA2'!J11,'T1'!L11,'T2'!J11,T3_R1!K11,T3_R2!K11) -> 12230 | AW11: =MAX('MDA1'!K11,'MDA2'!K11,'MDA3'!I11,'MDA3'!L11,'T1'!M11,'T2'!K11,T3_R1!L11,T3_R2!L11) -> 39240 | AX11: =MAX('MDA1'!L11,'MDA2'!L11,'MDA3'!J11,'MDA3'!M11,'T1'!N11,'T2'!L11,T3_R1!M11,T3_R2!M11) -> 3205 | AY11: 54675 | AZ11: =MAX('MDA2'!J11,T11) -> 0 | BA11: =MAX('MDA1'!K11,'MDA2'!K11,'MDA3'!I11,'MDA3'!L11,V11,AD11) -> 0 | BB11: =MAX('MDA1'!L11,'MDA2'!L11,'MDA3'!J11,'MDA3'!M11,AF11) -> 0 | BC11: 0 | BD11: 0 | BE11: 0
A12: =IF(COUNTRY_INFO!A12=0," ",COUNTRY_INFO!A12) -> Burundi | B12: =IF(COUNTRY_INFO!B12=0," ",COUNTRY_INFO!B12) -> Bujumbura Mairie | C12: =IF(COUNTRY_INFO!C12=0," ",COUNTRY_INFO!C12) -> Zone Nord | D12: =COUNTRY_INFO!L12 -> 0 | G12: =MAX('MDA1'!M12,'MDA2'!M12) -> 0 | H12: =IF(AND(COUNTRY_INFO!H12>0,COUNTRY_INFO!H12<4),IF(D12>MAX('MDA1'!M12,'MDA2'!M12),MAX('MDA1'!M12,'MDA2'!M12),D12),0) -> 0 | I12: =IF(AND(COUNTRY_INFO!H12>0,COUNTRY_INFO!H12<4), IF(G12/D12*100<>0, IF(G12/D12*100>100,100,G12/D12*100), "-"),0) -> 0 | J12: =COUNTRY_INFO!M12 -> 0 | M12: =MAX('MDA1'!M12,MAX('MDA3'!I12,'MDA3'!L12)+MAX('MDA3'!J12,'MDA3'!M12)) -> 0 | N12: =IF(AND(COUNTRY_INFO!I12>0,COUNTRY_INFO!I12<4),IF(J12>MAX('MDA1'!M12,MAX('MDA3'!I12,'MDA3'!L12)+MAX('MDA3'!J12,'MDA3'!M12)),MAX('MDA1'!M12,MAX('MDA3'!I12,'MDA3'!L12)+MAX('MDA3'!J12,'MDA3'!M12)),J12),0) -> 0 | O12: =IF(AND(COUNTRY_INFO!I12>0,COUNTRY_INFO!I12<4), IF(M12/J12*100<>0, IF(M12/J12*100>100,100,M12/J12*100), "-"),0) -> 0 | P12: =COUNTRY_INFO!N12 -> 0 | S12: =SUM(MAX('MDA2'!J12, 'T1'!L12, MAX(T3_R1!K12, T3_R2!K12)), MAX('MDA1'!K12, 'MDA2'!K12, 'T1'!M12, MAX(T3_R1!L12, T3_R2!L12)), MAX('MDA1'!L12, 'MDA2'!L12, 'T1'!N12, MAX(T3_R1!M12, T3_R2!M12))) -> 141571 | T12: =IF(AND(COUNTRY_INFO!J12>1,COUNTRY_INFO!J12<4),IF(COUNTRY_INFO!E12>MAX('MDA2'!J12,'T1'!L12,MAX(T3_R1!K12,T3_R2!K12)),MAX('MDA2'!J12,'T1'!L12,MAX(T3_R1!K12,T3_R2!K12)),COUNTRY_INFO!E12),0) -> 0 | U12: =IF(AND(COUNTRY_INFO!J12>1,COUNTRY_INFO!J12<4), IF(T12/COUNTRY_INFO!E12*100<>0, IF(T12/COUNTRY_INFO!E12*100>100,100,T12/COUNTRY_INFO!E12*100), "-"),0) -> 0 | V12: =IF(AND(COUNTRY_INFO!J12>1,COUNTRY_INFO!J12<4),IF(COUNTRY_INFO!F12>MAX('MDA1'!K12,'MDA2'!K12,'T1'!M12,MAX(T3_R1!L12,T3_R2!L12)),MAX('MDA1'!K12,'MDA2'!K12,'T1'!M12,MAX(T3_R1!L12,T3_R2!L12)),COUNTRY_INFO!F12),0) -> 0 | W12: =IF(AND(COUNTRY_INFO!J12>1,COUNTRY_INFO!J12<4), IF(V12/COUNTRY_INFO!F12*100<>0, IF(V12/COUNTRY_INFO!F12*100>100,100,V12/COUNTRY_INFO!F12*100), "-"),0) -> 0 | X12: 0 | Y12: =IF(AND(COUNTRY_INFO!J12>1,COUNTRY_INFO!J12<4), IF(S12/P12*100<>0, IF(X12/P12*100>100,100,X12/P12*100), "-"),0) -> 0 | Z12: =COUNTRY_INFO!O12 -> 27040.2 | AA12: 38943 | AB12: 42284 | AC12: =MAX('T1'!L12,'T2'!J12)+MAX('T1'!M12,'T2'!K12)+MAX('T1'!N12,'T2'!L12) -> 79655 | AD12: =IF(COUNTRY_INFO!K12=1,IF(COUNTRY_INFO!F12*0.33>MAX('T1'!M12,'T2'!K12),MAX('T1'!M12,'T2'!K12),COUNTRY_INFO!F12*0.33),IF(COUNTRY_INFO!K12=2,IF(COUNTRY_INFO!F12*0.5>MAX('T1'!M12,'T2'!K12),MAX('T1'!M12,'T2'!K12),COUNTRY_INFO!F12*0.5),IF(COUNTRY_INFO!K12=3,IF(COUNTRY_INFO!F12>MAX('T1'!M12,'T2'!K12),MAX('T1'!M12,'T2'!K12),COUNTRY_INFO!F12),0))) -> 27040.2 | AE12: =IF(AND(COUNTRY_INFO!K12>0,COUNTRY_INFO!K12<4),IF(Z12>0,IF(COUNTRY_INFO!K12=1, AD12/(COUNTRY_INFO!F12*0.33)*100, IF(COUNTRY_INFO!K12=2, AD12/(COUNTRY_INFO!F12*0.5)*100, IF(COUNTRY_INFO!K12=3, AD12/COUNTRY_INFO!F12*100))),"-"),0) -> 100 | AF12: =IF(COUNTRY_INFO!K12=2,IF(COUNTRY_INFO!G12*0.2>MAX('T1'!N12,'T2'!L12),MAX('T1'!N12,'T2'!L12),COUNTRY_INFO!G12*0.2),IF(COUNTRY_INFO!K12=3,IF(COUNTRY_INFO!G12>MAX('T1'!N12,'T2'!L12),MAX('T1'!N12,'T2'!L12),COUNTRY_INFO!G12),0)) -> 0 | AG12: =IF(AND(COUNTRY_INFO!K12>0,COUNTRY_INFO!K12<4),IF(Z12>0,IF(COUNTRY_INFO!K12=1, 0, IF(COUNTRY_INFO!K12=2, AF12/(COUNTRY_INFO!G12*0.2)*100, IF(COUNTRY_INFO!K12=3, AF12/COUNTRY_INFO!G12*100))),"-"),0) -> 0 | AH12: 27040.2 | AI12: =IF(AND(COUNTRY_INFO!K12>0,COUNTRY_INFO!K12<4), IF(AC12/Z12*100<>0, IF(AH12/Z12*100>100,100,AH12/Z12*100), "-"),0) -> 100 | AK12: =IF(AND(D12<>0, D12<>"Inconnu",D12<>"Interrompu",D12<>"Non requis"),D12/COUNTRY_INFO!D12, 0) -> 0 | AL12: =IF(AND(J12<>0,J12<>"Inconnu",J12<>"Interrompu",J12<>"Non requis"),J12/COUNTRY_INFO!D12, 0) -> 0 | AM12: =IF(AND(P12<>0,P12<>"Inconnu",P12<>"Non requis"),P12/(COUNTRY_INFO!E12+COUNTRY_INFO!F12), 0) -> 0 | AN12: =IF(AND(Z12<>0,Z12<>"Inconnu",Z12<>"Non requis"),IF(COUNTRY_INFO!K12=1,1,IF(COUNTRY_INFO!K12=2,0.5*COUNTRY_INFO!F12/(0.5*COUNTRY_INFO!F12+0.2*COUNTRY_INFO!G12),IF(COUNTRY_INFO!K12=3,COUNTRY_INFO!F12/(COUNTRY_INFO!F12+COUNTRY_INFO!G12)))),0) -> 1 | AO12: =IF(AND(Z12<>0,Z12<>"Inconnu",Z12<>"Non requis"),IF(COUNTRY_INFO!K12=1,0,IF(COUNTRY_INFO!K12=2,0.2*COUNTRY_INFO!G12/(0.5*COUNTRY_INFO!F12+0.2*COUNTRY_INFO!G12),IF(COUNTRY_INFO!K12=3,COUNTRY_INFO!G12/(COUNTRY_INFO!F12+COUNTRY_INFO!G12)))),0) -> 0 | AP12: =MAX(COUNTRY_INFO!D12*AK12*PROFILE!$G$7,COUNTRY_INFO!D12*AL12*PROFILE!$G$7) -> 0 | AQ12: =MAX(COUNTRY_INFO!D12*AK12*PROFILE!$G$8,COUNTRY_INFO!D12*AL12*PROFILE!$G$8,COUNTRY_INFO!D12*AM12*PROFILE!$G$8) -> 0 | AR12: =MAX(COUNTRY_INFO!D12*AK12*PROFILE!$G$9,COUNTRY_INFO!D12*AL12*PROFILE!$G$9,COUNTRY_INFO!D12*AM12*PROFILE!$G$9,IF(AND(DISTRICT!Z12<>"Inconnu",Z12<>"Non requis"),COUNTRY_INFO!O12*DISTRICT!AN12,0)) -> 27040.2 | AS12: =MAX(COUNTRY_INFO!D12*AK12*PROFILE!$G$10,COUNTRY_INFO!D12*AL12*PROFILE!$G$10,IF(AND(DISTRICT!Z12<>"Inconnu",Z12<>"Non requis"),COUNTRY_INFO!O12*DISTRICT!AO12,0)) -> 0 | AT12: 27040.2 | AU12: Y | AV12: =MAX('MDA2'!J12,'T1'!L12,'T2'!J12,T3_R1!K12,T3_R2!K12) -> 34626 | AW12: =MAX('MDA1'!K12,'MDA2'!K12,'MDA3'!I12,'MDA3'!L12,'T1'!M12,'T2'!K12,T3_R1!L12,T3_R2!L12) -> 99334 | AX12: =MAX('MDA1'!L12,'MDA2'!L12,'MDA3'!J12,'MDA3'!M12,'T1'!N12,'T2'!L12,T3_R1!M12,T3_R2!M12) -> 7611 | AY12: 141571 | AZ12: =MAX('MDA2'!J12,T12) -> 0 | BA12: =MAX('MDA1'!K12,'MDA2'!K12,'MDA3'!I12,'MDA3'!L12,V12,AD12) -> 27040.2 | BB12: =MAX('MDA1'!L12,'MDA2'!L12,'MDA3'!J12,'MDA3'!M12,AF12) -> 0 | BC12: 27040.2 | BD12: 100 | BE12: -1572
A13: =IF(COUNTRY_INFO!A13=0," ",COUNTRY_INFO!A13) -> Burundi | B13: =IF(COUNTRY_INFO!B13=0," ",COUNTRY_INFO!B13) -> Bujumbura Mairie | C13: =IF(COUNTRY_INFO!C13=0," ",COUNTRY_INFO!C13) -> Zone Sud | D13: =COUNTRY_INFO!L13 -> 0 | G13: =MAX('MDA1'!M13,'MDA2'!M13) -> 0 | H13: =IF(AND(COUNTRY_INFO!H13>0,COUNTRY_INFO!H13<4),IF(D13>MAX('MDA1'!M13,'MDA2'!M13),MAX('MDA1'!M13,'MDA2'!M13),D13),0) -> 0 | I13: =IF(AND(COUNTRY_INFO!H13>0,COUNTRY_INFO!H13<4), IF(G13/D13*100<>0, IF(G13/D13*100>100,100,G13/D13*100), "-"),0) -> 0 | J13: =COUNTRY_INFO!M13 -> 0 | M13: =MAX('MDA1'!M13,MAX('MDA3'!I13,'MDA3'!L13)+MAX('MDA3'!J13,'MDA3'!M13)) -> 0 | N13: =IF(AND(COUNTRY_INFO!I13>0,COUNTRY_INFO!I13<4),IF(J13>MAX('MDA1'!M13,MAX('MDA3'!I13,'MDA3'!L13)+MAX('MDA3'!J13,'MDA3'!M13)),MAX('MDA1'!M13,MAX('MDA3'!I13,'MDA3'!L13)+MAX('MDA3'!J13,'MDA3'!M13)),J13),0) -> 0 | O13: =IF(AND(COUNTRY_INFO!I13>0,COUNTRY_INFO!I13<4), IF(M13/J13*100<>0, IF(M13/J13*100>100,100,M13/J13*100), "-"),0) -> 0 | P13: =COUNTRY_INFO!N13 -> 0 | S13: =SUM(MAX('MDA2'!J13, 'T1'!L13, MAX(T3_R1!K13, T3_R2!K13)), MAX('MDA1'!K13, 'MDA2'!K13, 'T1'!M13, MAX(T3_R1!L13, T3_R2!L13)), MAX('MDA1'!L13, 'MDA2'!L13, 'T1'!N13, MAX(T3_R1!M13, T3_R2!M13))) -> 80315 | T13: =IF(AND(COUNTRY_INFO!J13>1,COUNTRY_INFO!J13<4),IF(COUNTRY_INFO!E13>MAX('MDA2'!J13,'T1'!L13,MAX(T3_R1!K13,T3_R2!K13)),MAX('MDA2'!J13,'T1'!L13,MAX(T3_R1!K13,T3_R2!K13)),COUNTRY_INFO!E13),0) -> 0 | U13: =IF(AND(COUNTRY_INFO!J13>1,COUNTRY_INFO!J13<4), IF(T13/COUNTRY_INFO!E13*100<>0, IF(T13/COUNTRY_INFO!E13*100>100,100,T13/COUNTRY_INFO!E13*100), "-"),0) -> 0 | V13: =IF(AND(COUNTRY_INFO!J13>1,COUNTRY_INFO!J13<4),IF(COUNTRY_INFO!F13>MAX('MDA1'!K13,'MDA2'!K13,'T1'!M13,MAX(T3_R1!L13,T3_R2!L13)),MAX('MDA1'!K13,'MDA2'!K13,'T1'!M13,MAX(T3_R1!L13,T3_R2!L13)),COUNTRY_INFO!F13),0) -> 0 | W13: =IF(AND(COUNTRY_INFO!J13>1,COUNTRY_INFO!J13<4), IF(V13/COUNTRY_INFO!F13*100<>0, IF(V13/COUNTRY_INFO!F13*100>100,100,V13/COUNTRY_INFO!F13*100), "-"),0) -> 0 | X13: 0 | Y13: =IF(AND(COUNTRY_INFO!J13>1,COUNTRY_INFO!J13<4), IF(S13/P13*100<>0, IF(X13/P13*100>100,100,X13/P13*100), "-"),0) -> 0 | Z13: =COUNTRY_INFO!O13 -> 0 | AC13: =MAX('T1'!L13,'T2'!J13)+MAX('T1'!M13,'T2'!K13)+MAX('T1'!N13,'T2'!L13) -> 0 | AD13: =IF(COUNTRY_INFO!K13=1,IF(COUNTRY_INFO!F13*0.33>MAX('T1'!M13,'T2'!K13),MAX('T1'!M13,'T2'!K13),COUNTRY_INFO!F13*0.33),IF(COUNTRY_INFO!K13=2,IF(COUNTRY_INFO!F13*0.5>MAX('T1'!M13,'T2'!K13),MAX('T1'!M13,'T2'!K13),COUNTRY_INFO!F13*0.5),IF(COUNTRY_INFO!K13=3,IF(COUNTRY_INFO!F13>MAX('T1'!M13,'T2'!K13),MAX('T1'!M13,'T2'!K13),COUNTRY_INFO!F13),0))) -> 0 | AE13: =IF(AND(COUNTRY_INFO!K13>0,COUNTRY_INFO!K13<4),IF(Z13>0,IF(COUNTRY_INFO!K13=1, AD13/(COUNTRY_INFO!F13*0.33)*100, IF(COUNTRY_INFO!K13=2, AD13/(COUNTRY_INFO!F13*0.5)*100, IF(COUNTRY_INFO!K13=3, AD13/COUNTRY_INFO!F13*100))),"-"),0) -> 0 | AF13: =IF(COUNTRY_INFO!K13=2,IF(COUNTRY_INFO!G13*0.2>MAX('T1'!N13,'T2'!L13),MAX('T1'!N13,'T2'!L13),COUNTRY_INFO!G13*0.2),IF(COUNTRY_INFO!K13=3,IF(COUNTRY_INFO!G13>MAX('T1'!N13,'T2'!L13),MAX('T1'!N13,'T2'!L13),COUNTRY_INFO!G13),0)) -> 0 | AG13: =IF(AND(COUNTRY_INFO!K13>0,COUNTRY_INFO!K13<4),IF(Z13>0,IF(COUNTRY_INFO!K13=1, 0, IF(COUNTRY_INFO!K13=2, AF13/(COUNTRY_INFO!G13*0.2)*100, IF(COUNTRY_INFO!K13=3, AF13/COUNTRY_INFO!G13*100))),"-"),0) -> 0 | AH13: 0 | AI13: =IF(AND(COUNTRY_INFO!K13>0,COUNTRY_INFO!K13<4), IF(AC13/Z13*100<>0, IF(AH13/Z13*100>100,100,AH13/Z13*100), "-"),0) -> 0 | AK13: =IF(AND(D13<>0, D13<>"Inconnu",D13<>"Interrompu",D13<>"Non requis"),D13/COUNTRY_INFO!D13, 0) -> 0 | AL13: =IF(AND(J13<>0,J13<>"Inconnu",J13<>"Interrompu",J13<>"Non requis"),J13/COUNTRY_INFO!D13, 0) -> 0 | AM13: =IF(AND(P13<>0,P13<>"Inconnu",P13<>"Non requis"),P13/(COUNTRY_INFO!E13+COUNTRY_INFO!F13), 0) -> 0 | AN13: =IF(AND(Z13<>0,Z13<>"Inconnu",Z13<>"Non requis"),IF(COUNTRY_INFO!K13=1,1,IF(COUNTRY_INFO!K13=2,0.5*COUNTRY_INFO!F13/(0.5*COUNTRY_INFO!F13+0.2*COUNTRY_INFO!G13),IF(COUNTRY_INFO!K13=3,COUNTRY_INFO!F13/(COUNTRY_INFO!F13+COUNTRY_INFO!G13)))),0) -> 0 | AO13: =IF(AND(Z13<>0,Z13<>"Inconnu",Z13<>"Non requis"),IF(COUNTRY_INFO!K13=1,0,IF(COUNTRY_INFO!K13=2,0.2*COUNTRY_INFO!G13/(0.5*COUNTRY_INFO!F13+0.2*COUNTRY_INFO!G13),IF(COUNTRY_INFO!K13=3,COUNTRY_INFO!G13/(COUNTRY_INFO!F13+COUNTRY_INFO!G13)))),0) -> 0 | AP13: =MAX(COUNTRY_INFO!D13*AK13*PROFILE!$G$7,COUNTRY_INFO!D13*AL13*PROFILE!$G$7) -> 0 | AQ13: =MAX(COUNTRY_INFO!D13*AK13*PROFILE!$G$8,COUNTRY_INFO!D13*AL13*PROFILE!$G$8,COUNTRY_INFO!D13*AM13*PROFILE!$G$8) -> 0 | AR13: =MAX(COUNTRY_INFO!D13*AK13*PROFILE!$G$9,COUNTRY_INFO!D13*AL13*PROFILE!$G$9,COUNTRY_INFO!D13*AM13*PROFILE!$G$9,IF(AND(DISTRICT!Z13<>"Inconnu",Z13<>"Non requis"),COUNTRY_INFO!O13*DISTRICT!AN13,0)) -> 0 | AS13: =MAX(COUNTRY_INFO!D13*AK13*PROFILE!$G$10,COUNTRY_INFO!D13*AL13*PROFILE!$G$10,IF(AND(DISTRICT!Z13<>"Inconnu",Z13<>"Non requis"),COUNTRY_INFO!O13*DISTRICT!AO13,0)) -> 0 | AT13: 0 | AU13: 0 | AV13: =MAX('MDA2'!J13,'T1'!L13,'T2'!J13,T3_R1!K13,T3_R2!K13) -> 18433 | AW13: =MAX('MDA1'!K13,'MDA2'!K13,'MDA3'!I13,'MDA3'!L13,'T1'!M13,'T2'!K13,T3_R1!L13,T3_R2!L13) -> 58256 | AX13: =MAX('MDA1'!L13,'MDA2'!L13,'MDA3'!J13,'MDA3'!M13,'T1'!N13,'T2'!L13,T3_R1!M13,T3_R2!M13) -> 3626 | AY13: 80315 | AZ13: =MAX('MDA2'!J13,T13) -> 0 | BA13: =MAX('MDA1'!K13,'MDA2'!K13,'MDA3'!I13,'MDA3'!L13,V13,AD13) -> 0 | BB13: =MAX('MDA1'!L13,'MDA2'!L13,'MDA3'!J13,'MDA3'!M13,AF13) -> 0 | BC13: 0 | BD13: 0 | BE13: 0
A14: =IF(COUNTRY_INFO!A14=0," ",COUNTRY_INFO!A14) -> Burundi | B14: =IF(COUNTRY_INFO!B14=0," ",COUNTRY_INFO!B14) -> Bujumbura Rural | C14: =IF(COUNTRY_INFO!C14=0," ",COUNTRY_INFO!C14) -> Isare | D14: =COUNTRY_INFO!L14 -> 0 | G14: =MAX('MDA1'!M14,'MDA2'!M14) -> 0 | H14: =IF(AND(COUNTRY_INFO!H14>0,COUNTRY_INFO!H14<4),IF(D14>MAX('MDA1'!M14,'MDA2'!M14),MAX('MDA1'!M14,'MDA2'!M14),D14),0) -> 0 | I14: =IF(AND(COUNTRY_INFO!H14>0,COUNTRY_INFO!H14<4), IF(G14/D14*100<>0, IF(G14/D14*100>100,100,G14/D14*100), "-"),0) -> 0 | J14: =COUNTRY_INFO!M14 -> 0 | M14: =MAX('MDA1'!M14,MAX('MDA3'!I14,'MDA3'!L14)+MAX('MDA3'!J14,'MDA3'!M14)) -> 0 | N14: =IF(AND(COUNTRY_INFO!I14>0,COUNTRY_INFO!I14<4),IF(J14>MAX('MDA1'!M14,MAX('MDA3'!I14,'MDA3'!L14)+MAX('MDA3'!J14,'MDA3'!M14)),MAX('MDA1'!M14,MAX('MDA3'!I14,'MDA3'!L14)+MAX('MDA3'!J14,'MDA3'!M14)),J14),0) -> 0 | O14: =IF(AND(COUNTRY_INFO!I14>0,COUNTRY_INFO!I14<4), IF(M14/J14*100<>0, IF(M14/J14*100>100,100,M14/J14*100), "-"),0) -> 0 | P14: =COUNTRY_INFO!N14 -> 108046 | S14: =SUM(MAX('MDA2'!J14, 'T1'!L14, MAX(T3_R1!K14, T3_R2!K14)), MAX('MDA1'!K14, 'MDA2'!K14, 'T1'!M14, MAX(T3_R1!L14, T3_R2!L14)), MAX('MDA1'!L14, 'MDA2'!L14, 'T1'!N14, MAX(T3_R1!M14, T3_R2!M14))) -> 149248 | T14: =IF(AND(COUNTRY_INFO!J14>1,COUNTRY_INFO!J14<4),IF(COUNTRY_INFO!E14>MAX('MDA2'!J14,'T1'!L14,MAX(T3_R1!K14,T3_R2!K14)),MAX('MDA2'!J14,'T1'!L14,MAX(T3_R1!K14,T3_R2!K14)),COUNTRY_INFO!E14),0) -> 28663 | U14: =IF(AND(COUNTRY_INFO!J14>1,COUNTRY_INFO!J14<4), IF(T14/COUNTRY_INFO!E14*100<>0, IF(T14/COUNTRY_INFO!E14*100>100,100,T14/COUNTRY_INFO!E14*100), "-"),0) -> 100 | V14: =IF(AND(COUNTRY_INFO!J14>1,COUNTRY_INFO!J14<4),IF(COUNTRY_INFO!F14>MAX('MDA1'!K14,'MDA2'!K14,'T1'!M14,MAX(T3_R1!L14,T3_R2!L14)),MAX('MDA1'!K14,'MDA2'!K14,'T1'!M14,MAX(T3_R1!L14,T3_R2!L14)),COUNTRY_INFO!F14),0) -> 79383 | W14: =IF(AND(COUNTRY_INFO!J14>1,COUNTRY_INFO!J14<4), IF(V14/COUNTRY_INFO!F14*100<>0, IF(V14/COUNTRY_INFO!F14*100>100,100,V14/COUNTRY_INFO!F14*100), "-"),0) -> 100 | X14: 108046 | Y14: =IF(AND(COUNTRY_INFO!J14>1,COUNTRY_INFO!J14<4), IF(S14/P14*100<>0, IF(X14/P14*100>100,100,X14/P14*100), "-"),0) -> 100 | Z14: =COUNTRY_INFO!O14 -> 26196.39 | AA14: 36276 | AB14: 40363 | AC14: =MAX('T1'!L14,'T2'!J14)+MAX('T1'!M14,'T2'!K14)+MAX('T1'!N14,'T2'!L14) -> 76639 | AD14: =IF(COUNTRY_INFO!K14=1,IF(COUNTRY_INFO!F14*0.33>MAX('T1'!M14,'T2'!K14),MAX('T1'!M14,'T2'!K14),COUNTRY_INFO!F14*0.33),IF(COUNTRY_INFO!K14=2,IF(COUNTRY_INFO!F14*0.5>MAX('T1'!M14,'T2'!K14),MAX('T1'!M14,'T2'!K14),COUNTRY_INFO!F14*0.5),IF(COUNTRY_INFO!K14=3,IF(COUNTRY_INFO!F14>MAX('T1'!M14,'T2'!K14),MAX('T1'!M14,'T2'!K14),COUNTRY_INFO!F14),0))) -> 26196.39 | AE14: =IF(AND(COUNTRY_INFO!K14>0,COUNTRY_INFO!K14<4),IF(Z14>0,IF(COUNTRY_INFO!K14=1, AD14/(COUNTRY_INFO!F14*0.33)*100, IF(COUNTRY_INFO!K14=2, AD14/(COUNTRY_INFO!F14*0.5)*100, IF(COUNTRY_INFO!K14=3, AD14/COUNTRY_INFO!F14*100))),"-"),0) -> 100 | AF14: =IF(COUNTRY_INFO!K14=2,IF(COUNTRY_INFO!G14*0.2>MAX('T1'!N14,'T2'!L14),MAX('T1'!N14,'T2'!L14),COUNTRY_INFO!G14*0.2),IF(COUNTRY_INFO!K14=3,IF(COUNTRY_INFO!G14>MAX('T1'!N14,'T2'!L14),MAX('T1'!N14,'T2'!L14),COUNTRY_INFO!G14),0)) -> 0 | AG14: =IF(AND(COUNTRY_INFO!K14>0,COUNTRY_INFO!K14<4),IF(Z14>0,IF(COUNTRY_INFO!K14=1, 0, IF(COUNTRY_INFO!K14=2, AF14/(COUNTRY_INFO!G14*0.2)*100, IF(COUNTRY_INFO!K14=3, AF14/COUNTRY_INFO!G14*100))),"-"),0) -> 0 | AH14: 26196.39 | AI14: =IF(AND(COUNTRY_INFO!K14>0,COUNTRY_INFO!K14<4), IF(AC14/Z14*100<>0, IF(AH14/Z14*100>100,100,AH14/Z14*100), "-"),0) -> 100 | AK14: =IF(AND(D14<>0, D14<>"Inconnu",D14<>"Interrompu",D14<>"Non requis"),D14/COUNTRY_INFO!D14, 0) -> 0 | AL14: =IF(AND(J14<>0,J14<>"Inconnu",J14<>"Interrompu",J14<>"Non requis"),J14/COUNTRY_INFO!D14, 0) -> 0 | AM14: =IF(AND(P14<>0,P14<>"Inconnu",P14<>"Non requis"),P14/(COUNTRY_INFO!E14+COUNTRY_INFO!F14), 0) -> 1 | AN14: =IF(AND(Z14<>0,Z14<>"Inconnu",Z14<>"Non requis"),IF(COUNTRY_INFO!K14=1,1,IF(COUNTRY_INFO!K14=2,0.5*COUNTRY_INFO!F14/(0.5*COUNTRY_INFO!F14+0.2*COUNTRY_INFO!G14),IF(COUNTRY_INFO!K14=3,COUNTRY_INFO!F14/(COUNTRY_INFO!F14+COUNTRY_INFO!G14)))),0) -> 1 | AO14: =IF(AND(Z14<>0,Z14<>"Inconnu",Z14<>"Non requis"),IF(COUNTRY_INFO!K14=1,0,IF(COUNTRY_INFO!K14=2,0.2*COUNTRY_INFO!G14/(0.5*COUNTRY_INFO!F14+0.2*COUNTRY_INFO!G14),IF(COUNTRY_INFO!K14=3,COUNTRY_INFO!G14/(COUNTRY_INFO!F14+COUNTRY_INFO!G14)))),0) -> 0 | AP14: =MAX(COUNTRY_INFO!D14*AK14*PROFILE!$G$7,COUNTRY_INFO!D14*AL14*PROFILE!$G$7) -> 0 | AQ14: =MAX(COUNTRY_INFO!D14*AK14*PROFILE!$G$8,COUNTRY_INFO!D14*AL14*PROFILE!$G$8,COUNTRY_INFO!D14*AM14*PROFILE!$G$8) -> 32813.35677 | AR14: =MAX(COUNTRY_INFO!D14*AK14*PROFILE!$G$9,COUNTRY_INFO!D14*AL14*PROFILE!$G$9,COUNTRY_INFO!D14*AM14*PROFILE!$G$9,IF(AND(DISTRICT!Z14<>"Inconnu",Z14<>"Non requis"),COUNTRY_INFO!O14*DISTRICT!AN14,0)) -> 80526.9091 | AS14: =MAX(COUNTRY_INFO!D14*AK14*PROFILE!$G$10,COUNTRY_INFO!D14*AL14*PROFILE!$G$10,IF(AND(DISTRICT!Z14<>"Inconnu",Z14<>"Non requis"),COUNTRY_INFO!O14*DISTRICT!AO14,0)) -> 0 | AT14: 113340.2659 | AU14: Y | AV14: =MAX('MDA2'!J14,'T1'!L14,'T2'!J14,T3_R1!K14,T3_R2!K14) -> 37672 | AW14: =MAX('MDA1'!K14,'MDA2'!K14,'MDA3'!I14,'MDA3'!L14,'T1'!M14,'T2'!K14,T3_R1!L14,T3_R2!L14) -> 103273 | AX14: =MAX('MDA1'!L14,'MDA2'!L14,'MDA3'!J14,'MDA3'!M14,'T1'!N14,'T2'!L14,T3_R1!M14,T3_R2!M14) -> 8303 | AY14: 149248 | AZ14: =MAX('MDA2'!J14,T14) -> 28663 | BA14: =MAX('MDA1'!K14,'MDA2'!K14,'MDA3'!I14,'MDA3'!L14,V14,AD14) -> 79383 | BB14: =MAX('MDA1'!L14,'MDA2'!L14,'MDA3'!J14,'MDA3'!M14,AF14) -> 0 | BC14: 108046 | BD14: 95.32887467 | BE14: 0
A15: =IF(COUNTRY_INFO!A15=0," ",COUNTRY_INFO!A15) -> Burundi | B15: =IF(COUNTRY_INFO!B15=0," ",COUNTRY_INFO!B15) -> Bujumbura Rural | C15: =IF(COUNTRY_INFO!C15=0," ",COUNTRY_INFO!C15) -> Kabezi | D15: =COUNTRY_INFO!L15 -> 0 | G15: =MAX('MDA1'!M15,'MDA2'!M15) -> 0 | H15: =IF(AND(COUNTRY_INFO!H15>0,COUNTRY_INFO!H15<4),IF(D15>MAX('MDA1'!M15,'MDA2'!M15),MAX('MDA1'!M15,'MDA2'!M15),D15),0) -> 0 | I15: =IF(AND(COUNTRY_INFO!H15>0,COUNTRY_INFO!H15<4), IF(G15/D15*100<>0, IF(G15/D15*100>100,100,G15/D15*100), "-"),0) -> 0 | J15: =COUNTRY_INFO!M15 -> 0 | M15: =MAX('MDA1'!M15,MAX('MDA3'!I15,'MDA3'!L15)+MAX('MDA3'!J15,'MDA3'!M15)) -> 0 | N15: =IF(AND(COUNTRY_INFO!I15>0,COUNTRY_INFO!I15<4),IF(J15>MAX('MDA1'!M15,MAX('MDA3'!I15,'MDA3'!L15)+MAX('MDA3'!J15,'MDA3'!M15)),MAX('MDA1'!M15,MAX('MDA3'!I15,'MDA3'!L15)+MAX('MDA3'!J15,'MDA3'!M15)),J15),0) -> 0 | O15: =IF(AND(COUNTRY_INFO!I15>0,COUNTRY_INFO!I15<4), IF(M15/J15*100<>0, IF(M15/J15*100>100,100,M15/J15*100), "-"),0) -> 0 | P15: =COUNTRY_INFO!N15 -> 135931 | S15: =SUM(MAX('MDA2'!J15, 'T1'!L15, MAX(T3_R1!K15, T3_R2!K15)), MAX('MDA1'!K15, 'MDA2'!K15, 'T1'!M15, MAX(T3_R1!L15, T3_R2!L15)), MAX('MDA1'!L15, 'MDA2'!L15, 'T1'!N15, MAX(T3_R1!M15, T3_R2!M15))) -> 133771 | T15: =IF(AND(COUNTRY_INFO!J15>1,COUNTRY_INFO!J15<4),IF(COUNTRY_INFO!E15>MAX('MDA2'!J15,'T1'!L15,MAX(T3_R1!K15,T3_R2!K15)),MAX('MDA2'!J15,'T1'!L15,MAX(T3_R1!K15,T3_R2!K15)),COUNTRY_INFO!E15),0) -> 33577 | U15: =IF(AND(COUNTRY_INFO!J15>1,COUNTRY_INFO!J15<4), IF(T15/COUNTRY_INFO!E15*100<>0, IF(T15/COUNTRY_INFO!E15*100>100,100,T15/COUNTRY_INFO!E15*100), "-"),0) -> 100 | V15: =IF(AND(COUNTRY_INFO!J15>1,COUNTRY_INFO!J15<4),IF(COUNTRY_INFO!F15>MAX('MDA1'!K15,'MDA2'!K15,'T1'!M15,MAX(T3_R1!L15,T3_R2!L15)),MAX('MDA1'!K15,'MDA2'!K15,'T1'!M15,MAX(T3_R1!L15,T3_R2!L15)),COUNTRY_INFO!F15),0) -> 86163 | W15: =IF(AND(COUNTRY_INFO!J15>1,COUNTRY_INFO!J15<4), IF(V15/COUNTRY_INFO!F15*100<>0, IF(V15/COUNTRY_INFO!F15*100>100,100,V15/COUNTRY_INFO!F15*100), "-"),0) -> 84.18137054 | X15: 119740 | Y15: =IF(AND(COUNTRY_INFO!J15>1,COUNTRY_INFO!J15<4), IF(S15/P15*100<>0, IF(X15/P15*100>100,100,X15/P15*100), "-"),0) -> 88.08880976 | Z15: =COUNTRY_INFO!O15 -> 33776.82 | AA15: 39399 | AB15: 43244 | AC15: =MAX('T1'!L15,'T2'!J15)+MAX('T1'!M15,'T2'!K15)+MAX('T1'!N15,'T2'!L15) -> 82643 | AD15: =IF(COUNTRY_INFO!K15=1,IF(COUNTRY_INFO!F15*0.33>MAX('T1'!M15,'T2'!K15),MAX('T1'!M15,'T2'!K15),COUNTRY_INFO!F15*0.33),IF(COUNTRY_INFO!K15=2,IF(COUNTRY_INFO!F15*0.5>MAX('T1'!M15,'T2'!K15),MAX('T1'!M15,'T2'!K15),COUNTRY_INFO!F15*0.5),IF(COUNTRY_INFO!K15=3,IF(COUNTRY_INFO!F15>MAX('T1'!M15,'T2'!K15),MAX('T1'!M15,'T2'!K15),COUNTRY_INFO!F15),0))) -> 33776.82 | AE15: =IF(AND(COUNTRY_INFO!K15>0,COUNTRY_INFO!K15<4),IF(Z15>0,IF(COUNTRY_INFO!K15=1, AD15/(COUNTRY_INFO!F15*0.33)*100, IF(COUNTRY_INFO!K15=2, AD15/(COUNTRY_INFO!F15*0.5)*100, IF(COUNTRY_INFO!K15=3, AD15/COUNTRY_INFO!F15*100))),"-"),0) -> 100 | AF15: =IF(COUNTRY_INFO!K15=2,IF(COUNTRY_INFO!G15*0.2>MAX('T1'!N15,'T2'!L15),MAX('T1'!N15,'T2'!L15),COUNTRY_INFO!G15*0.2),IF(COUNTRY_INFO!K15=3,IF(COUNTRY_INFO!G15>MAX('T1'!N15,'T2'!L15),MAX('T1'!N15,'T2'!L15),COUNTRY_INFO!G15),0)) -> 0 | AG15: =IF(AND(COUNTRY_INFO!K15>0,COUNTRY_INFO!K15<4),IF(Z15>0,IF(COUNTRY_INFO!K15=1, 0, IF(COUNTRY_INFO!K15=2, AF15/(COUNTRY_INFO!G15*0.2)*100, IF(COUNTRY_INFO!K15=3, AF15/COUNTRY_INFO!G15*100))),"-"),0) -> 0 | AH15: 33776.82 | AI15: =IF(AND(COUNTRY_INFO!K15>0,COUNTRY_INFO!K15<4), IF(AC15/Z15*100<>0, IF(AH15/Z15*100>100,100,AH15/Z15*100), "-"),0) -> 100 | AK15: =IF(AND(D15<>0, D15<>"Inconnu",D15<>"Interrompu",D15<>"Non requis"),D15/COUNTRY_INFO!D15, 0) -> 0 | AL15: =IF(AND(J15<>0,J15<>"Inconnu",J15<>"Interrompu",J15<>"Non requis"),J15/COUNTRY_INFO!D15, 0) -> 0 | AM15: =IF(AND(P15<>0,P15<>"Inconnu",P15<>"Non requis"),P15/(COUNTRY_INFO!E15+COUNTRY_INFO!F15), 0) -> 1 | AN15: =IF(AND(Z15<>0,Z15<>"Inconnu",Z15<>"Non requis"),IF(COUNTRY_INFO!K15=1,1,IF(COUNTRY_INFO!K15=2,0.5*COUNTRY_INFO!F15/(0.5*COUNTRY_INFO!F15+0.2*COUNTRY_INFO!G15),IF(COUNTRY_INFO!K15=3,COUNTRY_INFO!F15/(COUNTRY_INFO!F15+COUNTRY_INFO!G15)))),0) -> 1 | AO15: =IF(AND(Z15<>0,Z15<>"Inconnu",Z15<>"Non requis"),IF(COUNTRY_INFO!K15=1,0,IF(COUNTRY_INFO!K15=2,0.2*COUNTRY_INFO!G15/(0.5*COUNTRY_INFO!F15+0.2*COUNTRY_INFO!G15),IF(COUNTRY_INFO!K15=3,COUNTRY_INFO!G15/(COUNTRY_INFO!F15+COUNTRY_INFO!G15)))),0) -> 0 | AP15: =MAX(COUNTRY_INFO!D15*AK15*PROFILE!$G$7,COUNTRY_INFO!D15*AL15*PROFILE!$G$7) -> 0 | AQ15: =MAX(COUNTRY_INFO!D15*AK15*PROFILE!$G$8,COUNTRY_INFO!D15*AL15*PROFILE!$G$8,COUNTRY_INFO!D15*AM15*PROFILE!$G$8) -> 29654.03064 | AR15: =MAX(COUNTRY_INFO!D15*AK15*PROFILE!$G$9,COUNTRY_INFO!D15*AL15*PROFILE!$G$9,COUNTRY_INFO!D15*AM15*PROFILE!$G$9,IF(AND(DISTRICT!Z15<>"Inconnu",Z15<>"Non requis"),COUNTRY_INFO!O15*DISTRICT!AN15,0)) -> 72773.64053 | AS15: =MAX(COUNTRY_INFO!D15*AK15*PROFILE!$G$10,COUNTRY_INFO!D15*AL15*PROFILE!$G$10,IF(AND(DISTRICT!Z15<>"Inconnu",Z15<>"Non requis"),COUNTRY_INFO!O15*DISTRICT!AO15,0)) -> 0 | AT15: 102427.6712 | AU15: Y | AV15: =MAX('MDA2'!J15,'T1'!L15,'T2'!J15,T3_R1!K15,T3_R2!K15) -> 35185 | AW15: =MAX('MDA1'!K15,'MDA2'!K15,'MDA3'!I15,'MDA3'!L15,'T1'!M15,'T2'!K15,T3_R1!L15,T3_R2!L15) -> 86163 | AX15: =MAX('MDA1'!L15,'MDA2'!L15,'MDA3'!J15,'MDA3'!M15,'T1'!N15,'T2'!L15,T3_R1!M15,T3_R2!M15) -> 12423 | AY15: 133771 | AZ15: =MAX('MDA2'!J15,T15) -> 33577 | BA15: =MAX('MDA1'!K15,'MDA2'!K15,'MDA3'!I15,'MDA3'!L15,V15,AD15) -> 86163 | BB15: =MAX('MDA1'!L15,'MDA2'!L15,'MDA3'!J15,'MDA3'!M15,AF15) -> 0 | BC15: 102427.6712 | BD15: 100 | BE15: 0
A16: =IF(COUNTRY_INFO!A16=0," ",COUNTRY_INFO!A16) -> Burundi | B16: =IF(COUNTRY_INFO!B16=0," ",COUNTRY_INFO!B16) -> Bujumbura Rural | C16: =IF(COUNTRY_INFO!C16=0," ",COUNTRY_INFO!C16) -> Rwibaga | D16: =COUNTRY_INFO!L16 -> 0 | G16: =MAX('MDA1'!M16,'MDA2'!M16) -> 0 | H16: =IF(AND(COUNTRY_INFO!H16>0,COUNTRY_INFO!H16<4),IF(D16>MAX('MDA1'!M16,'MDA2'!M16),MAX('MDA1'!M16,'MDA2'!M16),D16),0) -> 0 | I16: =IF(AND(COUNTRY_INFO!H16>0,COUNTRY_INFO!H16<4), IF(G16/D16*100<>0, IF(G16/D16*100>100,100,G16/D16*100), "-"),0) -> 0 | J16: =COUNTRY_INFO!M16 -> 0 | M16: =MAX('MDA1'!M16,MAX('MDA3'!I16,'MDA3'!L16)+MAX('MDA3'!J16,'MDA3'!M16)) -> 0 | N16: =IF(AND(COUNTRY_INFO!I16>0,COUNTRY_INFO!I16<4),IF(J16>MAX('MDA1'!M16,MAX('MDA3'!I16,'MDA3'!L16)+MAX('MDA3'!J16,'MDA3'!M16)),MAX('MDA1'!M16,MAX('MDA3'!I16,'MDA3'!L16)+MAX('MDA3'!J16,'MDA3'!M16)),J16),0) -> 0 | O16: =IF(AND(COUNTRY_INFO!I16>0,COUNTRY_INFO!I16<4), IF(M16/J16*100<>0, IF(M16/J16*100>100,100,M16/J16*100), "-"),0) -> 0 | P16: =COUNTRY_INFO!N16 -> 57596 | S16: =SUM(MAX('MDA2'!J16, 'T1'!L16, MAX(T3_R1!K16, T3_R2!K16)), MAX('MDA1'!K16, 'MDA2'!K16, 'T1'!M16, MAX(T3_R1!L16, T3_R2!L16)), MAX('MDA1'!L16, 'MDA2'!L16, 'T1'!N16, MAX(T3_R1!M16, T3_R2!M16))) -> 62053 | T16: =IF(AND(COUNTRY_INFO!J16>1,COUNTRY_INFO!J16<4),IF(COUNTRY_INFO!E16>MAX('MDA2'!J16,'T1'!L16,MAX(T3_R1!K16,T3_R2!K16)),MAX('MDA2'!J16,'T1'!L16,MAX(T3_R1!K16,T3_R2!K16)),COUNTRY_INFO!E16),0) -> 15587 | U16: =IF(AND(COUNTRY_INFO!J16>1,COUNTRY_INFO!J16<4), IF(T16/COUNTRY_INFO!E16*100<>0, IF(T16/COUNTRY_INFO!E16*100>100,100,T16/COUNTRY_INFO!E16*100), "-"),0) -> 100 | V16: =IF(AND(COUNTRY_INFO!J16>1,COUNTRY_INFO!J16<4),IF(COUNTRY_INFO!F16>MAX('MDA1'!K16,'MDA2'!K16,'T1'!M16,MAX(T3_R1!L16,T3_R2!L16)),MAX('MDA1'!K16,'MDA2'!K16,'T1'!M16,MAX(T3_R1!L16,T3_R2!L16)),COUNTRY_INFO!F16),0) -> 42009 | W16: =IF(AND(COUNTRY_INFO!J16>1,COUNTRY_INFO!J16<4), IF(V16/COUNTRY_INFO!F16*100<>0, IF(V16/COUNTRY_INFO!F16*100>100,100,V16/COUNTRY_INFO!F16*100), "-"),0) -> 100 | X16: 57596 | Y16: =IF(AND(COUNTRY_INFO!J16>1,COUNTRY_INFO!J16<4), IF(S16/P16*100<>0, IF(X16/P16*100>100,100,X16/P16*100), "-"),0) -> 100 | Z16: =COUNTRY_INFO!O16 -> 0 | AC16: =MAX('T1'!L16,'T2'!J16)+MAX('T1'!M16,'T2'!K16)+MAX('T1'!N16,'T2'!L16) -> 0 | AD16: =IF(COUNTRY_INFO!K16=1,IF(COUNTRY_INFO!F16*0.33>MAX('T1'!M16,'T2'!K16),MAX('T1'!M16,'T2'!K16),COUNTRY_INFO!F16*0.33),IF(COUNTRY_INFO!K16=2,IF(COUNTRY_INFO!F16*0.5>MAX('T1'!M16,'T2'!K16),MAX('T1'!M16,'T2'!K16),COUNTRY_INFO!F16*0.5),IF(COUNTRY_INFO!K16=3,IF(COUNTRY_INFO!F16>MAX('T1'!M16,'T2'!K16),MAX('T1'!M16,'T2'!K16),COUNTRY_INFO!F16),0))) -> 0 | AE16: =IF(AND(COUNTRY_INFO!K16>0,COUNTRY_INFO!K16<4),IF(Z16>0,IF(COUNTRY_INFO!K16=1, AD16/(COUNTRY_INFO!F16*0.33)*100, IF(COUNTRY_INFO!K16=2, AD16/(COUNTRY_INFO!F16*0.5)*100, IF(COUNTRY_INFO!K16=3, AD16/COUNTRY_INFO!F16*100))),"-"),0) -> 0 | AF16: =IF(COUNTRY_INFO!K16=2,IF(COUNTRY_INFO!G16*0.2>MAX('T1'!N16,'T2'!L16),MAX('T1'!N16,'T2'!L16),COUNTRY_INFO!G16*0.2),IF(COUNTRY_INFO!K16=3,IF(COUNTRY_INFO!G16>MAX('T1'!N16,'T2'!L16),MAX('T1'!N16,'T2'!L16),COUNTRY_INFO!G16),0)) -> 0 | AG16: =IF(AND(COUNTRY_INFO!K16>0,COUNTRY_INFO!K16<4),IF(Z16>0,IF(COUNTRY_INFO!K16=1, 0, IF(COUNTRY_INFO!K16=2, AF16/(COUNTRY_INFO!G16*0.2)*100, IF(COUNTRY_INFO!K16=3, AF16/COUNTRY_INFO!G16*100))),"-"),0) -> 0 | AH16: 0 | AI16: =IF(AND(COUNTRY_INFO!K16>0,COUNTRY_INFO!K16<4), IF(AC16/Z16*100<>0, IF(AH16/Z16*100>100,100,AH16/Z16*100), "-"),0) -> 0 | AK16: =IF(AND(D16<>0, D16<>"Inconnu",D16<>"Interrompu",D16<>"Non requis"),D16/COUNTRY_INFO!D16, 0) -> 0 | AL16: =IF(AND(J16<>0,J16<>"Inconnu",J16<>"Interrompu",J16<>"Non requis"),J16/COUNTRY_INFO!D16, 0) -> 0 | AM16: =IF(AND(P16<>0,P16<>"Inconnu",P16<>"Non requis"),P16/(COUNTRY_INFO!E16+COUNTRY_INFO!F16), 0) -> 1 | AN16: =IF(AND(Z16<>0,Z16<>"Inconnu",Z16<>"Non requis"),IF(COUNTRY_INFO!K16=1,1,IF(COUNTRY_INFO!K16=2,0.5*COUNTRY_INFO!F16/(0.5*COUNTRY_INFO!F16+0.2*COUNTRY_INFO!G16),IF(COUNTRY_INFO!K16=3,COUNTRY_INFO!F16/(COUNTRY_INFO!F16+COUNTRY_INFO!G16)))),0) -> 0 | AO16: =IF(AND(Z16<>0,Z16<>"Inconnu",Z16<>"Non requis"),IF(COUNTRY_INFO!K16=1,0,IF(COUNTRY_INFO!K16=2,0.2*COUNTRY_INFO!G16/(0.5*COUNTRY_INFO!F16+0.2*COUNTRY_INFO!G16),IF(COUNTRY_INFO!K16=3,COUNTRY_INFO!G16/(COUNTRY_INFO!F16+COUNTRY_INFO!G16)))),0) -> 0 | AP16: =MAX(COUNTRY_INFO!D16*AK16*PROFILE!$G$7,COUNTRY_INFO!D16*AL16*PROFILE!$G$7) -> 0 | AQ16: =MAX(COUNTRY_INFO!D16*AK16*PROFILE!$G$8,COUNTRY_INFO!D16*AL16*PROFILE!$G$8,COUNTRY_INFO!D16*AM16*PROFILE!$G$8) -> 17826.91474 | AR16: =MAX(COUNTRY_INFO!D16*AK16*PROFILE!$G$9,COUNTRY_INFO!D16*AL16*PROFILE!$G$9,COUNTRY_INFO!D16*AM16*PROFILE!$G$9,IF(AND(DISTRICT!Z16<>"Inconnu",Z16<>"Non requis"),COUNTRY_INFO!O16*DISTRICT!AN16,0)) -> 43748.84146 | AS16: =MAX(COUNTRY_INFO!D16*AK16*PROFILE!$G$10,COUNTRY_INFO!D16*AL16*PROFILE!$G$10,IF(AND(DISTRICT!Z16<>"Inconnu",Z16<>"Non requis"),COUNTRY_INFO!O16*DISTRICT!AO16,0)) -> 0 | AT16: 61575.7562 | AU16: Y | AV16: =MAX('MDA2'!J16,'T1'!L16,'T2'!J16,T3_R1!K16,T3_R2!K16) -> 15801 | AW16: =MAX('MDA1'!K16,'MDA2'!K16,'MDA3'!I16,'MDA3'!L16,'T1'!M16,'T2'!K16,T3_R1!L16,T3_R2!L16) -> 42743 | AX16: =MAX('MDA1'!L16,'MDA2'!L16,'MDA3'!J16,'MDA3'!M16,'T1'!N16,'T2'!L16,T3_R1!M16,T3_R2!M16) -> 3509 | AY16: 62053 | AZ16: =MAX('MDA2'!J16,T16) -> 15587 | BA16: =MAX('MDA1'!K16,'MDA2'!K16,'MDA3'!I16,'MDA3'!L16,V16,AD16) -> 42009 | BB16: =MAX('MDA1'!L16,'MDA2'!L16,'MDA3'!J16,'MDA3'!M16,AF16) -> 0 | BC16: 57596 | BD16: 93.53681312 | BE16: 0
A17: =IF(COUNTRY_INFO!A17=0," ",COUNTRY_INFO!A17) -> Burundi | B17: =IF(COUNTRY_INFO!B17=0," ",COUNTRY_INFO!B17) -> Bururi | C17: =IF(COUNTRY_INFO!C17=0," ",COUNTRY_INFO!C17) -> Bururi | D17: =COUNTRY_INFO!L17 -> 0 | G17: =MAX('MDA1'!M17,'MDA2'!M17) -> 0 | H17: =IF(AND(COUNTRY_INFO!H17>0,COUNTRY_INFO!H17<4),IF(D17>MAX('MDA1'!M17,'MDA2'!M17),MAX('MDA1'!M17,'MDA2'!M17),D17),0) -> 0 | I17: =IF(AND(COUNTRY_INFO!H17>0,COUNTRY_INFO!H17<4), IF(G17/D17*100<>0, IF(G17/D17*100>100,100,G17/D17*100), "-"),0) -> 0 | J17: =COUNTRY_INFO!M17 -> 55864 | M17: =MAX('MDA1'!M17,MAX('MDA3'!I17,'MDA3'!L17)+MAX('MDA3'!J17,'MDA3'!M17)) -> 0 | N17: =IF(AND(COUNTRY_INFO!I17>0,COUNTRY_INFO!I17<4),IF(J17>MAX('MDA1'!M17,MAX('MDA3'!I17,'MDA3'!L17)+MAX('MDA3'!J17,'MDA3'!M17)),MAX('MDA1'!M17,MAX('MDA3'!I17,'MDA3'!L17)+MAX('MDA3'!J17,'MDA3'!M17)),J17),0) -> 0 | O17: =IF(AND(COUNTRY_INFO!I17>0,COUNTRY_INFO!I17<4), IF(M17/J17*100<>0, IF(M17/J17*100>100,100,M17/J17*100), "-"),0) -> - | P17: =COUNTRY_INFO!N17 -> 0 | S17: =SUM(MAX('MDA2'!J17, 'T1'!L17, MAX(T3_R1!K17, T3_R2!K17)), MAX('MDA1'!K17, 'MDA2'!K17, 'T1'!M17, MAX(T3_R1!L17, T3_R2!L17)), MAX('MDA1'!L17, 'MDA2'!L17, 'T1'!N17, MAX(T3_R1!M17, T3_R2!M17))) -> 84605 | T17: =IF(AND(COUNTRY_INFO!J17>1,COUNTRY_INFO!J17<4),IF(COUNTRY_INFO!E17>MAX('MDA2'!J17,'T1'!L17,MAX(T3_R1!K17,T3_R2!K17)),MAX('MDA2'!J17,'T1'!L17,MAX(T3_R1!K17,T3_R2!K17)),COUNTRY_INFO!E17),0) -> 0 | U17: =IF(AND(COUNTRY_INFO!J17>1,COUNTRY_INFO!J17<4), IF(T17/COUNTRY_INFO!E17*100<>0, IF(T17/COUNTRY_INFO!E17*100>100,100,T17/COUNTRY_INFO!E17*100), "-"),0) -> 0 | V17: =IF(AND(COUNTRY_INFO!J17>1,COUNTRY_INFO!J17<4),IF(COUNTRY_INFO!F17>MAX('MDA1'!K17,'MDA2'!K17,'T1'!M17,MAX(T3_R1!L17,T3_R2!L17)),MAX('MDA1'!K17,'MDA2'!K17,'T1'!M17,MAX(T3_R1!L17,T3_R2!L17)),COUNTRY_INFO!F17),0) -> 0 | W17: =IF(AND(COUNTRY_INFO!J17>1,COUNTRY_INFO!J17<4), IF(V17/COUNTRY_INFO!F17*100<>0, IF(V17/COUNTRY_INFO!F17*100>100,100,V17/COUNTRY_INFO!F17*100), "-"),0) -> 0 | X17: 0 | Y17: =IF(AND(COUNTRY_INFO!J17>1,COUNTRY_INFO!J17<4), IF(S17/P17*100<>0, IF(X17/P17*100>100,100,X17/P17*100), "-"),0) -> 0 | Z17: =COUNTRY_INFO!O17 -> 0 | AC17: =MAX('T1'!L17,'T2'!J17)+MAX('T1'!M17,'T2'!K17)+MAX('T1'!N17,'T2'!L17) -> 0 | AD17: =IF(COUNTRY_INFO!K17=1,IF(COUNTRY_INFO!F17*0.33>MAX('T1'!M17,'T2'!K17),MAX('T1'!M17,'T2'!K17),COUNTRY_INFO!F17*0.33),IF(COUNTRY_INFO!K17=2,IF(COUNTRY_INFO!F17*0.5>MAX('T1'!M17,'T2'!K17),MAX('T1'!M17,'T2'!K17),COUNTRY_INFO!F17*0.5),IF(COUNTRY_INFO!K17=3,IF(COUNTRY_INFO!F17>MAX('T1'!M17,'T2'!K17),MAX('T1'!M17,'T2'!K17),COUNTRY_INFO!F17),0))) -> 0 | AE17: =IF(AND(COUNTRY_INFO!K17>0,COUNTRY_INFO!K17<4),IF(Z17>0,IF(COUNTRY_INFO!K17=1, AD17/(COUNTRY_INFO!F17*0.33)*100, IF(COUNTRY_INFO!K17=2, AD17/(COUNTRY_INFO!F17*0.5)*100, IF(COUNTRY_INFO!K17=3, AD17/COUNTRY_INFO!F17*100))),"-"),0) -> 0 | AF17: =IF(COUNTRY_INFO!K17=2,IF(COUNTRY_INFO!G17*0.2>MAX('T1'!N17,'T2'!L17),MAX('T1'!N17,'T2'!L17),COUNTRY_INFO!G17*0.2),IF(COUNTRY_INFO!K17=3,IF(COUNTRY_INFO!G17>MAX('T1'!N17,'T2'!L17),MAX('T1'!N17,'T2'!L17),COUNTRY_INFO!G17),0)) -> 0 | AG17: =IF(AND(COUNTRY_INFO!K17>0,COUNTRY_INFO!K17<4),IF(Z17>0,IF(COUNTRY_INFO!K17=1, 0, IF(COUNTRY_INFO!K17=2, AF17/(COUNTRY_INFO!G17*0.2)*100, IF(COUNTRY_INFO!K17=3, AF17/COUNTRY_INFO!G17*100))),"-"),0) -> 0 | AH17: 0 | AI17: =IF(AND(COUNTRY_INFO!K17>0,COUNTRY_INFO!K17<4), IF(AC17/Z17*100<>0, IF(AH17/Z17*100>100,100,AH17/Z17*100), "-"),0) -> 0 | AK17: =IF(AND(D17<>0, D17<>"Inconnu",D17<>"Interrompu",D17<>"Non requis"),D17/COUNTRY_INFO!D17, 0) -> 0 | AL17: =IF(AND(J17<>0,J17<>"Inconnu",J17<>"Interrompu",J17<>"Non requis"),J17/COUNTRY_INFO!D17, 0) -> 0.3157924489 | AM17: =IF(AND(P17<>0,P17<>"Inconnu",P17<>"Non requis"),P17/(COUNTRY_INFO!E17+COUNTRY_INFO!F17), 0) -> 0 | AN17: =IF(AND(Z17<>0,Z17<>"Inconnu",Z17<>"Non requis"),IF(COUNTRY_INFO!K17=1,1,IF(COUNTRY_INFO!K17=2,0.5*COUNTRY_INFO!F17/(0.5*COUNTRY_INFO!F17+0.2*COUNTRY_INFO!G17),IF(COUNTRY_INFO!K17=3,COUNTRY_INFO!F17/(COUNTRY_INFO!F17+COUNTRY_INFO!G17)))),0) -> 0 | AO17: =IF(AND(Z17<>0,Z17<>"Inconnu",Z17<>"Non requis"),IF(COUNTRY_INFO!K17=1,0,IF(COUNTRY_INFO!K17=2,0.2*COUNTRY_INFO!G17/(0.5*COUNTRY_INFO!F17+0.2*COUNTRY_INFO!G17),IF(COUNTRY_INFO!K17=3,COUNTRY_INFO!G17/(COUNTRY_INFO!F17+COUNTRY_INFO!G17)))),0) -> 0 | AP17: =MAX(COUNTRY_INFO!D17*AK17*PROFILE!$G$7,COUNTRY_INFO!D17*AL17*PROFILE!$G$7) -> 3875.095307 | AQ17: =MAX(COUNTRY_INFO!D17*AK17*PROFILE!$G$8,COUNTRY_INFO!D17*AL17*PROFILE!$G$8,COUNTRY_INFO!D17*AM17*PROFILE!$G$8) -> 6180.578319 | AR17: =MAX(COUNTRY_INFO!D17*AK17*PROFILE!$G$9,COUNTRY_INFO!D17*AL17*PROFILE!$G$9,COUNTRY_INFO!D17*AM17*PROFILE!$G$9,IF(AND(DISTRICT!Z17<>"Inconnu",Z17<>"Non requis"),COUNTRY_INFO!O17*DISTRICT!AN17,0)) -> 15167.69138 | AS17: =MAX(COUNTRY_INFO!D17*AK17*PROFILE!$G$10,COUNTRY_INFO!D17*AL17*PROFILE!$G$10,IF(AND(DISTRICT!Z17<>"Inconnu",Z17<>"Non requis"),COUNTRY_INFO!O17*DISTRICT!AO17,0)) -> 30640.635 | AT17: 55864 | AU17: 0 | AV17: =MAX('MDA2'!J17,'T1'!L17,'T2'!J17,T3_R1!K17,T3_R2!K17) -> 29528 | AW17: =MAX('MDA1'!K17,'MDA2'!K17,'MDA3'!I17,'MDA3'!L17,'T1'!M17,'T2'!K17,T3_R1!L17,T3_R2!L17) -> 50868 | AX17: =MAX('MDA1'!L17,'MDA2'!L17,'MDA3'!J17,'MDA3'!M17,'T1'!N17,'T2'!L17,T3_R1!M17,T3_R2!M17) -> 4209 | AY17: 84605 | AZ17: =MAX('MDA2'!J17,T17) -> 0 | BA17: =MAX('MDA1'!K17,'MDA2'!K17,'MDA3'!I17,'MDA3'!L17,V17,AD17) -> 0 | BB17: =MAX('MDA1'!L17,'MDA2'!L17,'MDA3'!J17,'MDA3'!M17,AF17) -> 0 | BC17: 0 | BD17: 0 | BE17: 0
A18: =IF(COUNTRY_INFO!A18=0," ",COUNTRY_INFO!A18) -> Burundi | B18: =IF(COUNTRY_INFO!B18=0," ",COUNTRY_INFO!B18) -> Bururi | C18: =IF(COUNTRY_INFO!C18=0," ",COUNTRY_INFO!C18) -> Matana | D18: =COUNTRY_INFO!L18 -> 0 | G18: =MAX('MDA1'!M18,'MDA2'!M18) -> 0 | H18: =IF(AND(COUNTRY_INFO!H18>0,COUNTRY_INFO!H18<4),IF(D18>MAX('MDA1'!M18,'MDA2'!M18),MAX('MDA1'!M18,'MDA2'!M18),D18),0) -> 0 | I18: =IF(AND(COUNTRY_INFO!H18>0,COUNTRY_INFO!H18<4), IF(G18/D18*100<>0, IF(G18/D18*100>100,100,G18/D18*100), "-"),0) -> 0 | J18: =COUNTRY_INFO!M18 -> 0 | M18: =MAX('MDA1'!M18,MAX('MDA3'!I18,'MDA3'!L18)+MAX('MDA3'!J18,'MDA3'!M18)) -> 0 | N18: =IF(AND(COUNTRY_INFO!I18>0,COUNTRY_INFO!I18<4),IF(J18>MAX('MDA1'!M18,MAX('MDA3'!I18,'MDA3'!L18)+MAX('MDA3'!J18,'MDA3'!M18)),MAX('MDA1'!M18,MAX('MDA3'!I18,'MDA3'!L18)+MAX('MDA3'!J18,'MDA3'!M18)),J18),0) -> 0 | O18: =IF(AND(COUNTRY_INFO!I18>0,COUNTRY_INFO!I18<4), IF(M18/J18*100<>0, IF(M18/J18*100>100,100,M18/J18*100), "-"),0) -> 0 | P18: =COUNTRY_INFO!N18 -> 0 | S18: =SUM(MAX('MDA2'!J18, 'T1'!L18, MAX(T3_R1!K18, T3_R2!K18)), MAX('MDA1'!K18, 'MDA2'!K18, 'T1'!M18, MAX(T3_R1!L18, T3_R2!L18)), MAX('MDA1'!L18, 'MDA2'!L18, 'T1'!N18, MAX(T3_R1!M18, T3_R2!M18))) -> 61507 | T18: =IF(AND(COUNTRY_INFO!J18>1,COUNTRY_INFO!J18<4),IF(COUNTRY_INFO!E18>MAX('MDA2'!J18,'T1'!L18,MAX(T3_R1!K18,T3_R2!K18)),MAX('MDA2'!J18,'T1'!L18,MAX(T3_R1!K18,T3_R2!K18)),COUNTRY_INFO!E18),0) -> 0 | U18: =IF(AND(COUNTRY_INFO!J18>1,COUNTRY_INFO!J18<4), IF(T18/COUNTRY_INFO!E18*100<>0, IF(T18/COUNTRY_INFO!E18*100>100,100,T18/COUNTRY_INFO!E18*100), "-"),0) -> 0 | V18: =IF(AND(COUNTRY_INFO!J18>1,COUNTRY_INFO!J18<4),IF(COUNTRY_INFO!F18>MAX('MDA1'!K18,'MDA2'!K18,'T1'!M18,MAX(T3_R1!L18,T3_R2!L18)),MAX('MDA1'!K18,'MDA2'!K18,'T1'!M18,MAX(T3_R1!L18,T3_R2!L18)),COUNTRY_INFO!F18),0) -> 0 | W18: =IF(AND(COUNTRY_INFO!J18>1,COUNTRY_INFO!J18<4), IF(V18/COUNTRY_INFO!F18*100<>0, IF(V18/COUNTRY_INFO!F18*100>100,100,V18/COUNTRY_INFO!F18*100), "-"),0) -> 0 | X18: 0 | Y18: =IF(AND(COUNTRY_INFO!J18>1,COUNTRY_INFO!J18<4), IF(S18/P18*100<>0, IF(X18/P18*100>100,100,X18/P18*100), "-"),0) -> 0 | Z18: =COUNTRY_INFO!O18 -> 0 | AC18: =MAX('T1'!L18,'T2'!J18)+MAX('T1'!M18,'T2'!K18)+MAX('T1'!N18,'T2'!L18) -> 0 | AD18: =IF(COUNTRY_INFO!K18=1,IF(COUNTRY_INFO!F18*0.33>MAX('T1'!M18,'T2'!K18),MAX('T1'!M18,'T2'!K18),COUNTRY_INFO!F18*0.33),IF(COUNTRY_INFO!K18=2,IF(COUNTRY_INFO!F18*0.5>MAX('T1'!M18,'T2'!K18),MAX('T1'!M18,'T2'!K18),COUNTRY_INFO!F18*0.5),IF(COUNTRY_INFO!K18=3,IF(COUNTRY_INFO!F18>MAX('T1'!M18,'T2'!K18),MAX('T1'!M18,'T2'!K18),COUNTRY_INFO!F18),0))) -> 0 | AE18: =IF(AND(COUNTRY_INFO!K18>0,COUNTRY_INFO!K18<4),IF(Z18>0,IF(COUNTRY_INFO!K18=1, AD18/(COUNTRY_INFO!F18*0.33)*100, IF(COUNTRY_INFO!K18=2, AD18/(COUNTRY_INFO!F18*0.5)*100, IF(COUNTRY_INFO!K18=3, AD18/COUNTRY_INFO!F18*100))),"-"),0) -> 0 | AF18: =IF(COUNTRY_INFO!K18=2,IF(COUNTRY_INFO!G18*0.2>MAX('T1'!N18,'T2'!L18),MAX('T1'!N18,'T2'!L18),COUNTRY_INFO!G18*0.2),IF(COUNTRY_INFO!K18=3,IF(COUNTRY_INFO!G18>MAX('T1'!N18,'T2'!L18),MAX('T1'!N18,'T2'!L18),COUNTRY_INFO!G18),0)) -> 0 | AG18: =IF(AND(COUNTRY_INFO!K18>0,COUNTRY_INFO!K18<4),IF(Z18>0,IF(COUNTRY_INFO!K18=1, 0, IF(COUNTRY_INFO!K18=2, AF18/(COUNTRY_INFO!G18*0.2)*100, IF(COUNTRY_INFO!K18=3, AF18/COUNTRY_INFO!G18*100))),"-"),0) -> 0 | AH18: 0 | AI18: =IF(AND(COUNTRY_INFO!K18>0,COUNTRY_INFO!K18<4), IF(AC18/Z18*100<>0, IF(AH18/Z18*100>100,100,AH18/Z18*100), "-"),0) -> 0 | AK18: =IF(AND(D18<>0, D18<>"Inconnu",D18<>"Interrompu",D18<>"Non requis"),D18/COUNTRY_INFO!D18, 0) -> 0 | AL18: =IF(AND(J18<>0,J18<>"Inconnu",J18<>"Interrompu",J18<>"Non requis"),J18/COUNTRY_INFO!D18, 0) -> 0 | AM18: =IF(AND(P18<>0,P18<>"Inconnu",P18<>"Non requis"),P18/(COUNTRY_INFO!E18+COUNTRY_INFO!F18), 0) -> 0 | AN18: =IF(AND(Z18<>0,Z18<>"Inconnu",Z18<>"Non requis"),IF(COUNTRY_INFO!K18=1,1,IF(COUNTRY_INFO!K18=2,0.5*COUNTRY_INFO!F18/(0.5*COUNTRY_INFO!F18+0.2*COUNTRY_INFO!G18),IF(COUNTRY_INFO!K18=3,COUNTRY_INFO!F18/(COUNTRY_INFO!F18+COUNTRY_INFO!G18)))),0) -> 0 | AO18: =IF(AND(Z18<>0,Z18<>"Inconnu",Z18<>"Non requis"),IF(COUNTRY_INFO!K18=1,0,IF(COUNTRY_INFO!K18=2,0.2*COUNTRY_INFO!G18/(0.5*COUNTRY_INFO!F18+0.2*COUNTRY_INFO!G18),IF(COUNTRY_INFO!K18=3,COUNTRY_INFO!G18/(COUNTRY_INFO!F18+COUNTRY_INFO!G18)))),0) -> 0 | AP18: =MAX(COUNTRY_INFO!D18*AK18*PROFILE!$G$7,COUNTRY_INFO!D18*AL18*PROFILE!$G$7) -> 0 | AQ18: =MAX(COUNTRY_INFO!D18*AK18*PROFILE!$G$8,COUNTRY_INFO!D18*AL18*PROFILE!$G$8,COUNTRY_INFO!D18*AM18*PROFILE!$G$8) -> 0 | AR18: =MAX(COUNTRY_INFO!D18*AK18*PROFILE!$G$9,COUNTRY_INFO!D18*AL18*PROFILE!$G$9,COUNTRY_INFO!D18*AM18*PROFILE!$G$9,IF(AND(DISTRICT!Z18<>"Inconnu",Z18<>"Non requis"),COUNTRY_INFO!O18*DISTRICT!AN18,0)) -> 0 | AS18: =MAX(COUNTRY_INFO!D18*AK18*PROFILE!$G$10,COUNTRY_INFO!D18*AL18*PROFILE!$G$10,IF(AND(DISTRICT!Z18<>"Inconnu",Z18<>"Non requis"),COUNTRY_INFO!O18*DISTRICT!AO18,0)) -> 0 | AT18: 0 | AU18: 0 | AV18: =MAX('MDA2'!J18,'T1'!L18,'T2'!J18,T3_R1!K18,T3_R2!K18) -> 17385 | AW18: =MAX('MDA1'!K18,'MDA2'!K18,'MDA3'!I18,'MDA3'!L18,'T1'!M18,'T2'!K18,T3_R1!L18,T3_R2!L18) -> 40203 | AX18: =MAX('MDA1'!L18,'MDA2'!L18,'MDA3'!J18,'MDA3'!M18,'T1'!N18,'T2'!L18,T3_R1!M18,T3_R2!M18) -> 3919 | AY18: 61507 | AZ18: =MAX('MDA2'!J18,T18) -> 0 | BA18: =MAX('MDA1'!K18,'MDA2'!K18,'MDA3'!I18,'MDA3'!L18,V18,AD18) -> 0 | BB18: =MAX('MDA1'!L18,'MDA2'!L18,'MDA3'!J18,'MDA3'!M18,AF18) -> 0 | BC18: 0 | BD18: 0 | BE18: 0
A19: =IF(COUNTRY_INFO!A19=0," ",COUNTRY_INFO!A19) -> Burundi | B19: =IF(COUNTRY_INFO!B19=0," ",COUNTRY_INFO!B19) -> Bururi | C19: =IF(COUNTRY_INFO!C19=0," ",COUNTRY_INFO!C19) -> Rutovu | D19: =COUNTRY_INFO!L19 -> 0 | G19: =MAX('MDA1'!M19,'MDA2'!M19) -> 0 | H19: =IF(AND(COUNTRY_INFO!H19>0,COUNTRY_INFO!H19<4),IF(D19>MAX('MDA1'!M19,'MDA2'!M19),MAX('MDA1'!M19,'MDA2'!M19),D19),0) -> 0 | I19: =IF(AND(COUNTRY_INFO!H19>0,COUNTRY_INFO!H19<4), IF(G19/D19*100<>0, IF(G19/D19*100>100,100,G19/D19*100), "-"),0) -> 0 | J19: =COUNTRY_INFO!M19 -> 23477 | M19: =MAX('MDA1'!M19,MAX('MDA3'!I19,'MDA3'!L19)+MAX('MDA3'!J19,'MDA3'!M19)) -> 0 | N19: =IF(AND(COUNTRY_INFO!I19>0,COUNTRY_INFO!I19<4),IF(J19>MAX('MDA1'!M19,MAX('MDA3'!I19,'MDA3'!L19)+MAX('MDA3'!J19,'MDA3'!M19)),MAX('MDA1'!M19,MAX('MDA3'!I19,'MDA3'!L19)+MAX('MDA3'!J19,'MDA3'!M19)),J19),0) -> 0 | O19: =IF(AND(COUNTRY_INFO!I19>0,COUNTRY_INFO!I19<4), IF(M19/J19*100<>0, IF(M19/J19*100>100,100,M19/J19*100), "-"),0) -> - | P19: =COUNTRY_INFO!N19 -> 0 | S19: =SUM(MAX('MDA2'!J19, 'T1'!L19, MAX(T3_R1!K19, T3_R2!K19)), MAX('MDA1'!K19, 'MDA2'!K19, 'T1'!M19, MAX(T3_R1!L19, T3_R2!L19)), MAX('MDA1'!L19, 'MDA2'!L19, 'T1'!N19, MAX(T3_R1!M19, T3_R2!M19))) -> 69877 | T19: =IF(AND(COUNTRY_INFO!J19>1,COUNTRY_INFO!J19<4),IF(COUNTRY_INFO!E19>MAX('MDA2'!J19,'T1'!L19,MAX(T3_R1!K19,T3_R2!K19)),MAX('MDA2'!J19,'T1'!L19,MAX(T3_R1!K19,T3_R2!K19)),COUNTRY_INFO!E19),0) -> 0 | U19: =IF(AND(COUNTRY_INFO!J19>1,COUNTRY_INFO!J19<4), IF(T19/COUNTRY_INFO!E19*100<>0, IF(T19/COUNTRY_INFO!E19*100>100,100,T19/COUNTRY_INFO!E19*100), "-"),0) -> 0 | V19: =IF(AND(COUNTRY_INFO!J19>1,COUNTRY_INFO!J19<4),IF(COUNTRY_INFO!F19>MAX('MDA1'!K19,'MDA2'!K19,'T1'!M19,MAX(T3_R1!L19,T3_R2!L19)),MAX('MDA1'!K19,'MDA2'!K19,'T1'!M19,MAX(T3_R1!L19,T3_R2!L19)),COUNTRY_INFO!F19),0) -> 0 | W19: =IF(AND(COUNTRY_INFO!J19>1,COUNTRY_INFO!J19<4), IF(V19/COUNTRY_INFO!F19*100<>0, IF(V19/COUNTRY_INFO!F19*100>100,100,V19/COUNTRY_INFO!F19*100), "-"),0) -> 0 | X19: 0 | Y19: =IF(AND(COUNTRY_INFO!J19>1,COUNTRY_INFO!J19<4), IF(S19/P19*100<>0, IF(X19/P19*100>100,100,X19/P19*100), "-"),0) -> 0 | Z19: =COUNTRY_INFO!O19 -> 0 | AC19: =MAX('T1'!L19,'T2'!J19)+MAX('T1'!M19,'T2'!K19)+MAX('T1'!N19,'T2'!L19) -> 0 | AD19: =IF(COUNTRY_INFO!K19=1,IF(COUNTRY_INFO!F19*0.33>MAX('T1'!M19,'T2'!K19),MAX('T1'!M19,'T2'!K19),COUNTRY_INFO!F19*0.33),IF(COUNTRY_INFO!K19=2,IF(COUNTRY_INFO!F19*0.5>MAX('T1'!M19,'T2'!K19),MAX('T1'!M19,'T2'!K19),COUNTRY_INFO!F19*0.5),IF(COUNTRY_INFO!K19=3,IF(COUNTRY_INFO!F19>MAX('T1'!M19,'T2'!K19),MAX('T1'!M19,'T2'!K19),COUNTRY_INFO!F19),0))) -> 0 | AE19: =IF(AND(COUNTRY_INFO!K19>0,COUNTRY_INFO!K19<4),IF(Z19>0,IF(COUNTRY_INFO!K19=1, AD19/(COUNTRY_INFO!F19*0.33)*100, IF(COUNTRY_INFO!K19=2, AD19/(COUNTRY_INFO!F19*0.5)*100, IF(COUNTRY_INFO!K19=3, AD19/COUNTRY_INFO!F19*100))),"-"),0) -> 0 | AF19: =IF(COUNTRY_INFO!K19=2,IF(COUNTRY_INFO!G19*0.2>MAX('T1'!N19,'T2'!L19),MAX('T1'!N19,'T2'!L19),COUNTRY_INFO!G19*0.2),IF(COUNTRY_INFO!K19=3,IF(COUNTRY_INFO!G19>MAX('T1'!N19,'T2'!L19),MAX('T1'!N19,'T2'!L19),COUNTRY_INFO!G19),0)) -> 0 | AG19: =IF(AND(COUNTRY_INFO!K19>0,COUNTRY_INFO!K19<4),IF(Z19>0,IF(COUNTRY_INFO!K19=1, 0, IF(COUNTRY_INFO!K19=2, AF19/(COUNTRY_INFO!G19*0.2)*100, IF(COUNTRY_INFO!K19=3, AF19/COUNTRY_INFO!G19*100))),"-"),0) -> 0 | AH19: 0 | AI19: =IF(AND(COUNTRY_INFO!K19>0,COUNTRY_INFO!K19<4), IF(AC19/Z19*100<>0, IF(AH19/Z19*100>100,100,AH19/Z19*100), "-"),0) -> 0 | AK19: =IF(AND(D19<>0, D19<>"Inconnu",D19<>"Interrompu",D19<>"Non requis"),D19/COUNTRY_INFO!D19, 0) -> 0 | AL19: =IF(AND(J19<>0,J19<>"Inconnu",J19<>"Interrompu",J19<>"Non requis"),J19/COUNTRY_INFO!D19, 0) -> 0.153521707 | AM19: =IF(AND(P19<>0,P19<>"Inconnu",P19<>"Non requis"),P19/(COUNTRY_INFO!E19+COUNTRY_INFO!F19), 0) -> 0 | AN19: =IF(AND(Z19<>0,Z19<>"Inconnu",Z19<>"Non requis"),IF(COUNTRY_INFO!K19=1,1,IF(COUNTRY_INFO!K19=2,0.5*COUNTRY_INFO!F19/(0.5*COUNTRY_INFO!F19+0.2*COUNTRY_INFO!G19),IF(COUNTRY_INFO!K19=3,COUNTRY_INFO!F19/(COUNTRY_INFO!F19+COUNTRY_INFO!G19)))),0) -> 0 | AO19: =IF(AND(Z19<>0,Z19<>"Inconnu",Z19<>"Non requis"),IF(COUNTRY_INFO!K19=1,0,IF(COUNTRY_INFO!K19=2,0.2*COUNTRY_INFO!G19/(0.5*COUNTRY_INFO!F19+0.2*COUNTRY_INFO!G19),IF(COUNTRY_INFO!K19=3,COUNTRY_INFO!G19/(COUNTRY_INFO!F19+COUNTRY_INFO!G19)))),0) -> 0 | AP19: =MAX(COUNTRY_INFO!D19*AK19*PROFILE!$G$7,COUNTRY_INFO!D19*AL19*PROFILE!$G$7) -> 1628.519485 | AQ19: =MAX(COUNTRY_INFO!D19*AK19*PROFILE!$G$8,COUNTRY_INFO!D19*AL19*PROFILE!$G$8,COUNTRY_INFO!D19*AM19*PROFILE!$G$8) -> 2597.405076 | AR19: =MAX(COUNTRY_INFO!D19*AK19*PROFILE!$G$9,COUNTRY_INFO!D19*AL19*PROFILE!$G$9,COUNTRY_INFO!D19*AM19*PROFILE!$G$9,IF(AND(DISTRICT!Z19<>"Inconnu",Z19<>"Non requis"),COUNTRY_INFO!O19*DISTRICT!AN19,0)) -> 6374.264113 | AS19: =MAX(COUNTRY_INFO!D19*AK19*PROFILE!$G$10,COUNTRY_INFO!D19*AL19*PROFILE!$G$10,IF(AND(DISTRICT!Z19<>"Inconnu",Z19<>"Non requis"),COUNTRY_INFO!O19*DISTRICT!AO19,0)) -> 12876.81132 | AT19: 23477 | AU19: 0 | AV19: =MAX('MDA2'!J19,'T1'!L19,'T2'!J19,T3_R1!K19,T3_R2!K19) -> 24090 | AW19: =MAX('MDA1'!K19,'MDA2'!K19,'MDA3'!I19,'MDA3'!L19,'T1'!M19,'T2'!K19,T3_R1!L19,T3_R2!L19) -> 42153 | AX19: =MAX('MDA1'!L19,'MDA2'!L19,'MDA3'!J19,'MDA3'!M19,'T1'!N19,'T2'!L19,T3_R1!M19,T3_R2!M19) -> 3634 | AY19: 69877 | AZ19: =MAX('MDA2'!J19,T19) -> 0 | BA19: =MAX('MDA1'!K19,'MDA2'!K19,'MDA3'!I19,'MDA3'!L19,V19,AD19) -> 0 | BB19: =MAX('MDA1'!L19,'MDA2'!L19,'MDA3'!J19,'MDA3'!M19,AF19) -> 0 | BC19: 0 | BD19: 0 | BE19: 0
A20: =IF(COUNTRY_INFO!A20=0," ",COUNTRY_INFO!A20) -> Burundi | B20: =IF(COUNTRY_INFO!B20=0," ",COUNTRY_INFO!B20) -> Cankuzo | C20: =IF(COUNTRY_INFO!C20=0," ",COUNTRY_INFO!C20) -> Cankuzo | D20: =COUNTRY_INFO!L20 -> 0 | G20: =MAX('MDA1'!M20,'MDA2'!M20) -> 0 | H20: =IF(AND(COUNTRY_INFO!H20>0,COUNTRY_INFO!H20<4),IF(D20>MAX('MDA1'!M20,'MDA2'!M20),MAX('MDA1'!M20,'MDA2'!M20),D20),0) -> 0 | I20: =IF(AND(COUNTRY_INFO!H20>0,COUNTRY_INFO!H20<4), IF(G20/D20*100<>0, IF(G20/D20*100>100,100,G20/D20*100), "-"),0) -> 0 | J20: =COUNTRY_INFO!M20 -> 0 | M20: =MAX('MDA1'!M20,MAX('MDA3'!I20,'MDA3'!L20)+MAX('MDA3'!J20,'MDA3'!M20)) -> 0 | N20: =IF(AND(COUNTRY_INFO!I20>0,COUNTRY_INFO!I20<4),IF(J20>MAX('MDA1'!M20,MAX('MDA3'!I20,'MDA3'!L20)+MAX('MDA3'!J20,'MDA3'!M20)),MAX('MDA1'!M20,MAX('MDA3'!I20,'MDA3'!L20)+MAX('MDA3'!J20,'MDA3'!M20)),J20),0) -> 0 | O20: =IF(AND(COUNTRY_INFO!I20>0,COUNTRY_INFO!I20<4), IF(M20/J20*100<>0, IF(M20/J20*100>100,100,M20/J20*100), "-"),0) -> 0 | P20: =COUNTRY_INFO!N20 -> 0 | S20: =SUM(MAX('MDA2'!J20, 'T1'!L20, MAX(T3_R1!K20, T3_R2!K20)), MAX('MDA1'!K20, 'MDA2'!K20, 'T1'!M20, MAX(T3_R1!L20, T3_R2!L20)), MAX('MDA1'!L20, 'MDA2'!L20, 'T1'!N20, MAX(T3_R1!M20, T3_R2!M20))) -> 105138 | T20: =IF(AND(COUNTRY_INFO!J20>1,COUNTRY_INFO!J20<4),IF(COUNTRY_INFO!E20>MAX('MDA2'!J20,'T1'!L20,MAX(T3_R1!K20,T3_R2!K20)),MAX('MDA2'!J20,'T1'!L20,MAX(T3_R1!K20,T3_R2!K20)),COUNTRY_INFO!E20),0) -> 0 | U20: =IF(AND(COUNTRY_INFO!J20>1,COUNTRY_INFO!J20<4), IF(T20/COUNTRY_INFO!E20*100<>0, IF(T20/COUNTRY_INFO!E20*100>100,100,T20/COUNTRY_INFO!E20*100), "-"),0) -> 0 | V20: =IF(AND(COUNTRY_INFO!J20>1,COUNTRY_INFO!J20<4),IF(COUNTRY_INFO!F20>MAX('MDA1'!K20,'MDA2'!K20,'T1'!M20,MAX(T3_R1!L20,T3_R2!L20)),MAX('MDA1'!K20,'MDA2'!K20,'T1'!M20,MAX(T3_R1!L20,T3_R2!L20)),COUNTRY_INFO!F20),0) -> 0 | W20: =IF(AND(COUNTRY_INFO!J20>1,COUNTRY_INFO!J20<4), IF(V20/COUNTRY_INFO!F20*100<>0, IF(V20/COUNTRY_INFO!F20*100>100,100,V20/COUNTRY_INFO!F20*100), "-"),0) -> 0 | X20: 0 | Y20: =IF(AND(COUNTRY_INFO!J20>1,COUNTRY_INFO!J20<4), IF(S20/P20*100<>0, IF(X20/P20*100>100,100,X20/P20*100), "-"),0) -> 0 | Z20: =COUNTRY_INFO!O20 -> 0 | AC20: =MAX('T1'!L20,'T2'!J20)+MAX('T1'!M20,'T2'!K20)+MAX('T1'!N20,'T2'!L20) -> 0 | AD20: =IF(COUNTRY_INFO!K20=1,IF(COUNTRY_INFO!F20*0.33>MAX('T1'!M20,'T2'!K20),MAX('T1'!M20,'T2'!K20),COUNTRY_INFO!F20*0.33),IF(COUNTRY_INFO!K20=2,IF(COUNTRY_INFO!F20*0.5>MAX('T1'!M20,'T2'!K20),MAX('T1'!M20,'T2'!K20),COUNTRY_INFO!F20*0.5),IF(COUNTRY_INFO!K20=3,IF(COUNTRY_INFO!F20>MAX('T1'!M20,'T2'!K20),MAX('T1'!M20,'T2'!K20),COUNTRY_INFO!F20),0))) -> 0 | AE20: =IF(AND(COUNTRY_INFO!K20>0,COUNTRY_INFO!K20<4),IF(Z20>0,IF(COUNTRY_INFO!K20=1, AD20/(COUNTRY_INFO!F20*0.33)*100, IF(COUNTRY_INFO!K20=2, AD20/(COUNTRY_INFO!F20*0.5)*100, IF(COUNTRY_INFO!K20=3, AD20/COUNTRY_INFO!F20*100))),"-"),0) -> 0 | AF20: =IF(COUNTRY_INFO!K20=2,IF(COUNTRY_INFO!G20*0.2>MAX('T1'!N20,'T2'!L20),MAX('T1'!N20,'T2'!L20),COUNTRY_INFO!G20*0.2),IF(COUNTRY_INFO!K20=3,IF(COUNTRY_INFO!G20>MAX('T1'!N20,'T2'!L20),MAX('T1'!N20,'T2'!L20),COUNTRY_INFO!G20),0)) -> 0 | AG20: =IF(AND(COUNTRY_INFO!K20>0,COUNTRY_INFO!K20<4),IF(Z20>0,IF(COUNTRY_INFO!K20=1, 0, IF(COUNTRY_INFO!K20=2, AF20/(COUNTRY_INFO!G20*0.2)*100, IF(COUNTRY_INFO!K20=3, AF20/COUNTRY_INFO!G20*100))),"-"),0) -> 0 | AH20: 0 | AI20: =IF(AND(COUNTRY_INFO!K20>0,COUNTRY_INFO!K20<4), IF(AC20/Z20*100<>0, IF(AH20/Z20*100>100,100,AH20/Z20*100), "-"),0) -> 0 | AK20: =IF(AND(D20<>0, D20<>"Inconnu",D20<>"Interrompu",D20<>"Non requis"),D20/COUNTRY_INFO!D20, 0) -> 0 | AL20: =IF(AND(J20<>0,J20<>"Inconnu",J20<>"Interrompu",J20<>"Non requis"),J20/COUNTRY_INFO!D20, 0) -> 0 | AM20: =IF(AND(P20<>0,P20<>"Inconnu",P20<>"Non requis"),P20/(COUNTRY_INFO!E20+COUNTRY_INFO!F20), 0) -> 0 | AN20: =IF(AND(Z20<>0,Z20<>"Inconnu",Z20<>"Non requis"),IF(COUNTRY_INFO!K20=1,1,IF(COUNTRY_INFO!K20=2,0.5*COUNTRY_INFO!F20/(0.5*COUNTRY_INFO!F20+0.2*COUNTRY_INFO!G20),IF(COUNTRY_INFO!K20=3,COUNTRY_INFO!F20/(COUNTRY_INFO!F20+COUNTRY_INFO!G20)))),0) -> 0 | AO20: =IF(AND(Z20<>0,Z20<>"Inconnu",Z20<>"Non requis"),IF(COUNTRY_INFO!K20=1,0,IF(COUNTRY_INFO!K20=2,0.2*COUNTRY_INFO!G20/(0.5*COUNTRY_INFO!F20+0.2*COUNTRY_INFO!G20),IF(COUNTRY_INFO!K20=3,COUNTRY_INFO!G20/(COUNTRY_INFO!F20+COUNTRY_INFO!G20)))),0) -> 0 | AP20: =MAX(COUNTRY_INFO!D20*AK20*PROFILE!$G$7,COUNTRY_INFO!D20*AL20*PROFILE!$G$7) -> 0 | AQ20: =MAX(COUNTRY_INFO!D20*AK20*PROFILE!$G$8,COUNTRY_INFO!D20*AL20*PROFILE!$G$8,COUNTRY_INFO!D20*AM20*PROFILE!$G$8) -> 0 | AR20: =MAX(COUNTRY_INFO!D20*AK20*PROFILE!$G$9,COUNTRY_INFO!D20*AL20*PROFILE!$G$9,COUNTRY_INFO!D20*AM20*PROFILE!$G$9,IF(AND(DISTRICT!Z20<>"Inconnu",Z20<>"Non requis"),COUNTRY_INFO!O20*DISTRICT!AN20,0)) -> 0 | AS20: =MAX(COUNTRY_INFO!D20*AK20*PROFILE!$G$10,COUNTRY_INFO!D20*AL20*PROFILE!$G$10,IF(AND(DISTRICT!Z20<>"Inconnu",Z20<>"Non requis"),COUNTRY_INFO!O20*DISTRICT!AO20,0)) -> 0 | AT20: 0 | AU20: 0 | AV20: =MAX('MDA2'!J20,'T1'!L20,'T2'!J20,T3_R1!K20,T3_R2!K20) -> 29771 | AW20: =MAX('MDA1'!K20,'MDA2'!K20,'MDA3'!I20,'MDA3'!L20,'T1'!M20,'T2'!K20,T3_R1!L20,T3_R2!L20) -> 69678 | AX20: =MAX('MDA1'!L20,'MDA2'!L20,'MDA3'!J20,'MDA3'!M20,'T1'!N20,'T2'!L20,T3_R1!M20,T3_R2!M20) -> 5689 | AY20: 105138 | AZ20: =MAX('MDA2'!J20,T20) -> 0 | BA20: =MAX('MDA1'!K20,'MDA2'!K20,'MDA3'!I20,'MDA3'!L20,V20,AD20) -> 0 | BB20: =MAX('MDA1'!L20,'MDA2'!L20,'MDA3'!J20,'MDA3'!M20,AF20) -> 0 | BC20: 0 | BD20: 0 | BE20: 0
A21: =IF(COUNTRY_INFO!A21=0," ",COUNTRY_INFO!A21) -> Burundi | B21: =IF(COUNTRY_INFO!B21=0," ",COUNTRY_INFO!B21) -> Cankuzo | C21: =IF(COUNTRY_INFO!C21=0," ",COUNTRY_INFO!C21) -> Murore | D21: =COUNTRY_INFO!L21 -> 0 | G21: =MAX('MDA1'!M21,'MDA2'!M21) -> 0 | H21: =IF(AND(COUNTRY_INFO!H21>0,COUNTRY_INFO!H21<4),IF(D21>MAX('MDA1'!M21,'MDA2'!M21),MAX('MDA1'!M21,'MDA2'!M21),D21),0) -> 0 | I21: =IF(AND(COUNTRY_INFO!H21>0,COUNTRY_INFO!H21<4), IF(G21/D21*100<>0, IF(G21/D21*100>100,100,G21/D21*100), "-"),0) -> 0 | J21: =COUNTRY_INFO!M21 -> 0 | M21: =MAX('MDA1'!M21,MAX('MDA3'!I21,'MDA3'!L21)+MAX('MDA3'!J21,'MDA3'!M21)) -> 0 | N21: =IF(AND(COUNTRY_INFO!I21>0,COUNTRY_INFO!I21<4),IF(J21>MAX('MDA1'!M21,MAX('MDA3'!I21,'MDA3'!L21)+MAX('MDA3'!J21,'MDA3'!M21)),MAX('MDA1'!M21,MAX('MDA3'!I21,'MDA3'!L21)+MAX('MDA3'!J21,'MDA3'!M21)),J21),0) -> 0 | O21: =IF(AND(COUNTRY_INFO!I21>0,COUNTRY_INFO!I21<4), IF(M21/J21*100<>0, IF(M21/J21*100>100,100,M21/J21*100), "-"),0) -> 0 | P21: =COUNTRY_INFO!N21 -> 0 | S21: =SUM(MAX('MDA2'!J21, 'T1'!L21, MAX(T3_R1!K21, T3_R2!K21)), MAX('MDA1'!K21, 'MDA2'!K21, 'T1'!M21, MAX(T3_R1!L21, T3_R2!L21)), MAX('MDA1'!L21, 'MDA2'!L21, 'T1'!N21, MAX(T3_R1!M21, T3_R2!M21))) -> 82218 | T21: =IF(AND(COUNTRY_INFO!J21>1,COUNTRY_INFO!J21<4),IF(COUNTRY_INFO!E21>MAX('MDA2'!J21,'T1'!L21,MAX(T3_R1!K21,T3_R2!K21)),MAX('MDA2'!J21,'T1'!L21,MAX(T3_R1!K21,T3_R2!K21)),COUNTRY_INFO!E21),0) -> 0 | U21: =IF(AND(COUNTRY_INFO!J21>1,COUNTRY_INFO!J21<4), IF(T21/COUNTRY_INFO!E21*100<>0, IF(T21/COUNTRY_INFO!E21*100>100,100,T21/COUNTRY_INFO!E21*100), "-"),0) -> 0 | V21: =IF(AND(COUNTRY_INFO!J21>1,COUNTRY_INFO!J21<4),IF(COUNTRY_INFO!F21>MAX('MDA1'!K21,'MDA2'!K21,'T1'!M21,MAX(T3_R1!L21,T3_R2!L21)),MAX('MDA1'!K21,'MDA2'!K21,'T1'!M21,MAX(T3_R1!L21,T3_R2!L21)),COUNTRY_INFO!F21),0) -> 0 | W21: =IF(AND(COUNTRY_INFO!J21>1,COUNTRY_INFO!J21<4), IF(V21/COUNTRY_INFO!F21*100<>0, IF(V21/COUNTRY_INFO!F21*100>100,100,V21/COUNTRY_INFO!F21*100), "-"),0) -> 0 | X21: 0 | Y21: =IF(AND(COUNTRY_INFO!J21>1,COUNTRY_INFO!J21<4), IF(S21/P21*100<>0, IF(X21/P21*100>100,100,X21/P21*100), "-"),0) -> 0 | Z21: =COUNTRY_INFO!O21 -> 16118.19 | AA21: 24861 | AB21: 26824 | AC21: =MAX('T1'!L21,'T2'!J21)+MAX('T1'!M21,'T2'!K21)+MAX('T1'!N21,'T2'!L21) -> 51685 | AD21: =IF(COUNTRY_INFO!K21=1,IF(COUNTRY_INFO!F21*0.33>MAX('T1'!M21,'T2'!K21),MAX('T1'!M21,'T2'!K21),COUNTRY_INFO!F21*0.33),IF(COUNTRY_INFO!K21=2,IF(COUNTRY_INFO!F21*0.5>MAX('T1'!M21,'T2'!K21),MAX('T1'!M21,'T2'!K21),COUNTRY_INFO!F21*0.5),IF(COUNTRY_INFO!K21=3,IF(COUNTRY_INFO!F21>MAX('T1'!M21,'T2'!K21),MAX('T1'!M21,'T2'!K21),COUNTRY_INFO!F21),0))) -> 16118.19 | AE21: =IF(AND(COUNTRY_INFO!K21>0,COUNTRY_INFO!K21<4),IF(Z21>0,IF(COUNTRY_INFO!K21=1, AD21/(COUNTRY_INFO!F21*0.33)*100, IF(COUNTRY_INFO!K21=2, AD21/(COUNTRY_INFO!F21*0.5)*100, IF(COUNTRY_INFO!K21=3, AD21/COUNTRY_INFO!F21*100))),"-"),0) -> 100 | AF21: =IF(COUNTRY_INFO!K21=2,IF(COUNTRY_INFO!G21*0.2>MAX('T1'!N21,'T2'!L21),MAX('T1'!N21,'T2'!L21),COUNTRY_INFO!G21*0.2),IF(COUNTRY_INFO!K21=3,IF(COUNTRY_INFO!G21>MAX('T1'!N21,'T2'!L21),MAX('T1'!N21,'T2'!L21),COUNTRY_INFO!G21),0)) -> 0 | AG21: =IF(AND(COUNTRY_INFO!K21>0,COUNTRY_INFO!K21<4),IF(Z21>0,IF(COUNTRY_INFO!K21=1, 0, IF(COUNTRY_INFO!K21=2, AF21/(COUNTRY_INFO!G21*0.2)*100, IF(COUNTRY_INFO!K21=3, AF21/COUNTRY_INFO!G21*100))),"-"),0) -> 0 | AH21: 16118.19 | AI21: =IF(AND(COUNTRY_INFO!K21>0,COUNTRY_INFO!K21<4), IF(AC21/Z21*100<>0, IF(AH21/Z21*100>100,100,AH21/Z21*100), "-"),0) -> 100 | AK21: =IF(AND(D21<>0, D21<>"Inconnu",D21<>"Interrompu",D21<>"Non requis"),D21/COUNTRY_INFO!D21, 0) -> 0 | AL21: =IF(AND(J21<>0,J21<>"Inconnu",J21<>"Interrompu",J21<>"Non requis"),J21/COUNTRY_INFO!D21, 0) -> 0 | AM21: =IF(AND(P21<>0,P21<>"Inconnu",P21<>"Non requis"),P21/(COUNTRY_INFO!E21+COUNTRY_INFO!F21), 0) -> 0 | AN21: =IF(AND(Z21<>0,Z21<>"Inconnu",Z21<>"Non requis"),IF(COUNTRY_INFO!K21=1,1,IF(COUNTRY_INFO!K21=2,0.5*COUNTRY_INFO!F21/(0.5*COUNTRY_INFO!F21+0.2*COUNTRY_INFO!G21),IF(COUNTRY_INFO!K21=3,COUNTRY_INFO!F21/(COUNTRY_INFO!F21+COUNTRY_INFO!G21)))),0) -> 1 | AO21: =IF(AND(Z21<>0,Z21<>"Inconnu",Z21<>"Non requis"),IF(COUNTRY_INFO!K21=1,0,IF(COUNTRY_INFO!K21=2,0.2*COUNTRY_INFO!G21/(0.5*COUNTRY_INFO!F21+0.2*COUNTRY_INFO!G21),IF(COUNTRY_INFO!K21=3,COUNTRY_INFO!G21/(COUNTRY_INFO!F21+COUNTRY_INFO!G21)))),0) -> 0 | AP21: =MAX(COUNTRY_INFO!D21*AK21*PROFILE!$G$7,COUNTRY_INFO!D21*AL21*PROFILE!$G$7) -> 0 | AQ21: =MAX(COUNTRY_INFO!D21*AK21*PROFILE!$G$8,COUNTRY_INFO!D21*AL21*PROFILE!$G$8,COUNTRY_INFO!D21*AM21*PROFILE!$G$8) -> 0 | AR21: =MAX(COUNTRY_INFO!D21*AK21*PROFILE!$G$9,COUNTRY_INFO!D21*AL21*PROFILE!$G$9,COUNTRY_INFO!D21*AM21*PROFILE!$G$9,IF(AND(DISTRICT!Z21<>"Inconnu",Z21<>"Non requis"),COUNTRY_INFO!O21*DISTRICT!AN21,0)) -> 16118.19 | AS21: =MAX(COUNTRY_INFO!D21*AK21*PROFILE!$G$10,COUNTRY_INFO!D21*AL21*PROFILE!$G$10,IF(AND(DISTRICT!Z21<>"Inconnu",Z21<>"Non requis"),COUNTRY_INFO!O21*DISTRICT!AO21,0)) -> 0 | AT21: 16118.19 | AU21: Y | AV21: =MAX('MDA2'!J21,'T1'!L21,'T2'!J21,T3_R1!K21,T3_R2!K21) -> 25079 | AW21: =MAX('MDA1'!K21,'MDA2'!K21,'MDA3'!I21,'MDA3'!L21,'T1'!M21,'T2'!K21,T3_R1!L21,T3_R2!L21) -> 51685 | AX21: =MAX('MDA1'!L21,'MDA2'!L21,'MDA3'!J21,'MDA3'!M21,'T1'!N21,'T2'!L21,T3_R1!M21,T3_R2!M21) -> 5956 | AY21: 82720 | AZ21: =MAX('MDA2'!J21,T21) -> 0 | BA21: =MAX('MDA1'!K21,'MDA2'!K21,'MDA3'!I21,'MDA3'!L21,V21,AD21) -> 16118.19 | BB21: =MAX('MDA1'!L21,'MDA2'!L21,'MDA3'!J21,'MDA3'!M21,AF21) -> 0 | BC21: 16118.19 | BD21: 100 | BE21: 0
A22: =IF(COUNTRY_INFO!A22=0," ",COUNTRY_INFO!A22) -> Burundi | B22: =IF(COUNTRY_INFO!B22=0," ",COUNTRY_INFO!B22) -> Cibitoke | C22: =IF(COUNTRY_INFO!C22=0," ",COUNTRY_INFO!C22) -> Bukinanyana | D22: =COUNTRY_INFO!L22 -> 0 | G22: =MAX('MDA1'!M22,'MDA2'!M22) -> 0 | H22: =IF(AND(COUNTRY_INFO!H22>0,COUNTRY_INFO!H22<4),IF(D22>MAX('MDA1'!M22,'MDA2'!M22),MAX('MDA1'!M22,'MDA2'!M22),D22),0) -> 0 | I22: =IF(AND(COUNTRY_INFO!H22>0,COUNTRY_INFO!H22<4), IF(G22/D22*100<>0, IF(G22/D22*100>100,100,G22/D22*100), "-"),0) -> 0 | J22: =COUNTRY_INFO!M22 -> 232453 | M22: =MAX('MDA1'!M22,MAX('MDA3'!I22,'MDA3'!L22)+MAX('MDA3'!J22,'MDA3'!M22)) -> 0 | N22: =IF(AND(COUNTRY_INFO!I22>0,COUNTRY_INFO!I22<4),IF(J22>MAX('MDA1'!M22,MAX('MDA3'!I22,'MDA3'!L22)+MAX('MDA3'!J22,'MDA3'!M22)),MAX('MDA1'!M22,MAX('MDA3'!I22,'MDA3'!L22)+MAX('MDA3'!J22,'MDA3'!M22)),J22),0) -> 0 | O22: =IF(AND(COUNTRY_INFO!I22>0,COUNTRY_INFO!I22<4), IF(M22/J22*100<>0, IF(M22/J22*100>100,100,M22/J22*100), "-"),0) -> - | P22: =COUNTRY_INFO!N22 -> 0 | S22: =SUM(MAX('MDA2'!J22, 'T1'!L22, MAX(T3_R1!K22, T3_R2!K22)), MAX('MDA1'!K22, 'MDA2'!K22, 'T1'!M22, MAX(T3_R1!L22, T3_R2!L22)), MAX('MDA1'!L22, 'MDA2'!L22, 'T1'!N22, MAX(T3_R1!M22, T3_R2!M22))) -> 113674 | T22: =IF(AND(COUNTRY_INFO!J22>1,COUNTRY_INFO!J22<4),IF(COUNTRY_INFO!E22>MAX('MDA2'!J22,'T1'!L22,MAX(T3_R1!K22,T3_R2!K22)),MAX('MDA2'!J22,'T1'!L22,MAX(T3_R1!K22,T3_R2!K22)),COUNTRY_INFO!E22),0) -> 0 | U22: =IF(AND(COUNTRY_INFO!J22>1,COUNTRY_INFO!J22<4), IF(T22/COUNTRY_INFO!E22*100<>0, IF(T22/COUNTRY_INFO!E22*100>100,100,T22/COUNTRY_INFO!E22*100), "-"),0) -> 0 | V22: =IF(AND(COUNTRY_INFO!J22>1,COUNTRY_INFO!J22<4),IF(COUNTRY_INFO!F22>MAX('MDA1'!K22,'MDA2'!K22,'T1'!M22,MAX(T3_R1!L22,T3_R2!L22)),MAX('MDA1'!K22,'MDA2'!K22,'T1'!M22,MAX(T3_R1!L22,T3_R2!L22)),COUNTRY_INFO!F22),0) -> 0 | W22: =IF(AND(COUNTRY_INFO!J22>1,COUNTRY_INFO!J22<4), IF(V22/COUNTRY_INFO!F22*100<>0, IF(V22/COUNTRY_INFO!F22*100>100,100,V22/COUNTRY_INFO!F22*100), "-"),0) -> 0 | X22: 0 | Y22: =IF(AND(COUNTRY_INFO!J22>1,COUNTRY_INFO!J22<4), IF(S22/P22*100<>0, IF(X22/P22*100>100,100,X22/P22*100), "-"),0) -> 0 | Z22: =COUNTRY_INFO!O22 -> 23102.31 | AA22: 34574 | AB22: 38167 | AC22: =MAX('T1'!L22,'T2'!J22)+MAX('T1'!M22,'T2'!K22)+MAX('T1'!N22,'T2'!L22) -> 72594 | AD22: =IF(COUNTRY_INFO!K22=1,IF(COUNTRY_INFO!F22*0.33>MAX('T1'!M22,'T2'!K22),MAX('T1'!M22,'T2'!K22),COUNTRY_INFO!F22*0.33),IF(COUNTRY_INFO!K22=2,IF(COUNTRY_INFO!F22*0.5>MAX('T1'!M22,'T2'!K22),MAX('T1'!M22,'T2'!K22),COUNTRY_INFO!F22*0.5),IF(COUNTRY_INFO!K22=3,IF(COUNTRY_INFO!F22>MAX('T1'!M22,'T2'!K22),MAX('T1'!M22,'T2'!K22),COUNTRY_INFO!F22),0))) -> 23102.31 | AE22: =IF(AND(COUNTRY_INFO!K22>0,COUNTRY_INFO!K22<4),IF(Z22>0,IF(COUNTRY_INFO!K22=1, AD22/(COUNTRY_INFO!F22*0.33)*100, IF(COUNTRY_INFO!K22=2, AD22/(COUNTRY_INFO!F22*0.5)*100, IF(COUNTRY_INFO!K22=3, AD22/COUNTRY_INFO!F22*100))),"-"),0) -> 100 | AF22: =IF(COUNTRY_INFO!K22=2,IF(COUNTRY_INFO!G22*0.2>MAX('T1'!N22,'T2'!L22),MAX('T1'!N22,'T2'!L22),COUNTRY_INFO!G22*0.2),IF(COUNTRY_INFO!K22=3,IF(COUNTRY_INFO!G22>MAX('T1'!N22,'T2'!L22),MAX('T1'!N22,'T2'!L22),COUNTRY_INFO!G22),0)) -> 0 | AG22: =IF(AND(COUNTRY_INFO!K22>0,COUNTRY_INFO!K22<4),IF(Z22>0,IF(COUNTRY_INFO!K22=1, 0, IF(COUNTRY_INFO!K22=2, AF22/(COUNTRY_INFO!G22*0.2)*100, IF(COUNTRY_INFO!K22=3, AF22/COUNTRY_INFO!G22*100))),"-"),0) -> 0 | AH22: 23102.31 | AI22: =IF(AND(COUNTRY_INFO!K22>0,COUNTRY_INFO!K22<4), IF(AC22/Z22*100<>0, IF(AH22/Z22*100>100,100,AH22/Z22*100), "-"),0) -> 100 | AK22: =IF(AND(D22<>0, D22<>"Inconnu",D22<>"Interrompu",D22<>"Non requis"),D22/COUNTRY_INFO!D22, 0) -> 0 | AL22: =IF(AND(J22<>0,J22<>"Inconnu",J22<>"Interrompu",J22<>"Non requis"),J22/COUNTRY_INFO!D22, 0) -> 0.9423566517 | AM22: =IF(AND(P22<>0,P22<>"Inconnu",P22<>"Non requis"),P22/(COUNTRY_INFO!E22+COUNTRY_INFO!F22), 0) -> 0 | AN22: =IF(AND(Z22<>0,Z22<>"Inconnu",Z22<>"Non requis"),IF(COUNTRY_INFO!K22=1,1,IF(COUNTRY_INFO!K22=2,0.5*COUNTRY_INFO!F22/(0.5*COUNTRY_INFO!F22+0.2*COUNTRY_INFO!G22),IF(COUNTRY_INFO!K22=3,COUNTRY_INFO!F22/(COUNTRY_INFO!F22+COUNTRY_INFO!G22)))),0) -> 1 | AO22: =IF(AND(Z22<>0,Z22<>"Inconnu",Z22<>"Non requis"),IF(COUNTRY_INFO!K22=1,0,IF(COUNTRY_INFO!K22=2,0.2*COUNTRY_INFO!G22/(0.5*COUNTRY_INFO!F22+0.2*COUNTRY_INFO!G22),IF(COUNTRY_INFO!K22=3,COUNTRY_INFO!G22/(COUNTRY_INFO!F22+COUNTRY_INFO!G22)))),0) -> 0 | AP22: =MAX(COUNTRY_INFO!D22*AK22*PROFILE!$G$7,COUNTRY_INFO!D22*AL22*PROFILE!$G$7) -> 16124.47246 | AQ22: =MAX(COUNTRY_INFO!D22*AK22*PROFILE!$G$8,COUNTRY_INFO!D22*AL22*PROFILE!$G$8,COUNTRY_INFO!D22*AM22*PROFILE!$G$8) -> 25717.70679 | AR22: =MAX(COUNTRY_INFO!D22*AK22*PROFILE!$G$9,COUNTRY_INFO!D22*AL22*PROFILE!$G$9,COUNTRY_INFO!D22*AM22*PROFILE!$G$9,IF(AND(DISTRICT!Z22<>"Inconnu",Z22<>"Non requis"),COUNTRY_INFO!O22*DISTRICT!AN22,0)) -> 63113.55011 | AS22: =MAX(COUNTRY_INFO!D22*AK22*PROFILE!$G$10,COUNTRY_INFO!D22*AL22*PROFILE!$G$10,IF(AND(DISTRICT!Z22<>"Inconnu",Z22<>"Non requis"),COUNTRY_INFO!O22*DISTRICT!AO22,0)) -> 127497.2706 | AT22: 232453 | AU22: 0 | AV22: =MAX('MDA2'!J22,'T1'!L22,'T2'!J22,T3_R1!K22,T3_R2!K22) -> 29184 | AW22: =MAX('MDA1'!K22,'MDA2'!K22,'MDA3'!I22,'MDA3'!L22,'T1'!M22,'T2'!K22,T3_R1!L22,T3_R2!L22) -> 79169 | AX22: =MAX('MDA1'!L22,'MDA2'!L22,'MDA3'!J22,'MDA3'!M22,'T1'!N22,'T2'!L22,T3_R1!M22,T3_R2!M22) -> 5321 | AY22: 113674 | AZ22: =MAX('MDA2'!J22,T22) -> 0 | BA22: =MAX('MDA1'!K22,'MDA2'!K22,'MDA3'!I22,'MDA3'!L22,V22,AD22) -> 23102.31 | BB22: =MAX('MDA1'!L22,'MDA2'!L22,'MDA3'!J22,'MDA3'!M22,AF22) -> 0 | BC22: 23102.31 | BD22: 9.93848649 | BE22: -147
A23: =IF(COUNTRY_INFO!A23=0," ",COUNTRY_INFO!A23) -> Burundi | B23: =IF(COUNTRY_INFO!B23=0," ",COUNTRY_INFO!B23) -> Cibitoke | C23: =IF(COUNTRY_INFO!C23=0," ",COUNTRY_INFO!C23) -> Cibitoke | D23: =COUNTRY_INFO!L23 -> 0 | G23: =MAX('MDA1'!M23,'MDA2'!M23) -> 0 | H23: =IF(AND(COUNTRY_INFO!H23>0,COUNTRY_INFO!H23<4),IF(D23>MAX('MDA1'!M23,'MDA2'!M23),MAX('MDA1'!M23,'MDA2'!M23),D23),0) -> 0 | I23: =IF(AND(COUNTRY_INFO!H23>0,COUNTRY_INFO!H23<4), IF(G23/D23*100<>0, IF(G23/D23*100>100,100,G23/D23*100), "-"),0) -> 0 | J23: =COUNTRY_INFO!M23 -> 257382 | M23: =MAX('MDA1'!M23,MAX('MDA3'!I23,'MDA3'!L23)+MAX('MDA3'!J23,'MDA3'!M23)) -> 0 | N23: =IF(AND(COUNTRY_INFO!I23>0,COUNTRY_INFO!I23<4),IF(J23>MAX('MDA1'!M23,MAX('MDA3'!I23,'MDA3'!L23)+MAX('MDA3'!J23,'MDA3'!M23)),MAX('MDA1'!M23,MAX('MDA3'!I23,'MDA3'!L23)+MAX('MDA3'!J23,'MDA3'!M23)),J23),0) -> 0 | O23: =IF(AND(COUNTRY_INFO!I23>0,COUNTRY_INFO!I23<4), IF(M23/J23*100<>0, IF(M23/J23*100>100,100,M23/J23*100), "-"),0) -> - | P23: =COUNTRY_INFO!N23 -> 0 | S23: =SUM(MAX('MDA2'!J23, 'T1'!L23, MAX(T3_R1!K23, T3_R2!K23)), MAX('MDA1'!K23, 'MDA2'!K23, 'T1'!M23, MAX(T3_R1!L23, T3_R2!L23)), MAX('MDA1'!L23, 'MDA2'!L23, 'T1'!N23, MAX(T3_R1!M23, T3_R2!M23))) -> 112249 | T23: =IF(AND(COUNTRY_INFO!J23>1,COUNTRY_INFO!J23<4),IF(COUNTRY_INFO!E23>MAX('MDA2'!J23,'T1'!L23,MAX(T3_R1!K23,T3_R2!K23)),MAX('MDA2'!J23,'T1'!L23,MAX(T3_R1!K23,T3_R2!K23)),COUNTRY_INFO!E23),0) -> 0 | U23: =IF(AND(COUNTRY_INFO!J23>1,COUNTRY_INFO!J23<4), IF(T23/COUNTRY_INFO!E23*100<>0, IF(T23/COUNTRY_INFO!E23*100>100,100,T23/COUNTRY_INFO!E23*100), "-"),0) -> 0 | V23: =IF(AND(COUNTRY_INFO!J23>1,COUNTRY_INFO!J23<4),IF(COUNTRY_INFO!F23>MAX('MDA1'!K23,'MDA2'!K23,'T1'!M23,MAX(T3_R1!L23,T3_R2!L23)),MAX('MDA1'!K23,'MDA2'!K23,'T1'!M23,MAX(T3_R1!L23,T3_R2!L23)),COUNTRY_INFO!F23),0) -> 0 | W23: =IF(AND(COUNTRY_INFO!J23>1,COUNTRY_INFO!J23<4), IF(V23/COUNTRY_INFO!F23*100<>0, IF(V23/COUNTRY_INFO!F23*100>100,100,V23/COUNTRY_INFO!F23*100), "-"),0) -> 0 | X23: 0 | Y23: =IF(AND(COUNTRY_INFO!J23>1,COUNTRY_INFO!J23<4), IF(S23/P23*100<>0, IF(X23/P23*100>100,100,X23/P23*100), "-"),0) -> 0 | Z23: =COUNTRY_INFO!O23 -> 54904.7 | AA23: 40314 | AB23: 43495 | AC23: =MAX('T1'!L23,'T2'!J23)+MAX('T1'!M23,'T2'!K23)+MAX('T1'!N23,'T2'!L23) -> 83809 | AD23: =IF(COUNTRY_INFO!K23=1,IF(COUNTRY_INFO!F23*0.33>MAX('T1'!M23,'T2'!K23),MAX('T1'!M23,'T2'!K23),COUNTRY_INFO!F23*0.33),IF(COUNTRY_INFO!K23=2,IF(COUNTRY_INFO!F23*0.5>MAX('T1'!M23,'T2'!K23),MAX('T1'!M23,'T2'!K23),COUNTRY_INFO!F23*0.5),IF(COUNTRY_INFO!K23=3,IF(COUNTRY_INFO!F23>MAX('T1'!M23,'T2'!K23),MAX('T1'!M23,'T2'!K23),COUNTRY_INFO!F23),0))) -> 29364.5 | AE23: =IF(AND(COUNTRY_INFO!K23>0,COUNTRY_INFO!K23<4),IF(Z23>0,IF(COUNTRY_INFO!K23=1, AD23/(COUNTRY_INFO!F23*0.33)*100, IF(COUNTRY_INFO!K23=2, AD23/(COUNTRY_INFO!F23*0.5)*100, IF(COUNTRY_INFO!K23=3, AD23/COUNTRY_INFO!F23*100))),"-"),0) -> 100 | AF23: =IF(COUNTRY_INFO!K23=2,IF(COUNTRY_INFO!G23*0.2>MAX('T1'!N23,'T2'!L23),MAX('T1'!N23,'T2'!L23),COUNTRY_INFO!G23*0.2),IF(COUNTRY_INFO!K23=3,IF(COUNTRY_INFO!G23>MAX('T1'!N23,'T2'!L23),MAX('T1'!N23,'T2'!L23),COUNTRY_INFO!G23),0)) -> 0 | AG23: =IF(AND(COUNTRY_INFO!K23>0,COUNTRY_INFO!K23<4),IF(Z23>0,IF(COUNTRY_INFO!K23=1, 0, IF(COUNTRY_INFO!K23=2, AF23/(COUNTRY_INFO!G23*0.2)*100, IF(COUNTRY_INFO!K23=3, AF23/COUNTRY_INFO!G23*100))),"-"),0) -> 0 | AH23: 29364.5 | AI23: =IF(AND(COUNTRY_INFO!K23>0,COUNTRY_INFO!K23<4), IF(AC23/Z23*100<>0, IF(AH23/Z23*100>100,100,AH23/Z23*100), "-"),0) -> 53.48267088 | AK23: =IF(AND(D23<>0, D23<>"Inconnu",D23<>"Interrompu",D23<>"Non requis"),D23/COUNTRY_INFO!D23, 0) -> 0 | AL23: =IF(AND(J23<>0,J23<>"Inconnu",J23<>"Interrompu",J23<>"Non requis"),J23/COUNTRY_INFO!D23, 0) -> 1.116590819 | AM23: =IF(AND(P23<>0,P23<>"Inconnu",P23<>"Non requis"),P23/(COUNTRY_INFO!E23+COUNTRY_INFO!F23), 0) -> 0 | AN23: =IF(AND(Z23<>0,Z23<>"Inconnu",Z23<>"Non requis"),IF(COUNTRY_INFO!K23=1,1,IF(COUNTRY_INFO!K23=2,0.5*COUNTRY_INFO!F23/(0.5*COUNTRY_INFO!F23+0.2*COUNTRY_INFO!G23),IF(COUNTRY_INFO!K23=3,COUNTRY_INFO!F23/(COUNTRY_INFO!F23+COUNTRY_INFO!G23)))),0) -> 0.5348267088 | AO23: =IF(AND(Z23<>0,Z23<>"Inconnu",Z23<>"Non requis"),IF(COUNTRY_INFO!K23=1,0,IF(COUNTRY_INFO!K23=2,0.2*COUNTRY_INFO!G23/(0.5*COUNTRY_INFO!F23+0.2*COUNTRY_INFO!G23),IF(COUNTRY_INFO!K23=3,COUNTRY_INFO!G23/(COUNTRY_INFO!F23+COUNTRY_INFO!G23)))),0) -> 0.4651732912 | AP23: =MAX(COUNTRY_INFO!D23*AK23*PROFILE!$G$7,COUNTRY_INFO!D23*AL23*PROFILE!$G$7) -> 17853.71224 | AQ23: =MAX(COUNTRY_INFO!D23*AK23*PROFILE!$G$8,COUNTRY_INFO!D23*AL23*PROFILE!$G$8,COUNTRY_INFO!D23*AM23*PROFILE!$G$8) -> 28475.75556 | AR23: =MAX(COUNTRY_INFO!D23*AK23*PROFILE!$G$9,COUNTRY_INFO!D23*AL23*PROFILE!$G$9,COUNTRY_INFO!D23*AM23*PROFILE!$G$9,IF(AND(DISTRICT!Z23<>"Inconnu",Z23<>"Non requis"),COUNTRY_INFO!O23*DISTRICT!AN23,0)) -> 69882.04822 | AS23: =MAX(COUNTRY_INFO!D23*AK23*PROFILE!$G$10,COUNTRY_INFO!D23*AL23*PROFILE!$G$10,IF(AND(DISTRICT!Z23<>"Inconnu",Z23<>"Non requis"),COUNTRY_INFO!O23*DISTRICT!AO23,0)) -> 141170.484 | AT23: 257382 | AU23: 0 | AV23: =MAX('MDA2'!J23,'T1'!L23,'T2'!J23,T3_R1!K23,T3_R2!K23) -> 28566 | AW23: =MAX('MDA1'!K23,'MDA2'!K23,'MDA3'!I23,'MDA3'!L23,'T1'!M23,'T2'!K23,T3_R1!L23,T3_R2!L23) -> 83809 | AX23: =MAX('MDA1'!L23,'MDA2'!L23,'MDA3'!J23,'MDA3'!M23,'T1'!N23,'T2'!L23,T3_R1!M23,T3_R2!M23) -> 6503 | AY23: 118878 | AZ23: =MAX('MDA2'!J23,T23) -> 0 | BA23: =MAX('MDA1'!K23,'MDA2'!K23,'MDA3'!I23,'MDA3'!L23,V23,AD23) -> 29364.5 | BB23: =MAX('MDA1'!L23,'MDA2'!L23,'MDA3'!J23,'MDA3'!M23,AF23) -> 0 | BC23: 29364.5 | BD23: 11.40891748 | BE23: 0
A24: =IF(COUNTRY_INFO!A24=0," ",COUNTRY_INFO!A24) -> Burundi | B24: =IF(COUNTRY_INFO!B24=0," ",COUNTRY_INFO!B24) -> Cibitoke | C24: =IF(COUNTRY_INFO!C24=0," ",COUNTRY_INFO!C24) -> Mabayi | D24: =COUNTRY_INFO!L24 -> 0 | G24: =MAX('MDA1'!M24,'MDA2'!M24) -> 0 | H24: =IF(AND(COUNTRY_INFO!H24>0,COUNTRY_INFO!H24<4),IF(D24>MAX('MDA1'!M24,'MDA2'!M24),MAX('MDA1'!M24,'MDA2'!M24),D24),0) -> 0 | I24: =IF(AND(COUNTRY_INFO!H24>0,COUNTRY_INFO!H24<4), IF(G24/D24*100<>0, IF(G24/D24*100>100,100,G24/D24*100), "-"),0) -> 0 | J24: =COUNTRY_INFO!M24 -> 226953 | M24: =MAX('MDA1'!M24,MAX('MDA3'!I24,'MDA3'!L24)+MAX('MDA3'!J24,'MDA3'!M24)) -> 0 | N24: =IF(AND(COUNTRY_INFO!I24>0,COUNTRY_INFO!I24<4),IF(J24>MAX('MDA1'!M24,MAX('MDA3'!I24,'MDA3'!L24)+MAX('MDA3'!J24,'MDA3'!M24)),MAX('MDA1'!M24,MAX('MDA3'!I24,'MDA3'!L24)+MAX('MDA3'!J24,'MDA3'!M24)),J24),0) -> 0 | O24: =IF(AND(COUNTRY_INFO!I24>0,COUNTRY_INFO!I24<4), IF(M24/J24*100<>0, IF(M24/J24*100>100,100,M24/J24*100), "-"),0) -> - | P24: =COUNTRY_INFO!N24 -> 0 | S24: =SUM(MAX('MDA2'!J24, 'T1'!L24, MAX(T3_R1!K24, T3_R2!K24)), MAX('MDA1'!K24, 'MDA2'!K24, 'T1'!M24, MAX(T3_R1!L24, T3_R2!L24)), MAX('MDA1'!L24, 'MDA2'!L24, 'T1'!N24, MAX(T3_R1!M24, T3_R2!M24))) -> 114751 | T24: =IF(AND(COUNTRY_INFO!J24>1,COUNTRY_INFO!J24<4),IF(COUNTRY_INFO!E24>MAX('MDA2'!J24,'T1'!L24,MAX(T3_R1!K24,T3_R2!K24)),MAX('MDA2'!J24,'T1'!L24,MAX(T3_R1!K24,T3_R2!K24)),COUNTRY_INFO!E24),0) -> 0 | U24: =IF(AND(COUNTRY_INFO!J24>1,COUNTRY_INFO!J24<4), IF(T24/COUNTRY_INFO!E24*100<>0, IF(T24/COUNTRY_INFO!E24*100>100,100,T24/COUNTRY_INFO!E24*100), "-"),0) -> 0 | V24: =IF(AND(COUNTRY_INFO!J24>1,COUNTRY_INFO!J24<4),IF(COUNTRY_INFO!F24>MAX('MDA1'!K24,'MDA2'!K24,'T1'!M24,MAX(T3_R1!L24,T3_R2!L24)),MAX('MDA1'!K24,'MDA2'!K24,'T1'!M24,MAX(T3_R1!L24,T3_R2!L24)),COUNTRY_INFO!F24),0) -> 0 | W24: =IF(AND(COUNTRY_INFO!J24>1,COUNTRY_INFO!J24<4), IF(V24/COUNTRY_INFO!F24*100<>0, IF(V24/COUNTRY_INFO!F24*100>100,100,V24/COUNTRY_INFO!F24*100), "-"),0) -> 0 | X24: 0 | Y24: =IF(AND(COUNTRY_INFO!J24>1,COUNTRY_INFO!J24<4), IF(S24/P24*100<>0, IF(X24/P24*100>100,100,X24/P24*100), "-"),0) -> 0 | Z24: =COUNTRY_INFO!O24 -> 22639.32 | AA24: 33150 | AB24: 38173 | AC24: =MAX('T1'!L24,'T2'!J24)+MAX('T1'!M24,'T2'!K24)+MAX('T1'!N24,'T2'!L24) -> 71213 | AD24: =IF(COUNTRY_INFO!K24=1,IF(COUNTRY_INFO!F24*0.33>MAX('T1'!M24,'T2'!K24),MAX('T1'!M24,'T2'!K24),COUNTRY_INFO!F24*0.33),IF(COUNTRY_INFO!K24=2,IF(COUNTRY_INFO!F24*0.5>MAX('T1'!M24,'T2'!K24),MAX('T1'!M24,'T2'!K24),COUNTRY_INFO!F24*0.5),IF(COUNTRY_INFO!K24=3,IF(COUNTRY_INFO!F24>MAX('T1'!M24,'T2'!K24),MAX('T1'!M24,'T2'!K24),COUNTRY_INFO!F24),0))) -> 22639.32 | AE24: =IF(AND(COUNTRY_INFO!K24>0,COUNTRY_INFO!K24<4),IF(Z24>0,IF(COUNTRY_INFO!K24=1, AD24/(COUNTRY_INFO!F24*0.33)*100, IF(COUNTRY_INFO!K24=2, AD24/(COUNTRY_INFO!F24*0.5)*100, IF(COUNTRY_INFO!K24=3, AD24/COUNTRY_INFO!F24*100))),"-"),0) -> 100 | AF24: =IF(COUNTRY_INFO!K24=2,IF(COUNTRY_INFO!G24*0.2>MAX('T1'!N24,'T2'!L24),MAX('T1'!N24,'T2'!L24),COUNTRY_INFO!G24*0.2),IF(COUNTRY_INFO!K24=3,IF(COUNTRY_INFO!G24>MAX('T1'!N24,'T2'!L24),MAX('T1'!N24,'T2'!L24),COUNTRY_INFO!G24),0)) -> 0 | AG24: =IF(AND(COUNTRY_INFO!K24>0,COUNTRY_INFO!K24<4),IF(Z24>0,IF(COUNTRY_INFO!K24=1, 0, IF(COUNTRY_INFO!K24=2, AF24/(COUNTRY_INFO!G24*0.2)*100, IF(COUNTRY_INFO!K24=3, AF24/COUNTRY_INFO!G24*100))),"-"),0) -> 0 | AH24: 22639.32 | AI24: =IF(AND(COUNTRY_INFO!K24>0,COUNTRY_INFO!K24<4), IF(AC24/Z24*100<>0, IF(AH24/Z24*100>100,100,AH24/Z24*100), "-"),0) -> 100 | AK24: =IF(AND(D24<>0, D24<>"Inconnu",D24<>"Interrompu",D24<>"Non requis"),D24/COUNTRY_INFO!D24, 0) -> 0 | AL24: =IF(AND(J24<>0,J24<>"Inconnu",J24<>"Interrompu",J24<>"Non requis"),J24/COUNTRY_INFO!D24, 0) -> 0.9388814655 | AM24: =IF(AND(P24<>0,P24<>"Inconnu",P24<>"Non requis"),P24/(COUNTRY_INFO!E24+COUNTRY_INFO!F24), 0) -> 0 | AN24: =IF(AND(Z24<>0,Z24<>"Inconnu",Z24<>"Non requis"),IF(COUNTRY_INFO!K24=1,1,IF(COUNTRY_INFO!K24=2,0.5*COUNTRY_INFO!F24/(0.5*COUNTRY_INFO!F24+0.2*COUNTRY_INFO!G24),IF(COUNTRY_INFO!K24=3,COUNTRY_INFO!F24/(COUNTRY_INFO!F24+COUNTRY_INFO!G24)))),0) -> 1 | AO24: =IF(AND(Z24<>0,Z24<>"Inconnu",Z24<>"Non requis"),IF(COUNTRY_INFO!K24=1,0,IF(COUNTRY_INFO!K24=2,0.2*COUNTRY_INFO!G24/(0.5*COUNTRY_INFO!F24+0.2*COUNTRY_INFO!G24),IF(COUNTRY_INFO!K24=3,COUNTRY_INFO!G24/(COUNTRY_INFO!F24+COUNTRY_INFO!G24)))),0) -> 0 | AP24: =MAX(COUNTRY_INFO!D24*AK24*PROFILE!$G$7,COUNTRY_INFO!D24*AL24*PROFILE!$G$7) -> 15742.9562 | AQ24: =MAX(COUNTRY_INFO!D24*AK24*PROFILE!$G$8,COUNTRY_INFO!D24*AL24*PROFILE!$G$8,COUNTRY_INFO!D24*AM24*PROFILE!$G$8) -> 25109.20792 | AR24: =MAX(COUNTRY_INFO!D24*AK24*PROFILE!$G$9,COUNTRY_INFO!D24*AL24*PROFILE!$G$9,COUNTRY_INFO!D24*AM24*PROFILE!$G$9,IF(AND(DISTRICT!Z24<>"Inconnu",Z24<>"Non requis"),COUNTRY_INFO!O24*DISTRICT!AN24,0)) -> 61620.23952 | AS24: =MAX(COUNTRY_INFO!D24*AK24*PROFILE!$G$10,COUNTRY_INFO!D24*AL24*PROFILE!$G$10,IF(AND(DISTRICT!Z24<>"Inconnu",Z24<>"Non requis"),COUNTRY_INFO!O24*DISTRICT!AO24,0)) -> 124480.5964 | AT24: 226953 | AU24: 0 | AV24: =MAX('MDA2'!J24,'T1'!L24,'T2'!J24,T3_R1!K24,T3_R2!K24) -> 30757 | AW24: =MAX('MDA1'!K24,'MDA2'!K24,'MDA3'!I24,'MDA3'!L24,'T1'!M24,'T2'!K24,T3_R1!L24,T3_R2!L24) -> 77661 | AX24: =MAX('MDA1'!L24,'MDA2'!L24,'MDA3'!J24,'MDA3'!M24,'T1'!N24,'T2'!L24,T3_R1!M24,T3_R2!M24) -> 6333 | AY24: 114751 | AZ24: =MAX('MDA2'!J24,T24) -> 0 | BA24: =MAX('MDA1'!K24,'MDA2'!K24,'MDA3'!I24,'MDA3'!L24,V24,AD24) -> 22639.32 | BB24: =MAX('MDA1'!L24,'MDA2'!L24,'MDA3'!J24,'MDA3'!M24,AF24) -> 0 | BC24: 22639.32 | BD24: 9.9753341 | BE24: -110
A25: =IF(COUNTRY_INFO!A25=0," ",COUNTRY_INFO!A25) -> Burundi | B25: =IF(COUNTRY_INFO!B25=0," ",COUNTRY_INFO!B25) -> Gitega | C25: =IF(COUNTRY_INFO!C25=0," ",COUNTRY_INFO!C25) -> Gitega | D25: =COUNTRY_INFO!L25 -> 0 | G25: =MAX('MDA1'!M25,'MDA2'!M25) -> 0 | H25: =IF(AND(COUNTRY_INFO!H25>0,COUNTRY_INFO!H25<4),IF(D25>MAX('MDA1'!M25,'MDA2'!M25),MAX('MDA1'!M25,'MDA2'!M25),D25),0) -> 0 | I25: =IF(AND(COUNTRY_INFO!H25>0,COUNTRY_INFO!H25<4), IF(G25/D25*100<>0, IF(G25/D25*100>100,100,G25/D25*100), "-"),0) -> 0 | J25: =COUNTRY_INFO!M25 -> 0 | M25: =MAX('MDA1'!M25,MAX('MDA3'!I25,'MDA3'!L25)+MAX('MDA3'!J25,'MDA3'!M25)) -> 0 | N25: =IF(AND(COUNTRY_INFO!I25>0,COUNTRY_INFO!I25<4),IF(J25>MAX('MDA1'!M25,MAX('MDA3'!I25,'MDA3'!L25)+MAX('MDA3'!J25,'MDA3'!M25)),MAX('MDA1'!M25,MAX('MDA3'!I25,'MDA3'!L25)+MAX('MDA3'!J25,'MDA3'!M25)),J25),0) -> 0 | O25: =IF(AND(COUNTRY_INFO!I25>0,COUNTRY_INFO!I25<4), IF(M25/J25*100<>0, IF(M25/J25*100>100,100,M25/J25*100), "-"),0) -> 0 | P25: =COUNTRY_INFO!N25 -> 0 | S25: =SUM(MAX('MDA2'!J25, 'T1'!L25, MAX(T3_R1!K25, T3_R2!K25)), MAX('MDA1'!K25, 'MDA2'!K25, 'T1'!M25, MAX(T3_R1!L25, T3_R2!L25)), MAX('MDA1'!L25, 'MDA2'!L25, 'T1'!N25, MAX(T3_R1!M25, T3_R2!M25))) -> 148308 | T25: =IF(AND(COUNTRY_INFO!J25>1,COUNTRY_INFO!J25<4),IF(COUNTRY_INFO!E25>MAX('MDA2'!J25,'T1'!L25,MAX(T3_R1!K25,T3_R2!K25)),MAX('MDA2'!J25,'T1'!L25,MAX(T3_R1!K25,T3_R2!K25)),COUNTRY_INFO!E25),0) -> 0 | U25: =IF(AND(COUNTRY_INFO!J25>1,COUNTRY_INFO!J25<4), IF(T25/COUNTRY_INFO!E25*100<>0, IF(T25/COUNTRY_INFO!E25*100>100,100,T25/COUNTRY_INFO!E25*100), "-"),0) -> 0 | V25: =IF(AND(COUNTRY_INFO!J25>1,COUNTRY_INFO!J25<4),IF(COUNTRY_INFO!F25>MAX('MDA1'!K25,'MDA2'!K25,'T1'!M25,MAX(T3_R1!L25,T3_R2!L25)),MAX('MDA1'!K25,'MDA2'!K25,'T1'!M25,MAX(T3_R1!L25,T3_R2!L25)),COUNTRY_INFO!F25),0) -> 0 | W25: =IF(AND(COUNTRY_INFO!J25>1,COUNTRY_INFO!J25<4), IF(V25/COUNTRY_INFO!F25*100<>0, IF(V25/COUNTRY_INFO!F25*100>100,100,V25/COUNTRY_INFO!F25*100), "-"),0) -> 0 | X25: 0 | Y25: =IF(AND(COUNTRY_INFO!J25>1,COUNTRY_INFO!J25<4), IF(S25/P25*100<>0, IF(X25/P25*100>100,100,X25/P25*100), "-"),0) -> 0 | Z25: =COUNTRY_INFO!O25 -> 0 | AC25: =MAX('T1'!L25,'T2'!J25)+MAX('T1'!M25,'T2'!K25)+MAX('T1'!N25,'T2'!L25) -> 0 | AD25: =IF(COUNTRY_INFO!K25=1,IF(COUNTRY_INFO!F25*0.33>MAX('T1'!M25,'T2'!K25),MAX('T1'!M25,'T2'!K25),COUNTRY_INFO!F25*0.33),IF(COUNTRY_INFO!K25=2,IF(COUNTRY_INFO!F25*0.5>MAX('T1'!M25,'T2'!K25),MAX('T1'!M25,'T2'!K25),COUNTRY_INFO!F25*0.5),IF(COUNTRY_INFO!K25=3,IF(COUNTRY_INFO!F25>MAX('T1'!M25,'T2'!K25),MAX('T1'!M25,'T2'!K25),COUNTRY_INFO!F25),0))) -> 0 | AE25: =IF(AND(COUNTRY_INFO!K25>0,COUNTRY_INFO!K25<4),IF(Z25>0,IF(COUNTRY_INFO!K25=1, AD25/(COUNTRY_INFO!F25*0.33)*100, IF(COUNTRY_INFO!K25=2, AD25/(COUNTRY_INFO!F25*0.5)*100, IF(COUNTRY_INFO!K25=3, AD25/COUNTRY_INFO!F25*100))),"-"),0) -> 0 | AF25: =IF(COUNTRY_INFO!K25=2,IF(COUNTRY_INFO!G25*0.2>MAX('T1'!N25,'T2'!L25),MAX('T1'!N25,'T2'!L25),COUNTRY_INFO!G25*0.2),IF(COUNTRY_INFO!K25=3,IF(COUNTRY_INFO!G25>MAX('T1'!N25,'T2'!L25),MAX('T1'!N25,'T2'!L25),COUNTRY_INFO!G25),0)) -> 0 | AG25: =IF(AND(COUNTRY_INFO!K25>0,COUNTRY_INFO!K25<4),IF(Z25>0,IF(COUNTRY_INFO!K25=1, 0, IF(COUNTRY_INFO!K25=2, AF25/(COUNTRY_INFO!G25*0.2)*100, IF(COUNTRY_INFO!K25=3, AF25/COUNTRY_INFO!G25*100))),"-"),0) -> 0 | AH25: 0 | AI25: =IF(AND(COUNTRY_INFO!K25>0,COUNTRY_INFO!K25<4), IF(AC25/Z25*100<>0, IF(AH25/Z25*100>100,100,AH25/Z25*100), "-"),0) -> 0 | AK25: =IF(AND(D25<>0, D25<>"Inconnu",D25<>"Interrompu",D25<>"Non requis"),D25/COUNTRY_INFO!D25, 0) -> 0 | AL25: =IF(AND(J25<>0,J25<>"Inconnu",J25<>"Interrompu",J25<>"Non requis"),J25/COUNTRY_INFO!D25, 0) -> 0 | AM25: =IF(AND(P25<>0,P25<>"Inconnu",P25<>"Non requis"),P25/(COUNTRY_INFO!E25+COUNTRY_INFO!F25), 0) -> 0 | AN25: =IF(AND(Z25<>0,Z25<>"Inconnu",Z25<>"Non requis"),IF(COUNTRY_INFO!K25=1,1,IF(COUNTRY_INFO!K25=2,0.5*COUNTRY_INFO!F25/(0.5*COUNTRY_INFO!F25+0.2*COUNTRY_INFO!G25),IF(COUNTRY_INFO!K25=3,COUNTRY_INFO!F25/(COUNTRY_INFO!F25+COUNTRY_INFO!G25)))),0) -> 0 | AO25: =IF(AND(Z25<>0,Z25<>"Inconnu",Z25<>"Non requis"),IF(COUNTRY_INFO!K25=1,0,IF(COUNTRY_INFO!K25=2,0.2*COUNTRY_INFO!G25/(0.5*COUNTRY_INFO!F25+0.2*COUNTRY_INFO!G25),IF(COUNTRY_INFO!K25=3,COUNTRY_INFO!G25/(COUNTRY_INFO!F25+COUNTRY_INFO!G25)))),0) -> 0 | AP25: =MAX(COUNTRY_INFO!D25*AK25*PROFILE!$G$7,COUNTRY_INFO!D25*AL25*PROFILE!$G$7) -> 0 | AQ25: =MAX(COUNTRY_INFO!D25*AK25*PROFILE!$G$8,COUNTRY_INFO!D25*AL25*PROFILE!$G$8,COUNTRY_INFO!D25*AM25*PROFILE!$G$8) -> 0 | AR25: =MAX(COUNTRY_INFO!D25*AK25*PROFILE!$G$9,COUNTRY_INFO!D25*AL25*PROFILE!$G$9,COUNTRY_INFO!D25*AM25*PROFILE!$G$9,IF(AND(DISTRICT!Z25<>"Inconnu",Z25<>"Non requis"),COUNTRY_INFO!O25*DISTRICT!AN25,0)) -> 0 | AS25: =MAX(COUNTRY_INFO!D25*AK25*PROFILE!$G$10,COUNTRY_INFO!D25*AL25*PROFILE!$G$10,IF(AND(DISTRICT!Z25<>"Inconnu",Z25<>"Non requis"),COUNTRY_INFO!O25*DISTRICT!AO25,0)) -> 0 | AT25: 0 | AU25: 0 | AV25: =MAX('MDA2'!J25,'T1'!L25,'T2'!J25,T3_R1!K25,T3_R2!K25) -> 44372 | AW25: =MAX('MDA1'!K25,'MDA2'!K25,'MDA3'!I25,'MDA3'!L25,'T1'!M25,'T2'!K25,T3_R1!L25,T3_R2!L25) -> 99042 | AX25: =MAX('MDA1'!L25,'MDA2'!L25,'MDA3'!J25,'MDA3'!M25,'T1'!N25,'T2'!L25,T3_R1!M25,T3_R2!M25) -> 4894 | AY25: 148308 | AZ25: =MAX('MDA2'!J25,T25) -> 0 | BA25: =MAX('MDA1'!K25,'MDA2'!K25,'MDA3'!I25,'MDA3'!L25,V25,AD25) -> 0 | BB25: =MAX('MDA1'!L25,'MDA2'!L25,'MDA3'!J25,'MDA3'!M25,AF25) -> 0 | BC25: 0 | BD25: 0 | BE25: 0
A26: =IF(COUNTRY_INFO!A26=0," ",COUNTRY_INFO!A26) -> Burundi | B26: =IF(COUNTRY_INFO!B26=0," ",COUNTRY_INFO!B26) -> Gitega | C26: =IF(COUNTRY_INFO!C26=0," ",COUNTRY_INFO!C26) -> Kibuye | D26: =COUNTRY_INFO!L26 -> 0 | G26: =MAX('MDA1'!M26,'MDA2'!M26) -> 0 | H26: =IF(AND(COUNTRY_INFO!H26>0,COUNTRY_INFO!H26<4),IF(D26>MAX('MDA1'!M26,'MDA2'!M26),MAX('MDA1'!M26,'MDA2'!M26),D26),0) -> 0 | I26: =IF(AND(COUNTRY_INFO!H26>0,COUNTRY_INFO!H26<4), IF(G26/D26*100<>0, IF(G26/D26*100>100,100,G26/D26*100), "-"),0) -> 0 | J26: =COUNTRY_INFO!M26 -> 0 | M26: =MAX('MDA1'!M26,MAX('MDA3'!I26,'MDA3'!L26)+MAX('MDA3'!J26,'MDA3'!M26)) -> 0 | N26: =IF(AND(COUNTRY_INFO!I26>0,COUNTRY_INFO!I26<4),IF(J26>MAX('MDA1'!M26,MAX('MDA3'!I26,'MDA3'!L26)+MAX('MDA3'!J26,'MDA3'!M26)),MAX('MDA1'!M26,MAX('MDA3'!I26,'MDA3'!L26)+MAX('MDA3'!J26,'MDA3'!M26)),J26),0) -> 0 | O26: =IF(AND(COUNTRY_INFO!I26>0,COUNTRY_INFO!I26<4), IF(M26/J26*100<>0, IF(M26/J26*100>100,100,M26/J26*100), "-"),0) -> 0 | P26: =COUNTRY_INFO!N26 -> 0 | S26: =SUM(MAX('MDA2'!J26, 'T1'!L26, MAX(T3_R1!K26, T3_R2!K26)), MAX('MDA1'!K26, 'MDA2'!K26, 'T1'!M26, MAX(T3_R1!L26, T3_R2!L26)), MAX('MDA1'!L26, 'MDA2'!L26, 'T1'!N26, MAX(T3_R1!M26, T3_R2!M26))) -> 129000 | T26: =IF(AND(COUNTRY_INFO!J26>1,COUNTRY_INFO!J26<4),IF(COUNTRY_INFO!E26>MAX('MDA2'!J26,'T1'!L26,MAX(T3_R1!K26,T3_R2!K26)),MAX('MDA2'!J26,'T1'!L26,MAX(T3_R1!K26,T3_R2!K26)),COUNTRY_INFO!E26),0) -> 0 | U26: =IF(AND(COUNTRY_INFO!J26>1,COUNTRY_INFO!J26<4), IF(T26/COUNTRY_INFO!E26*100<>0, IF(T26/COUNTRY_INFO!E26*100>100,100,T26/COUNTRY_INFO!E26*100), "-"),0) -> 0 | V26: =IF(AND(COUNTRY_INFO!J26>1,COUNTRY_INFO!J26<4),IF(COUNTRY_INFO!F26>MAX('MDA1'!K26,'MDA2'!K26,'T1'!M26,MAX(T3_R1!L26,T3_R2!L26)),MAX('MDA1'!K26,'MDA2'!K26,'T1'!M26,MAX(T3_R1!L26,T3_R2!L26)),COUNTRY_INFO!F26),0) -> 0 | W26: =IF(AND(COUNTRY_INFO!J26>1,COUNTRY_INFO!J26<4), IF(V26/COUNTRY_INFO!F26*100<>0, IF(V26/COUNTRY_INFO!F26*100>100,100,V26/COUNTRY_INFO!F26*100), "-"),0) -> 0 | X26: 0 | Y26: =IF(AND(COUNTRY_INFO!J26>1,COUNTRY_INFO!J26<4), IF(S26/P26*100<>0, IF(X26/P26*100>100,100,X26/P26*100), "-"),0) -> 0 | Z26: =COUNTRY_INFO!O26 -> 0 | AC26: =MAX('T1'!L26,'T2'!J26)+MAX('T1'!M26,'T2'!K26)+MAX('T1'!N26,'T2'!L26) -> 0 | AD26: =IF(COUNTRY_INFO!K26=1,IF(COUNTRY_INFO!F26*0.33>MAX('T1'!M26,'T2'!K26),MAX('T1'!M26,'T2'!K26),COUNTRY_INFO!F26*0.33),IF(COUNTRY_INFO!K26=2,IF(COUNTRY_INFO!F26*0.5>MAX('T1'!M26,'T2'!K26),MAX('T1'!M26,'T2'!K26),COUNTRY_INFO!F26*0.5),IF(COUNTRY_INFO!K26=3,IF(COUNTRY_INFO!F26>MAX('T1'!M26,'T2'!K26),MAX('T1'!M26,'T2'!K26),COUNTRY_INFO!F26),0))) -> 0 | AE26: =IF(AND(COUNTRY_INFO!K26>0,COUNTRY_INFO!K26<4),IF(Z26>0,IF(COUNTRY_INFO!K26=1, AD26/(COUNTRY_INFO!F26*0.33)*100, IF(COUNTRY_INFO!K26=2, AD26/(COUNTRY_INFO!F26*0.5)*100, IF(COUNTRY_INFO!K26=3, AD26/COUNTRY_INFO!F26*100))),"-"),0) -> 0 | AF26: =IF(COUNTRY_INFO!K26=2,IF(COUNTRY_INFO!G26*0.2>MAX('T1'!N26,'T2'!L26),MAX('T1'!N26,'T2'!L26),COUNTRY_INFO!G26*0.2),IF(COUNTRY_INFO!K26=3,IF(COUNTRY_INFO!G26>MAX('T1'!N26,'T2'!L26),MAX('T1'!N26,'T2'!L26),COUNTRY_INFO!G26),0)) -> 0 | AG26: =IF(AND(COUNTRY_INFO!K26>0,COUNTRY_INFO!K26<4),IF(Z26>0,IF(COUNTRY_INFO!K26=1, 0, IF(COUNTRY_INFO!K26=2, AF26/(COUNTRY_INFO!G26*0.2)*100, IF(COUNTRY_INFO!K26=3, AF26/COUNTRY_INFO!G26*100))),"-"),0) -> 0 | AH26: 0 | AI26: =IF(AND(COUNTRY_INFO!K26>0,COUNTRY_INFO!K26<4), IF(AC26/Z26*100<>0, IF(AH26/Z26*100>100,100,AH26/Z26*100), "-"),0) -> 0 | AK26: =IF(AND(D26<>0, D26<>"Inconnu",D26<>"Interrompu",D26<>"Non requis"),D26/COUNTRY_INFO!D26, 0) -> 0 | AL26: =IF(AND(J26<>0,J26<>"Inconnu",J26<>"Interrompu",J26<>"Non requis"),J26/COUNTRY_INFO!D26, 0) -> 0 | AM26: =IF(AND(P26<>0,P26<>"Inconnu",P26<>"Non requis"),P26/(COUNTRY_INFO!E26+COUNTRY_INFO!F26), 0) -> 0 | AN26: =IF(AND(Z26<>0,Z26<>"Inconnu",Z26<>"Non requis"),IF(COUNTRY_INFO!K26=1,1,IF(COUNTRY_INFO!K26=2,0.5*COUNTRY_INFO!F26/(0.5*COUNTRY_INFO!F26+0.2*COUNTRY_INFO!G26),IF(COUNTRY_INFO!K26=3,COUNTRY_INFO!F26/(COUNTRY_INFO!F26+COUNTRY_INFO!G26)))),0) -> 0 | AO26: =IF(AND(Z26<>0,Z26<>"Inconnu",Z26<>"Non requis"),IF(COUNTRY_INFO!K26=1,0,IF(COUNTRY_INFO!K26=2,0.2*COUNTRY_INFO!G26/(0.5*COUNTRY_INFO!F26+0.2*COUNTRY_INFO!G26),IF(COUNTRY_INFO!K26=3,COUNTRY_INFO!G26/(COUNTRY_INFO!F26+COUNTRY_INFO!G26)))),0) -> 0 | AP26: =MAX(COUNTRY_INFO!D26*AK26*PROFILE!$G$7,COUNTRY_INFO!D26*AL26*PROFILE!$G$7) -> 0 | AQ26: =MAX(COUNTRY_INFO!D26*AK26*PROFILE!$G$8,COUNTRY_INFO!D26*AL26*PROFILE!$G$8,COUNTRY_INFO!D26*AM26*PROFILE!$G$8) -> 0 | AR26: =MAX(COUNTRY_INFO!D26*AK26*PROFILE!$G$9,COUNTRY_INFO!D26*AL26*PROFILE!$G$9,COUNTRY_INFO!D26*AM26*PROFILE!$G$9,IF(AND(DISTRICT!Z26<>"Inconnu",Z26<>"Non requis"),COUNTRY_INFO!O26*DISTRICT!AN26,0)) -> 0 | AS26: =MAX(COUNTRY_INFO!D26*AK26*PROFILE!$G$10,COUNTRY_INFO!D26*AL26*PROFILE!$G$10,IF(AND(DISTRICT!Z26<>"Inconnu",Z26<>"Non requis"),COUNTRY_INFO!O26*DISTRICT!AO26,0)) -> 0 | AT26: 0 | AU26: 0 | AV26: =MAX('MDA2'!J26,'T1'!L26,'T2'!J26,T3_R1!K26,T3_R2!K26) -> 35625 | AW26: =MAX('MDA1'!K26,'MDA2'!K26,'MDA3'!I26,'MDA3'!L26,'T1'!M26,'T2'!K26,T3_R1!L26,T3_R2!L26) -> 86094 | AX26: =MAX('MDA1'!L26,'MDA2'!L26,'MDA3'!J26,'MDA3'!M26,'T1'!N26,'T2'!L26,T3_R1!M26,T3_R2!M26) -> 7281 | AY26: 129000 | AZ26: =MAX('MDA2'!J26,T26) -> 0 | BA26: =MAX('MDA1'!K26,'MDA2'!K26,'MDA3'!I26,'MDA3'!L26,V26,AD26) -> 0 | BB26: =MAX('MDA1'!L26,'MDA2'!L26,'MDA3'!J26,'MDA3'!M26,AF26) -> 0 | BC26: 0 | BD26: 0 | BE26: 0
A27: =IF(COUNTRY_INFO!A27=0," ",COUNTRY_INFO!A27) -> Burundi | B27: =IF(COUNTRY_INFO!B27=0," ",COUNTRY_INFO!B27) -> Gitega | C27: =IF(COUNTRY_INFO!C27=0," ",COUNTRY_INFO!C27) -> Mutaho | D27: =COUNTRY_INFO!L27 -> 0 | G27: =MAX('MDA1'!M27,'MDA2'!M27) -> 0 | H27: =IF(AND(COUNTRY_INFO!H27>0,COUNTRY_INFO!H27<4),IF(D27>MAX('MDA1'!M27,'MDA2'!M27),MAX('MDA1'!M27,'MDA2'!M27),D27),0) -> 0 | I27: =IF(AND(COUNTRY_INFO!H27>0,COUNTRY_INFO!H27<4), IF(G27/D27*100<>0, IF(G27/D27*100>100,100,G27/D27*100), "-"),0) -> 0 | J27: =COUNTRY_INFO!M27 -> 0 | M27: =MAX('MDA1'!M27,MAX('MDA3'!I27,'MDA3'!L27)+MAX('MDA3'!J27,'MDA3'!M27)) -> 0 | N27: =IF(AND(COUNTRY_INFO!I27>0,COUNTRY_INFO!I27<4),IF(J27>MAX('MDA1'!M27,MAX('MDA3'!I27,'MDA3'!L27)+MAX('MDA3'!J27,'MDA3'!M27)),MAX('MDA1'!M27,MAX('MDA3'!I27,'MDA3'!L27)+MAX('MDA3'!J27,'MDA3'!M27)),J27),0) -> 0 | O27: =IF(AND(COUNTRY_INFO!I27>0,COUNTRY_INFO!I27<4), IF(M27/J27*100<>0, IF(M27/J27*100>100,100,M27/J27*100), "-"),0) -> 0 | P27: =COUNTRY_INFO!N27 -> 0 | S27: =SUM(MAX('MDA2'!J27, 'T1'!L27, MAX(T3_R1!K27, T3_R2!K27)), MAX('MDA1'!K27, 'MDA2'!K27, 'T1'!M27, MAX(T3_R1!L27, T3_R2!L27)), MAX('MDA1'!L27, 'MDA2'!L27, 'T1'!N27, MAX(T3_R1!M27, T3_R2!M27))) -> 109725 | T27: =IF(AND(COUNTRY_INFO!J27>1,COUNTRY_INFO!J27<4),IF(COUNTRY_INFO!E27>MAX('MDA2'!J27,'T1'!L27,MAX(T3_R1!K27,T3_R2!K27)),MAX('MDA2'!J27,'T1'!L27,MAX(T3_R1!K27,T3_R2!K27)),COUNTRY_INFO!E27),0) -> 0 | U27: =IF(AND(COUNTRY_INFO!J27>1,COUNTRY_INFO!J27<4), IF(T27/COUNTRY_INFO!E27*100<>0, IF(T27/COUNTRY_INFO!E27*100>100,100,T27/COUNTRY_INFO!E27*100), "-"),0) -> 0 | V27: =IF(AND(COUNTRY_INFO!J27>1,COUNTRY_INFO!J27<4),IF(COUNTRY_INFO!F27>MAX('MDA1'!K27,'MDA2'!K27,'T1'!M27,MAX(T3_R1!L27,T3_R2!L27)),MAX('MDA1'!K27,'MDA2'!K27,'T1'!M27,MAX(T3_R1!L27,T3_R2!L27)),COUNTRY_INFO!F27),0) -> 0 | W27: =IF(AND(COUNTRY_INFO!J27>1,COUNTRY_INFO!J27<4), IF(V27/COUNTRY_INFO!F27*100<>0, IF(V27/COUNTRY_INFO!F27*100>100,100,V27/COUNTRY_INFO!F27*100), "-"),0) -> 0 | X27: 0 | Y27: =IF(AND(COUNTRY_INFO!J27>1,COUNTRY_INFO!J27<4), IF(S27/P27*100<>0, IF(X27/P27*100>100,100,X27/P27*100), "-"),0) -> 0 | Z27: =COUNTRY_INFO!O27 -> 0 | AC27: =MAX('T1'!L27,'T2'!J27)+MAX('T1'!M27,'T2'!K27)+MAX('T1'!N27,'T2'!L27) -> 0 | AD27: =IF(COUNTRY_INFO!K27=1,IF(COUNTRY_INFO!F27*0.33>MAX('T1'!M27,'T2'!K27),MAX('T1'!M27,'T2'!K27),COUNTRY_INFO!F27*0.33),IF(COUNTRY_INFO!K27=2,IF(COUNTRY_INFO!F27*0.5>MAX('T1'!M27,'T2'!K27),MAX('T1'!M27,'T2'!K27),COUNTRY_INFO!F27*0.5),IF(COUNTRY_INFO!K27=3,IF(COUNTRY_INFO!F27>MAX('T1'!M27,'T2'!K27),MAX('T1'!M27,'T2'!K27),COUNTRY_INFO!F27),0))) -> 0 | AE27: =IF(AND(COUNTRY_INFO!K27>0,COUNTRY_INFO!K27<4),IF(Z27>0,IF(COUNTRY_INFO!K27=1, AD27/(COUNTRY_INFO!F27*0.33)*100, IF(COUNTRY_INFO!K27=2, AD27/(COUNTRY_INFO!F27*0.5)*100, IF(COUNTRY_INFO!K27=3, AD27/COUNTRY_INFO!F27*100))),"-"),0) -> 0 | AF27: =IF(COUNTRY_INFO!K27=2,IF(COUNTRY_INFO!G27*0.2>MAX('T1'!N27,'T2'!L27),MAX('T1'!N27,'T2'!L27),COUNTRY_INFO!G27*0.2),IF(COUNTRY_INFO!K27=3,IF(COUNTRY_INFO!G27>MAX('T1'!N27,'T2'!L27),MAX('T1'!N27,'T2'!L27),COUNTRY_INFO!G27),0)) -> 0 | AG27: =IF(AND(COUNTRY_INFO!K27>0,COUNTRY_INFO!K27<4),IF(Z27>0,IF(COUNTRY_INFO!K27=1, 0, IF(COUNTRY_INFO!K27=2, AF27/(COUNTRY_INFO!G27*0.2)*100, IF(COUNTRY_INFO!K27=3, AF27/COUNTRY_INFO!G27*100))),"-"),0) -> 0 | AH27: 0 | AI27: =IF(AND(COUNTRY_INFO!K27>0,COUNTRY_INFO!K27<4), IF(AC27/Z27*100<>0, IF(AH27/Z27*100>100,100,AH27/Z27*100), "-"),0) -> 0 | AK27: =IF(AND(D27<>0, D27<>"Inconnu",D27<>"Interrompu",D27<>"Non requis"),D27/COUNTRY_INFO!D27, 0) -> 0 | AL27: =IF(AND(J27<>0,J27<>"Inconnu",J27<>"Interrompu",J27<>"Non requis"),J27/COUNTRY_INFO!D27, 0) -> 0 | AM27: =IF(AND(P27<>0,P27<>"Inconnu",P27<>"Non requis"),P27/(COUNTRY_INFO!E27+COUNTRY_INFO!F27), 0) -> 0 | AN27: =IF(AND(Z27<>0,Z27<>"Inconnu",Z27<>"Non requis"),IF(COUNTRY_INFO!K27=1,1,IF(COUNTRY_INFO!K27=2,0.5*COUNTRY_INFO!F27/(0.5*COUNTRY_INFO!F27+0.2*COUNTRY_INFO!G27),IF(COUNTRY_INFO!K27=3,COUNTRY_INFO!F27/(COUNTRY_INFO!F27+COUNTRY_INFO!G27)))),0) -> 0 | AO27: =IF(AND(Z27<>0,Z27<>"Inconnu",Z27<>"Non requis"),IF(COUNTRY_INFO!K27=1,0,IF(COUNTRY_INFO!K27=2,0.2*COUNTRY_INFO!G27/(0.5*COUNTRY_INFO!F27+0.2*COUNTRY_INFO!G27),IF(COUNTRY_INFO!K27=3,COUNTRY_INFO!G27/(COUNTRY_INFO!F27+COUNTRY_INFO!G27)))),0) -> 0 | AP27: =MAX(COUNTRY_INFO!D27*AK27*PROFILE!$G$7,COUNTRY_INFO!D27*AL27*PROFILE!$G$7) -> 0 | AQ27: =MAX(COUNTRY_INFO!D27*AK27*PROFILE!$G$8,COUNTRY_INFO!D27*AL27*PROFILE!$G$8,COUNTRY_INFO!D27*AM27*PROFILE!$G$8) -> 0 | AR27: =MAX(COUNTRY_INFO!D27*AK27*PROFILE!$G$9,COUNTRY_INFO!D27*AL27*PROFILE!$G$9,COUNTRY_INFO!D27*AM27*PROFILE!$G$9,IF(AND(DISTRICT!Z27<>"Inconnu",Z27<>"Non requis"),COUNTRY_INFO!O27*DISTRICT!AN27,0)) -> 0 | AS27: =MAX(COUNTRY_INFO!D27*AK27*PROFILE!$G$10,COUNTRY_INFO!D27*AL27*PROFILE!$G$10,IF(AND(DISTRICT!Z27<>"Inconnu",Z27<>"Non requis"),COUNTRY_INFO!O27*DISTRICT!AO27,0)) -> 0 | AT27: 0 | AU27: 0 | AV27: =MAX('MDA2'!J27,'T1'!L27,'T2'!J27,T3_R1!K27,T3_R2!K27) -> 31331 | AW27: =MAX('MDA1'!K27,'MDA2'!K27,'MDA3'!I27,'MDA3'!L27,'T1'!M27,'T2'!K27,T3_R1!L27,T3_R2!L27) -> 73559 | AX27: =MAX('MDA1'!L27,'MDA2'!L27,'MDA3'!J27,'MDA3'!M27,'T1'!N27,'T2'!L27,T3_R1!M27,T3_R2!M27) -> 4835 | AY27: 109725 | AZ27: =MAX('MDA2'!J27,T27) -> 0 | BA27: =MAX('MDA1'!K27,'MDA2'!K27,'MDA3'!I27,'MDA3'!L27,V27,AD27) -> 0 | BB27: =MAX('MDA1'!L27,'MDA2'!L27,'MDA3'!J27,'MDA3'!M27,AF27) -> 0 | BC27: 0 | BD27: 0 | BE27: 0
